Workbook

Sheet OutoputF
G2: 5 years Forecast Horizon | S2: Extended forecast horizon until maturity of concession
C3: EUR million | F3: 2014 | G3: 2015 | H3: 2016 | I3: 2017 | J3: 2018 | K3: 2019 | L3: 2020 | M3: 2021 | N3: 2022 | O3: 2023 | P3: 2024 | Q3: 2025 | R3: 2026 | S3: 2027 | T3: 2028 | U3: 2029 | V3: 2030 | W3: 2031 | X3: 2032
B5: Network changes | G5: Martellago Opening | K5: New Pedemontana Veneta | Q5: New Orte -Mestre
B7: Traffic Volumes (VKm_m) | F7: =+SUMIF(CurrentYear,F$3,TrafficTotal)/1000000 -> 0 | G7: 1724.303511 | H7: 1782.850773 | I7: 1800.329089 | J7: 1818.474594 | K7: 1826.570015 | L7: 1342.527606 | M7: 1614.390546 | N7: 1842.393615 | O7: 1885.22109 | P7: 1918.588635 | Q7: 1927.218731 | R7: 1935.633253 | S7: 1947.62877 | T7: 1965.101867 | U7: 1971.853437 | V7: 1984.084764 | W7: 1998.279116 | X7: 2017.238301
B9: Traffic Index ( 2014= 100) | F9: =+F7/$F$7 ->  | G9: =+G7/$F$7 -> 
B11: Toll Growth (%) | F11: =+SUMIF(PeriodFrom,DATE(F$3,1,1),TariffYearlyIncrease) -> 0 | G11: 0 | H11: 0 | I11: 0.0002720965537 | J11: 0.003199886226 | K11: 0.02060533031 | L11: =+IF(Input!$E$12="CIPE",'Dinamica Tariffaria'!G27,'Dinamica Tariffaria'!G13) -> 0 | M11: =+IF(Input!$E$12="CIPE",'Dinamica Tariffaria'!H27,'Dinamica Tariffaria'!H13) -> 0 | N11: =+IF(Input!$E$12="CIPE",'Dinamica Tariffaria'!I27,'Dinamica Tariffaria'!I13) -> 0.03197982124 | O11: =+IF(Input!$E$12="CIPE",'Dinamica Tariffaria'!J27,'Dinamica Tariffaria'!J13) -> 0.03197982124 | P11: =+IF(Input!$E$12="CIPE",'Dinamica Tariffaria'!K27,'Dinamica Tariffaria'!K13) -> 0.03197982124 | Q11: =+IF(Input!$E$12="CIPE",'Dinamica Tariffaria'!L27,'Dinamica Tariffaria'!L13) -> -0.007152931061 | R11: =+IF(Input!$E$12="CIPE",'Dinamica Tariffaria'!M27,'Dinamica Tariffaria'!M13) -> -0.007152931061 | S11: =+IF(Input!$E$12="CIPE",'Dinamica Tariffaria'!N27,'Dinamica Tariffaria'!N13) -> -0.007152931061 | T11: =+IF(Input!$E$12="CIPE",'Dinamica Tariffaria'!O27,'Dinamica Tariffaria'!O13) -> -0.007152931061 | U11: =+IF(Input!$E$12="CIPE",'Dinamica Tariffaria'!P27,'Dinamica Tariffaria'!P13) -> -0.007152931061 | V11: =+IF(Input!$E$12="CIPE",'Dinamica Tariffaria'!Q27,'Dinamica Tariffaria'!Q13) -> -0.007152931061 | W11: =+IF(Input!$E$12="CIPE",'Dinamica Tariffaria'!R27,'Dinamica Tariffaria'!R13) -> -0.007152931061 | X11: =+IF(Input!$E$12="CIPE",'Dinamica Tariffaria'!S27,'Dinamica Tariffaria'!S13) -> -0.007152931061
B13: Toll Index (2014= 100) | E13: 1 | F13: =+E13*(1+F11) -> 1 | G13: =+F13*(1+G11) -> 1 | H13: 1 | I13: 1.000272097 | J13: 1.003472853 | K13: 1.024149743 | L13: 1.024149743 | M13: 1.024149743 | N13: 1.056901869 | O13: 1.090701402 | P13: 1.125581837 | Q13: 1.117530628 | R13: 1.109537009 | S13: 1.101600567 | T13: 1.093720894 | U13: 1.085897584 | V13: 1.078130233 | W13: 1.070418442 | X13: 1.062761813
B15: 1. REVENUE | F15: =+'P&L-Y'!G8 -> 147932082 | G15: =+'P&L-Y'!H8 -> 155330761 | H15: =+'P&L-Y'!I8 -> 158944562 | I15: =+'P&L-Y'!J8 -> 162921817 | J15: =+'P&L-Y'!K8 -> 166224932.8 | K15: =+'P&L-Y'!L8 -> 128894765 | L15: =+'P&L-Y'!M8 -> 151700980.5 | M15: =+'P&L-Y'!N8 -> 174512738.8 | N15: =+'P&L-Y'!O8 -> 182480351.8 | O15: =+'P&L-Y'!P8 -> 190277255.4 | P15: =+'P&L-Y'!Q8 -> 189822889.5 | Q15: =+'P&L-Y'!R8 -> 189250818.7 | R15: =+'P&L-Y'!S8 -> 189405668 | S15: =+'P&L-Y'!T8 -> 190062675.4 | T15: =+'P&L-Y'!U8 -> 189721520.1 | U15: =+'P&L-Y'!V8 -> 189882620 | V15: =+'P&L-Y'!W8 -> 190193254.4 | W15: =+'P&L-Y'!X8 -> 190927105.6 | X15: =+'P&L-Y'!Y8 -> 0
B17: 2. EBITDA | F17: =+'P&L-Y'!G24 -> 89223824 | G17: =+'P&L-Y'!H24 -> 96171528.45 | H17: =+'P&L-Y'!I24 -> 97675058 | I17: =+'P&L-Y'!J24 -> 98506586.27 | J17: =+'P&L-Y'!K24 -> 96886031.89 | K17: =+'P&L-Y'!L24 -> 65715290.5 | L17: =+'P&L-Y'!M24 -> 79484515.87 | M17: =+'P&L-Y'!N24 -> 103386146.2 | N17: =+'P&L-Y'!O24 -> 110731447.8 | O17: =+'P&L-Y'!P24 -> 117384604.1 | P17: =+'P&L-Y'!Q24 -> 116708127.9 | Q17: =+'P&L-Y'!R24 -> 116150766.3 | R17: =+'P&L-Y'!S24 -> 115490969.1 | S17: =+'P&L-Y'!T24 -> 115828642.3 | T17: =+'P&L-Y'!U24 -> 114996006.8 | U17: =+'P&L-Y'!V24 -> 114322815.7 | V17: =+'P&L-Y'!W24 -> 114346337.6 | W17: =+'P&L-Y'!X24 -> 114169569 | X17: =+'P&L-Y'!Y24 -> 0
B19: (-) Capex | F19: =+'CF-Y'!G11 -> -9476661 | G19: =+'CF-Y'!H11 -> -9455444 | H19: =+'CF-Y'!I11 -> -3279901 | I19: =+'CF-Y'!J11 -> -378877 | J19: =+'CF-Y'!K11 -> -5772442.68 | K19: =+'CF-Y'!L11 -> -5815351 | L19: =+'CF-Y'!M11 -> -13011127 | M19: =+'CF-Y'!N11 -> -13720000 | N19: =+'CF-Y'!O11 -> -9453000 | O19: =+'CF-Y'!P11 -> -17186000 | P19: =+'CF-Y'!Q11 -> -33580000 | Q19: =+'CF-Y'!R11 -> -27050000 | R19: =+'CF-Y'!S11 -> -16000000 | S19: =+'CF-Y'!T11 -> -2300000 | T19: =+'CF-Y'!U11 -> -633000 | U19: =+'CF-Y'!V11 -> -5750000 | V19: =+'CF-Y'!W11 -> -3151000 | W19: =+'CF-Y'!X11 -> -1250000 | X19: =+'CF-Y'!Y11 -> 0
B20: (+) Use of CRA | F20: =+'CF-Y'!G13 -> 0 | G20: =+'CF-Y'!H13 -> 625135.33 | H20: =+'CF-Y'!I13 -> 1607706.67 | I20: =+'CF-Y'!J13 -> -0.4800000004 | J20: =+'CF-Y'!K13 -> 0 | K20: =+'CF-Y'!L13 -> 0.4800000004 | L20: =+'CF-Y'!M13 -> 16214689 | M20: =+'CF-Y'!N13 -> 10865125 | N20: =+'CF-Y'!O13 -> 0 | O20: =+'CF-Y'!P13 -> 0 | P20: =+'CF-Y'!Q13 -> 0 | Q20: =+'CF-Y'!R13 -> 0 | R20: =+'CF-Y'!S13 -> 0 | S20: =+'CF-Y'!T13 -> 0 | T20: =+'CF-Y'!U13 -> 0 | U20: =+'CF-Y'!V13 -> 0 | V20: =+'CF-Y'!W13 -> 0 | W20: =+'CF-Y'!X13 -> 0 | X20: =+'CF-Y'!Y13 -> 0
B21: (-) Taxes | F21: =+'CF-Y'!G16 -> -9378856 | G21: =+'CF-Y'!H16 -> -4125627 | H21: =+'CF-Y'!I16 -> -7583642 | I21: =+'CF-Y'!J16 -> -8443192 | J21: =+'CF-Y'!K16 -> -11554127.32 | K21: =+'CF-Y'!L16 -> -8980178.67 | L21: =+'CF-Y'!M16 -> -1669.93 | M21: =+'CF-Y'!N16 -> -3726649.143 | N21: =+'CF-Y'!O16 -> -17361380.57 | O21: =+'CF-Y'!P16 -> -16721648.48 | P21: =+'CF-Y'!Q16 -> -18388848.68 | Q21: =+'CF-Y'!R16 -> -14816710.41 | R21: =+'CF-Y'!S16 -> -14571830.55 | S21: =+'CF-Y'!T16 -> -14549917.88 | T21: =+'CF-Y'!U16 -> -16810478.95 | U21: =+'CF-Y'!V16 -> -16430817.33 | V21: =+'CF-Y'!W16 -> -15737482.97 | W21: =+'CF-Y'!X16 -> -16884744.56 | X21: =+'CF-Y'!Y16 -> -5126527
B22: (+/-) working capital (VAT included) | F22: =+('CF-Y'!G15+'CF-Y'!G19) -> 138906586 | G22: =+('CF-Y'!H15+'CF-Y'!H19) -> 8567877.73 | H22: =+('CF-Y'!I15+'CF-Y'!I19) -> 32303730.99 | I22: =+('CF-Y'!J15+'CF-Y'!J19) -> 93992922.67 | J22: =+('CF-Y'!K15+'CF-Y'!K19) -> 53924251.89 | K22: =+('CF-Y'!L15+'CF-Y'!L19) -> 28569006.59 | L22: =+('CF-Y'!M15+'CF-Y'!M19) -> -14571300.63 | M22: =+('CF-Y'!N15+'CF-Y'!N19) -> -5000000 | N22: =+('CF-Y'!O15+'CF-Y'!O19) -> 0 | O22: =+('CF-Y'!P15+'CF-Y'!P19) -> -6573522.076 | P22: =+('CF-Y'!Q15+'CF-Y'!Q19) -> 5008.419443 | Q22: =+('CF-Y'!R15+'CF-Y'!R19) -> -19208.79388 | R22: =+('CF-Y'!S15+'CF-Y'!S19) -> 64967.32416 | S22: =+('CF-Y'!T15+'CF-Y'!T19) -> 14467.72938 | T22: =+('CF-Y'!U15+'CF-Y'!U19) -> 31825.2517 | U22: =+('CF-Y'!V15+'CF-Y'!V19) -> 66532.55273 | V22: =+('CF-Y'!W15+'CF-Y'!W19) -> 10756.44482 | W22: =+('CF-Y'!X15+'CF-Y'!X19) -> 73998.87961 | X22: =+('CF-Y'!Y15+'CF-Y'!Y19) -> 19151485.19
B23: (+/-) others | F23: =+SUM('CF-Y'!G10,'CF-Y'!G14,'CF-Y'!G17:G18,'CF-Y'!G20:G21) -> -20895 | G23: =+SUM('CF-Y'!H10,'CF-Y'!H14,'CF-Y'!H17:H18,'CF-Y'!H20:H21) -> -104434.85 | H23: =+SUM('CF-Y'!I10,'CF-Y'!I14,'CF-Y'!I17:I18,'CF-Y'!I20:I21) -> 22027.85 | I23: =+SUM('CF-Y'!J10,'CF-Y'!J14,'CF-Y'!J17:J18,'CF-Y'!J20:J21) -> 1348792.5 | J23: =+SUM('CF-Y'!K10,'CF-Y'!K14,'CF-Y'!K17:K18,'CF-Y'!K20:K21) -> 1615982.46 | K23: =+SUM('CF-Y'!L10,'CF-Y'!L14,'CF-Y'!L17:L18,'CF-Y'!L20:L21) -> -8446.21 | L23: =+SUM('CF-Y'!M10,'CF-Y'!M14,'CF-Y'!M17:M18,'CF-Y'!M20:M21) -> -269337.8345 | M23: =+SUM('CF-Y'!N10,'CF-Y'!N14,'CF-Y'!N17:N18,'CF-Y'!N20:N21) -> 32766.1104 | N23: =+SUM('CF-Y'!O10,'CF-Y'!O14,'CF-Y'!O17:O18,'CF-Y'!O20:O21) -> -16103.24381 | O23: =+SUM('CF-Y'!P10,'CF-Y'!P14,'CF-Y'!P17:P18,'CF-Y'!P20:P21) -> 64491.25963 | P23: =+SUM('CF-Y'!Q10,'CF-Y'!Q14,'CF-Y'!Q17:Q18,'CF-Y'!Q20:Q21) -> 180465.6161 | Q23: =+SUM('CF-Y'!R10,'CF-Y'!R14,'CF-Y'!R17:R18,'CF-Y'!R20:R21) -> -387.7454672 | R23: =+SUM('CF-Y'!S10,'CF-Y'!S14,'CF-Y'!S17:S18,'CF-Y'!S20:S21) -> 72705.78989 | S23: =+SUM('CF-Y'!T10,'CF-Y'!T14,'CF-Y'!T17:T18,'CF-Y'!T20:T21) -> -32.33222832 | T23: =+SUM('CF-Y'!U10,'CF-Y'!U14,'CF-Y'!U17:U18,'CF-Y'!U20:U21) -> -9.336413774 | U23: =+SUM('CF-Y'!V10,'CF-Y'!V14,'CF-Y'!V17:V18,'CF-Y'!V20:V21) -> 37287.00479 | V23: =+SUM('CF-Y'!W10,'CF-Y'!W14,'CF-Y'!W17:W18,'CF-Y'!W20:W21) -> -0.7785186092 | W23: =+SUM('CF-Y'!X10,'CF-Y'!X14,'CF-Y'!X17:X18,'CF-Y'!X20:X21) -> -0.3160823833 | X23: =+SUM('CF-Y'!Y10,'CF-Y'!Y14,'CF-Y'!Y17:Y18,'CF-Y'!Y20:Y21) -> 0
B25: 3. CFADS | F25: =+SUM(F17:F23) -> 209253998 | G25: =+SUM(G17:G23) -> 91679035.66 | H25: 120744980.5 | I25: 185026232 | J25: 135099696.2 | K25: 79480321.69 | L25: 67845769.48 | M25: 91837388.21 | N25: 83900963.98 | O25: 76967924.76 | P25: 64924753.26 | Q25: 74264459.35 | R25: 85056811.64 | S25: 98993159.8 | T25: 97584343.77 | U25: 92245817.92 | V25: 95468610.27 | W25: 96108823.03 | X25: 14024958.19
B27: 4. SENIOR DEBT SERVICE | F27: =-'CF-Y'!G25 -> 29458931 | G27: =-'CF-Y'!H25 -> 50181000.86 | H27: =-'CF-Y'!I25 -> 69765187 | I27: =-'CF-Y'!J25 -> 65080300 | J27: =-'CF-Y'!K25 -> 73562900.34 | K27: =-'CF-Y'!L25 -> 77737800.66 | L27: =-'CF-Y'!M25 -> 72086258 | M27: =-'CF-Y'!N25 -> 75621300 | N27: =-'CF-Y'!O25 -> 64325000 | O27: =-'CF-Y'!P25 -> 57718200 | P27: =-'CF-Y'!Q25 -> 59959200 | Q27: =-'CF-Y'!R25 -> 58257700 | R27: =-'CF-Y'!S25 -> 61503000 | S27: =-'CF-Y'!T25 -> 62241700 | T27: =-'CF-Y'!U25 -> 61171000 | U27: =-'CF-Y'!V25 -> 57469200 | V27: =-'CF-Y'!W25 -> 0 | W27: =-'CF-Y'!X25 -> 0 | X27: =-'CF-Y'!Y25 -> 0
B29: Net Debt | F29: =+'BS-Y'!G40-'BS-Y'!G21-'BS-Y'!G24 -> -50772175 | G29: =+'BS-Y'!H40-'BS-Y'!H21-'BS-Y'!H24 -> 702795984.5 | H29: =+'BS-Y'!I40-'BS-Y'!I21-'BS-Y'!I24 -> 646983465.6 | I29: =+'BS-Y'!J40-'BS-Y'!J21-'BS-Y'!J24 -> 563015125.2 | J29: =+'BS-Y'!K40-'BS-Y'!K21-'BS-Y'!K24 -> 452420156.9 | K29: =+'BS-Y'!L40-'BS-Y'!L21-'BS-Y'!L24 -> 391345226.1 | L29: =+'BS-Y'!M40-'BS-Y'!M21-'BS-Y'!M24 -> 343110435.9 | M29: =+'BS-Y'!N40-'BS-Y'!N21-'BS-Y'!N24 -> 264346134.7 | N29: =+'BS-Y'!O40-'BS-Y'!O21-'BS-Y'!O24 -> 191747999.2 | O29: =+'BS-Y'!P40-'BS-Y'!P21-'BS-Y'!P24 -> 125770967.4 | P29: =+'BS-Y'!Q40-'BS-Y'!Q21-'BS-Y'!Q24 -> 69431560.15 | Q29: =+'BS-Y'!R40-'BS-Y'!R21-'BS-Y'!R24 -> 2664310.751 | R29: =+'BS-Y'!S40-'BS-Y'!S21-'BS-Y'!S24 -> -76417168.88 | S29: =+'BS-Y'!T40-'BS-Y'!T21-'BS-Y'!T24 -> 42196522.08 | T29: =+'BS-Y'!U40-'BS-Y'!U21-'BS-Y'!U24 -> -15203829.01 | U29: =+'BS-Y'!V40-'BS-Y'!V21-'BS-Y'!V24 -> -79195805.78 | V29: =+'BS-Y'!W40-'BS-Y'!W21-'BS-Y'!W24 -> -50726974.46 | W29: =+'BS-Y'!X40-'BS-Y'!X21-'BS-Y'!X24 -> -104691328.9 | X29: =+'BS-Y'!Y40-'BS-Y'!Y21-'BS-Y'!Y24 -> -2400000
B32: Net Debt / EBITDA | F32: =+F29/F17 -> -0.5690428041 | G32: =+G29/G17 -> 7.307734376 | H32: 6.623834977 | I32: 5.715507424 | J32: 4.669611791 | K32: 5.955162385 | L32: 4.316695297 | M32: 2.556881597 | N32: 1.731648985 | O32: 1.071443469 | P32: 0.5949162358 | Q32: 0.0229383829 | R32: -0.6616722459 | S32: 0.3643012752 | T32: -0.1322117996 | U32: -0.6927384119 | V32: -0.4436257035 | W32: -0.9169810292
B34: Net debt/CFADS | F34: =+F29/F25 -> -0.2426341933 | G34: =+G29/G25 -> 7.6658309 | H34: 5.358263862 | I34: 3.042893536 | J34: 3.348787373 | K34: 4.923800229 | L34: 5.057211946 | M34: 2.878415206 | N34: 2.285408773 | O34: 1.634069878 | P34: 1.069415849 | Q34: 0.03587598664 | R34: -0.898425034 | S34: 0.4262569471 | T34: -0.1558019291 | U34: -0.8585300404 | V34: -0.5313471549 | W34: -1.089299875 | X34: -0.1711235048
B36: BLCR | G36: =+SUMIF(PeriodTo,DATE(G$3,12,31),RatiosF!$G$43:$AT$43) -> 0 | H36: =+SUMIF(PeriodTo,DATE(H$3,12,31),RatiosF!$G$43:$AT$43) -> 1.419024889 | I36: =+SUMIF(PeriodTo,DATE(I$3,12,31),RatiosF!$G$43:$AT$43) -> 1.396806827 | J36: =+SUMIF(PeriodTo,DATE(J$3,12,31),RatiosF!$G$43:$AT$43) -> 1.267244314 | K36: =+SUMIF(PeriodTo,DATE(K$3,12,31),RatiosF!$G$43:$AT$43) -> 1.207554944 | L36: =+SUMIF(PeriodTo,DATE(L$3,12,31),RatiosF!$G$43:$AT$43) -> 1.235677243 | M36: =+SUMIF(PeriodTo,DATE(M$3,12,31),RatiosF!$G$43:$AT$43) -> 1.315950936 | N36: =+SUMIF(PeriodTo,DATE(N$3,12,31),RatiosF!$G$43:$AT$43) -> 1.364331571 | O36: =+SUMIF(PeriodTo,DATE(O$3,12,31),RatiosF!$G$43:$AT$43) -> 1.379900431 | P36: =+SUMIF(PeriodTo,DATE(P$3,12,31),RatiosF!$G$43:$AT$43) -> 1.393885336 | Q36: =+SUMIF(PeriodTo,DATE(Q$3,12,31),RatiosF!$G$43:$AT$43) -> 1.4667636 | R36: =+SUMIF(PeriodTo,DATE(R$3,12,31),RatiosF!$G$43:$AT$43) -> 1.522080983 | S36: =+SUMIF(PeriodTo,DATE(S$3,12,31),RatiosF!$G$43:$AT$43) -> 1.579825911 | T36: =+SUMIF(PeriodTo,DATE(T$3,12,31),RatiosF!$G$43:$AT$43) -> 1.584509312 | U36: =+SUMIF(PeriodTo,DATE(U$3,12,31),RatiosF!$G$43:$AT$43) -> 1.590555594 | V36: =+SUMIF(PeriodTo,DATE(V$3,12,31),RatiosF!$G$43:$AT$43) -> 0 | W36: =+SUMIF(PeriodTo,DATE(W$3,12,31),RatiosF!$G$43:$AT$43) -> 0 | X36: =+SUMIF(PeriodTo,DATE(X$3,12,31),RatiosF!$G$43:$AT$43) -> 0
B38: PLCR | G38: =+SUMIF(PeriodTo,DATE(G$3,12,31),RatiosF!$G$50:$AT$50) -> 0 | H38: =+SUMIF(PeriodTo,DATE(H$3,12,31),RatiosF!$G$50:$AT$50) -> 1.605305437 | I38: =+SUMIF(PeriodTo,DATE(I$3,12,31),RatiosF!$G$50:$AT$50) -> 1.600693891 | J38: =+SUMIF(PeriodTo,DATE(J$3,12,31),RatiosF!$G$50:$AT$50) -> 1.490415053 | K38: =+SUMIF(PeriodTo,DATE(K$3,12,31),RatiosF!$G$50:$AT$50) -> 1.456823225 | L38: =+SUMIF(PeriodTo,DATE(L$3,12,31),RatiosF!$G$50:$AT$50) -> 1.519261746 | M38: =+SUMIF(PeriodTo,DATE(M$3,12,31),RatiosF!$G$50:$AT$50) -> 1.640042374 | N38: =+SUMIF(PeriodTo,DATE(N$3,12,31),RatiosF!$G$50:$AT$50) -> 1.744144784 | O38: =+SUMIF(PeriodTo,DATE(O$3,12,31),RatiosF!$G$50:$AT$50) -> 1.82323513 | P38: =+SUMIF(PeriodTo,DATE(P$3,12,31),RatiosF!$G$50:$AT$50) -> 1.913535189 | Q38: =+SUMIF(PeriodTo,DATE(Q$3,12,31),RatiosF!$G$50:$AT$50) -> 2.096736435 | R38: =+SUMIF(PeriodTo,DATE(R$3,12,31),RatiosF!$G$50:$AT$50) -> 2.311477138 | S38: =+SUMIF(PeriodTo,DATE(S$3,12,31),RatiosF!$G$50:$AT$50) -> 2.648955924 | T38: =+SUMIF(PeriodTo,DATE(T$3,12,31),RatiosF!$G$50:$AT$50) -> 3.232215014 | U38: =+SUMIF(PeriodTo,DATE(U$3,12,31),RatiosF!$G$50:$AT$50) -> 5.028831248 | V38: =+SUMIF(PeriodTo,DATE(V$3,12,31),RatiosF!$G$50:$AT$50) -> 0 | W38: =+SUMIF(PeriodTo,DATE(W$3,12,31),RatiosF!$G$50:$AT$50) -> 0 | X38: =+SUMIF(PeriodTo,DATE(X$3,12,31),RatiosF!$G$50:$AT$50) -> 0
B40: DSCR | G40: =+SUMIF(PeriodTo,DATE(G$3,12,31),RatiosF!$G$36:$AT$36) -> 0 | H40: =+SUMIF(PeriodTo,DATE(H$3,12,31),RatiosF!$G$36:$AT$36) -> 1.739635615 | I40: =+SUMIF(PeriodTo,DATE(I$3,12,31),RatiosF!$G$36:$AT$36) -> 1.655956507 | J40: =+SUMIF(PeriodTo,DATE(J$3,12,31),RatiosF!$G$36:$AT$36) -> 2.772080716 | K40: =+SUMIF(PeriodTo,DATE(K$3,12,31),RatiosF!$G$36:$AT$36) -> 1.778317296 | L40: =+SUMIF(PeriodTo,DATE(L$3,12,31),RatiosF!$G$36:$AT$36) -> 1.004277674 | M40: =+SUMIF(PeriodTo,DATE(M$3,12,31),RatiosF!$G$36:$AT$36) -> 0.6753726669 | N40: =+SUMIF(PeriodTo,DATE(N$3,12,31),RatiosF!$G$36:$AT$36) -> 1.034757537 | O40: =+SUMIF(PeriodTo,DATE(O$3,12,31),RatiosF!$G$36:$AT$36) -> 1.272246253 | P40: =+SUMIF(PeriodTo,DATE(P$3,12,31),RatiosF!$G$36:$AT$36) -> 1.299260692 | Q40: =+SUMIF(PeriodTo,DATE(Q$3,12,31),RatiosF!$G$36:$AT$36) -> 1.050683492 | R40: =+SUMIF(PeriodTo,DATE(R$3,12,31),RatiosF!$G$36:$AT$36) -> 1.247876437 | S40: =+SUMIF(PeriodTo,DATE(S$3,12,31),RatiosF!$G$36:$AT$36) -> 1.359126772 | T40: =+SUMIF(PeriodTo,DATE(T$3,12,31),RatiosF!$G$36:$AT$36) -> 1.571191663 | U40: =+SUMIF(PeriodTo,DATE(U$3,12,31),RatiosF!$G$36:$AT$36) -> 1.579030245 | V40: =+SUMIF(PeriodTo,DATE(V$3,12,31),RatiosF!$G$36:$AT$36) -> 1.591058183 | W40: =+SUMIF(PeriodTo,DATE(W$3,12,31),RatiosF!$G$36:$AT$36) -> 0 | X40: =+SUMIF(PeriodTo,DATE(X$3,12,31),RatiosF!$G$36:$AT$36) -> 0
I43: Assuming PBCE is undrawn
E45: DSCR | H45: BLCR | K45: PLCR | M45: ND/CFADS
E47: Average | F47: Min | H47: Average | I47: Min | K47: Min | M47: @yr5
B48: LF Scenario | E48: =+AVERAGE(RatiosF!$J$36:$AN$36) -> 1.502531 | F48: =+MIN(RatiosF!$J$36:$AN$36) -> 0.6753726669 | H48: =+AVERAGE(RatiosF!$J$43:$AN$43) -> 1.419727004 | I48: =+MIN(RatiosF!$J$43:$AN$43) -> 1.207554944 | K48: =+MIN(RatiosF!$J$50:$AN$50) -> 1.456823225 | M48: =+J34 -> 3.348787373
B49: Fitch sensitivity 1
B51: (*) In order to assess the benefit of PBCE, Fitch simulates a drawdown of the facility at the first day of the transaction, with full rebalancing (ie deleveraging the project accordingly)
K54: Assuming PBCE is undrawn
E56: DSCR | I56: BLCR | M56: PLCR | N56: PLCR | P56: ND/CFADS
E58: Average | F58: Min | G58: Year Min | I58: Average | J58: Min | K58: Year Min | M58: Min | N58: Year Min | P58: @yr5
E59: =+AVERAGE(RatiosF!$J$36:$AN$36) -> 1.502531 | F59: =+MIN(RatiosF!$J$36:$AN$36) -> 0.6753726669 | G59: =+INDEX(CurrentYear,(MATCH(F59,RatiosF!$J$36:$AN$36,0))) -> 2020 | I59: =+AVERAGE(RatiosF!$J$43:$AN$43) -> 1.419727004 | J59: =+MIN(RatiosF!$J$43:$AN$43) -> 1.207554944 | K59: =+INDEX(CurrentYear,(MATCH(J59,RatiosF!$J$43:$AN$43,0))) -> 2018 | M59: =+MIN(RatiosF!$J$50:$AN$50) -> 1.456823225 | N59: =+INDEX(CurrentYear,(MATCH(M59,RatiosF!$J$50:$AN$50,0))) -> 2018 | P59: =+J34 -> 3.348787373
B70: End of period | E70: Average | F70: Min | G70: 2015-06-30 | H70: 2015-12-31 | I70: 2016-06-30 | J70: 2016-12-31 | K70: 2017-06-30 | L70: 2017-12-31 | M70: 2018-06-30 | N70: 2018-12-31 | O70: 2019-06-30 | P70: 2019-12-31 | Q70: 2020-06-30 | R70: 2020-12-31 | S70: 2021-06-30 | T70: 2021-12-31 | U70: 2022-06-30 | V70: 2022-12-31 | W70: 2023-06-30 | X70: 2023-12-31 | Y70: 2024-06-30 | Z70: 2024-12-31 | AA70: 2025-06-30 | AB70: 2025-12-31 | AC70: 2026-06-30 | AD70: 2026-12-31 | AE70: 2027-06-30 | AF70: 2027-12-31 | AG70: 2028-06-30 | AH70: 2028-12-31 | AI70: 2029-06-30 | AJ70: 2029-12-31 | AK70: 2030-06-30 | AL70: 2030-12-31 | AM70: 2031-06-30 | AN70: 2031-12-31 | AO70: 2032-06-30 | AP70: 2032-12-31
B71: Historical DSCR | E71: =+AVERAGE(H71:AP71) -> 1.502531 | F71: =+MIN(H71:AP71) -> 0.6753726669 | H71: =+RatiosF!J36 -> 1.739635615 | I71: =+RatiosF!K36 -> 1.529258627 | J71: =+RatiosF!L36 -> 1.655956507 | K71: =+RatiosF!M36 -> 1.893519442 | L71: =+RatiosF!N36 -> 2.772080716 | M71: =+RatiosF!O36 -> 2.637742625 | N71: =+RatiosF!P36 -> 1.778317296 | O71: =+RatiosF!Q36 -> 1.320614021 | P71: =+RatiosF!R36 -> 1.004277674 | Q71: =+RatiosF!S36 -> 0.7836391884 | R71: =+RatiosF!T36 -> 0.6753726669 | S71: =+RatiosF!U36 -> 0.9909469304 | T71: =+RatiosF!V36 -> 1.034757537 | U71: =+RatiosF!W36 -> 1.105081204 | V71: =+RatiosF!X36 -> 1.272246253 | W71: =+RatiosF!Y36 -> 1.319296124 | X71: =+RatiosF!Z36 -> 1.299260692 | Y71: =+RatiosF!AA36 -> 1.229611433 | Z71: =+RatiosF!AB36 -> 1.050683492 | AA71: =+RatiosF!AC36 -> 1.169169747 | AB71: =+RatiosF!AD36 -> 1.247876437 | AC71: =+RatiosF!AE36 -> 1.292513614 | AD71: =+RatiosF!AF36 -> 1.359126772 | AE71: =+RatiosF!AG36 -> 1.469875831 | AF71: =+RatiosF!AH36 -> 1.571191663 | AG71: =+RatiosF!AI36 -> 1.573239608 | AH71: =+RatiosF!AJ36 -> 1.579030245 | AI71: =+RatiosF!AK36 -> 1.531931358 | AJ71: =+RatiosF!AL36 -> 1.591058183 | AK71: =+RatiosF!AM36 -> 3.598618503 | AL71: =+RatiosF!AN36 -> n.a. | AM71: n.a. | AN71: =+RatiosF!AP36 -> n.a. | AO71: =+RatiosF!AQ36 -> n.a. | AP71: =+RatiosF!AR36 -> n.a.
B72: Historical DSCR | H72: 0 | I72: 0 | J72: 0 | K72: 0 | L72: 0 | M72: 0 | N72: 0 | O72: 0 | P72: 0 | Q72: 0 | R72: 0 | S72: 0 | T72: 0 | U72: 0 | V72: 0 | W72: 0 | X72: 0 | Y72: 0 | Z72: 0 | AA72: 0 | AB72: 0 | AC72: 0 | AD72: 0 | AE72: 0 | AF72: 0 | AG72: 0 | AH72: 0 | AI72: 0 | AJ72: 0 | AK72: 0 | AL72: 0 | AM72: 0 | AN72: 0 | AO72: 0 | AP72: 0
D73: Default covenant | H73: 0 | I73: 0 | J73: 0 | K73: 0 | L73: 0 | M73: 0 | N73: 0 | O73: 0 | P73: 0 | Q73: 0 | R73: 0 | S73: 0 | T73: 0 | U73: 0 | V73: 0 | W73: 0 | X73: 0 | Y73: 0 | Z73: 0 | AA73: 0 | AB73: 0 | AC73: 0 | AD73: 0 | AE73: 0 | AF73: 0 | AG73: 0 | AH73: 0 | AI73: 0 | AJ73: 0 | AK73: 0 | AL73: 0 | AM73: 0 | AN73: 0 | AO73: 0 | AP73: 0
E75: Average | F75: Min
B76: Historical DSCR | H76: 0 | I76: 0 | J76: 0 | K76: 0 | L76: 0 | M76: 0 | N76: 0 | O76: 0 | P76: 0 | Q76: 0 | R76: 0 | S76: 0 | T76: 0 | U76: 0 | V76: 0 | W76: 0 | X76: 0 | Y76: 0 | Z76: 0 | AA76: 0 | AB76: 0 | AC76: 0 | AD76: 0 | AE76: 0 | AF76: 0 | AG76: 0 | AH76: 0 | AI76: 0 | AJ76: 0 | AK76: 0 | AL76: 0 | AM76: 0 | AN76: 0 | AO76: 0 | AP76: 0
B77: Historical DSCR | H77: 0 | I77: 0 | J77: 0 | K77: 0 | L77: 0 | M77: 0 | N77: 0 | O77: 0 | P77: 0 | Q77: 0 | R77: 0 | S77: 0 | T77: 0 | U77: 0 | V77: 0 | W77: 0 | X77: 0 | Y77: 0 | Z77: 0 | AA77: 0 | AB77: 0 | AC77: 0 | AD77: 0 | AE77: 0 | AF77: 0 | AG77: 0 | AH77: 0 | AI77: 0 | AJ77: 0 | AK77: 0 | AL77: 0 | AM77: 0 | AN77: 0 | AO77: 0 | AP77: 0
D78: Default covenant | H78: 0 | I78: 0 | J78: 0 | K78: 0 | L78: 0 | M78: 0 | N78: 0 | O78: 0 | P78: 0 | Q78: 0 | R78: 0 | S78: 0 | T78: 0 | U78: 0 | V78: 0 | W78: 0 | X78: 0 | Y78: 0 | Z78: 0 | AA78: 0 | AB78: 0 | AC78: 0 | AD78: 0 | AE78: 0 | AF78: 0 | AG78: 0 | AH78: 0 | AI78: 0 | AJ78: 0 | AK78: 0 | AL78: 0 | AM78: 0 | AN78: 0 | AO78: 0 | AP78: 0
B79: (*) In order to assess the benefit of PBCE, Fitch simulates a drawdown of the facility at the first day of the transaction, with full rebalancing (ie deleveraging the project accordingly)
B82: End of period | E82: Average | F82: Min | G82: 2015-06-30 | H82: 2015-12-31 | I82: 2016-06-30 | J82: 2016-12-31 | K82: 2017-06-30 | L82: 2017-12-31 | M82: 2018-06-30 | N82: 2018-12-31 | O82: 2019-06-30 | P82: 2019-12-31 | Q82: 2020-06-30 | R82: 2020-12-31 | S82: 2021-06-30 | T82: 2021-12-31 | U82: 2022-06-30 | V82: 2022-12-31 | W82: 2023-06-30 | X82: 2023-12-31 | Y82: 2024-06-30 | Z82: 2024-12-31 | AA82: 2025-06-30 | AB82: 2025-12-31 | AC82: 2026-06-30 | AD82: 2026-12-31 | AE82: 2027-06-30 | AF82: 2027-12-31 | AG82: 2028-06-30 | AH82: 2028-12-31 | AI82: 2029-06-30 | AJ82: 2029-12-31 | AK82: 2030-06-30 | AL82: 2030-12-31 | AM82: 2031-06-30 | AN82: 2031-12-31 | AO82: 2032-06-30 | AP82: 2032-12-31
B83: BLCR | E83: =+AVERAGE(G83:AP83) -> 1.420182512 | F83: =+MIN(G83:AP83) -> 1.207554944 | G83: =+RatiosF!I43 -> 1.432936737 | H83: =+RatiosF!J43 -> 1.419024889 | I83: =+RatiosF!K43 -> 1.423194549 | J83: =+RatiosF!L43 -> 1.396806827 | K83: =+RatiosF!M43 -> 1.379211734 | L83: =+RatiosF!N43 -> 1.267244314 | M83: =+RatiosF!O43 -> 1.243893981 | N83: =+RatiosF!P43 -> 1.207554944 | O83: =+RatiosF!Q43 -> 1.233716636 | P83: =+RatiosF!R43 -> 1.235677243 | Q83: =+RatiosF!S43 -> 1.295599644 | R83: =+RatiosF!T43 -> 1.315950936 | S83: =+RatiosF!U43 -> 1.343356406 | T83: =+RatiosF!V43 -> 1.364331571 | U83: =+RatiosF!W43 -> 1.385263556 | V83: =+RatiosF!X43 -> 1.379900431 | W83: =+RatiosF!Y43 -> 1.395829486 | X83: =+RatiosF!Z43 -> 1.393885336 | Y83: =+RatiosF!AA43 -> 1.427490764 | Z83: =+RatiosF!AB43 -> 1.4667636 | AA83: =+RatiosF!AC43 -> 1.487328524 | AB83: =+RatiosF!AD43 -> 1.522080983 | AC83: =+RatiosF!AE43 -> 1.545898733 | AD83: =+RatiosF!AF43 -> 1.579825911 | AE83: =+RatiosF!AG43 -> 1.578800181 | AF83: =+RatiosF!AH43 -> 1.584509312 | AG83: =+RatiosF!AI43 -> 1.582930086 | AH83: =+RatiosF!AJ43 -> 1.590555594 | AI83: =+RatiosF!AK43 -> 1.705729946 | AJ83: =+RatiosF!AL43 -> n.a. | AK83: =+RatiosF!AM43 -> n.a. | AL83: =+RatiosF!AN43 -> n.a. | AM83: =+RatiosF!AO43 -> n.a. | AN83: =+RatiosF!AP43 -> n.a. | AO83: =+RatiosF!AQ43 -> n.a. | AP83: =+RatiosF!AR43 -> n.a.
B84: BLCR | G84: 0 | H84: 0 | I84: 0 | J84: 0 | K84: 0 | L84: 0 | M84: 0 | N84: 0 | O84: 0 | P84: 0 | Q84: 0 | R84: 0 | S84: 0 | T84: 0 | U84: 0 | V84: 0 | W84: 0 | X84: 0 | Y84: 0 | Z84: 0 | AA84: 0 | AB84: 0 | AC84: 0 | AD84: 0 | AE84: 0 | AF84: 0 | AG84: 0 | AH84: 0 | AI84: 0 | AJ84: 0 | AK84: 0 | AL84: 0 | AM84: 0 | AN84: 0 | AO84: 0 | AP84: 0
D85: Default covenant | G85: 0 | H85: 0 | I85: 0 | J85: 0 | K85: 0 | L85: 0 | M85: 0 | N85: 0 | O85: 0 | P85: 0 | Q85: 0 | R85: 0 | S85: 0 | T85: 0 | U85: 0 | V85: 0 | W85: 0 | X85: 0 | Y85: 0 | Z85: 0 | AA85: 0 | AB85: 0 | AC85: 0 | AD85: 0 | AE85: 0 | AF85: 0 | AG85: 0 | AH85: 0 | AI85: 0 | AJ85: 0 | AK85: 0 | AL85: 0 | AM85: 0 | AN85: 0 | AO85: 0 | AP85: 0
E87: Average | F87: Min
B88: BLCR | G88: 0 | H88: 0 | I88: 0 | J88: 0 | K88: 0 | L88: 0 | M88: 0 | N88: 0 | O88: 0 | P88: 0 | Q88: 0 | R88: 0 | S88: 0 | T88: 0 | U88: 0 | V88: 0 | W88: 0 | X88: 0 | Y88: 0 | Z88: 0 | AA88: 0 | AB88: 0 | AC88: 0 | AD88: 0 | AE88: 0 | AF88: 0 | AG88: 0 | AH88: 0 | AI88: 0 | AJ88: 0 | AK88: 0 | AL88: 0 | AM88: 0 | AN88: 0 | AO88: 0 | AP88: 0
B89: BLCR | G89: 0 | H89: 0 | I89: 0 | J89: 0 | K89: 0 | L89: 0 | M89: 0 | N89: 0 | O89: 0 | P89: 0 | Q89: 0 | R89: 0 | S89: 0 | T89: 0 | U89: 0 | V89: 0 | W89: 0 | X89: 0 | Y89: 0 | Z89: 0 | AA89: 0 | AB89: 0 | AC89: 0 | AD89: 0 | AE89: 0 | AF89: 0 | AG89: 0 | AH89: 0 | AI89: 0 | AJ89: 0 | AK89: 0 | AL89: 0 | AM89: 0 | AN89: 0 | AO89: 0 | AP89: 0
D90: Default covenant | G90: 0 | H90: 0 | I90: 0 | J90: 0 | K90: 0 | L90: 0 | M90: 0 | N90: 0 | O90: 0 | P90: 0 | Q90: 0 | R90: 0 | S90: 0 | T90: 0 | U90: 0 | V90: 0 | W90: 0 | X90: 0 | Y90: 0 | Z90: 0 | AA90: 0 | AB90: 0 | AC90: 0 | AD90: 0 | AE90: 0 | AF90: 0 | AG90: 0 | AH90: 0 | AI90: 0 | AJ90: 0 | AK90: 0 | AL90: 0 | AM90: 0 | AN90: 0 | AO90: 0 | AP90: 0
B91: (*) In order to assess the benefit of PBCE, Fitch simulates a drawdown of the facility at the first day of the transaction, with full rebalancing (ie deleveraging the project accordingly)

Sheet Audit
B2: Concessioni Autostradali Venete CAV S.p.A. | F2: Period From | G2: =+PeriodFrom -> 2015-01-01 | H2: 2015-07-01 | I2: 2016-01-01 | J2: 2016-07-01 | K2: 2017-01-01 | L2: 2017-07-01 | M2: 2018-01-01 | N2: 2018-07-01 | O2: 2019-01-01 | P2: 2019-07-01 | Q2: 2020-01-01 | R2: 2020-07-01 | S2: 2021-01-01 | T2: 2021-07-01 | U2: 2022-01-01 | V2: 2022-07-01 | W2: 2023-01-01 | X2: 2023-07-01 | Y2: 2024-01-01 | Z2: 2024-07-01 | AA2: 2025-01-01 | AB2: 2025-07-01 | AC2: 2026-01-01 | AD2: 2026-07-01 | AE2: 2027-01-01 | AF2: 2027-07-01 | AG2: 2028-01-01 | AH2: 2028-07-01 | AI2: 2029-01-01 | AJ2: 2029-07-01 | AK2: 2030-01-01 | AL2: 2030-07-01 | AM2: 2031-01-01 | AN2: 2031-07-01 | AO2: 2032-01-01 | AP2: 2032-07-01 | AQ2: 2033-01-01 | AR2: 2033-07-01 | AS2: 2034-01-01 | AT2: 2034-07-01
B3: ="Scenario: "&SensSelectNameIn -> Scenario: Final Pricing (05.04.16) | F3: Period To | G3: =+PeriodTo -> 2015-06-30 | H3: 2015-12-31 | I3: 2016-06-30 | J3: 2016-12-31 | K3: 2017-06-30 | L3: 2017-12-31 | M3: 2018-06-30 | N3: 2018-12-31 | O3: 2019-06-30 | P3: 2019-12-31 | Q3: 2020-06-30 | R3: 2020-12-31 | S3: 2021-06-30 | T3: 2021-12-31 | U3: 2022-06-30 | V3: 2022-12-31 | W3: 2023-06-30 | X3: 2023-12-31 | Y3: 2024-06-30 | Z3: 2024-12-31 | AA3: 2025-06-30 | AB3: 2025-12-31 | AC3: 2026-06-30 | AD3: 2026-12-31 | AE3: 2027-06-30 | AF3: 2027-12-31 | AG3: 2028-06-30 | AH3: 2028-12-31 | AI3: 2029-06-30 | AJ3: 2029-12-31 | AK3: 2030-06-30 | AL3: 2030-12-31 | AM3: 2031-06-30 | AN3: 2031-12-31 | AO3: 2032-06-30 | AP3: 2032-12-31 | AQ3: 2033-06-30 | AR3: 2033-12-31 | AS3: 2034-06-30 | AT3: 2034-12-31
B4: Sheet: Audit | F4: Year | G4: =+PeriodNumber -> 0.5 | H4: 1 | I4: 1.5 | J4: 2 | K4: 2.5 | L4: 3 | M4: 3.5 | N4: 4 | O4: 4.5 | P4: 5 | Q4: 5.5 | R4: 6 | S4: 6.5 | T4: 7 | U4: 7.5 | V4: 8 | W4: 8.5 | X4: 9 | Y4: 9.5 | Z4: 10 | AA4: 10.5 | AB4: 11 | AC4: 11.5 | AD4: 12 | AE4: 12.5 | AF4: 13 | AG4: 13.5 | AH4: 14 | AI4: 14.5 | AJ4: 15 | AK4: 15.5 | AL4: 16 | AM4: 16.5 | AN4: 17 | AO4: 17.5 | AP4: 18 | AQ4: 18.5 | AR4: 19 | AS4: 19.5 | AT4: 20
B5: =+ErrorCounter -> Errors: 0 out of 43 | F5: Semester | G5: =+PeriodCounter -> 1 | H5: 2 | I5: 3 | J5: 4 | K5: 5 | L5: 6 | M5: 7 | N5: 8 | O5: 9 | P5: 10 | Q5: 11 | R5: 12 | S5: 13 | T5: 14 | U5: 15 | V5: 16 | W5: 17 | X5: 18 | Y5: 19 | Z5: 20 | AA5: 21 | AB5: 22 | AC5: 23 | AD5: 24 | AE5: 25 | AF5: 26 | AG5: 27 | AH5: 28 | AI5: 29 | AJ5: 30 | AK5: 31 | AL5: 32 | AM5: 33 | AN5: 34 | AO5: 35 | AP5: 36 | AQ5: 37 | AR5: 38 | AS5: 39 | AT5: 40
B8: Check Macro Base Case | D8: =+AND(CheckACEDecrease,CheckOverdraft,CheckUpfrontFees,CheckFundingNeeds,CheckPBCEInterests,CheckFADSCR,CheckPBCEDrawdownReb,CheckSubDebtIntDue,CheckSculptingBondPercRepayment) -> TRUE | E8: CheckMacroBaseCase
B9: Check Sub Macro Base Case | D9: =+AND(CheckOverdraft,CheckUpfrontFees,CheckFundingNeeds,CheckPBCEInterests,CheckFADSCR,CheckPBCEDrawdownReb,CheckSubDebtIntDue,CheckSculptingBondPercRepayment) -> TRUE | E9: CheckSubMacroBaseCase
B10: Check Macro Sensitivity | D10: =+AND(CheckACEDecrease,CheckOverdraft,CheckUpfrontFees,CheckFundingNeeds,CheckPBCEInterests,CheckFADSCR,CheckPBCEDrawdownReb,CheckSubDebtIntDue) -> TRUE | E10: CheckMacroSensitivity
B11: Check Sub Macro Sensitivity | D11: =+AND(CheckOverdraft,CheckUpfrontFees,CheckFundingNeeds,CheckPBCEInterests,CheckFADSCR,CheckPBCEDrawdownReb,CheckSubDebtIntDue) -> TRUE | E11: CheckSubMacroSensitivity
B12: Error Counter | D12: ="Errors: "&(COUNTIF($F$8:$F$189,"FALSE")+COUNTIF($F$8:$F$189,"FALSO")) &" out of " &COUNTA($F$8:$F$189) -> Errors: 0 out of 43 | E12: ErrorCounter
B13: Total Error | D13: =+ROUND(SUM(Audit!E8:E189),0) -> 0 | E13: TotalError
C15: Check Macro | E15: =+AND(F18:F37) -> TRUE
C18: Check ACE Decrease | E18: =+SUM(G18:AT18) -> 0 | F18: =+SUM(G18:AT18)<Tolerance -> TRUE | G18: =+Working!G2193 -> 0 | H18: =+Working!H2193 -> 0 | I18: =+Working!I2193 -> 0 | J18: =+Working!J2193 -> 0 | K18: =+Working!K2193 -> 0 | L18: =+Working!L2193 -> 0 | M18: =+Working!M2193 -> 0 | N18: =+Working!N2193 -> 0 | O18: =+Working!O2193 -> 0 | P18: =+Working!P2193 -> 0 | Q18: =+Working!Q2193 -> 0 | R18: =+Working!R2193 -> 0 | S18: =+Working!S2193 -> 0 | T18: =+Working!T2193 -> 0 | U18: =+Working!U2193 -> 0 | V18: =+Working!V2193 -> 0 | W18: =+Working!W2193 -> 0 | X18: =+Working!X2193 -> 0 | Y18: =+Working!Y2193 -> 0 | Z18: =+Working!Z2193 -> 0 | AA18: =+Working!AA2193 -> 0 | AB18: =+Working!AB2193 -> 0 | AC18: =+Working!AC2193 -> 0 | AD18: =+Working!AD2193 -> 0 | AE18: =+Working!AE2193 -> 0 | AF18: =+Working!AF2193 -> 0 | AG18: =+Working!AG2193 -> 0 | AH18: =+Working!AH2193 -> 0 | AI18: =+Working!AI2193 -> 0 | AJ18: =+Working!AJ2193 -> 0 | AK18: =+Working!AK2193 -> 0 | AL18: =+Working!AL2193 -> 0 | AM18: =+Working!AM2193 -> 0 | AN18: =+Working!AN2193 -> 0 | AO18: =+Working!AO2193 -> 0 | AP18: =+Working!AP2193 -> 0 | AQ18: =+Working!AQ2193 -> 0 | AR18: =+Working!AR2193 -> 0 | AS18: =+Working!AS2193 -> 0 | AT18: =+Working!AT2193 -> 0
G19: =+G18<Tolerance -> TRUE | H19: TRUE | I19: TRUE | J19: TRUE | K19: TRUE | L19: TRUE | M19: TRUE | N19: TRUE | O19: TRUE | P19: TRUE | Q19: TRUE | R19: TRUE | S19: TRUE | T19: TRUE | U19: TRUE | V19: TRUE | W19: TRUE | X19: TRUE | Y19: TRUE | Z19: TRUE | AA19: TRUE | AB19: TRUE | AC19: TRUE | AD19: TRUE | AE19: TRUE | AF19: TRUE | AG19: TRUE | AH19: TRUE | AI19: TRUE | AJ19: TRUE | AK19: TRUE | AL19: TRUE | AM19: TRUE | AN19: TRUE | AO19: TRUE | AP19: TRUE | AQ19: TRUE | AR19: TRUE | AS19: TRUE | AT19: TRUE
C21: Check Overdraft | E21: =+SUM(G21:AT21) -> 0 | F21: =+SUM(G21:AT21)<Tolerance -> TRUE | G21: =+Working!G2194 -> 0 | H21: =+Working!H2194 -> 0 | I21: =+Working!I2194 -> 0 | J21: =+Working!J2194 -> 0 | K21: =+Working!K2194 -> 0 | L21: =+Working!L2194 -> 0 | M21: =+Working!M2194 -> 0 | N21: =+Working!N2194 -> 0 | O21: =+Working!O2194 -> 0 | P21: =+Working!P2194 -> 0 | Q21: =+Working!Q2194 -> 0 | R21: =+Working!R2194 -> 0 | S21: =+Working!S2194 -> 0 | T21: =+Working!T2194 -> 0 | U21: =+Working!U2194 -> 0 | V21: =+Working!V2194 -> 0 | W21: =+Working!W2194 -> 0 | X21: =+Working!X2194 -> 0 | Y21: =+Working!Y2194 -> 0 | Z21: =+Working!Z2194 -> 0 | AA21: =+Working!AA2194 -> 0 | AB21: =+Working!AB2194 -> 0 | AC21: =+Working!AC2194 -> 0 | AD21: =+Working!AD2194 -> 0 | AE21: =+Working!AE2194 -> 0 | AF21: =+Working!AF2194 -> 0 | AG21: =+Working!AG2194 -> 0 | AH21: =+Working!AH2194 -> 0 | AI21: =+Working!AI2194 -> 0 | AJ21: =+Working!AJ2194 -> 0 | AK21: =+Working!AK2194 -> 0 | AL21: =+Working!AL2194 -> 0 | AM21: =+Working!AM2194 -> 0 | AN21: =+Working!AN2194 -> 0 | AO21: =+Working!AO2194 -> 0 | AP21: =+Working!AP2194 -> 0 | AQ21: =+Working!AQ2194 -> 0 | AR21: =+Working!AR2194 -> 0 | AS21: =+Working!AS2194 -> 0 | AT21: =+Working!AT2194 -> 0
G22: =+G21<Tolerance -> TRUE | H22: TRUE | I22: TRUE | J22: TRUE | K22: TRUE | L22: TRUE | M22: TRUE | N22: TRUE | O22: TRUE | P22: TRUE | Q22: TRUE | R22: TRUE | S22: TRUE | T22: TRUE | U22: TRUE | V22: TRUE | W22: TRUE | X22: TRUE | Y22: TRUE | Z22: TRUE | AA22: TRUE | AB22: TRUE | AC22: TRUE | AD22: TRUE | AE22: TRUE | AF22: TRUE | AG22: TRUE | AH22: TRUE | AI22: TRUE | AJ22: TRUE | AK22: TRUE | AL22: TRUE | AM22: TRUE | AN22: TRUE | AO22: TRUE | AP22: TRUE | AQ22: TRUE | AR22: TRUE | AS22: TRUE | AT22: TRUE
C24: Check PBCE Interests | E24: =+SUM(G24:AT24) -> 0 | F24: =+SUM(G24:AT24)<Tolerance -> TRUE | G24: =+Working!G2197 -> 0 | H24: =+Working!H2197 -> 0 | I24: =+Working!I2197 -> 0 | J24: =+Working!J2197 -> 0 | K24: =+Working!K2197 -> 0 | L24: =+Working!L2197 -> 0 | M24: =+Working!M2197 -> 0 | N24: =+Working!N2197 -> 0 | O24: =+Working!O2197 -> 0 | P24: =+Working!P2197 -> 0 | Q24: =+Working!Q2197 -> 0 | R24: =+Working!R2197 -> 0 | S24: =+Working!S2197 -> 0 | T24: =+Working!T2197 -> 0 | U24: =+Working!U2197 -> 0 | V24: =+Working!V2197 -> 0 | W24: =+Working!W2197 -> 0 | X24: =+Working!X2197 -> 0 | Y24: =+Working!Y2197 -> 0 | Z24: =+Working!Z2197 -> 0 | AA24: =+Working!AA2197 -> 0 | AB24: =+Working!AB2197 -> 0 | AC24: =+Working!AC2197 -> 0 | AD24: =+Working!AD2197 -> 0 | AE24: =+Working!AE2197 -> 0 | AF24: =+Working!AF2197 -> 0 | AG24: =+Working!AG2197 -> 0 | AH24: =+Working!AH2197 -> 0 | AI24: =+Working!AI2197 -> 0 | AJ24: =+Working!AJ2197 -> 0 | AK24: =+Working!AK2197 -> 0 | AL24: =+Working!AL2197 -> 0 | AM24: =+Working!AM2197 -> 0 | AN24: =+Working!AN2197 -> 0 | AO24: =+Working!AO2197 -> 0 | AP24: =+Working!AP2197 -> 0 | AQ24: =+Working!AQ2197 -> 0 | AR24: =+Working!AR2197 -> 0 | AS24: =+Working!AS2197 -> 0 | AT24: =+Working!AT2197 -> 0
G25: =+G24<Tolerance -> TRUE | H25: TRUE | I25: TRUE | J25: TRUE | K25: TRUE | L25: TRUE | M25: TRUE | N25: TRUE | O25: TRUE | P25: TRUE | Q25: TRUE | R25: TRUE | S25: TRUE | T25: TRUE | U25: TRUE | V25: TRUE | W25: TRUE | X25: TRUE | Y25: TRUE | Z25: TRUE | AA25: TRUE | AB25: TRUE | AC25: TRUE | AD25: TRUE | AE25: TRUE | AF25: TRUE | AG25: TRUE | AH25: TRUE | AI25: TRUE | AJ25: TRUE | AK25: TRUE | AL25: TRUE | AM25: TRUE | AN25: TRUE | AO25: TRUE | AP25: TRUE | AQ25: TRUE | AR25: TRUE | AS25: TRUE | AT25: TRUE
C27: Check FADSCR | E27: =+SUM(G27:AT27) -> 0 | F27: =+SUM(G27:AT27)<Tolerance -> TRUE | G27: =+Working!G2198 -> 0 | H27: =+Working!H2198 -> 0 | I27: =+Working!I2198 -> 0 | J27: =+Working!J2198 -> 0 | K27: =+Working!K2198 -> 0 | L27: =+Working!L2198 -> 0 | M27: =+Working!M2198 -> 0 | N27: =+Working!N2198 -> 0 | O27: =+Working!O2198 -> 0 | P27: =+Working!P2198 -> 0 | Q27: =+Working!Q2198 -> 0 | R27: =+Working!R2198 -> 0 | S27: =+Working!S2198 -> 0 | T27: =+Working!T2198 -> 0 | U27: =+Working!U2198 -> 0 | V27: =+Working!V2198 -> 0 | W27: =+Working!W2198 -> 0 | X27: =+Working!X2198 -> 0 | Y27: =+Working!Y2198 -> 0 | Z27: =+Working!Z2198 -> 0 | AA27: =+Working!AA2198 -> 0 | AB27: =+Working!AB2198 -> 0 | AC27: =+Working!AC2198 -> 0 | AD27: =+Working!AD2198 -> 0 | AE27: =+Working!AE2198 -> 0 | AF27: =+Working!AF2198 -> 0 | AG27: =+Working!AG2198 -> 0 | AH27: =+Working!AH2198 -> 0 | AI27: =+Working!AI2198 -> 0 | AJ27: =+Working!AJ2198 -> 0 | AK27: =+Working!AK2198 -> 0 | AL27: =+Working!AL2198 -> 0 | AM27: =+Working!AM2198 -> 0 | AN27: =+Working!AN2198 -> 0 | AO27: =+Working!AO2198 -> 0 | AP27: =+Working!AP2198 -> 0 | AQ27: =+Working!AQ2198 -> 0 | AR27: =+Working!AR2198 -> 0 | AS27: =+Working!AS2198 -> 0 | AT27: =+Working!AT2198 -> 0
G28: =+G27<Tolerance -> TRUE | H28: TRUE | I28: TRUE | J28: TRUE | K28: TRUE | L28: TRUE | M28: TRUE | N28: TRUE | O28: TRUE | P28: TRUE | Q28: TRUE | R28: TRUE | S28: TRUE | T28: TRUE | U28: TRUE | V28: TRUE | W28: TRUE | X28: TRUE | Y28: TRUE | Z28: TRUE | AA28: TRUE | AB28: TRUE | AC28: TRUE | AD28: TRUE | AE28: TRUE | AF28: TRUE | AG28: TRUE | AH28: TRUE | AI28: TRUE | AJ28: TRUE | AK28: TRUE | AL28: TRUE | AM28: TRUE | AN28: TRUE | AO28: TRUE | AP28: TRUE | AQ28: TRUE | AR28: TRUE | AS28: TRUE | AT28: TRUE
C30: Check PBCE Drawdown Rebalancing | E30: =+SUM(G30:AT30) -> 0 | F30: =+SUM(G30:AT30)<Tolerance -> TRUE | G30: =+Working!G2199 -> 0 | H30: =+Working!H2199 -> 0 | I30: =+Working!I2199 -> 0 | J30: =+Working!J2199 -> 0 | K30: =+Working!K2199 -> 0 | L30: =+Working!L2199 -> 0 | M30: =+Working!M2199 -> 0 | N30: =+Working!N2199 -> 0 | O30: =+Working!O2199 -> 0 | P30: =+Working!P2199 -> 0 | Q30: =+Working!Q2199 -> 0 | R30: =+Working!R2199 -> 0 | S30: =+Working!S2199 -> 0 | T30: =+Working!T2199 -> 0 | U30: =+Working!U2199 -> 0 | V30: =+Working!V2199 -> 0 | W30: =+Working!W2199 -> 0 | X30: =+Working!X2199 -> 0 | Y30: =+Working!Y2199 -> 0 | Z30: =+Working!Z2199 -> 0 | AA30: =+Working!AA2199 -> 0 | AB30: =+Working!AB2199 -> 0 | AC30: =+Working!AC2199 -> 0 | AD30: =+Working!AD2199 -> 0 | AE30: =+Working!AE2199 -> 0 | AF30: =+Working!AF2199 -> 0 | AG30: =+Working!AG2199 -> 0 | AH30: =+Working!AH2199 -> 0 | AI30: =+Working!AI2199 -> 0 | AJ30: =+Working!AJ2199 -> 0 | AK30: =+Working!AK2199 -> 0 | AL30: =+Working!AL2199 -> 0 | AM30: =+Working!AM2199 -> 0 | AN30: =+Working!AN2199 -> 0 | AO30: =+Working!AO2199 -> 0 | AP30: =+Working!AP2199 -> 0 | AQ30: =+Working!AQ2199 -> 0 | AR30: =+Working!AR2199 -> 0 | AS30: =+Working!AS2199 -> 0 | AT30: =+Working!AT2199 -> 0
G31: =+G30<Tolerance -> TRUE | H31: TRUE | I31: TRUE | J31: TRUE | K31: TRUE | L31: TRUE | M31: TRUE | N31: TRUE | O31: TRUE | P31: TRUE | Q31: TRUE | R31: TRUE | S31: TRUE | T31: TRUE | U31: TRUE | V31: TRUE | W31: TRUE | X31: TRUE | Y31: TRUE | Z31: TRUE | AA31: TRUE | AB31: TRUE | AC31: TRUE | AD31: TRUE | AE31: TRUE | AF31: TRUE | AG31: TRUE | AH31: TRUE | AI31: TRUE | AJ31: TRUE | AK31: TRUE | AL31: TRUE | AM31: TRUE | AN31: TRUE | AO31: TRUE | AP31: TRUE | AQ31: TRUE | AR31: TRUE | AS31: TRUE | AT31: TRUE
C33: Check Subordinated Debt Interests Due | E33: =+SUM(G33:AT33) -> 0 | F33: =+SUM(G33:AT33)<Tolerance -> TRUE | G33: =+Working!G2200 -> 0 | H33: =+Working!H2200 -> 0 | I33: =+Working!I2200 -> 0 | J33: =+Working!J2200 -> 0 | K33: =+Working!K2200 -> 0 | L33: =+Working!L2200 -> 0 | M33: =+Working!M2200 -> 0 | N33: =+Working!N2200 -> 0 | O33: =+Working!O2200 -> 0 | P33: =+Working!P2200 -> 0 | Q33: =+Working!Q2200 -> 0 | R33: =+Working!R2200 -> 0 | S33: =+Working!S2200 -> 0 | T33: =+Working!T2200 -> 0 | U33: =+Working!U2200 -> 0 | V33: =+Working!V2200 -> 0 | W33: =+Working!W2200 -> 0 | X33: =+Working!X2200 -> 0 | Y33: =+Working!Y2200 -> 0 | Z33: =+Working!Z2200 -> 0 | AA33: =+Working!AA2200 -> 0 | AB33: =+Working!AB2200 -> 0 | AC33: =+Working!AC2200 -> 0 | AD33: =+Working!AD2200 -> 0 | AE33: =+Working!AE2200 -> 0 | AF33: =+Working!AF2200 -> 0 | AG33: =+Working!AG2200 -> 0 | AH33: =+Working!AH2200 -> 0 | AI33: =+Working!AI2200 -> 0 | AJ33: =+Working!AJ2200 -> 0 | AK33: =+Working!AK2200 -> 0 | AL33: =+Working!AL2200 -> 0 | AM33: =+Working!AM2200 -> 0 | AN33: =+Working!AN2200 -> 0 | AO33: =+Working!AO2200 -> 0 | AP33: =+Working!AP2200 -> 0 | AQ33: =+Working!AQ2200 -> 0 | AR33: =+Working!AR2200 -> 0 | AS33: =+Working!AS2200 -> 0 | AT33: =+Working!AT2200 -> 0
G34: =+G33<Tolerance -> TRUE | H34: TRUE | I34: TRUE | J34: TRUE | K34: TRUE | L34: TRUE | M34: TRUE | N34: TRUE | O34: TRUE | P34: TRUE | Q34: TRUE | R34: TRUE | S34: TRUE | T34: TRUE | U34: TRUE | V34: TRUE | W34: TRUE | X34: TRUE | Y34: TRUE | Z34: TRUE | AA34: TRUE | AB34: TRUE | AC34: TRUE | AD34: TRUE | AE34: TRUE | AF34: TRUE | AG34: TRUE | AH34: TRUE | AI34: TRUE | AJ34: TRUE | AK34: TRUE | AL34: TRUE | AM34: TRUE | AN34: TRUE | AO34: TRUE | AP34: TRUE | AQ34: TRUE | AR34: TRUE | AS34: TRUE | AT34: TRUE
C36: Check Bond Repayment Percentages | E36: =+SUM(G36:AT36) -> 0 | F36: =+IF(SensSelectSculptingIn="Yes",SUM(G36:AT36)<Tolerance,TRUE) -> TRUE | G36: =+Working!G2201 -> 0 | H36: =+Working!H2201 -> 0 | I36: =+Working!I2201 -> 0 | J36: =+Working!J2201 -> 0 | K36: =+Working!K2201 -> 0 | L36: =+Working!L2201 -> 0 | M36: =+Working!M2201 -> 0 | N36: =+Working!N2201 -> 0 | O36: =+Working!O2201 -> 0 | P36: =+Working!P2201 -> 0 | Q36: =+Working!Q2201 -> 0 | R36: =+Working!R2201 -> 0 | S36: =+Working!S2201 -> 0 | T36: =+Working!T2201 -> 0 | U36: =+Working!U2201 -> 0 | V36: =+Working!V2201 -> 0 | W36: =+Working!W2201 -> 0 | X36: =+Working!X2201 -> 0 | Y36: =+Working!Y2201 -> 0 | Z36: =+Working!Z2201 -> 0 | AA36: =+Working!AA2201 -> 0 | AB36: =+Working!AB2201 -> 0 | AC36: =+Working!AC2201 -> 0 | AD36: =+Working!AD2201 -> 0 | AE36: =+Working!AE2201 -> 0 | AF36: =+Working!AF2201 -> 0 | AG36: =+Working!AG2201 -> 0 | AH36: =+Working!AH2201 -> 0 | AI36: =+Working!AI2201 -> 0 | AJ36: =+Working!AJ2201 -> 0 | AK36: =+Working!AK2201 -> 0 | AL36: =+Working!AL2201 -> 0 | AM36: =+Working!AM2201 -> 0 | AN36: =+Working!AN2201 -> 0 | AO36: =+Working!AO2201 -> 0 | AP36: =+Working!AP2201 -> 0 | AQ36: =+Working!AQ2201 -> 0 | AR36: =+Working!AR2201 -> 0 | AS36: =+Working!AS2201 -> 0 | AT36: =+Working!AT2201 -> 0
G37: =+G36<Tolerance -> TRUE | H37: TRUE | I37: TRUE | J37: TRUE | K37: TRUE | L37: TRUE | M37: TRUE | N37: TRUE | O37: TRUE | P37: TRUE | Q37: TRUE | R37: TRUE | S37: TRUE | T37: TRUE | U37: TRUE | V37: TRUE | W37: TRUE | X37: TRUE | Y37: TRUE | Z37: TRUE | AA37: TRUE | AB37: TRUE | AC37: TRUE | AD37: TRUE | AE37: TRUE | AF37: TRUE | AG37: TRUE | AH37: TRUE | AI37: TRUE | AJ37: TRUE | AK37: TRUE | AL37: TRUE | AM37: TRUE | AN37: TRUE | AO37: TRUE | AP37: TRUE | AQ37: TRUE | AR37: TRUE | AS37: TRUE | AT37: TRUE
C40: Check X | E40: =+AND(F43="TRUE") -> TRUE
C43: Check X | E43: =+IF(Input!E10=0,"TRUE",IF(Input!$E$12="CIPE",IF(Input!$E$151="X",X_K_Calc!X81=0,(SwitchXFactorInUse="Recalculated")*PFRFigItemsEndOfConcession),"TRUE")) -> TRUE | F43: =+(IF(Input!E10=0,"TRUE",IF(Input!$E$12="CIPE",IF(Input!$E$151="X",X_K_Calc!X81=0,OR(NOT(SwitchXFactorInUse="Recalculated"),ABS(PFRFigItemsEndOfConcession)<0.5)),"TRUE"))) -> TRUE
C47: Check Isopedaggio | E47: =+AND(F50:F54) -> TRUE
C50: Check Tolled Km | E50: =+SUM(G50:AT50) -> 0 | F50: =+SUM(G50:AT50)<Tolerance -> TRUE | G50: =+IF((SwitchIsopInUse="Recalculated"),IsopCAVCheckTolledKm,0) -> 0 | H50: 0 | I50: 0 | J50: 0 | K50: 0 | L50: 0 | M50: 0 | N50: 0 | O50: 0 | P50: 0 | Q50: 0 | R50: 0 | S50: 0 | T50: 0 | U50: 0 | V50: 0 | W50: 0 | X50: 0 | Y50: 0 | Z50: 0 | AA50: 0 | AB50: 0 | AC50: 0 | AD50: 0 | AE50: 0 | AF50: 0 | AG50: 0 | AH50: 0 | AI50: 0 | AJ50: 0 | AK50: 0 | AL50: 0 | AM50: 0 | AN50: 0 | AO50: 0 | AP50: 0 | AQ50: 0 | AR50: 0 | AS50: 0 | AT50: 0
C53: Check Isopedaggio | E53: =+IF(F53=TRUE,0,COUNTIF(IsopCheck,FALSE)) -> 0 | F53: =+CheckIsopedaggio -> TRUE
C57: Check Repayment | E57: =+AND(F60:F64) -> TRUE
C60: Check Bond Total Repayment Percentages | E60: =1-SUM(SculptingBondPercRepayment) -> 0 | F60: =+ABS(SUM(SculptingBondPercRepayment)-1)<Tolerance -> TRUE
C63: Check VAT Facility Total Repayment | E63: =+ABS(SUM(VATFacDrawdown)-SUM(VATFacRepayment)) -> 0 | F63: =+ABS(SUM(VATFacDrawdown)-SUM(VATFacRepayment))<Tolerance -> TRUE
C67: Check Uses & Sources | E67: =+AND(F70:F83) -> TRUE
C70: Check Uses & Sources | E70: =+SUM(G70:AT70) -> 0 | F70: =+SUM(G70:AT70)<Tolerance -> TRUE | G70: =ABS(USTotalUses-USTotalSources) -> 0 | H70: 0 | I70: 0 | J70: 0 | K70: 0 | L70: 0 | M70: 0 | N70: 0 | O70: 0 | P70: 0 | Q70: 0 | R70: 0 | S70: 0 | T70: 0 | U70: 0 | V70: 0 | W70: 0 | X70: 0 | Y70: 0 | Z70: 0 | AA70: 0 | AB70: 0 | AC70: 0 | AD70: 0 | AE70: 0 | AF70: 0 | AG70: 0 | AH70: 0 | AI70: 0 | AJ70: 0 | AK70: 0 | AL70: 0 | AM70: 0 | AN70: 0 | AO70: 0 | AP70: 0 | AQ70: 0 | AR70: 0 | AS70: 0 | AT70: 0
G71: =+G70<Tolerance -> TRUE | H71: TRUE | I71: TRUE | J71: TRUE | K71: TRUE | L71: TRUE | M71: TRUE | N71: TRUE | O71: TRUE | P71: TRUE | Q71: TRUE | R71: TRUE | S71: TRUE | T71: TRUE | U71: TRUE | V71: TRUE | W71: TRUE | X71: TRUE | Y71: TRUE | Z71: TRUE | AA71: TRUE | AB71: TRUE | AC71: TRUE | AD71: TRUE | AE71: TRUE | AF71: TRUE | AG71: TRUE | AH71: TRUE | AI71: TRUE | AJ71: TRUE | AK71: TRUE | AL71: TRUE | AM71: TRUE | AN71: TRUE | AO71: TRUE | AP71: TRUE | AQ71: TRUE | AR71: TRUE | AS71: TRUE | AT71: TRUE
C73: Check Bond Uses | E73: =+SUM(G73:AT73) -> 0 | F73: =+SUM(G73:AT73)<Tolerance -> TRUE | G73: =+ABS(USBondTotalUses-USBondDrawdown) -> 0 | H73: 0 | I73: 0 | J73: 0 | K73: 0 | L73: 0 | M73: 0 | N73: 0 | O73: 0 | P73: 0 | Q73: 0 | R73: 0 | S73: 0 | T73: 0 | U73: 0 | V73: 0 | W73: 0 | X73: 0 | Y73: 0 | Z73: 0 | AA73: 0 | AB73: 0 | AC73: 0 | AD73: 0 | AE73: 0 | AF73: 0 | AG73: 0 | AH73: 0 | AI73: 0 | AJ73: 0 | AK73: 0 | AL73: 0 | AM73: 0 | AN73: 0 | AO73: 0 | AP73: 0 | AQ73: 0 | AR73: 0 | AS73: 0 | AT73: 0
G74: =+G73<Tolerance -> TRUE | H74: TRUE | I74: TRUE | J74: TRUE | K74: TRUE | L74: TRUE | M74: TRUE | N74: TRUE | O74: TRUE | P74: TRUE | Q74: TRUE | R74: TRUE | S74: TRUE | T74: TRUE | U74: TRUE | V74: TRUE | W74: TRUE | X74: TRUE | Y74: TRUE | Z74: TRUE | AA74: TRUE | AB74: TRUE | AC74: TRUE | AD74: TRUE | AE74: TRUE | AF74: TRUE | AG74: TRUE | AH74: TRUE | AI74: TRUE | AJ74: TRUE | AK74: TRUE | AL74: TRUE | AM74: TRUE | AN74: TRUE | AO74: TRUE | AP74: TRUE | AQ74: TRUE | AR74: TRUE | AS74: TRUE | AT74: TRUE
C76: Check SubDebt Uses | E76: =+SUM(G76:AT76) -> 0 | F76: =+SUM(G76:AT76)<Tolerance -> TRUE | G76: =+ABS(USSubDebtTotalUses-USSubDebtDrawdown) -> 0 | H76: 0 | I76: 0 | J76: 0 | K76: 0 | L76: 0 | M76: 0 | N76: 0 | O76: 0 | P76: 0 | Q76: 0 | R76: 0 | S76: 0 | T76: 0 | U76: 0 | V76: 0 | W76: 0 | X76: 0 | Y76: 0 | Z76: 0 | AA76: 0 | AB76: 0 | AC76: 0 | AD76: 0 | AE76: 0 | AF76: 0 | AG76: 0 | AH76: 0 | AI76: 0 | AJ76: 0 | AK76: 0 | AL76: 0 | AM76: 0 | AN76: 0 | AO76: 0 | AP76: 0 | AQ76: 0 | AR76: 0 | AS76: 0 | AT76: 0
G77: =+G76<Tolerance -> TRUE | H77: TRUE | I77: TRUE | J77: TRUE | K77: TRUE | L77: TRUE | M77: TRUE | N77: TRUE | O77: TRUE | P77: TRUE | Q77: TRUE | R77: TRUE | S77: TRUE | T77: TRUE | U77: TRUE | V77: TRUE | W77: TRUE | X77: TRUE | Y77: TRUE | Z77: TRUE | AA77: TRUE | AB77: TRUE | AC77: TRUE | AD77: TRUE | AE77: TRUE | AF77: TRUE | AG77: TRUE | AH77: TRUE | AI77: TRUE | AJ77: TRUE | AK77: TRUE | AL77: TRUE | AM77: TRUE | AN77: TRUE | AO77: TRUE | AP77: TRUE | AQ77: TRUE | AR77: TRUE | AS77: TRUE | AT77: TRUE
C79: Check Bond Drawdown | E79: =+SUM(G79:AT79) -> 0 | F79: =+SUM(G79:AT79)<Tolerance -> TRUE | G79: =+ABS(USBondTotalUses-BondDrawdown) -> 0 | H79: 0 | I79: 0 | J79: 0 | K79: 0 | L79: 0 | M79: 0 | N79: 0 | O79: 0 | P79: 0 | Q79: 0 | R79: 0 | S79: 0 | T79: 0 | U79: 0 | V79: 0 | W79: 0 | X79: 0 | Y79: 0 | Z79: 0 | AA79: 0 | AB79: 0 | AC79: 0 | AD79: 0 | AE79: 0 | AF79: 0 | AG79: 0 | AH79: 0 | AI79: 0 | AJ79: 0 | AK79: 0 | AL79: 0 | AM79: 0 | AN79: 0 | AO79: 0 | AP79: 0 | AQ79: 0 | AR79: 0 | AS79: 0 | AT79: 0
G80: =+G79<Tolerance -> TRUE | H80: TRUE | I80: TRUE | J80: TRUE | K80: TRUE | L80: TRUE | M80: TRUE | N80: TRUE | O80: TRUE | P80: TRUE | Q80: TRUE | R80: TRUE | S80: TRUE | T80: TRUE | U80: TRUE | V80: TRUE | W80: TRUE | X80: TRUE | Y80: TRUE | Z80: TRUE | AA80: TRUE | AB80: TRUE | AC80: TRUE | AD80: TRUE | AE80: TRUE | AF80: TRUE | AG80: TRUE | AH80: TRUE | AI80: TRUE | AJ80: TRUE | AK80: TRUE | AL80: TRUE | AM80: TRUE | AN80: TRUE | AO80: TRUE | AP80: TRUE | AQ80: TRUE | AR80: TRUE | AS80: TRUE | AT80: TRUE
C82: Check SubDebt Drawdown | E82: =+SUM(G82:AT82) -> 0.1999999881 | F82: =+ROUNDDOWN(SUM(G82:AT82),0)<Tolerance -> TRUE | G82: =+ABS(USSubDebtTotalUses-SubDebtDrawdown) -> 0 | H82: 0 | I82: 0.1999999881 | J82: 0 | K82: 0 | L82: 0 | M82: 0 | N82: 0 | O82: 0 | P82: 0 | Q82: 0 | R82: 0 | S82: 0 | T82: 0 | U82: 0 | V82: 0 | W82: 0 | X82: 0 | Y82: 0 | Z82: 0 | AA82: 0 | AB82: 0 | AC82: 0 | AD82: 0 | AE82: 0 | AF82: 0 | AG82: 0 | AH82: 0 | AI82: 0 | AJ82: 0 | AK82: 0 | AL82: 0 | AM82: 0 | AN82: 0 | AO82: 0 | AP82: 0 | AQ82: 0 | AR82: 0 | AS82: 0 | AT82: 0
G83: =+ROUNDDOWN(G82,0)<Tolerance -> TRUE | H83: TRUE | I83: TRUE | J83: TRUE | K83: TRUE | L83: TRUE | M83: TRUE | N83: TRUE | O83: TRUE | P83: TRUE | Q83: TRUE | R83: TRUE | S83: TRUE | T83: TRUE | U83: TRUE | V83: TRUE | W83: TRUE | X83: TRUE | Y83: TRUE | Z83: TRUE | AA83: TRUE | AB83: TRUE | AC83: TRUE | AD83: TRUE | AE83: TRUE | AF83: TRUE | AG83: TRUE | AH83: TRUE | AI83: TRUE | AJ83: TRUE | AK83: TRUE | AL83: TRUE | AM83: TRUE | AN83: TRUE | AO83: TRUE | AP83: TRUE | AQ83: TRUE | AR83: TRUE | AS83: TRUE | AT83: TRUE
C86: Check Cash | E86: =+AND(F89:F93) -> TRUE
C89: Check Negative Cash | E89: =+SUM(G89:AT89) -> 0 | F89: =+SUM(G89:AT89)<Tolerance -> TRUE | G89: =+IF(NetCashBalanceEop>-1,0,ABS(ROUND(+NetCashBalanceEop,0))) -> 0 | H89: 0 | I89: 0 | J89: 0 | K89: 0 | L89: 0 | M89: 0 | N89: 0 | O89: 0 | P89: 0 | Q89: 0 | R89: 0 | S89: 0 | T89: 0 | U89: 0 | V89: 0 | W89: 0 | X89: 0 | Y89: 0 | Z89: 0 | AA89: 0 | AB89: 0 | AC89: 0 | AD89: 0 | AE89: 0 | AF89: 0 | AG89: 0 | AH89: 0 | AI89: 0 | AJ89: 0 | AK89: 0 | AL89: 0 | AM89: 0 | AN89: 0 | AO89: 0 | AP89: 0 | AQ89: 0 | AR89: 0 | AS89: 0 | AT89: 0
G90: =+G89<Tolerance -> TRUE | H90: TRUE | I90: TRUE | J90: TRUE | K90: TRUE | L90: TRUE | M90: TRUE | N90: TRUE | O90: TRUE | P90: TRUE | Q90: TRUE | R90: TRUE | S90: TRUE | T90: TRUE | U90: TRUE | V90: TRUE | W90: TRUE | X90: TRUE | Y90: TRUE | Z90: TRUE | AA90: TRUE | AB90: TRUE | AC90: TRUE | AD90: TRUE | AE90: TRUE | AF90: TRUE | AG90: TRUE | AH90: TRUE | AI90: TRUE | AJ90: TRUE | AK90: TRUE | AL90: TRUE | AM90: TRUE | AN90: TRUE | AO90: TRUE | AP90: TRUE | AQ90: TRUE | AR90: TRUE | AS90: TRUE | AT90: TRUE
C92: Check DSRA | E92: =+SUM(G92:AT92) -> 0 | F92: =+SUM(G92:AT92)<Tolerance -> TRUE | G92: =+IF(DSRAEop>-Tolerance,0,ABS(DSRAEop)) -> 0 | H92: 0 | I92: 0 | J92: 0 | K92: 0 | L92: 0 | M92: 0 | N92: 0 | O92: 0 | P92: 0 | Q92: 0 | R92: 0 | S92: 0 | T92: 0 | U92: 0 | V92: 0 | W92: 0 | X92: 0 | Y92: 0 | Z92: 0 | AA92: 0 | AB92: 0 | AC92: 0 | AD92: 0 | AE92: 0 | AF92: 0 | AG92: 0 | AH92: 0 | AI92: 0 | AJ92: 0 | AK92: 0 | AL92: 0 | AM92: =+IF(DSRAEop>-Tolerance,0,ABS(DSRAEop)) -> 0 | AN92: 0 | AO92: 0 | AP92: 0 | AQ92: 0 | AR92: 0 | AS92: 0 | AT92: 0
G93: =+G92<Tolerance -> TRUE | H93: TRUE | I93: TRUE | J93: TRUE | K93: TRUE | L93: TRUE | M93: TRUE | N93: TRUE | O93: TRUE | P93: TRUE | Q93: TRUE | R93: TRUE | S93: TRUE | T93: TRUE | U93: TRUE | V93: TRUE | W93: TRUE | X93: TRUE | Y93: TRUE | Z93: TRUE | AA93: TRUE | AB93: TRUE | AC93: TRUE | AD93: TRUE | AE93: TRUE | AF93: TRUE | AG93: TRUE | AH93: TRUE | AI93: TRUE | AJ93: TRUE | AK93: TRUE | AL93: TRUE | AM93: TRUE | AN93: TRUE | AO93: TRUE | AP93: TRUE | AQ93: TRUE | AR93: TRUE | AS93: TRUE | AT93: TRUE
C96: Check PBCE | E96: =+AND(F99:F100) -> TRUE
C99: Check PBCE Rebalancing | E99: =+NOT(F99)*COUNTIF(PBCETriggerRebalancing,TRUE) -> 0 | F99: =+OR(COUNTIF(PBCETriggerRebalancing,TRUE)=0,COUNTIF(PBCETriggerRebalancing,TRUE)=1) -> TRUE
C103: Check Distributions | E103: =+AND(F106:F111) -> TRUE
C106: Check Distributions SubDebt | E106: =+NOT(OR(CheckBLCRDistrSubDebt,COUNTIF(DistrTestSubDebtBLCRCalc,TRUE)-COUNTIF(DistrTestSubDebtBLCR,TRUE)=1))*(COUNTIF(DistrTestSubDebtBLCRCalc,TRUE)-COUNTIF(DistrTestSubDebtBLCR,TRUE)) -> 0 | F106: =+OR(CheckBLCRDistrSubDebt,COUNTIF(DistrTestSubDebtBLCRCalc,TRUE)-COUNTIF(DistrTestSubDebtBLCR,TRUE)=1) -> TRUE
C108: Check Subordinated Debt Last Rep Date | F108: =+IF(SubDebtLastRepaymentDate<>"n.a.",SubDebtLastRepaymentDate<=IntangibleAssetsEndIDCSubDebt,IntangibleAssetsEndIDCSubDebt=ConcessionEndDate) -> TRUE
C110: Check Distributions Equity | E110: =+NOT(OR(CheckBLCRDistrEquity,COUNTIF(DistrTestEquityBLCRCalc,TRUE)-COUNTIF(DistrTestEquityBLCR,TRUE)=1))*(COUNTIF(DistrTestEquityBLCRCalc,TRUE)-COUNTIF(DistrTestEquityBLCR,TRUE)) -> 0 | F110: =+OR(CheckBLCRDistrEquity,COUNTIF(DistrTestEquityBLCRCalc,TRUE)-COUNTIF(DistrTestEquityBLCR,TRUE)=1) -> TRUE
C114: Check Masks | E114: =+AND(F117:F121) -> TRUE
C117: Concession Period | F117: =+AND(G117:AT117) -> TRUE | G117: =+IF(+MaskConcession,ConcessionDaysInPeriod>0,ConcessionDaysInPeriod=0) -> TRUE | H117: TRUE | I117: TRUE | J117: TRUE | K117: TRUE | L117: TRUE | M117: TRUE | N117: TRUE | O117: TRUE | P117: TRUE | Q117: TRUE | R117: TRUE | S117: TRUE | T117: TRUE | U117: TRUE | V117: TRUE | W117: TRUE | X117: TRUE | Y117: TRUE | Z117: TRUE | AA117: TRUE | AB117: TRUE | AC117: TRUE | AD117: TRUE | AE117: TRUE | AF117: TRUE | AG117: TRUE | AH117: TRUE | AI117: TRUE | AJ117: TRUE | AK117: TRUE | AL117: TRUE | AM117: =+IF(+MaskConcession,ConcessionDaysInPeriod>0,ConcessionDaysInPeriod=0) -> TRUE | AN117: TRUE | AO117: TRUE | AP117: TRUE | AQ117: TRUE | AR117: TRUE | AS117: TRUE | AT117: TRUE
C120: Operation Period | F120: =+AND(G120:AT120) -> TRUE | G120: =+IF(+MaskOperation,OperationDaysInPeriod>0,OperationDaysInPeriod=0) -> TRUE | H120: TRUE | I120: TRUE | J120: TRUE | K120: TRUE | L120: TRUE | M120: TRUE | N120: TRUE | O120: TRUE | P120: TRUE | Q120: TRUE | R120: TRUE | S120: TRUE | T120: TRUE | U120: TRUE | V120: TRUE | W120: TRUE | X120: TRUE | Y120: TRUE | Z120: TRUE | AA120: TRUE | AB120: TRUE | AC120: TRUE | AD120: TRUE | AE120: TRUE | AF120: TRUE | AG120: TRUE | AH120: TRUE | AI120: TRUE | AJ120: TRUE | AK120: TRUE | AL120: TRUE | AM120: =+IF(+MaskOperation,OperationDaysInPeriod>0,OperationDaysInPeriod=0) -> TRUE | AN120: TRUE | AO120: TRUE | AP120: TRUE | AQ120: TRUE | AR120: TRUE | AS120: TRUE | AT120: TRUE
C124: Check Taxes | E124: =+AND(F127:F131) -> TRUE
C127: Check Tax Paid vs Due | F127: =AND(SUM(IRESPaid)+Tolerance>=SUM(IRESDue),(SUM(IRAPPaid)+Working!F1404)+Tolerance>=SUM(IRAPDue)) -> TRUE
C130: Check Tax CF vs P&L | F130: =(-CF!E16)-(-SUM('P&L'!E53:E54))>-Tolerance -> TRUE
C134: Check Depreciation | E134: =+AND(F137:F141) -> TRUE
C137: Check Total Depreciation | F137: =+CheckTotalDepreciation -> TRUE
C140: Check Depreciation Dates | E140: CheckDepreciationDates | F140: =+AND(BondLastRepaymentDate=IntangibleAssetsEndIDCBond,IF(VATFacLastRepaymentDate<>"n.a.",VATFacLastRepaymentDate=IntangibleAssetsEndIDCVATFac,IntangibleAssetsEndIDCVATFac=ConcessionEndDate)) -> TRUE
C144: Check Output | E144: =+AND(F147:F187) -> TRUE
C147: Check Uses & Sources (Shortfall) | E147: =-MIN(0,(Summary_ENG!Q15-Summary_ENG!K15)+(Summary_ENG!Q21-Summary_ENG!K21)+(Summary_ENG!Q23-Summary_ENG!K23)) -> 0 | F147: =+AND((Summary_ENG!Q15-Summary_ENG!K15)>-Tolerance) -> TRUE
C150: Check PFR (Workings vs Output) | E150: =+SUM(G150:AT150) -> 0 | F150: =+SUM(G150:AT150)<Tolerance -> TRUE | G150: =+IF(YearForYearlyData<=YEAR(ConcessionEndDate),ABS(SUMIF(PFRYears,YearForYearlyData,PFRFigItemsCumulated)-SUMIF(PFRYears,YearForYearlyData,PFR!$G$71:$AD$71)),0)*(SUM(MaskUpdateModel)<0) -> 0 | H150: =+IF(YearForYearlyData<=YEAR(ConcessionEndDate),ABS(SUMIF(PFRYears,YearForYearlyData,PFRFigItemsCumulated)-SUMIF(PFRYears,YearForYearlyData,PFR!$G$71:$AD$71)),0)*(SUM(MaskUpdateModel)<0) -> 0 | I150: =+IF(YearForYearlyData<=YEAR(ConcessionEndDate),ABS(SUMIF(PFRYears,YearForYearlyData,PFRFigItemsCumulated)-SUMIF(PFRYears,YearForYearlyData,PFR!$G$71:$AD$71)),0)*(SUM(MaskUpdateModel)<0) -> 0 | J150: =+IF(YearForYearlyData<=YEAR(ConcessionEndDate),ABS(SUMIF(PFRYears,YearForYearlyData,PFRFigItemsCumulated)-SUMIF(PFRYears,YearForYearlyData,PFR!$G$71:$AD$71)),0)*(SUM(MaskUpdateModel)<0) -> 0 | K150: =+IF(YearForYearlyData<=YEAR(ConcessionEndDate),ABS(SUMIF(PFRYears,YearForYearlyData,PFRFigItemsCumulated)-SUMIF(PFRYears,YearForYearlyData,PFR!$G$71:$AD$71)),0)*(SUM(MaskUpdateModel)<0) -> 0 | L150: =+IF(YearForYearlyData<=YEAR(ConcessionEndDate),ABS(SUMIF(PFRYears,YearForYearlyData,PFRFigItemsCumulated)-SUMIF(PFRYears,YearForYearlyData,PFR!$G$71:$AD$71)),0)*(SUM(MaskUpdateModel)<0) -> 0 | M150: =+IF(YearForYearlyData<=YEAR(ConcessionEndDate),ABS(SUMIF(PFRYears,YearForYearlyData,PFRFigItemsCumulated)-SUMIF(PFRYears,YearForYearlyData,PFR!$G$71:$AD$71)),0)*(SUM(MaskUpdateModel)<0) -> 0 | N150: =+IF(YearForYearlyData<=YEAR(ConcessionEndDate),ABS(SUMIF(PFRYears,YearForYearlyData,PFRFigItemsCumulated)-SUMIF(PFRYears,YearForYearlyData,PFR!$G$71:$AD$71)),0)*(SUM(MaskUpdateModel)<0) -> 0 | O150: =+IF(YearForYearlyData<=YEAR(ConcessionEndDate),ABS(SUMIF(PFRYears,YearForYearlyData,PFRFigItemsCumulated)-SUMIF(PFRYears,YearForYearlyData,PFR!$G$71:$AD$71)),0)*(SUM(MaskUpdateModel)<0) -> 0 | P150: =+IF(YearForYearlyData<=YEAR(ConcessionEndDate),ABS(SUMIF(PFRYears,YearForYearlyData,PFRFigItemsCumulated)-SUMIF(PFRYears,YearForYearlyData,PFR!$G$71:$AD$71)),0)*(SUM(MaskUpdateModel)<0) -> 0 | Q150: =+IF(YearForYearlyData<=YEAR(ConcessionEndDate),ABS(SUMIF(PFRYears,YearForYearlyData,PFRFigItemsCumulated)-SUMIF(PFRYears,YearForYearlyData,PFR!$G$71:$AD$71)),0)*(SUM(MaskUpdateModel)<0) -> 0 | R150: =+IF(YearForYearlyData<=YEAR(ConcessionEndDate),ABS(SUMIF(PFRYears,YearForYearlyData,PFRFigItemsCumulated)-SUMIF(PFRYears,YearForYearlyData,PFR!$G$71:$AD$71)),0)*(SUM(MaskUpdateModel)<0) -> 0 | S150: =+IF(YearForYearlyData<=YEAR(ConcessionEndDate),ABS(SUMIF(PFRYears,YearForYearlyData,PFRFigItemsCumulated)-SUMIF(PFRYears,YearForYearlyData,PFR!$G$71:$AD$71)),0)*(SUM(MaskUpdateModel)<0) -> 0 | T150: =+IF(YearForYearlyData<=YEAR(ConcessionEndDate),ABS(SUMIF(PFRYears,YearForYearlyData,PFRFigItemsCumulated)-SUMIF(PFRYears,YearForYearlyData,PFR!$G$71:$AD$71)),0)*(SUM(MaskUpdateModel)<0) -> 0 | U150: =+IF(YearForYearlyData<=YEAR(ConcessionEndDate),ABS(SUMIF(PFRYears,YearForYearlyData,PFRFigItemsCumulated)-SUMIF(PFRYears,YearForYearlyData,PFR!$G$71:$AD$71)),0)*(SUM(MaskUpdateModel)<0) -> 0 | V150: =+IF(YearForYearlyData<=YEAR(ConcessionEndDate),ABS(SUMIF(PFRYears,YearForYearlyData,PFRFigItemsCumulated)-SUMIF(PFRYears,YearForYearlyData,PFR!$G$71:$AD$71)),0)*(SUM(MaskUpdateModel)<0) -> 0 | W150: =+IF(YearForYearlyData<=YEAR(ConcessionEndDate),ABS(SUMIF(PFRYears,YearForYearlyData,PFRFigItemsCumulated)-SUMIF(PFRYears,YearForYearlyData,PFR!$G$71:$AD$71)),0)*(SUM(MaskUpdateModel)<0) -> 0 | X150: =+IF(YearForYearlyData<=YEAR(ConcessionEndDate),ABS(SUMIF(PFRYears,YearForYearlyData,PFRFigItemsCumulated)-SUMIF(PFRYears,YearForYearlyData,PFR!$G$71:$AD$71)),0)*(SUM(MaskUpdateModel)<0) -> 0 | Y150: =+IF(YearForYearlyData<=YEAR(ConcessionEndDate),ABS(SUMIF(PFRYears,YearForYearlyData,PFRFigItemsCumulated)-SUMIF(PFRYears,YearForYearlyData,PFR!$G$71:$AD$71)),0)*(SUM(MaskUpdateModel)<0) -> 0 | Z150: =+IF(YearForYearlyData<=YEAR(ConcessionEndDate),ABS(SUMIF(PFRYears,YearForYearlyData,PFRFigItemsCumulated)-SUMIF(PFRYears,YearForYearlyData,PFR!$G$71:$AD$71)),0)*(SUM(MaskUpdateModel)<0) -> 0 | AA150: =+IF(YearForYearlyData<=YEAR(ConcessionEndDate),ABS(SUMIF(PFRYears,YearForYearlyData,PFRFigItemsCumulated)-SUMIF(PFRYears,YearForYearlyData,PFR!$G$71:$AD$71)),0)*(SUM(MaskUpdateModel)<0) -> 0 | AB150: =+IF(YearForYearlyData<=YEAR(ConcessionEndDate),ABS(SUMIF(PFRYears,YearForYearlyData,PFRFigItemsCumulated)-SUMIF(PFRYears,YearForYearlyData,PFR!$G$71:$AD$71)),0)*(SUM(MaskUpdateModel)<0) -> 0 | AC150: =+IF(YearForYearlyData<=YEAR(ConcessionEndDate),ABS(SUMIF(PFRYears,YearForYearlyData,PFRFigItemsCumulated)-SUMIF(PFRYears,YearForYearlyData,PFR!$G$71:$AD$71)),0)*(SUM(MaskUpdateModel)<0) -> 0 | AD150: =+IF(YearForYearlyData<=YEAR(ConcessionEndDate),ABS(SUMIF(PFRYears,YearForYearlyData,PFRFigItemsCumulated)-SUMIF(PFRYears,YearForYearlyData,PFR!$G$71:$AD$71)),0)*(SUM(MaskUpdateModel)<0) -> 0 | AE150: =+IF(YearForYearlyData<=YEAR(ConcessionEndDate),ABS(SUMIF(PFRYears,YearForYearlyData,PFRFigItemsCumulated)-SUMIF(PFRYears,YearForYearlyData,PFR!$G$71:$AD$71)),0)*(SUM(MaskUpdateModel)<0) -> 0 | AF150: =+IF(YearForYearlyData<=YEAR(ConcessionEndDate),ABS(SUMIF(PFRYears,YearForYearlyData,PFRFigItemsCumulated)-SUMIF(PFRYears,YearForYearlyData,PFR!$G$71:$AD$71)),0)*(SUM(MaskUpdateModel)<0) -> 0 | AG150: =+IF(YearForYearlyData<=YEAR(ConcessionEndDate),ABS(SUMIF(PFRYears,YearForYearlyData,PFRFigItemsCumulated)-SUMIF(PFRYears,YearForYearlyData,PFR!$G$71:$AD$71)),0)*(SUM(MaskUpdateModel)<0) -> 0 | AH150: =+IF(YearForYearlyData<=YEAR(ConcessionEndDate),ABS(SUMIF(PFRYears,YearForYearlyData,PFRFigItemsCumulated)-SUMIF(PFRYears,YearForYearlyData,PFR!$G$71:$AD$71)),0)*(SUM(MaskUpdateModel)<0) -> 0 | AI150: =+IF(YearForYearlyData<=YEAR(ConcessionEndDate),ABS(SUMIF(PFRYears,YearForYearlyData,PFRFigItemsCumulated)-SUMIF(PFRYears,YearForYearlyData,PFR!$G$71:$AD$71)),0)*(SUM(MaskUpdateModel)<0) -> 0 | AJ150: =+IF(YearForYearlyData<=YEAR(ConcessionEndDate),ABS(SUMIF(PFRYears,YearForYearlyData,PFRFigItemsCumulated)-SUMIF(PFRYears,YearForYearlyData,PFR!$G$71:$AD$71)),0)*(SUM(MaskUpdateModel)<0) -> 0 | AK150: =+IF(YearForYearlyData<=YEAR(ConcessionEndDate),ABS(SUMIF(PFRYears,YearForYearlyData,PFRFigItemsCumulated)-SUMIF(PFRYears,YearForYearlyData,PFR!$G$71:$AD$71)),0)*(SUM(MaskUpdateModel)<0) -> 0 | AL150: =+IF(YearForYearlyData<=YEAR(ConcessionEndDate),ABS(SUMIF(PFRYears,YearForYearlyData,PFRFigItemsCumulated)-SUMIF(PFRYears,YearForYearlyData,PFR!$G$71:$AD$71)),0)*(SUM(MaskUpdateModel)<0) -> 0 | AM150: =+IF(YearForYearlyData<=YEAR(ConcessionEndDate),ABS(SUMIF(PFRYears,YearForYearlyData,PFRFigItemsCumulated)-SUMIF(PFRYears,YearForYearlyData,PFR!$G$71:$AD$71)),0)*(SUM(MaskUpdateModel)<0) -> 0 | AN150: =+IF(YearForYearlyData<=YEAR(ConcessionEndDate),ABS(SUMIF(PFRYears,YearForYearlyData,PFRFigItemsCumulated)-SUMIF(PFRYears,YearForYearlyData,PFR!$G$71:$AD$71)),0)*(SUM(MaskUpdateModel)<0) -> 0 | AO150: =+IF(YearForYearlyData<=YEAR(ConcessionEndDate),ABS(SUMIF(PFRYears,YearForYearlyData,PFRFigItemsCumulated)-SUMIF(PFRYears,YearForYearlyData,PFR!$G$71:$AD$71)),0)*(SUM(MaskUpdateModel)<0) -> 0 | AP150: =+IF(YearForYearlyData<=YEAR(ConcessionEndDate),ABS(SUMIF(PFRYears,YearForYearlyData,PFRFigItemsCumulated)-SUMIF(PFRYears,YearForYearlyData,PFR!$G$71:$AD$71)),0)*(SUM(MaskUpdateModel)<0) -> 0 | AQ150: =+IF(YearForYearlyData<=YEAR(ConcessionEndDate),ABS(SUMIF(PFRYears,YearForYearlyData,PFRFigItemsCumulated)-SUMIF(PFRYears,YearForYearlyData,PFR!$G$71:$AD$71)),0)*(SUM(MaskUpdateModel)<0) -> 0 | AR150: =+IF(YearForYearlyData<=YEAR(ConcessionEndDate),ABS(SUMIF(PFRYears,YearForYearlyData,PFRFigItemsCumulated)-SUMIF(PFRYears,YearForYearlyData,PFR!$G$71:$AD$71)),0)*(SUM(MaskUpdateModel)<0) -> 0 | AS150: =+IF(YearForYearlyData<=YEAR(ConcessionEndDate),ABS(SUMIF(PFRYears,YearForYearlyData,PFRFigItemsCumulated)-SUMIF(PFRYears,YearForYearlyData,PFR!$G$71:$AD$71)),0)*(SUM(MaskUpdateModel)<0) -> 0 | AT150: =+IF(YearForYearlyData<=YEAR(ConcessionEndDate),ABS(SUMIF(PFRYears,YearForYearlyData,PFRFigItemsCumulated)-SUMIF(PFRYears,YearForYearlyData,PFR!$G$71:$AD$71)),0)*(SUM(MaskUpdateModel)<0) -> 0
G151: =+G150<Tolerance -> TRUE | H151: TRUE | I151: TRUE | J151: TRUE | K151: TRUE | L151: TRUE | M151: TRUE | N151: TRUE | O151: TRUE | P151: TRUE | Q151: TRUE | R151: TRUE | S151: TRUE | T151: TRUE | U151: TRUE | V151: TRUE | W151: TRUE | X151: TRUE | Y151: TRUE | Z151: TRUE | AA151: TRUE | AB151: TRUE | AC151: TRUE | AD151: TRUE | AE151: TRUE | AF151: TRUE | AG151: TRUE | AH151: TRUE | AI151: TRUE | AJ151: TRUE | AK151: TRUE | AL151: TRUE | AM151: TRUE | AN151: TRUE | AO151: TRUE | AP151: TRUE | AQ151: TRUE | AR151: TRUE | AS151: TRUE | AT151: TRUE
C153: Check Output PFR | E153: =+SUM(G153:AT153) -> 0 | F153: =+SUM(G153:AT153)<Tolerance -> TRUE | G153: =+SUM(PFR!G73:G76) -> 0 | H153: =+SUM(PFR!H73:H76) -> 0 | I153: =+SUM(PFR!I73:I76) -> 0 | J153: =+SUM(PFR!J73:J76) -> 0 | K153: =+SUM(PFR!K73:K76) -> 0 | L153: =+SUM(PFR!L73:L76) -> 0 | M153: =+SUM(PFR!M73:M76) -> 0 | N153: =+SUM(PFR!N73:N76) -> 0 | O153: =+SUM(PFR!O73:O76) -> 0 | P153: =+SUM(PFR!P73:P76) -> 0 | Q153: =+SUM(PFR!Q73:Q76) -> 0 | R153: =+SUM(PFR!R73:R76) -> 0 | S153: =+SUM(PFR!S73:S76) -> 0 | T153: =+SUM(PFR!T73:T76) -> 0 | U153: =+SUM(PFR!U73:U76) -> 0 | V153: =+SUM(PFR!V73:V76) -> 0 | W153: =+SUM(PFR!W73:W76) -> 0 | X153: =+SUM(PFR!X73:X76) -> 0 | Y153: =+SUM(PFR!Y73:Y76) -> 0 | Z153: =+SUM(PFR!Z73:Z76) -> 0 | AA153: =+SUM(PFR!AA73:AA76) -> 0 | AB153: =+SUM(PFR!AB73:AB76) -> 0 | AC153: =+SUM(PFR!AC73:AC76) -> 0 | AD153: =+SUM(PFR!AD73:AD76) -> 0 | AE153: =+SUM(PFR!AE73:AE76) -> 0 | AF153: =+SUM(PFR!AF73:AF76) -> 0 | AG153: =+SUM(PFR!AG73:AG76) -> 0 | AH153: =+SUM(PFR!AH73:AH76) -> 0 | AI153: =+SUM(PFR!AI73:AI76) -> 0 | AJ153: =+SUM(PFR!AJ73:AJ76) -> 0 | AK153: =+SUM(PFR!AK73:AK76) -> 0 | AL153: =+SUM(PFR!AL73:AL76) -> 0 | AM153: =+SUM(PFR!AM73:AM76) -> 0 | AN153: =+SUM(PFR!AN73:AN76) -> 0 | AO153: =+SUM(PFR!AO73:AO76) -> 0 | AP153: =+SUM(PFR!AP73:AP76) -> 0 | AQ153: =+SUM(PFR!AQ73:AQ76) -> 0 | AR153: =+SUM(PFR!AR73:AR76) -> 0 | AS153: =+SUM(PFR!AS73:AS76) -> 0 | AT153: =+SUM(PFR!AT73:AT76) -> 0
G154: =+G153<Tolerance -> TRUE | H154: TRUE | I154: TRUE | J154: TRUE | K154: TRUE | L154: TRUE | M154: TRUE | N154: TRUE | O154: TRUE | P154: TRUE | Q154: TRUE | R154: TRUE | S154: TRUE | T154: TRUE | U154: TRUE | V154: TRUE | W154: TRUE | X154: TRUE | Y154: TRUE | Z154: TRUE | AA154: TRUE | AB154: TRUE | AC154: TRUE | AD154: TRUE | AE154: TRUE | AF154: TRUE | AG154: TRUE | AH154: TRUE | AI154: TRUE | AJ154: TRUE | AK154: TRUE | AL154: TRUE | AM154: TRUE | AN154: TRUE | AO154: TRUE | AP154: TRUE | AQ154: TRUE | AR154: TRUE | AS154: TRUE | AT154: TRUE
C156: Check Output RSP | E156: =+SUM(G156:AT156) -> 4.440892099e-16 | F156: =+SUM(G156:AT156)<Tolerance -> TRUE | G156: =IF(AND(RSP!G30<>"",RSP!G30<>"n.a."),ABS(RSP!G30-SUMIF(PeriodTo,PeriodToYearly,RSP)),0) -> 0 | H156: =IF(AND(RSP!H30<>"",RSP!H30<>"n.a."),ABS(RSP!H30-SUMIF(PeriodTo,PeriodToYearly,RSP)),0) -> 0 | I156: =IF(AND(RSP!I30<>"",RSP!I30<>"n.a."),ABS(RSP!I30-SUMIF(PeriodTo,PeriodToYearly,RSP)),0) -> 0 | J156: =IF(AND(RSP!J30<>"",RSP!J30<>"n.a."),ABS(RSP!J30-SUMIF(PeriodTo,PeriodToYearly,RSP)),0) -> 0 | K156: =IF(AND(RSP!K30<>"",RSP!K30<>"n.a."),ABS(RSP!K30-SUMIF(PeriodTo,PeriodToYearly,RSP)),0) -> 0 | L156: =IF(AND(RSP!L30<>"",RSP!L30<>"n.a."),ABS(RSP!L30-SUMIF(PeriodTo,PeriodToYearly,RSP)),0) -> 0 | M156: =IF(AND(RSP!M30<>"",RSP!M30<>"n.a."),ABS(RSP!M30-SUMIF(PeriodTo,PeriodToYearly,RSP)),0) -> 0 | N156: =IF(AND(RSP!N30<>"",RSP!N30<>"n.a."),ABS(RSP!N30-SUMIF(PeriodTo,PeriodToYearly,RSP)),0) -> 4.440892099e-16 | O156: =IF(AND(RSP!O30<>"",RSP!O30<>"n.a."),ABS(RSP!O30-SUMIF(PeriodTo,PeriodToYearly,RSP)),0) -> 0 | P156: =IF(AND(RSP!P30<>"",RSP!P30<>"n.a."),ABS(RSP!P30-SUMIF(PeriodTo,PeriodToYearly,RSP)),0) -> 0 | Q156: =IF(AND(RSP!Q30<>"",RSP!Q30<>"n.a."),ABS(RSP!Q30-SUMIF(PeriodTo,PeriodToYearly,RSP)),0) -> 0 | R156: =IF(AND(RSP!R30<>"",RSP!R30<>"n.a."),ABS(RSP!R30-SUMIF(PeriodTo,PeriodToYearly,RSP)),0) -> 0 | S156: =IF(AND(RSP!S30<>"",RSP!S30<>"n.a."),ABS(RSP!S30-SUMIF(PeriodTo,PeriodToYearly,RSP)),0) -> 0 | T156: =IF(AND(RSP!T30<>"",RSP!T30<>"n.a."),ABS(RSP!T30-SUMIF(PeriodTo,PeriodToYearly,RSP)),0) -> 0 | U156: =IF(AND(RSP!U30<>"",RSP!U30<>"n.a."),ABS(RSP!U30-SUMIF(PeriodTo,PeriodToYearly,RSP)),0) -> 0 | V156: =IF(AND(RSP!V30<>"",RSP!V30<>"n.a."),ABS(RSP!V30-SUMIF(PeriodTo,PeriodToYearly,RSP)),0) -> 0 | W156: =IF(AND(RSP!W30<>"",RSP!W30<>"n.a."),ABS(RSP!W30-SUMIF(PeriodTo,PeriodToYearly,RSP)),0) -> 0 | X156: =IF(AND(RSP!X30<>"",RSP!X30<>"n.a."),ABS(RSP!X30-SUMIF(PeriodTo,PeriodToYearly,RSP)),0) -> 0 | Y156: =IF(AND(RSP!Y30<>"",RSP!Y30<>"n.a."),ABS(RSP!Y30-SUMIF(PeriodTo,PeriodToYearly,RSP)),0) -> 0 | Z156: =IF(AND(RSP!Z30<>"",RSP!Z30<>"n.a."),ABS(RSP!Z30-SUMIF(PeriodTo,PeriodToYearly,RSP)),0) -> 0 | AA156: =IF(AND(RSP!AA30<>"",RSP!AA30<>"n.a."),ABS(RSP!AA30-SUMIF(PeriodTo,PeriodToYearly,RSP)),0) -> 0 | AB156: =IF(AND(RSP!AB30<>"",RSP!AB30<>"n.a."),ABS(RSP!AB30-SUMIF(PeriodTo,PeriodToYearly,RSP)),0) -> 0 | AC156: =IF(AND(RSP!AC30<>"",RSP!AC30<>"n.a."),ABS(RSP!AC30-SUMIF(PeriodTo,PeriodToYearly,RSP)),0) -> 0 | AD156: =IF(AND(RSP!AD30<>"",RSP!AD30<>"n.a."),ABS(RSP!AD30-SUMIF(PeriodTo,PeriodToYearly,RSP)),0) -> 0 | AE156: =IF(AND(RSP!AE30<>"",RSP!AE30<>"n.a."),ABS(RSP!AE30-SUMIF(PeriodTo,PeriodToYearly,RSP)),0) -> 0 | AF156: =IF(AND(RSP!AF30<>"",RSP!AF30<>"n.a."),ABS(RSP!AF30-SUMIF(PeriodTo,PeriodToYearly,RSP)),0) -> 0 | AG156: =IF(AND(RSP!AG30<>"",RSP!AG30<>"n.a."),ABS(RSP!AG30-SUMIF(PeriodTo,PeriodToYearly,RSP)),0) -> 0 | AH156: =IF(AND(RSP!AH30<>"",RSP!AH30<>"n.a."),ABS(RSP!AH30-SUMIF(PeriodTo,PeriodToYearly,RSP)),0) -> 0 | AI156: =IF(AND(RSP!AI30<>"",RSP!AI30<>"n.a."),ABS(RSP!AI30-SUMIF(PeriodTo,PeriodToYearly,RSP)),0) -> 0 | AJ156: =IF(AND(RSP!AJ30<>"",RSP!AJ30<>"n.a."),ABS(RSP!AJ30-SUMIF(PeriodTo,PeriodToYearly,RSP)),0) -> 0 | AK156: =IF(AND(RSP!AK30<>"",RSP!AK30<>"n.a."),ABS(RSP!AK30-SUMIF(PeriodTo,PeriodToYearly,RSP)),0) -> 0 | AL156: =IF(AND(RSP!AL30<>"",RSP!AL30<>"n.a."),ABS(RSP!AL30-SUMIF(PeriodTo,PeriodToYearly,RSP)),0) -> 0 | AM156: =IF(AND(RSP!AM30<>"",RSP!AM30<>"n.a."),ABS(RSP!AM30-SUMIF(PeriodTo,PeriodToYearly,RSP)),0) -> 0 | AN156: =IF(AND(RSP!AN30<>"",RSP!AN30<>"n.a."),ABS(RSP!AN30-SUMIF(PeriodTo,PeriodToYearly,RSP)),0) -> 0 | AO156: =IF(AND(RSP!AO30<>"",RSP!AO30<>"n.a."),ABS(RSP!AO30-SUMIF(PeriodTo,PeriodToYearly,RSP)),0) -> 0 | AP156: =IF(AND(RSP!AP30<>"",RSP!AP30<>"n.a."),ABS(RSP!AP30-SUMIF(PeriodTo,PeriodToYearly,RSP)),0) -> 0 | AQ156: =IF(AND(RSP!AQ30<>"",RSP!AQ30<>"n.a."),ABS(RSP!AQ30-SUMIF(PeriodTo,PeriodToYearly,RSP)),0) -> 0 | AR156: =IF(AND(RSP!AR30<>"",RSP!AR30<>"n.a."),ABS(RSP!AR30-SUMIF(PeriodTo,PeriodToYearly,RSP)),0) -> 0 | AS156: =IF(AND(RSP!AS30<>"",RSP!AS30<>"n.a."),ABS(RSP!AS30-SUMIF(PeriodTo,PeriodToYearly,RSP)),0) -> 0 | AT156: =IF(AND(RSP!AT30<>"",RSP!AT30<>"n.a."),ABS(RSP!AT30-SUMIF(PeriodTo,PeriodToYearly,RSP)),0) -> 0
G157: =+G156<Tolerance -> TRUE | H157: =+H156<Tolerance -> TRUE | I157: TRUE | J157: TRUE | K157: TRUE | L157: TRUE | M157: TRUE | N157: TRUE | O157: TRUE | P157: TRUE | Q157: TRUE | R157: TRUE | S157: TRUE | T157: TRUE | U157: TRUE | V157: TRUE | W157: TRUE | X157: TRUE | Y157: TRUE | Z157: TRUE | AA157: TRUE | AB157: TRUE | AC157: TRUE | AD157: TRUE | AE157: TRUE | AF157: TRUE | AG157: TRUE | AH157: TRUE | AI157: TRUE | AJ157: TRUE | AK157: TRUE | AL157: TRUE | AM157: TRUE | AN157: TRUE | AO157: TRUE | AP157: TRUE | AQ157: TRUE | AR157: TRUE | AS157: TRUE | AT157: TRUE
C159: Check Cash Waterfall - CF | E159: =+SUM(G159:AT159) -> 0 | F159: =+SUM(G159:AT159)<Tolerance -> TRUE | G159: =ROUND(+ABS(NetCashEop-CF!G97+SUM(CF!$G$95:G95)+SUM(Working!$G$1621:G1621)),0) -> 0 | H159: =ROUND(+ABS(NetCashEop-CF!H97+SUM(CF!$G$95:H95)+SUM(Working!$G$1621:H1621)),0) -> 0 | I159: =ROUND(+ABS(NetCashEop-CF!I97+SUM(CF!$G$95:I95)+SUM(Working!$G$1621:I1621)),0) -> 0 | J159: =ROUND(+ABS(NetCashEop-CF!J97+SUM(CF!$G$95:J95)+SUM(Working!$G$1621:J1621)),0) -> 0 | K159: =ROUND(+ABS(NetCashEop-CF!K97+SUM(CF!$G$95:K95)+SUM(Working!$G$1621:K1621)),0) -> 0 | L159: =ROUND(+ABS(NetCashEop-CF!L97+SUM(CF!$G$95:L95)+SUM(Working!$G$1621:L1621)),0) -> 0 | M159: =ROUND(+ABS(NetCashEop-CF!M97+SUM(CF!$G$95:M95)+SUM(Working!$G$1621:M1621)),0) -> 0 | N159: =ROUND(+ABS(NetCashEop-CF!N97+SUM(CF!$G$95:N95)+SUM(Working!$G$1621:N1621)),0) -> 0 | O159: =ROUND(+ABS(NetCashEop-CF!O97+SUM(CF!$G$95:O95)+SUM(Working!$G$1621:O1621)),0) -> 0 | P159: =ROUND(+ABS(NetCashEop-CF!P97+SUM(CF!$G$95:P95)+SUM(Working!$G$1621:P1621)),0) -> 0 | Q159: =ROUND(+ABS(NetCashEop-CF!Q97+SUM(CF!$G$95:Q95)+SUM(Working!$G$1621:Q1621)),0) -> 0 | R159: =ROUND(+ABS(NetCashEop-CF!R97+SUM(CF!$G$95:R95)+SUM(Working!$G$1621:R1621)),0) -> 0 | S159: =ROUND(+ABS(NetCashEop-CF!S97+SUM(CF!$G$95:S95)+SUM(Working!$G$1621:S1621)),0) -> 0 | T159: =ROUND(+ABS(NetCashEop-CF!T97+SUM(CF!$G$95:T95)+SUM(Working!$G$1621:T1621)),0) -> 0 | U159: =ROUND(+ABS(NetCashEop-CF!U97+SUM(CF!$G$95:U95)+SUM(Working!$G$1621:U1621)),0) -> 0 | V159: =ROUND(+ABS(NetCashEop-CF!V97+SUM(CF!$G$95:V95)+SUM(Working!$G$1621:V1621)),0) -> 0 | W159: =ROUND(+ABS(NetCashEop-CF!W97+SUM(CF!$G$95:W95)+SUM(Working!$G$1621:W1621)),0) -> 0 | X159: =ROUND(+ABS(NetCashEop-CF!X97+SUM(CF!$G$95:X95)+SUM(Working!$G$1621:X1621)),0) -> 0 | Y159: =ROUND(+ABS(NetCashEop-CF!Y97+SUM(CF!$G$95:Y95)+SUM(Working!$G$1621:Y1621)),0) -> 0 | Z159: =ROUND(+ABS(NetCashEop-CF!Z97+SUM(CF!$G$95:Z95)+SUM(Working!$G$1621:Z1621)),0) -> 0 | AA159: =ROUND(+ABS(NetCashEop-CF!AA97+SUM(CF!$G$95:AA95)+SUM(Working!$G$1621:AA1621)),0) -> 0 | AB159: =ROUND(+ABS(NetCashEop-CF!AB97+SUM(CF!$G$95:AB95)+SUM(Working!$G$1621:AB1621)),0) -> 0 | AC159: =ROUND(+ABS(NetCashEop-CF!AC97+SUM(CF!$G$95:AC95)+SUM(Working!$G$1621:AC1621)),0) -> 0 | AD159: =ROUND(+ABS(NetCashEop-CF!AD97+SUM(CF!$G$95:AD95)+SUM(Working!$G$1621:AD1621)),0) -> 0 | AE159: =ROUND(+ABS(NetCashEop-CF!AE97+SUM(CF!$G$95:AE95)+SUM(Working!$G$1621:AE1621)),0) -> 0 | AF159: =ROUND(+ABS(NetCashEop-CF!AF97+SUM(CF!$G$95:AF95)+SUM(Working!$G$1621:AF1621)),0) -> 0 | AG159: =ROUND(+ABS(NetCashEop-CF!AG97+SUM(CF!$G$95:AG95)+SUM(Working!$G$1621:AG1621)),0) -> 0 | AH159: =ROUND(+ABS(NetCashEop-CF!AH97+SUM(CF!$G$95:AH95)+SUM(Working!$G$1621:AH1621)),0) -> 0 | AI159: =ROUND(+ABS(NetCashEop-CF!AI97+SUM(CF!$G$95:AI95)+SUM(Working!$G$1621:AI1621)),0) -> 0 | AJ159: =ROUND(+ABS(NetCashEop-CF!AJ97+SUM(CF!$G$95:AJ95)+SUM(Working!$G$1621:AJ1621)),0) -> 0 | AK159: =ROUND(+ABS(NetCashEop-CF!AK97+SUM(CF!$G$95:AK95)+SUM(Working!$G$1621:AK1621)),0) -> 0 | AL159: =ROUND(+ABS(NetCashEop-CF!AL97+SUM(CF!$G$95:AL95)+SUM(Working!$G$1621:AL1621)),0) -> 0 | AM159: =ROUND(+ABS(NetCashEop-CF!AM97+SUM(CF!$G$95:AM95)+SUM(Working!$G$1621:AM1621)),0) -> 0 | AN159: =ROUND(+ABS(NetCashEop-CF!AN97+SUM(CF!$G$95:AN95)+SUM(Working!$G$1621:AN1621)),0) -> 0 | AO159: =ROUND(+ABS(NetCashEop-CF!AO97+SUM(CF!$G$95:AO95)+SUM(Working!$G$1621:AO1621)),0) -> 0 | AP159: =ROUND(+ABS(NetCashEop-CF!AP97+SUM(CF!$G$95:AP95)+SUM(Working!$G$1621:AP1621)),0) -> 0 | AQ159: =ROUND(+ABS(NetCashEop-CF!AQ97+SUM(CF!$G$95:AQ95)+SUM(Working!$G$1621:AQ1621)),0) -> 0 | AR159: =ROUND(+ABS(NetCashEop-CF!AR97+SUM(CF!$G$95:AR95)+SUM(Working!$G$1621:AR1621)),0) -> 0 | AS159: =ROUND(+ABS(NetCashEop-CF!AS97+SUM(CF!$G$95:AS95)+SUM(Working!$G$1621:AS1621)),0) -> 0 | AT159: =ROUND(+ABS(NetCashEop-CF!AT97+SUM(CF!$G$95:AT95)+SUM(Working!$G$1621:AT1621)),0) -> 0
G160: =+G159<Tolerance -> TRUE | H160: TRUE | I160: TRUE | J160: TRUE | K160: TRUE | L160: TRUE | M160: TRUE | N160: TRUE | O160: TRUE | P160: TRUE | Q160: TRUE | R160: TRUE | S160: TRUE | T160: TRUE | U160: TRUE | V160: TRUE | W160: TRUE | X160: TRUE | Y160: TRUE | Z160: TRUE | AA160: TRUE | AB160: TRUE | AC160: TRUE | AD160: TRUE | AE160: TRUE | AF160: TRUE | AG160: TRUE | AH160: TRUE | AI160: TRUE | AJ160: TRUE | AK160: TRUE | AL160: TRUE | AM160: =+AM159<Tolerance -> TRUE | AN160: TRUE | AO160: TRUE | AP160: TRUE | AQ160: TRUE | AR160: TRUE | AS160: TRUE | AT160: TRUE
C162: Check Cash Waterfall - Cash Flow | E162: =+SUM(G162:AT162) -> 0 | F162: =+SUM(G162:AT162)<Tolerance -> TRUE | G162: =+IF(ROUNDDOWN(NetCashEop-NetCashBalanceEop,0)<1.1,0,1) -> 0 | H162: 0 | I162: 0 | J162: 0 | K162: 0 | L162: 0 | M162: 0 | N162: 0 | O162: 0 | P162: 0 | Q162: 0 | R162: 0 | S162: 0 | T162: 0 | U162: 0 | V162: 0 | W162: 0 | X162: 0 | Y162: 0 | Z162: 0 | AA162: 0 | AB162: 0 | AC162: 0 | AD162: 0 | AE162: 0 | AF162: 0 | AG162: 0 | AH162: 0 | AI162: 0 | AJ162: 0 | AK162: 0 | AL162: 0 | AM162: 0 | AN162: 0 | AO162: 0 | AP162: 0 | AQ162: 0 | AR162: 0 | AS162: 0 | AT162: 0
G163: =+G162<Tolerance -> TRUE | H163: TRUE | I163: TRUE | J163: TRUE | K163: TRUE | L163: TRUE | M163: TRUE | N163: TRUE | O163: TRUE | P163: TRUE | Q163: TRUE | R163: TRUE | S163: TRUE | T163: TRUE | U163: TRUE | V163: TRUE | W163: TRUE | X163: TRUE | Y163: TRUE | Z163: TRUE | AA163: TRUE | AB163: TRUE | AC163: TRUE | AD163: TRUE | AE163: TRUE | AF163: TRUE | AG163: TRUE | AH163: TRUE | AI163: TRUE | AJ163: TRUE | AK163: TRUE | AL163: TRUE | AM163: =+AM162<Tolerance -> TRUE | AN163: TRUE | AO163: TRUE | AP163: TRUE | AQ163: TRUE | AR163: TRUE | AS163: TRUE | AT163: TRUE
C165: Check Accounting - P&L | E165: =+SUM(G165:AT165) -> 1.564621925e-07 | F165: =+SUM(G165:AT165)<Tolerance -> TRUE | G165: =+ABS(NetProfit-'P&L'!G57) -> 0 | H165: =+ABS(NetProfit-'P&L'!H57) -> 0 | I165: =+ABS(NetProfit-'P&L'!I57) -> 0 | J165: =+ABS(NetProfit-'P&L'!J57) -> 0 | K165: =+ABS(NetProfit-'P&L'!K57) -> 0 | L165: =+ABS(NetProfit-'P&L'!L57) -> 0 | M165: =+ABS(NetProfit-'P&L'!M57) -> 0 | N165: =+ABS(NetProfit-'P&L'!N57) -> 1.11758709e-08 | O165: =+ABS(NetProfit-'P&L'!O57) -> 0 | P165: =+ABS(NetProfit-'P&L'!P57) -> 7.450580597e-09 | Q165: =+ABS(NetProfit-'P&L'!Q57) -> 0 | R165: =+ABS(NetProfit-'P&L'!R57) -> 1.862645149e-09 | S165: =+ABS(NetProfit-'P&L'!S57) -> 0 | T165: =+ABS(NetProfit-'P&L'!T57) -> 0 | U165: =+ABS(NetProfit-'P&L'!U57) -> 7.450580597e-09 | V165: =+ABS(NetProfit-'P&L'!V57) -> 7.450580597e-09 | W165: =+ABS(NetProfit-'P&L'!W57) -> 0 | X165: =+ABS(NetProfit-'P&L'!X57) -> 0 | Y165: =+ABS(NetProfit-'P&L'!Y57) -> 3.725290298e-09 | Z165: =+ABS(NetProfit-'P&L'!Z57) -> 7.450580597e-09 | AA165: =+ABS(NetProfit-'P&L'!AA57) -> 1.490116119e-08 | AB165: =+ABS(NetProfit-'P&L'!AB57) -> 1.490116119e-08 | AC165: =+ABS(NetProfit-'P&L'!AC57) -> 7.450580597e-09 | AD165: =+ABS(NetProfit-'P&L'!AD57) -> 7.450580597e-09 | AE165: =+ABS(NetProfit-'P&L'!AE57) -> 0 | AF165: =+ABS(NetProfit-'P&L'!AF57) -> 3.725290298e-09 | AG165: =+ABS(NetProfit-'P&L'!AG57) -> 0 | AH165: =+ABS(NetProfit-'P&L'!AH57) -> 0 | AI165: =+ABS(NetProfit-'P&L'!AI57) -> 5.587935448e-09 | AJ165: =+ABS(NetProfit-'P&L'!AJ57) -> 9.313225746e-09 | AK165: =+ABS(NetProfit-'P&L'!AK57) -> 0 | AL165: =+ABS(NetProfit-'P&L'!AL57) -> 1.862645149e-09 | AM165: =+ABS(NetProfit-'P&L'!AM57) -> 1.303851604e-08 | AN165: =+ABS(NetProfit-'P&L'!AN57) -> 1.303851604e-08 | AO165: =+ABS(NetProfit-'P&L'!AO57) -> 3.725290298e-09 | AP165: =+ABS(NetProfit-'P&L'!AP57) -> 1.490116119e-08 | AQ165: =+ABS(NetProfit-'P&L'!AQ57) -> 0 | AR165: =+ABS(NetProfit-'P&L'!AR57) -> 0 | AS165: =+ABS(NetProfit-'P&L'!AS57) -> 0 | AT165: =+ABS(NetProfit-'P&L'!AT57) -> 0
G166: =+G165<Tolerance -> TRUE | H166: TRUE | I166: TRUE | J166: TRUE | K166: TRUE | L166: TRUE | M166: TRUE | N166: TRUE | O166: TRUE | P166: TRUE | Q166: TRUE | R166: TRUE | S166: TRUE | T166: TRUE | U166: TRUE | V166: TRUE | W166: TRUE | X166: TRUE | Y166: TRUE | Z166: TRUE | AA166: TRUE | AB166: TRUE | AC166: TRUE | AD166: TRUE | AE166: TRUE | AF166: TRUE | AG166: TRUE | AH166: TRUE | AI166: TRUE | AJ166: TRUE | AK166: TRUE | AL166: TRUE | AM166: =+AM165<Tolerance -> TRUE | AN166: TRUE | AO166: TRUE | AP166: TRUE | AQ166: TRUE | AR166: TRUE | AS166: TRUE | AT166: TRUE
C168: Check P&L 6m - Yearly | E168: =+SUM(G168:AT168) -> 6.98491931e-08 | F168: =+SUM(G168:AT168)<Tolerance -> TRUE | G168: =IF('P&L-Y'!G56<>"",ABS('P&L-Y'!G56-SUMIF(CurrentYear,YearForYearlyData,'P&L'!$G57:$AT57)),0) -> 0 | H168: =IF('P&L-Y'!H56<>"",ABS('P&L-Y'!H56-SUMIF(CurrentYear,YearForYearlyData,'P&L'!$G57:$AT57)),0) -> 9.313225746e-09 | I168: =IF('P&L-Y'!I56<>"",ABS('P&L-Y'!I56-SUMIF(CurrentYear,YearForYearlyData,'P&L'!$G57:$AT57)),0) -> 0 | J168: =IF('P&L-Y'!J56<>"",ABS('P&L-Y'!J56-SUMIF(CurrentYear,YearForYearlyData,'P&L'!$G57:$AT57)),0) -> 1.11758709e-08 | K168: =IF('P&L-Y'!K56<>"",ABS('P&L-Y'!K56-SUMIF(CurrentYear,YearForYearlyData,'P&L'!$G57:$AT57)),0) -> 1.11758709e-08 | L168: =IF('P&L-Y'!L56<>"",ABS('P&L-Y'!L56-SUMIF(CurrentYear,YearForYearlyData,'P&L'!$G57:$AT57)),0) -> 9.313225746e-10 | M168: =IF('P&L-Y'!M56<>"",ABS('P&L-Y'!M56-SUMIF(CurrentYear,YearForYearlyData,'P&L'!$G57:$AT57)),0) -> 1.862645149e-08 | N168: =IF('P&L-Y'!N56<>"",ABS('P&L-Y'!N56-SUMIF(CurrentYear,YearForYearlyData,'P&L'!$G57:$AT57)),0) -> 3.725290298e-09 | O168: =IF('P&L-Y'!O56<>"",ABS('P&L-Y'!O56-SUMIF(CurrentYear,YearForYearlyData,'P&L'!$G57:$AT57)),0) -> 0 | P168: =IF('P&L-Y'!P56<>"",ABS('P&L-Y'!P56-SUMIF(CurrentYear,YearForYearlyData,'P&L'!$G57:$AT57)),0) -> 0 | Q168: =IF('P&L-Y'!Q56<>"",ABS('P&L-Y'!Q56-SUMIF(CurrentYear,YearForYearlyData,'P&L'!$G57:$AT57)),0) -> 0 | R168: =IF('P&L-Y'!R56<>"",ABS('P&L-Y'!R56-SUMIF(CurrentYear,YearForYearlyData,'P&L'!$G57:$AT57)),0) -> 0 | S168: =IF('P&L-Y'!S56<>"",ABS('P&L-Y'!S56-SUMIF(CurrentYear,YearForYearlyData,'P&L'!$G57:$AT57)),0) -> 3.725290298e-09 | T168: =IF('P&L-Y'!T56<>"",ABS('P&L-Y'!T56-SUMIF(CurrentYear,YearForYearlyData,'P&L'!$G57:$AT57)),0) -> 3.725290298e-09 | U168: =IF('P&L-Y'!U56<>"",ABS('P&L-Y'!U56-SUMIF(CurrentYear,YearForYearlyData,'P&L'!$G57:$AT57)),0) -> 0 | V168: =IF('P&L-Y'!V56<>"",ABS('P&L-Y'!V56-SUMIF(CurrentYear,YearForYearlyData,'P&L'!$G57:$AT57)),0) -> 0 | W168: =IF('P&L-Y'!W56<>"",ABS('P&L-Y'!W56-SUMIF(CurrentYear,YearForYearlyData,'P&L'!$G57:$AT57)),0) -> 0 | X168: =IF('P&L-Y'!X56<>"",ABS('P&L-Y'!X56-SUMIF(CurrentYear,YearForYearlyData,'P&L'!$G57:$AT57)),0) -> 7.450580597e-09 | Y168: =IF('P&L-Y'!Y56<>"",ABS('P&L-Y'!Y56-SUMIF(CurrentYear,YearForYearlyData,'P&L'!$G57:$AT57)),0) -> 0 | Z168: =IF('P&L-Y'!Z56<>"",ABS('P&L-Y'!Z56-SUMIF(CurrentYear,YearForYearlyData,'P&L'!$G57:$AT57)),0) -> 0 | AA168: =IF('P&L-Y'!AA56<>"",ABS('P&L-Y'!AA56-SUMIF(CurrentYear,YearForYearlyData,'P&L'!$G57:$AT57)),0) -> 0 | AB168: =IF('P&L-Y'!AB56<>"",ABS('P&L-Y'!AB56-SUMIF(CurrentYear,YearForYearlyData,'P&L'!$G57:$AT57)),0) -> 0 | AC168: =IF('P&L-Y'!AC56<>"",ABS('P&L-Y'!AC56-SUMIF(CurrentYear,YearForYearlyData,'P&L'!$G57:$AT57)),0) -> 0 | AD168: =IF('P&L-Y'!AD56<>"",ABS('P&L-Y'!AD56-SUMIF(CurrentYear,YearForYearlyData,'P&L'!$G57:$AT57)),0) -> 0 | AE168: =IF('P&L-Y'!AE56<>"",ABS('P&L-Y'!AE56-SUMIF(CurrentYear,YearForYearlyData,'P&L'!$G57:$AT57)),0) -> 0 | AF168: =IF('P&L-Y'!AF56<>"",ABS('P&L-Y'!AF56-SUMIF(CurrentYear,YearForYearlyData,'P&L'!$G57:$AT57)),0) -> 0 | AG168: =IF('P&L-Y'!AG56<>"",ABS('P&L-Y'!AG56-SUMIF(CurrentYear,YearForYearlyData,'P&L'!$G57:$AT57)),0) -> 0 | AH168: =IF('P&L-Y'!AH56<>"",ABS('P&L-Y'!AH56-SUMIF(CurrentYear,YearForYearlyData,'P&L'!$G57:$AT57)),0) -> 0 | AI168: =IF('P&L-Y'!AI56<>"",ABS('P&L-Y'!AI56-SUMIF(CurrentYear,YearForYearlyData,'P&L'!$G57:$AT57)),0) -> 0 | AJ168: =IF('P&L-Y'!AJ56<>"",ABS('P&L-Y'!AJ56-SUMIF(CurrentYear,YearForYearlyData,'P&L'!$G57:$AT57)),0) -> 0 | AK168: =IF('P&L-Y'!AK56<>"",ABS('P&L-Y'!AK56-SUMIF(CurrentYear,YearForYearlyData,'P&L'!$G57:$AT57)),0) -> 0 | AL168: =IF('P&L-Y'!AL56<>"",ABS('P&L-Y'!AL56-SUMIF(CurrentYear,YearForYearlyData,'P&L'!$G57:$AT57)),0) -> 0 | AM168: =IF('P&L-Y'!AM56<>"",ABS('P&L-Y'!AM56-SUMIF(CurrentYear,YearForYearlyData,'P&L'!$G57:$AT57)),0) -> 0 | AN168: =IF('P&L-Y'!AN56<>"",ABS('P&L-Y'!AN56-SUMIF(CurrentYear,YearForYearlyData,'P&L'!$G57:$AT57)),0) -> 0 | AO168: =IF('P&L-Y'!AO56<>"",ABS('P&L-Y'!AO56-SUMIF(CurrentYear,YearForYearlyData,'P&L'!$G57:$AT57)),0) -> 0 | AP168: =IF('P&L-Y'!AP56<>"",ABS('P&L-Y'!AP56-SUMIF(CurrentYear,YearForYearlyData,'P&L'!$G57:$AT57)),0) -> 0 | AQ168: =IF('P&L-Y'!AQ56<>"",ABS('P&L-Y'!AQ56-SUMIF(CurrentYear,YearForYearlyData,'P&L'!$G57:$AT57)),0) -> 0 | AR168: =IF('P&L-Y'!AR56<>"",ABS('P&L-Y'!AR56-SUMIF(CurrentYear,YearForYearlyData,'P&L'!$G57:$AT57)),0) -> 0 | AS168: =IF('P&L-Y'!AS56<>"",ABS('P&L-Y'!AS56-SUMIF(CurrentYear,YearForYearlyData,'P&L'!$G57:$AT57)),0) -> 0 | AT168: =IF('P&L-Y'!AT56<>"",ABS('P&L-Y'!AT56-SUMIF(CurrentYear,YearForYearlyData,'P&L'!$G57:$AT57)),0) -> 0
G169: =+G168<Tolerance -> TRUE | H169: =+H168<Tolerance -> TRUE | I169: TRUE | J169: TRUE | K169: TRUE | L169: TRUE | M169: TRUE | N169: TRUE | O169: TRUE | P169: TRUE | Q169: TRUE | R169: TRUE | S169: TRUE | T169: TRUE | U169: TRUE | V169: TRUE | W169: TRUE | X169: TRUE | Y169: TRUE | Z169: TRUE | AA169: TRUE | AB169: TRUE | AC169: TRUE | AD169: TRUE | AE169: TRUE | AF169: TRUE | AG169: TRUE | AH169: TRUE | AI169: TRUE | AJ169: TRUE | AK169: TRUE | AL169: TRUE | AM169: TRUE | AN169: TRUE | AO169: TRUE | AP169: TRUE | AQ169: TRUE | AR169: TRUE | AS169: TRUE | AT169: TRUE
C171: Check CF 6m - Yearly | E171: =+SUM(G171:AT171) -> 2.272427082e-07 | F171: =+SUM(G171:AT171)<Tolerance -> TRUE | G171: =IF('CF-Y'!G93<>0,ABS('CF-Y'!G93-SUMIF(CurrentYear,YearForYearlyData,CF!$G93:$AT93)),0) -> 7.450580597e-09 | H171: =IF('CF-Y'!H93<>0,ABS('CF-Y'!H93-SUMIF(CurrentYear,YearForYearlyData,CF!$G93:$AT93)),0) -> 3.352761269e-08 | I171: =IF('CF-Y'!I93<>0,ABS('CF-Y'!I93-SUMIF(CurrentYear,YearForYearlyData,CF!$G93:$AT93)),0) -> 7.450580597e-09 | J171: =IF('CF-Y'!J93<>0,ABS('CF-Y'!J93-SUMIF(CurrentYear,YearForYearlyData,CF!$G93:$AT93)),0) -> 2.980232239e-08 | K171: =IF('CF-Y'!K93<>0,ABS('CF-Y'!K93-SUMIF(CurrentYear,YearForYearlyData,CF!$G93:$AT93)),0) -> 1.490116119e-08 | L171: =IF('CF-Y'!L93<>0,ABS('CF-Y'!L93-SUMIF(CurrentYear,YearForYearlyData,CF!$G93:$AT93)),0) -> 1.303851604e-08 | M171: =IF('CF-Y'!M93<>0,ABS('CF-Y'!M93-SUMIF(CurrentYear,YearForYearlyData,CF!$G93:$AT93)),0) -> 9.313225746e-09 | N171: =IF('CF-Y'!N93<>0,ABS('CF-Y'!N93-SUMIF(CurrentYear,YearForYearlyData,CF!$G93:$AT93)),0) -> 1.490116119e-08 | O171: =IF('CF-Y'!O93<>0,ABS('CF-Y'!O93-SUMIF(CurrentYear,YearForYearlyData,CF!$G93:$AT93)),0) -> 1.11758709e-08 | P171: =IF('CF-Y'!P93<>0,ABS('CF-Y'!P93-SUMIF(CurrentYear,YearForYearlyData,CF!$G93:$AT93)),0) -> 3.725290298e-09 | Q171: =IF('CF-Y'!Q93<>0,ABS('CF-Y'!Q93-SUMIF(CurrentYear,YearForYearlyData,CF!$G93:$AT93)),0) -> 1.11758709e-08 | R171: =IF('CF-Y'!R93<>0,ABS('CF-Y'!R93-SUMIF(CurrentYear,YearForYearlyData,CF!$G93:$AT93)),0) -> 3.725290298e-09 | S171: =IF('CF-Y'!S93<>0,ABS('CF-Y'!S93-SUMIF(CurrentYear,YearForYearlyData,CF!$G93:$AT93)),0) -> 3.725290298e-09 | T171: =IF('CF-Y'!T93<>0,ABS('CF-Y'!T93-SUMIF(CurrentYear,YearForYearlyData,CF!$G93:$AT93)),0) -> 0 | U171: =IF('CF-Y'!U93<>0,ABS('CF-Y'!U93-SUMIF(CurrentYear,YearForYearlyData,CF!$G93:$AT93)),0) -> 3.725290298e-09 | V171: =IF('CF-Y'!V93<>0,ABS('CF-Y'!V93-SUMIF(CurrentYear,YearForYearlyData,CF!$G93:$AT93)),0) -> 1.490116119e-08 | W171: =IF('CF-Y'!W93<>0,ABS('CF-Y'!W93-SUMIF(CurrentYear,YearForYearlyData,CF!$G93:$AT93)),0) -> 1.490116119e-08 | X171: =IF('CF-Y'!X93<>0,ABS('CF-Y'!X93-SUMIF(CurrentYear,YearForYearlyData,CF!$G93:$AT93)),0) -> 2.980232239e-08 | Y171: =IF('CF-Y'!Y93<>0,ABS('CF-Y'!Y93-SUMIF(CurrentYear,YearForYearlyData,CF!$G93:$AT93)),0) -> 0 | Z171: =IF('CF-Y'!Z93<>0,ABS('CF-Y'!Z93-SUMIF(CurrentYear,YearForYearlyData,CF!$G93:$AT93)),0) -> 0 | AA171: =IF('CF-Y'!AA93<>0,ABS('CF-Y'!AA93-SUMIF(CurrentYear,YearForYearlyData,CF!$G93:$AT93)),0) -> 0 | AB171: =IF('CF-Y'!AB93<>0,ABS('CF-Y'!AB93-SUMIF(CurrentYear,YearForYearlyData,CF!$G93:$AT93)),0) -> 0 | AC171: =IF('CF-Y'!AC93<>0,ABS('CF-Y'!AC93-SUMIF(CurrentYear,YearForYearlyData,CF!$G93:$AT93)),0) -> 0 | AD171: =IF('CF-Y'!AD93<>0,ABS('CF-Y'!AD93-SUMIF(CurrentYear,YearForYearlyData,CF!$G93:$AT93)),0) -> 0 | AE171: =IF('CF-Y'!AE93<>0,ABS('CF-Y'!AE93-SUMIF(CurrentYear,YearForYearlyData,CF!$G93:$AT93)),0) -> 0 | AF171: =IF('CF-Y'!AF93<>0,ABS('CF-Y'!AF93-SUMIF(CurrentYear,YearForYearlyData,CF!$G93:$AT93)),0) -> 0 | AG171: =IF('CF-Y'!AG93<>0,ABS('CF-Y'!AG93-SUMIF(CurrentYear,YearForYearlyData,CF!$G93:$AT93)),0) -> 0 | AH171: =IF('CF-Y'!AH93<>0,ABS('CF-Y'!AH93-SUMIF(CurrentYear,YearForYearlyData,CF!$G93:$AT93)),0) -> 0 | AI171: =IF('CF-Y'!AI93<>0,ABS('CF-Y'!AI93-SUMIF(CurrentYear,YearForYearlyData,CF!$G93:$AT93)),0) -> 0 | AJ171: =IF('CF-Y'!AJ93<>0,ABS('CF-Y'!AJ93-SUMIF(CurrentYear,YearForYearlyData,CF!$G93:$AT93)),0) -> 0 | AK171: =IF('CF-Y'!AK93<>0,ABS('CF-Y'!AK93-SUMIF(CurrentYear,YearForYearlyData,CF!$G93:$AT93)),0) -> 0 | AL171: =IF('CF-Y'!AL93<>0,ABS('CF-Y'!AL93-SUMIF(CurrentYear,YearForYearlyData,CF!$G93:$AT93)),0) -> 0 | AM171: =IF('CF-Y'!AM93<>0,ABS('CF-Y'!AM93-SUMIF(CurrentYear,YearForYearlyData,CF!$G93:$AT93)),0) -> 0 | AN171: =IF('CF-Y'!AN93<>0,ABS('CF-Y'!AN93-SUMIF(CurrentYear,YearForYearlyData,CF!$G93:$AT93)),0) -> 0 | AO171: =IF('CF-Y'!AO93<>0,ABS('CF-Y'!AO93-SUMIF(CurrentYear,YearForYearlyData,CF!$G93:$AT93)),0) -> 0 | AP171: =IF('CF-Y'!AP93<>0,ABS('CF-Y'!AP93-SUMIF(CurrentYear,YearForYearlyData,CF!$G93:$AT93)),0) -> 0 | AQ171: =IF('CF-Y'!AQ93<>0,ABS('CF-Y'!AQ93-SUMIF(CurrentYear,YearForYearlyData,CF!$G93:$AT93)),0) -> 0 | AR171: =IF('CF-Y'!AR93<>0,ABS('CF-Y'!AR93-SUMIF(CurrentYear,YearForYearlyData,CF!$G93:$AT93)),0) -> 0 | AS171: =IF('CF-Y'!AS93<>0,ABS('CF-Y'!AS93-SUMIF(CurrentYear,YearForYearlyData,CF!$G93:$AT93)),0) -> 0 | AT171: =IF('CF-Y'!AT93<>0,ABS('CF-Y'!AT93-SUMIF(CurrentYear,YearForYearlyData,CF!$G93:$AT93)),0) -> 0
G172: =+G171<Tolerance -> TRUE | H172: TRUE | I172: TRUE | J172: TRUE | K172: TRUE | L172: TRUE | M172: TRUE | N172: TRUE | O172: TRUE | P172: TRUE | Q172: TRUE | R172: TRUE | S172: TRUE | T172: TRUE | U172: TRUE | V172: TRUE | W172: TRUE | X172: TRUE | Y172: TRUE | Z172: TRUE | AA172: TRUE | AB172: TRUE | AC172: TRUE | AD172: TRUE | AE172: TRUE | AF172: TRUE | AG172: TRUE | AH172: TRUE | AI172: TRUE | AJ172: TRUE | AK172: TRUE | AL172: TRUE | AM172: TRUE | AN172: TRUE | AO172: TRUE | AP172: TRUE | AQ172: TRUE | AR172: TRUE | AS172: TRUE | AT172: TRUE
C174: Check Balance Sheet 6m | E174: =+SUM(G174:AT174) -> 0 | F174: =+SUM(G174:AT174)<Tolerance -> TRUE | G174: =+ABS(ROUND((BS!G29-BS!G59),2)) -> 0 | H174: =+ABS(ROUND((BS!H29-BS!H59),2)) -> 0 | I174: =+ABS(ROUND((BS!I29-BS!I59),2)) -> 0 | J174: =+ABS(ROUND((BS!J29-BS!J59),2)) -> 0 | K174: =+ABS(ROUND((BS!K29-BS!K59),2)) -> 0 | L174: =+ABS(ROUND((BS!L29-BS!L59),2)) -> 0 | M174: =+ABS(ROUND((BS!M29-BS!M59),2)) -> 0 | N174: =+ABS(ROUND((BS!N29-BS!N59),2)) -> 0 | O174: =+ABS(ROUND((BS!O29-BS!O59),2)) -> 0 | P174: =+ABS(ROUND((BS!P29-BS!P59),2)) -> 0 | Q174: =+ABS(ROUND((BS!Q29-BS!Q59),2)) -> 0 | R174: =+ABS(ROUND((BS!R29-BS!R59),2)) -> 0 | S174: =+ABS(ROUND((BS!S29-BS!S59),2)) -> 0 | T174: =+ABS(ROUND((BS!T29-BS!T59),2)) -> 0 | U174: =+ABS(ROUND((BS!U29-BS!U59),2)) -> 0 | V174: =+ABS(ROUND((BS!V29-BS!V59),2)) -> 0 | W174: =+ABS(ROUND((BS!W29-BS!W59),2)) -> 0 | X174: =+ABS(ROUND((BS!X29-BS!X59),2)) -> 0 | Y174: =+ABS(ROUND((BS!Y29-BS!Y59),2)) -> 0 | Z174: =+ABS(ROUND((BS!Z29-BS!Z59),2)) -> 0 | AA174: =+ABS(ROUND((BS!AA29-BS!AA59),2)) -> 0 | AB174: =+ABS(ROUND((BS!AB29-BS!AB59),2)) -> 0 | AC174: =+ABS(ROUND((BS!AC29-BS!AC59),2)) -> 0 | AD174: =+ABS(ROUND((BS!AD29-BS!AD59),2)) -> 0 | AE174: =+ABS(ROUND((BS!AE29-BS!AE59),2)) -> 0 | AF174: =+ABS(ROUND((BS!AF29-BS!AF59),2)) -> 0 | AG174: =+ABS(ROUND((BS!AG29-BS!AG59),2)) -> 0 | AH174: =+ABS(ROUND((BS!AH29-BS!AH59),2)) -> 0 | AI174: =+ABS(ROUND((BS!AI29-BS!AI59),2)) -> 0 | AJ174: =+ABS(ROUND((BS!AJ29-BS!AJ59),2)) -> 0 | AK174: =+ABS(ROUND((BS!AK29-BS!AK59),2)) -> 0 | AL174: =+ABS(ROUND((BS!AL29-BS!AL59),2)) -> 0 | AM174: =+ABS(ROUND((BS!AM29-BS!AM59),2)) -> 0 | AN174: =+ABS(ROUND((BS!AN29-BS!AN59),2)) -> 0 | AO174: =+ABS(ROUND((BS!AO29-BS!AO59),2)) -> 0 | AP174: =+ABS(ROUND((BS!AP29-BS!AP59),2)) -> 0 | AQ174: =+ABS(ROUND((BS!AQ29-BS!AQ59),2)) -> 0 | AR174: =+ABS(ROUND((BS!AR29-BS!AR59),2)) -> 0 | AS174: =+ABS(ROUND((BS!AS29-BS!AS59),2)) -> 0 | AT174: =+ABS(ROUND((BS!AT29-BS!AT59),2)) -> 0
G175: =+G174<Tolerance -> TRUE | H175: =+H174<Tolerance -> TRUE | I175: TRUE | J175: TRUE | K175: TRUE | L175: TRUE | M175: TRUE | N175: TRUE | O175: TRUE | P175: TRUE | Q175: TRUE | R175: TRUE | S175: TRUE | T175: TRUE | U175: TRUE | V175: TRUE | W175: TRUE | X175: TRUE | Y175: TRUE | Z175: TRUE | AA175: TRUE | AB175: TRUE | AC175: TRUE | AD175: TRUE | AE175: TRUE | AF175: TRUE | AG175: TRUE | AH175: TRUE | AI175: TRUE | AJ175: TRUE | AK175: TRUE | AL175: TRUE | AM175: TRUE | AN175: TRUE | AO175: TRUE | AP175: TRUE | AQ175: TRUE | AR175: TRUE | AS175: TRUE | AT175: TRUE
C177: Check Balance Sheet Yearly | E177: =+SUM(G177:AT177) -> 4.465691745e-06 | F177: =+SUM(G177:AT177)<Tolerance -> TRUE | G177: =+ABS('BS-Y'!G29-'BS-Y'!G59) -> 0 | H177: =+ABS('BS-Y'!H29-'BS-Y'!H59) -> 1.192092896e-07 | I177: =+ABS('BS-Y'!I29-'BS-Y'!I59) -> 1.192092896e-07 | J177: =+ABS('BS-Y'!J29-'BS-Y'!J59) -> 2.384185791e-07 | K177: =+ABS('BS-Y'!K29-'BS-Y'!K59) -> 1.192092896e-07 | L177: =+ABS('BS-Y'!L29-'BS-Y'!L59) -> 3.576278687e-07 | M177: =+ABS('BS-Y'!M29-'BS-Y'!M59) -> 2.384185791e-07 | N177: =+ABS('BS-Y'!N29-'BS-Y'!N59) -> 3.576278687e-07 | O177: =+ABS('BS-Y'!O29-'BS-Y'!O59) -> 2.384185791e-07 | P177: =+ABS('BS-Y'!P29-'BS-Y'!P59) -> 4.768371582e-07 | Q177: =+ABS('BS-Y'!Q29-'BS-Y'!Q59) -> 3.576278687e-07 | R177: =+ABS('BS-Y'!R29-'BS-Y'!R59) -> 2.384185791e-07 | S177: =+ABS('BS-Y'!S29-'BS-Y'!S59) -> 1.192092896e-07 | T177: =+ABS('BS-Y'!T29-'BS-Y'!T59) -> 2.384185791e-07 | U177: =+ABS('BS-Y'!U29-'BS-Y'!U59) -> 1.192092896e-07 | V177: =+ABS('BS-Y'!V29-'BS-Y'!V59) -> 1.788139343e-07 | W177: =+ABS('BS-Y'!W29-'BS-Y'!W59) -> 2.086162567e-07 | X177: =+ABS('BS-Y'!X29-'BS-Y'!X59) -> 2.682209015e-07 | Y177: =+ABS('BS-Y'!Y29-'BS-Y'!Y59) -> 2.360902727e-07 | Z177: =+ABS('BS-Y'!Z29-'BS-Y'!Z59) -> 2.360902727e-07 | AA177: =+ABS('BS-Y'!AA29-'BS-Y'!AA59) -> 0 | AB177: =+ABS('BS-Y'!AB29-'BS-Y'!AB59) -> 0 | AC177: =+ABS('BS-Y'!AC29-'BS-Y'!AC59) -> 0 | AD177: =+ABS('BS-Y'!AD29-'BS-Y'!AD59) -> 0 | AE177: =+ABS('BS-Y'!AE29-'BS-Y'!AE59) -> 0 | AF177: =+ABS('BS-Y'!AF29-'BS-Y'!AF59) -> 0 | AG177: =+ABS('BS-Y'!AG29-'BS-Y'!AG59) -> 0 | AH177: =+ABS('BS-Y'!AH29-'BS-Y'!AH59) -> 0 | AI177: =+ABS('BS-Y'!AI29-'BS-Y'!AI59) -> 0 | AJ177: =+ABS('BS-Y'!AJ29-'BS-Y'!AJ59) -> 0 | AK177: =+ABS('BS-Y'!AK29-'BS-Y'!AK59) -> 0 | AL177: =+ABS('BS-Y'!AL29-'BS-Y'!AL59) -> 0 | AM177: =+ABS('BS-Y'!AM29-'BS-Y'!AM59) -> 0 | AN177: =+ABS('BS-Y'!AN29-'BS-Y'!AN59) -> 0 | AO177: =+ABS('BS-Y'!AO29-'BS-Y'!AO59) -> 0 | AP177: =+ABS('BS-Y'!AP29-'BS-Y'!AP59) -> 0 | AQ177: =+ABS('BS-Y'!AQ29-'BS-Y'!AQ59) -> 0 | AR177: =+ABS('BS-Y'!AR29-'BS-Y'!AR59) -> 0 | AS177: =+ABS('BS-Y'!AS29-'BS-Y'!AS59) -> 0 | AT177: =+ABS('BS-Y'!AT29-'BS-Y'!AT59) -> 0
G178: =+G177<Tolerance -> TRUE | H178: =+H177<Tolerance -> TRUE | I178: TRUE | J178: TRUE | K178: TRUE | L178: TRUE | M178: TRUE | N178: TRUE | O178: TRUE | P178: TRUE | Q178: TRUE | R178: TRUE | S178: TRUE | T178: TRUE | U178: TRUE | V178: TRUE | W178: TRUE | X178: TRUE | Y178: TRUE | Z178: TRUE | AA178: TRUE | AB178: TRUE | AC178: TRUE | AD178: TRUE | AE178: TRUE | AF178: TRUE | AG178: TRUE | AH178: TRUE | AI178: TRUE | AJ178: TRUE | AK178: TRUE | AL178: TRUE | AM178: TRUE | AN178: TRUE | AO178: TRUE | AP178: TRUE | AQ178: TRUE | AR178: TRUE | AS178: TRUE | AT178: TRUE
C180: Check BS 6m - Yearly | E180: =+SUM(G180:AT180) -> 0 | F180: =+SUM(G180:AT180)<Tolerance -> TRUE | G180: =IF('BS-Y'!G59<>"",ABS('BS-Y'!G59-SUMIF(PeriodTo,PeriodToYearly,BS!$G59:$AT59)),0) -> 0 | H180: =IF('BS-Y'!H59<>"",ABS('BS-Y'!H59-SUMIF(PeriodTo,PeriodToYearly,BS!$G59:$AT59)),0) -> 0 | I180: =IF('BS-Y'!I59<>"",ABS('BS-Y'!I59-SUMIF(PeriodTo,PeriodToYearly,BS!$G59:$AT59)),0) -> 0 | J180: =IF('BS-Y'!J59<>"",ABS('BS-Y'!J59-SUMIF(PeriodTo,PeriodToYearly,BS!$G59:$AT59)),0) -> 0 | K180: =IF('BS-Y'!K59<>"",ABS('BS-Y'!K59-SUMIF(PeriodTo,PeriodToYearly,BS!$G59:$AT59)),0) -> 0 | L180: =IF('BS-Y'!L59<>"",ABS('BS-Y'!L59-SUMIF(PeriodTo,PeriodToYearly,BS!$G59:$AT59)),0) -> 0 | M180: =IF('BS-Y'!M59<>"",ABS('BS-Y'!M59-SUMIF(PeriodTo,PeriodToYearly,BS!$G59:$AT59)),0) -> 0 | N180: =IF('BS-Y'!N59<>"",ABS('BS-Y'!N59-SUMIF(PeriodTo,PeriodToYearly,BS!$G59:$AT59)),0) -> 0 | O180: =IF('BS-Y'!O59<>"",ABS('BS-Y'!O59-SUMIF(PeriodTo,PeriodToYearly,BS!$G59:$AT59)),0) -> 0 | P180: =IF('BS-Y'!P59<>"",ABS('BS-Y'!P59-SUMIF(PeriodTo,PeriodToYearly,BS!$G59:$AT59)),0) -> 0 | Q180: =IF('BS-Y'!Q59<>"",ABS('BS-Y'!Q59-SUMIF(PeriodTo,PeriodToYearly,BS!$G59:$AT59)),0) -> 0 | R180: =IF('BS-Y'!R59<>"",ABS('BS-Y'!R59-SUMIF(PeriodTo,PeriodToYearly,BS!$G59:$AT59)),0) -> 0 | S180: =IF('BS-Y'!S59<>"",ABS('BS-Y'!S59-SUMIF(PeriodTo,PeriodToYearly,BS!$G59:$AT59)),0) -> 0 | T180: =IF('BS-Y'!T59<>"",ABS('BS-Y'!T59-SUMIF(PeriodTo,PeriodToYearly,BS!$G59:$AT59)),0) -> 0 | U180: =IF('BS-Y'!U59<>"",ABS('BS-Y'!U59-SUMIF(PeriodTo,PeriodToYearly,BS!$G59:$AT59)),0) -> 0 | V180: =IF('BS-Y'!V59<>"",ABS('BS-Y'!V59-SUMIF(PeriodTo,PeriodToYearly,BS!$G59:$AT59)),0) -> 0 | W180: =IF('BS-Y'!W59<>"",ABS('BS-Y'!W59-SUMIF(PeriodTo,PeriodToYearly,BS!$G59:$AT59)),0) -> 0 | X180: =IF('BS-Y'!X59<>"",ABS('BS-Y'!X59-SUMIF(PeriodTo,PeriodToYearly,BS!$G59:$AT59)),0) -> 0 | Y180: =IF('BS-Y'!Y59<>"",ABS('BS-Y'!Y59-SUMIF(PeriodTo,PeriodToYearly,BS!$G59:$AT59)),0) -> 0 | Z180: =IF('BS-Y'!Z59<>"",ABS('BS-Y'!Z59-SUMIF(PeriodTo,PeriodToYearly,BS!$G59:$AT59)),0) -> 0 | AA180: =IF('BS-Y'!AA59<>"",ABS('BS-Y'!AA59-SUMIF(PeriodTo,PeriodToYearly,BS!$G59:$AT59)),0) -> 0 | AB180: =IF('BS-Y'!AB59<>"",ABS('BS-Y'!AB59-SUMIF(PeriodTo,PeriodToYearly,BS!$G59:$AT59)),0) -> 0 | AC180: =IF('BS-Y'!AC59<>"",ABS('BS-Y'!AC59-SUMIF(PeriodTo,PeriodToYearly,BS!$G59:$AT59)),0) -> 0 | AD180: =IF('BS-Y'!AD59<>"",ABS('BS-Y'!AD59-SUMIF(PeriodTo,PeriodToYearly,BS!$G59:$AT59)),0) -> 0 | AE180: =IF('BS-Y'!AE59<>"",ABS('BS-Y'!AE59-SUMIF(PeriodTo,PeriodToYearly,BS!$G59:$AT59)),0) -> 0 | AF180: =IF('BS-Y'!AF59<>"",ABS('BS-Y'!AF59-SUMIF(PeriodTo,PeriodToYearly,BS!$G59:$AT59)),0) -> 0 | AG180: =IF('BS-Y'!AG59<>"",ABS('BS-Y'!AG59-SUMIF(PeriodTo,PeriodToYearly,BS!$G59:$AT59)),0) -> 0 | AH180: =IF('BS-Y'!AH59<>"",ABS('BS-Y'!AH59-SUMIF(PeriodTo,PeriodToYearly,BS!$G59:$AT59)),0) -> 0 | AI180: =IF('BS-Y'!AI59<>"",ABS('BS-Y'!AI59-SUMIF(PeriodTo,PeriodToYearly,BS!$G59:$AT59)),0) -> 0 | AJ180: =IF('BS-Y'!AJ59<>"",ABS('BS-Y'!AJ59-SUMIF(PeriodTo,PeriodToYearly,BS!$G59:$AT59)),0) -> 0 | AK180: =IF('BS-Y'!AK59<>"",ABS('BS-Y'!AK59-SUMIF(PeriodTo,PeriodToYearly,BS!$G59:$AT59)),0) -> 0 | AL180: =IF('BS-Y'!AL59<>"",ABS('BS-Y'!AL59-SUMIF(PeriodTo,PeriodToYearly,BS!$G59:$AT59)),0) -> 0 | AM180: =IF('BS-Y'!AM59<>"",ABS('BS-Y'!AM59-SUMIF(PeriodTo,PeriodToYearly,BS!$G59:$AT59)),0) -> 0 | AN180: =IF('BS-Y'!AN59<>"",ABS('BS-Y'!AN59-SUMIF(PeriodTo,PeriodToYearly,BS!$G59:$AT59)),0) -> 0 | AO180: =IF('BS-Y'!AO59<>"",ABS('BS-Y'!AO59-SUMIF(PeriodTo,PeriodToYearly,BS!$G59:$AT59)),0) -> 0 | AP180: =IF('BS-Y'!AP59<>"",ABS('BS-Y'!AP59-SUMIF(PeriodTo,PeriodToYearly,BS!$G59:$AT59)),0) -> 0 | AQ180: =IF('BS-Y'!AQ59<>"",ABS('BS-Y'!AQ59-SUMIF(PeriodTo,PeriodToYearly,BS!$G59:$AT59)),0) -> 0 | AR180: =IF('BS-Y'!AR59<>"",ABS('BS-Y'!AR59-SUMIF(PeriodTo,PeriodToYearly,BS!$G59:$AT59)),0) -> 0 | AS180: =IF('BS-Y'!AS59<>"",ABS('BS-Y'!AS59-SUMIF(PeriodTo,PeriodToYearly,BS!$G59:$AT59)),0) -> 0 | AT180: =IF('BS-Y'!AT59<>"",ABS('BS-Y'!AT59-SUMIF(PeriodTo,PeriodToYearly,BS!$G59:$AT59)),0) -> 0
G181: =+G180<Tolerance -> TRUE | H181: TRUE | I181: TRUE | J181: TRUE | K181: TRUE | L181: TRUE | M181: TRUE | N181: TRUE | O181: TRUE | P181: TRUE | Q181: TRUE | R181: TRUE | S181: TRUE | T181: TRUE | U181: TRUE | V181: TRUE | W181: TRUE | X181: TRUE | Y181: TRUE | Z181: TRUE | AA181: TRUE | AB181: TRUE | AC181: =+AC180<Tolerance -> TRUE | AD181: TRUE | AE181: TRUE | AF181: TRUE | AG181: TRUE | AH181: TRUE | AI181: TRUE | AJ181: TRUE | AK181: TRUE | AL181: TRUE | AM181: TRUE | AN181: TRUE | AO181: TRUE | AP181: TRUE | AQ181: TRUE | AR181: TRUE | AS181: TRUE | AT181: TRUE
C183: Check Maximum Permitted Loss | F183: =AND(G184:AT184) -> TRUE | G183: =+LossToEquityRatio -> 0 | H183: 0 | I183: 0 | J183: 0 | K183: 0 | L183: 0 | M183: 0 | N183: 0 | O183: 0 | P183: 0 | Q183: 0 | R183: 0 | S183: 0 | T183: 0 | U183: 0 | V183: 0 | W183: 0 | X183: 0 | Y183: 0 | Z183: 0 | AA183: 0 | AB183: 0 | AC183: 0 | AD183: 0 | AE183: 0 | AF183: 0 | AG183: 0 | AH183: 0 | AI183: 0 | AJ183: 0 | AK183: 0 | AL183: 0 | AM183: =+LossToEquityRatio -> 0 | AN183: 0 | AO183: 0 | AP183: 0 | AQ183: 0 | AR183: 0 | AS183: 0 | AT183: 0
G184: =CheckMaximumLoss -> TRUE | H184: TRUE | I184: TRUE | J184: TRUE | K184: TRUE | L184: TRUE | M184: TRUE | N184: TRUE | O184: TRUE | P184: TRUE | Q184: TRUE | R184: TRUE | S184: TRUE | T184: TRUE | U184: TRUE | V184: TRUE | W184: TRUE | X184: TRUE | Y184: TRUE | Z184: TRUE | AA184: TRUE | AB184: TRUE | AC184: TRUE | AD184: TRUE | AE184: TRUE | AF184: TRUE | AG184: TRUE | AH184: TRUE | AI184: TRUE | AJ184: TRUE | AK184: TRUE | AL184: TRUE | AM184: =CheckMaximumLoss -> TRUE | AN184: TRUE | AO184: TRUE | AP184: TRUE | AQ184: TRUE | AR184: TRUE | AS184: TRUE | AT184: TRUE
C186: Check Initial Balance Sheet | F186: =+ABS(InitBSTotalAssetsIn-InitBSTotalNWLIn)<Tolerance -> TRUE

Sheet ScenarioManager
B2: Concessioni Autostradali Venete CAV S.p.A.
B3: =IF(SensSelectSculptingIn="Yes","Scenario: ","Sensitivity: ")&SensSelectNameIn -> Sensitivity: Final Pricing (05.04.16)
B4: Sheet: ScenarioManager
B5: =+ErrorCounter -> Errors: 0 out of 43
C8: Scenario and Sensitivity Manager
C12: Sensitivity/Scenario Number | D12: SensSelectNumberIn | E12: 1 | F12: -1 | G12: =+F12+1 -> 0 | H12: 1 | I12: 2 | J12: 3 | K12: 4 | L12: 5 | M12: 6 | N12: 7 | O12: 8 | P12: 9 | Q12: 10 | R12: 11 | S12: 12 | T12: 13 | U12: 14 | V12: 15 | W12: 16 | X12: 17 | Y12: 18 | Z12: 19 | AA12: 20 | AB12: 21 | AC12: 22 | AD12: 23 | AE12: 24 | AF12: 25 | AG12: 26 | AH12: 27 | AI12: 28 | AJ12: 29 | AK12: 30 | AL12: 31 | AM12: 32 | AN12: 33 | AO12: 34 | AP12: 35 | AQ12: 36 | AR12: 37 | AS12: 38 | AT12: 39 | AU12: SensAssumptNumberIn
C13: Sensitivity/Scenario Name | D13: SensSelectNameIn | E13: =+INDEX(SensAssumptNameIn,SensSelectNumberIn+1) -> Final Pricing (05.04.16) | G13: Dry-Run / Rep.Prof. (04.04.16) | H13: Final Pricing (05.04.16) | AU13: SensAssumptNameIn
C14: Switch Debt Sculpting | D14: SensSelectSculptingIn | E14: =+INDEX(SensAssumptSculptingIn,SensSelectNumberIn+1) -> No | G14: Yes | H14: No | AU14: SensAssumptSculptingIn
C15: Traffic Forecast | D15: SensSelectTrafficForecastIn | E15: =+INDEX(SensAssumptTrafficForecastIn,SensSelectNumberIn+1) -> SDGCentral | G15: SDGCentral | H15: SDGCentral | AU15: SensAssumptTrafficForecastIn
C16: Traffic Flat Reduction (vs selected forecast) (since 2016) | D16: SensSelectTrafficFlatReductionIn | E16: =+INDEX(SensAssumptTrafficFlatReductionIn,SensSelectNumberIn+1) -> 0 | G16: 0 | H16: 0 | AU16: SensAssumptTrafficFlatReductionIn
C17: Traffic Yearly Growth Rate (vs selected forecast) (since 2017) | D17: SensSelectTrafficYearlyGrowthRateIn | E17: =+INDEX(SensAssumptTrafficYearlyGrowthRateIn,SensSelectNumberIn+1) -> 0 | G17: 0 | H17: 0 | AU17: SensAssumptTrafficYearlyGrowthRateIn
C18: Switch 0% Inflation | D18: SensSelectSwitch0InflationIn | E18: =+INDEX(SensAssumptSwitch0InflationIn,SensSelectNumberIn+1) -> No | G18: No | H18: No | AU18: SensAssumptSwitch0InflationIn
C19: Switch Moody's Inflation - Revenues | D19: SensSelectSwitchMoodysRevInflationIn | E19: =+INDEX(SensAssumptSwitchMoodysRevInflationIn,SensSelectNumberIn+1) -> No | G19: No | H19: No | AU19: SensAssumptSwitchMoodysRevInflationIn
C20: Switch Moody's Inflation - Opex | D20: SensSelectSwitchMoodysOpexInflationIn | E20: =+INDEX(SensAssumptSwitchMoodysOpexInflationIn,SensSelectNumberIn+1) -> No | G20: No | H20: No | AU20: SensAssumptSwitchMoodysOpexInflationIn
C21: Revenues Inflation Flat Decrease | D21: SensSelectRevInflFlatDecreaseIn | E21: =+INDEX(SensAssumptInflationFlatDecreaseIn,SensSelectNumberIn+1) -> 0 | G21: 0 | H21: 0 | AU21: SensAssumptInflationFlatDecreaseIn
C22: Switch Flat Tariff | D22: SensSelectSwitchFlatTariffIn | E22: =+INDEX(SensAssumptSwitchFlatTariffIn,SensSelectNumberIn+1) -> No | G22: No | H22: No | AU22: SensAssumptSwitchFlatTariffIn
C23: Revenues Flat Decrease (since 2016) | D23: SensSelectRevenuesFlatDecreaseIn | E23: =+INDEX(SensAssumptRevenuesFlatDecreaseIn,SensSelectNumberIn+1) -> 0 | G23: 0 | H23: 0 | AU23: SensAssumptRevenuesFlatDecreaseIn
C24: Opex Flat Incease (vs projections) (since 2016) | D24: SensSelectOpexFlatIncreaseIn | E24: =+INDEX(SensAssumptOpexFlatIncreaseIn,SensSelectNumberIn+1) -> 0 | G24: 0 | H24: 0 | AU24: SensAssumptOpexFlatIncreaseIn
C25: Opex Yearly Growth Rate (vs projections) (since 2017) | D25: SensSelectOpexYearlyGrowthRateIn | E25: =+INDEX(SensAssumptOpexYearlyGrowthRateIn,SensSelectNumberIn+1) -> 0 | G25: 0 | H25: 0 | AU25: SensAssumptOpexYearlyGrowthRateIn
C26: Capex Flat increase (since 2016) | D26: SensSelectCapexFlatIncreaseIn | E26: =+INDEX(SensAssumptCapexFlatIncreaseIn,SensSelectNumberIn+1) -> 0 | G26: 0 | H26: 0 | AU26: SensAssumptCapexFlatIncreaseIn
C27: Switch Maintenance Costs Moody's | D27: SensSelectMaintCostsMoodysIn | E27: =+INDEX(SensAssumptMaintCostsMoodysIn,SensSelectNumberIn+1) -> No | G27: No | H27: No | AU27: SensAssumptMaintCostsMoodysIn
C28: Figurative Items Credit 2014 | D28: SensSelectPFRFigItems2014In | E28: =+INDEX(SensAssumptPFRFigItems2014In,SensSelectNumberIn+1) -> 199500000 | G28: 199500000 | H28: 199500000 | AU28: SensAssumptPFRFigItems2014In
C29: Switch Replicate PFR June 2015 (Opex Sub-Concession) | D29: SensSelectReplPFRJun2015In | E29: =+INDEX(SensAssumptReplPFRJun2015In,SensSelectNumberIn+1) -> No | G29: No | H29: No | AU29: SensAssumptReplPFRJun2015In
C30: Risk Free Rate for WACC | D30: SensSelectRiskFreeRateIn | E30: =+INDEX(SensAssumptRiskFreeRateIn,SensSelectNumberIn+1) -> 0.02098 | G30: 0.02098 | H30: 0.02098 | AU30: SensAssumptRiskFreeRateIn
C31: X Factor In Use | D31: SensSelectSwitchXFactorInUseIn | E31: =+INDEX(SensAssumptSwitchXFactorInUseIn,SensSelectNumberIn+1) -> Recalculated | G31: Recalculated | H31: Recalculated | AU31: SensAssumptSwitchXFactorInUseIn
C32: … If X Recalculated, Recalculate X since… | D32: SensSelectTariffXFactorRecalculatedSinceIn | E32: =+INDEX(SensAssumptTariffXFactorRecalculatedSinceIn,SensSelectNumberIn+1) -> 2020 | G32: 2020 | H32: 2020 | AU32: SensAssumptTariffXFactorRecalculatedSinceIn
C33: … If X Recalculated, Recalculate Var.Depr. since… | D33: SensSelectIntangAssetsNonRevDeprVarRecalcIn | E33: =+INDEX(SensAssumptIntangAssetsNonRevDeprVarRecalcIn,SensSelectNumberIn+1) -> 2020 | G33: 2020 | H33: 2020 | AU33: SensAssumptIntangAssetsNonRevDeprVarRecalcIn
C34: … If X Recalculated, Recalculate Km Isop. since… | D34: SensSelectIsopCAVTolledKmRecalcSinceIn | E34: =+INDEX(SensAssumptIsopCAVTolledKmRecalcSinceIn,SensSelectNumberIn+1) -> 2020 | G34: 2020 | H34: 2020 | AU34: SensAssumptIsopCAVTolledKmRecalcSinceIn
C35: … If X Recalculated, WACC In Use | D35: SensSelectSwitchWACCInUseIn | E35: =+INDEX(SensAssumptSwitchWACCInUseIn,SensSelectNumberIn+1) -> Input | G35: Input | H35: Input | AU35: SensAssumptSwitchWACCInUseIn
C36: … WACC in Case of Input - 2nd Reg. Period | D36: SensSelectTCRWACCInput2ndRPIn | E36: =+INDEX(SensAssumptTCRWACCInputIn,SensSelectNumberIn+1) -> 0.07011272478 | G36: 0.07011272478 | H36: 0.07011272478 | AU36: SensAssumptTCRWACCInputIn
C37: … WACC in Case of Input - 3rd Reg. Period | D37: SensSelectTCRWACCInput3rdRPIn | E37: =+INDEX(SensAssumptTCRWACCInput3rdRPIn,SensSelectNumberIn+1) -> 0.0707830847 | G37: 0.07011272478 | H37: 0.0707830847 | AU37: SensAssumptTCRWACCInput3rdRPIn
C38: … WACC in Case of Input - 4th Reg. Period | D38: SensSelectTCRWACCInput4thRPIn | E38: =+INDEX(SensAssumptTCRWACCInput4thRPIn,SensSelectNumberIn+1) -> 0.0707830847 | G38: 0.07011272478 | H38: 0.0707830847 | AU38: SensAssumptTCRWACCInput4thRPIn
C39: … WACC in Case of Input - 5th Reg. Period | D39: SensSelectTCRWACCInput5thRPIn | E39: =+INDEX(SensAssumptTCRWACCInput5thRPIn,SensSelectNumberIn+1) -> 0.0707830847 | G39: 0.07011272478 | H39: 0.0707830847 | AU39: SensAssumptTCRWACCInput5thRPIn
C40: Depreciation to Net Margin Percentage | D40: SensSelectIntangAssetsRateForVariableIn | E40: =+INDEX(SensAssumptIntangAssetsRateForVariableIn,SensSelectNumberIn+1) -> 0.7 | G40: 0.7 | H40: 0.7 | AU40: SensAssumptIntangAssetsRateForVariableIn
C41: Switch Depreciation Method | D41: SensSelectSwitchDeprMethodIn | E41: =+INDEX(SensAssumptSwitchDeprMethodIn,SensSelectNumberIn+1) -> Constant | G41: Variable | H41: Constant | AU41: SensAssumptSwitchDeprMethodIn
C42: Switch Isopedaggio (Input vs Recalculated) | D42: SensSelectIsopedaggioIn | E42: =+INDEX(SensAssumptIsopedaggioIn,SensSelectNumberIn+1) -> Recalculated | G42: Recalculated | H42: Recalculated | AU42: SensAssumptIsopedaggioIn
C43: Isopedaggio - Autovie Tariff Yearly Increase 1 | D43: SensSelectIsopAutovie1In | E43: =+INDEX(SensAssumptIsopAutovie1In,SensSelectNumberIn+1) -> 0.015 | G43: 0.015 | H43: 0.015 | AU43: SensAssumptIsopAutovie1In
C44: … until… | D44: SensSelectIsopAutovie1UntilIn | E44: =+INDEX(SensAssumptIsopAutovie1UntilIn,SensSelectNumberIn+1) -> 2019 | G44: 2019 | H44: 2019 | AU44: SensAssumptIsopAutovie1UntilIn
C45: Isopedaggio - Autovie Tariff Yearly Increase 2 - Thereahter | D45: SensSelectIsopAutovie2In | E45: =+INDEX(SensAssumptIsopAutovie2In,SensSelectNumberIn+1) -> 0.015 | G45: 0.015 | H45: 0.015 | AU45: SensAssumptIsopAutovie2In
C46: Isopedaggio - ASPI Tariff Yearly Increase 1 | D46: SensSelectIsopASPI1In | E46: =+INDEX(SensAssumptIsopASPI1In,SensSelectNumberIn+1) -> 0.015 | G46: 0.015 | H46: 0.015 | AU46: SensAssumptIsopASPI1In
C47: … until… | D47: SensSelectIsopASPI1UntilIn | E47: =+INDEX(SensAssumptIsopASPI1UntilIn,SensSelectNumberIn+1) -> 2019 | G47: 2019 | H47: 2019 | AU47: SensAssumptIsopASPI1UntilIn
C48: Isopedaggio - ASPI Tariff Yearly Increase 2 - Thereahter | D48: SensSelectIsopASPI2In | E48: =+INDEX(SensAssumptIsopASPI2In,SensSelectNumberIn+1) -> 0.015 | G48: 0.015 | H48: 0.015 | AU48: SensAssumptIsopASPI2In
C49: Bond Amount | D49: SensSelectBondAmountIn | E49: =+INDEX(SensAssumptBondAmountIn,SensSelectNumberIn+1) -> 830000000 | G49: 830000000 | H49: 830000000 | AU49: SensAssumptBondAmountIn
C50: Bond Yearly Coupon | D50: SensSelectBondYearlyCouponIn | E50: =+INDEX(SensAssumptBondYearlyCouponIn,SensSelectNumberIn+1) -> 0.02115 | G50: 0.02156 | H50: 0.02115 | AU50: SensAssumptBondYearlyCouponIn
C51: DSCR Target for Sculpting | D51: SensSelectDSCRTargetIn | E51: =+INDEX(SensAssumptDSCRTargetIn,SensSelectNumberIn+1) -> 1.6 | G51: 1.6 | H51: 1.6 | AU51: SensAssumptDSCRTargetIn
C52: Switch DSRA Use | D52: SensSelectSwitchDSRAUseIn | E52: =+INDEX(SensAssumptSwitchDSRAUseIn,SensSelectNumberIn+1) -> Yes | G52: Yes | H52: Yes | AU52: SensAssumptSwitchDSRAUseIn
C53: Switch PBCE Use | D53: SensSelectSwitchPBCEUseIn | E53: =+INDEX(SensAssumptSwitchPBCEUseIn,SensSelectNumberIn+1) -> Yes | G53: Yes | H53: Yes | AU53: SensAssumptSwitchPBCEUseIn
C54: Switch PBCE Fully Drawn at Closing - Moody's | D54: SensSelectSwitchPBCEDrawnClosingIn | E54: =+INDEX(SensAssumptSwitchPBCEDrawnClosingIn,SensSelectNumberIn+1) -> No | G54: No | H54: No | AU54: SensAssumptSwitchPBCEDrawnClosingIn
C55: Sources of VAT Payment on ANAS Commercial Debt | D55: SensSelectSourceVATIn | E55: =+INDEX(SensAssumptSourceVATIn,SensSelectNumberIn+1) -> SubDebt | G55: SubDebt | H55: SubDebt | AU55: SensAssumptSourceVATIn
C56: Maximum Amuont of Subordinated Debt | D56: SensSelectMaxSubDebtInitAmountIn | E56: =+INDEX(SensAssumptMaxSubDebtInitAmountIn,SensSelectNumberIn+1) -> 136534955.2 | G56: 136534955.2 | H56: 136534955.2 | AU56: SensAssumptMaxSubDebtInitAmountIn
C57: Net VAT Cash-In in CFADS? | D57: SensSelectNetVATCashinInCFADSIn | E57: =+INDEX(SensAssumptNetVATCashinInCFADSIn,SensSelectNumberIn+1) -> Yes | G57: Yes | H57: Yes | AU57: SensAssumptNetVATCashinInCFADSIn
C58: VAT Refund Request | D58: SensSelectVATRefundRequestIn | E58: =+INDEX(SensAssumptVATRefundRequestIn,SensSelectNumberIn+1) -> No | G58: No | H58: No | AU58: SensAssumptVATRefundRequestIn
C59: CRA Initial Amount | D59: SensSelectCRAInitialAmountIn | E59: =+INDEX(SensAssumptCRAInitialAmountIn,SensSelectNumberIn+1) -> 32000000 | G59: 32000000 | H59: 32000000 | AU59: SensAssumptCRAInitialAmountIn
C60: Initial Cash Funding | D60: SensSelectInitialCashFundingIn | E60: =+INDEX(SensAssumptInitialCashFundingIn,SensSelectNumberIn+1) -> 0 | G60: 0 | H60: 0 | AU60: SensAssumptInitialCashFundingIn
C64: Main Results
E67: MainResultsCopy
C69: Case Name | E69: =+SensSelectNameIn -> Final Pricing (05.04.16) | G69: Dry-Run / Rep.Prof. (04.04.16) | H69: Final Pricing (05.04.16)
C71: Bond Repayment Date | E71: =+BondLastRepaymentDate -> 2030-12-31 | G71: 2030-12-31 | H71: 2030-12-31
C72: Last Bond Repayment | E72: =+BondLastRepaymentAmount -> 25671900 | G72: 25671900 | H72: 25671900
C73: Tail Over Concession Period | E73: =+BondTailOverConcession -> 2 | G73: 2 | H73: 2
C74: Bond Tenor | E74: =+BondTenor -> 14.7 | G74: 14.7 | H74: 14.7
C75: Bond Average Life | E75: =+BondAverageLife -> 7.650002947 | G75: 7.650002945 | H75: 7.650002947
C77: Min Historical ADSCR (Incl. First) | E77: =+MinHADSCR -> 0.9148461739 | G77: 1.599805143 | H77: 0.9148461739
C78: … in … | E78: =+PeriodMinimumHADSCR -> 2021-06-30 | G78: 2024-06-30 | H78: 2021-06-30
C79: Min Historical ADSCR (Excl. First) | E79: =+MinHADSCRExclFirst -> 0.9148461739 | G79: 1.599805143 | H79: 0.9148461739
C80: … in … | E80: =+PeriodMinimumHADSCRExclFirst -> 2021-06-30 | G80: 2024-06-30 | H80: 2021-06-30
C81: Average Historical ADSCR (Incl. First and Last) | E81: =+AverageHADSCRIncFirstlLast -> 1.633655395 | G81: 1.698017977 | H81: 1.633655395
C82: Average Historical ADSCR (Excl. First and Incl. Last) | E82: =AverageHADSCRExclFirstInclLast -> 1.482972884 | G82: 1.602858349 | H82: 1.482972884
C83: Last Historical ADSCR | E83: =+LastHADSCR -> 1.594259498 | G83: 1.662776259 | H83: 1.594259498
C85: Initial BLCR | E85: =BLCRInitial -> 1.534002568 | G85: 1.647886027 | H85: 1.534002568
C86: Min BLCR | E86: =+MinBLCR -> 1.329892867 | G86: 1.647263354 | H86: 1.329892867
C87: … in … | E87: =PeriodMinimumBLCR -> 2019-12-31 | G87: 2017-06-30 | H87: 2019-12-31
C89: Initial PLCR | E89: =PLCRInitial -> 1.668240985 | G89: 1.791189196 | H89: 1.668240985
C90: Min PLCR | E90: =MinPLCR -> 1.51381 | G90: 1.791189196 | H90: 1.51381
C91: … in … | E91: =PeriodMinimumPLCR -> 2019-12-31 | G91: 2016-06-30 | H91: 2019-12-31
C93: PBCE Drawdonw - Debt Service | E93: =+SUM(PBCEDrawdownDebtService) -> 0 | G93: 0 | H93: 0
C94: … firstly drawn in … | E94: =+IF(OR(PBCETriggerDebtService),INDEX(PeriodTo,MATCH(TRUE,PBCETriggerDebtService,0)),"n.a.") -> n.a. | G94: n.a. | H94: n.a.
C95: PBCE Drawdown - Rebalancing | E95: =+SUM(PBCEDrawdownRebalancing) -> 0 | G95: 0 | H95: 0
C96: … in … | E96: =+IF(OR(PBCETriggerRebalancing),INDEX(PeriodTo,MATCH(TRUE,PBCETriggerRebalancing,0)),"n.a.") -> n.a. | G96: n.a. | H96: n.a.
C97: PBCE Repayment Date | E97: =+PBCELastRepaymentDate -> n.a. | G97: n.a. | H97: n.a.
C99: Cash Balance After Closing (End of Semester) | E99: =+CashBalanceAfterClosing -> 44910326 | G99: 19671358.79 | H99: 44910326
C100: Maximum Overdraft | E100: =+MaximumOverdraft -> 0 | G100: 0 | H100: 0
C101: … in … | E101: =+PeriodMaximumOverdraft -> n.a. | G101: n.a. | H101: n.a.
C103: Check Total Depreciation | E103: =+CheckTotalDepreciation -> TRUE | G103: TRUE | H103: TRUE
C105: Subordinated Debt Initial Amount | E105: =+SubDebtInitAmount -> 136534955 | G105: 136534955.2 | H105: 136534955
C106: Subordinated Debt Repayment Date | E106: =+SubDebtLastRepaymentDate -> 2019-06-30 | G106: 2020-06-30 | H106: 2019-06-30
C107: Subordinated Debt Tenor | E107: =+SubDebtTenor -> 3.2 | G107: 4.2 | H107: 3.2
C108: Subordinated Debt Average Life | E108: =+SubDebtAverageLife -> 1.737378485 | G108: 2.347185171 | H108: 1.737378485
C110: Initial Junior PLCR | E110: =+JPLCRInitial -> 2.478452556 | G110: 2.864653116 | H110: 2.478452556
C111: Min Junior PLCR | E111: =+MinJPLCR -> 2.478452556 | G111: 2.864653116 | H111: 2.478452556
C112: … in … | E112: =+PeriodMinimumJPLCR -> 2016-06-30 | G112: 2016-06-30 | H112: 2016-06-30
C114: Credito Poste Figurative 2013 | E114: =+PFRFigItems2013 -> 0 | G114: 0 | H114: 0
C115: Minimum "Rapporto di Solidità Patrimoniale" | E115: =+MinRSP -> 1.746659352 | G115: 1.54473763 | H115: 1.746659352
C116: … in … | E116: =+PeriodMinimumRSP -> 2016-12-31 | G116: 2016-12-31 | H116: 2016-12-31
C118: X Factor Used
C119: 2014 | E119: =+SUMIF(PeriodFrom,DATE(C119,1,1),TariffXFactor) -> 0 | G119: 0 | H119: 0
C120: 2015 | E120: 0 | G120: 0 | H120: 0
C121: 2016 | E121: 0 | G121: 0 | H121: 0
C122: 2017 | E122: -0.006727903446 | G122: -0.006727903446 | H122: -0.006727903446
C123: 2018 | E123: -0.007567903446 | G123: -0.007567903446 | H123: -0.007567903446
C124: 2019 | E124: -0.008407903446 | G124: -0.008407903446 | H124: -0.008407903446
C125: 2020 | E125: 0 | G125: -0.009100788571 | H125: 0
C126: 2021 | E126: 0 | G126: -0.005025071849 | H126: 0
C127: 2022 | E127: 0 | G127: -0.005025071849 | H127: 0
C128: 2023 | E128: 0 | G128: -0.005025071849 | H128: 0
C129: 2024 | E129: 0 | G129: -0.005025071849 | H129: 0
C130: 2025 | E130: 0 | G130: -0.005025071849 | H130: 0
C131: 2026 | E131: 0.01307268927 | G131: -0.005025071849 | H131: 0.01307268927
C132: 2027 | E132: 0.01307268927 | G132: -0.005025071849 | H132: 0.01307268927
C133: 2028 | E133: 0.01307268927 | G133: -0.005025071849 | H133: 0.01307268927
C134: 2029 | E134: 0.01307268927 | G134: -0.005025071849 | H134: 0.01307268927
C135: 2030 | E135: 0.01307268927 | G135: -0.005025071849 | H135: 0.01307268927
C136: 2031 | E136: 0.01307268927 | G136: -0.005025071849 | H136: 0.01307268927
C137: 2032 | E137: 0.01307268927 | G137: -0.005025071849 | H137: 0.01307268927
C139: Yearly Tariff Increase
C140: 2014 | E140: =+SUMIF(PeriodFrom,DATE(C140,1,1),TariffYearlyIncrease) -> 0 | G140: 0 | H140: 0
C141: 2015 | E141: 0 | G141: 0 | H141: 0
C142: 2016 | E142: 0 | G142: 0 | H142: 0
C143: 2017 | E143: 0.0002720965537 | G143: 0.01499288512 | H143: 0.0002720965537
C144: 2018 | E144: 0.003199886226 | G144: 0.01499288512 | H144: 0.003199886226
C145: 2019 | E145: 0.02060533031 | G145: 0.01499288512 | H145: 0.02060533031
C146: 2020 | E146: 0 | G146: 0.015 | H146: 0
C147: 2021 | E147: 0.0056 | G147: 0.004354928151 | H147: 0.0056
C148: 2022 | E148: 0 | G148: 0.004354928151 | H148: 0
C149: 2023 | E149: 0 | G149: 0.004354928151 | H149: 0
C150: 2024 | E150: 0 | G150: 0.004354928151 | H150: 0
C151: 2025 | E151: 0 | G151: 0.004354928151 | H151: 0
C152: 2026 | E152: 0.01867268927 | G152: 0.004354928151 | H152: 0.01867268927
C153: 2027 | E153: 0.01867268927 | G153: 0.004354928151 | H153: 0.01867268927
C154: 2028 | E154: 0.01867268927 | G154: 0.004354928151 | H154: 0.01867268927
C155: 2029 | E155: 0.01867268927 | G155: 0.004354928151 | H155: 0.01867268927
C156: 2030 | E156: 0.01867268927 | G156: 0.004354928151 | H156: 0.01867268927
C157: 2031 | E157: 0.01867268927 | G157: 0.004354928151 | H157: 0.01867268927
C158: 2032 | E158: 0.01867268927 | G158: 0.004354928151 | H158: 0.01867268927
C160: Isopedaggio - Conventional Km
C161: 2015 | E161: =+SUMIF(YearForYearlyData,C161,IsopCAVTolledKm)-SUMIF(YearForYearlyData,C161,IsopCAVPhysicalTolledKm) -> 17.6 | G161: 17.6 | H161: 17.6
C162: 2016 | E162: 17.114 | G162: 17.114 | H162: 17.114
C163: 2017 | E163: 15.836 | G163: 17.137 | H163: 15.836
C164: 2018 | E164: 15.836 | G164: 17.161 | H164: 15.836
C165: 2019 | E165: 15.836 | G165: 17.183 | H165: 15.836
C166: 2020 | E166: 17.206 | G166: 17.19471929 | H166: 17.206
C167: 2021 | E167: 17.157 | G167: 17.12999192 | H167: 17.157
C168: 2022 | E168: 17.48283784 | G168: 17.06441732 | H168: 17.48283784
C169: 2023 | E169: 17.73036978 | G169: 16.99798678 | H169: 17.73036978
C170: 2024 | E170: 17.9737355 | G170: 16.93069152 | H170: 17.9737355
C171: 2025 | E171: 17.91768858 | G171: 16.86252263 | H171: 17.91768858
C172: 2026 | E172: 17.86254292 | G172: 16.79347114 | H172: 17.86254292
C173: 2027 | E173: 17.8055197 | G173: 16.72352795 | H173: 17.8055197
C174: 2028 | E174: 17.74942958 | G174: 16.6526839 | H174: 17.74942958
C175: 2029 | E175: 17.69145779 | G175: 16.58092969 | H175: 17.69145779
C176: 2030 | E176: 17.63445187 | G176: 16.50825594 | H176: 17.63445187
C177: 2031 | E177: 17.57844713 | G177: 16.43465318 | H177: 17.57844713
C178: 2032 | E178: 17.52057421 | G178: 16.36011183 | H178: 17.52057421

Sheet Sen.Div
B2: Concessioni Autostradali Venete CAV S.p.A.
B3: ="Scenario: "&SensSelectNameIn -> Scenario: Final Pricing (05.04.16)
B4: Sheet: Input
B5: =+ErrorCounter -> Errors: 0 out of 43
C7: Sensitivity sui dividendi
C8: Ipotesi principali
C9: Saldo delle poste figurative al 31/12/2019 | D9: € | E9: =+PFR!Q71 -> 317199195.9
C11: Attuale previsione di distribuzione dividendi | D11: € | E11: =-'CF-Y'!E91 -> 565724064.1
C13: Nuova previsione distibuzione dividendi | E13: WACC
E14: Ke = 8,98% | G14: Ke = 13,09%
B15: Recupero beneficio minor costo del debito | D15: % | E15: ='WACC Lordo'!$J$68 -> 0.05456584089 | G15: ='WACC Lordo'!$J$37 -> 0.0707960254
B16: Hp. 1 | C16: =X_K_Calc!$I84 -> Tutto al primo anno | D16: € | E16: 510859787.3 | G16: 580827171.4
B17: Hp. 2 | C17: =X_K_Calc!$I85 -> Ad inizio nuovo periodo regolatorio | D17: € | E17: 525013932.2 | G17: 601991445.7
B18: Hp. 3 | C18: =X_K_Calc!$I86 -> In ogni anno fino a fine concesione | D18: € | E18: 528244926 | G18: 606269873.8
C21: Differenze con la precendete stima
C23: Precedente stima di distribuzione dei dividendi | D23: € | E23: 662337779.4
E25: WACC
E26: Ke = 8,98% | G26: Ke = 13,09%
B27: Recupero beneficio minor costo del debito | E27: ='WACC Lordo'!$J$68 -> 0.05456584089 | G27: ='WACC Lordo'!$J$37 -> 0.0707960254
B28: Hp. 1 | C28: Tutto al primo anno | D28: € | E28: =+$E$23-E16 -> 151477992.1 | G28: =+$E$23-G16 -> 81510608.01
B29: Hp. 2 | C29: Ad inizio nuovo periodo regolatorio | D29: € | E29: =+$E$23-E17 -> 137323847.2 | G29: =+$E$23-G17 -> 60346333.68
B30: Hp. 3 | C30: In ogni anno fino a fine concesione | D30: € | E30: =+$E$23-E18 -> 134092853.4 | G30: =+$E$23-G18 -> 56067905.55

Sheet Input
B2: Concessioni Autostradali Venete CAV S.p.A. | F2: Period From | G2: =+PeriodFrom -> 2015-01-01 | H2: 2015-07-01 | I2: 2016-01-01 | J2: 2016-07-01 | K2: 2017-01-01 | L2: 2017-07-01 | M2: 2018-01-01 | N2: 2018-07-01 | O2: 2019-01-01 | P2: 2019-07-01 | Q2: 2020-01-01 | R2: 2020-07-01 | S2: 2021-01-01 | T2: 2021-07-01 | U2: 2022-01-01 | V2: 2022-07-01 | W2: 2023-01-01 | X2: 2023-07-01 | Y2: 2024-01-01 | Z2: 2024-07-01 | AA2: 2025-01-01 | AB2: 2025-07-01 | AC2: 2026-01-01 | AD2: 2026-07-01 | AE2: 2027-01-01 | AF2: 2027-07-01 | AG2: 2028-01-01 | AH2: 2028-07-01 | AI2: 2029-01-01 | AJ2: 2029-07-01 | AK2: 2030-01-01 | AL2: 2030-07-01 | AM2: =+PeriodFrom -> 2031-01-01 | AN2: 2031-07-01 | AO2: 2032-01-01 | AP2: 2032-07-01 | AQ2: 2033-01-01 | AR2: 2033-07-01 | AS2: 2034-01-01 | AT2: 2034-07-01 | AU2: PeriodFromIn
B3: ="Scenario: "&SensSelectNameIn -> Scenario: Final Pricing (05.04.16) | F3: Period To | G3: =+PeriodTo -> 2015-06-30 | H3: 2015-12-31 | I3: 2016-06-30 | J3: 2016-12-31 | K3: 2017-06-30 | L3: 2017-12-31 | M3: 2018-06-30 | N3: 2018-12-31 | O3: 2019-06-30 | P3: 2019-12-31 | Q3: 2020-06-30 | R3: 2020-12-31 | S3: 2021-06-30 | T3: 2021-12-31 | U3: 2022-06-30 | V3: 2022-12-31 | W3: 2023-06-30 | X3: 2023-12-31 | Y3: 2024-06-30 | Z3: 2024-12-31 | AA3: 2025-06-30 | AB3: 2025-12-31 | AC3: 2026-06-30 | AD3: 2026-12-31 | AE3: 2027-06-30 | AF3: 2027-12-31 | AG3: 2028-06-30 | AH3: 2028-12-31 | AI3: 2029-06-30 | AJ3: 2029-12-31 | AK3: 2030-06-30 | AL3: 2030-12-31 | AM3: =+PeriodTo -> 2031-06-30 | AN3: 2031-12-31 | AO3: 2032-06-30 | AP3: 2032-12-31 | AQ3: 2033-06-30 | AR3: 2033-12-31 | AS3: 2034-06-30 | AT3: 2034-12-31 | AU3: PeriodToIn
B4: Sheet: Input | F4: Year | G4: =+PeriodNumber -> 0.5 | H4: 1 | I4: 1.5 | J4: 2 | K4: 2.5 | L4: 3 | M4: 3.5 | N4: 4 | O4: 4.5 | P4: 5 | Q4: 5.5 | R4: 6 | S4: 6.5 | T4: 7 | U4: 7.5 | V4: 8 | W4: 8.5 | X4: 9 | Y4: 9.5 | Z4: 10 | AA4: 10.5 | AB4: 11 | AC4: 11.5 | AD4: 12 | AE4: 12.5 | AF4: 13 | AG4: 13.5 | AH4: 14 | AI4: 14.5 | AJ4: 15 | AK4: 15.5 | AL4: 16 | AM4: =+PeriodNumber -> 16.5 | AN4: 17 | AO4: 17.5 | AP4: 18 | AQ4: 18.5 | AR4: 19 | AS4: 19.5 | AT4: 20
B5: =+ErrorCounter -> Errors: 0 out of 43 | F5: Semester | G5: =+PeriodCounter -> 1 | H5: 2 | I5: 3 | J5: 4 | K5: 5 | L5: 6 | M5: 7 | N5: 8 | O5: 9 | P5: 10 | Q5: 11 | R5: 12 | S5: 13 | T5: 14 | U5: 15 | V5: 16 | W5: 17 | X5: 18 | Y5: 19 | Z5: 20 | AA5: 21 | AB5: 22 | AC5: 23 | AD5: 24 | AE5: 25 | AF5: 26 | AG5: 27 | AH5: 28 | AI5: 29 | AJ5: 30 | AK5: 31 | AL5: 32 | AM5: 33 | AN5: 34 | AO5: 35 | AP5: 36 | AQ5: 37 | AR5: 38 | AS5: 39 | AT5: 40
C8: General
C10: Tariffe | E10: 0 | G10: 1=Recalculated 0=PEF
C11: Isopedaggio | E11: 0 | G11: 1=Recalculated 0=PEF
C12: Scenario | E12: CIPE
B14: Periods
C15: Months In Year | D15: # | G15: 12 | H15: MonthsInYearIn
C16: Months In Period | D16: # | G16: 6 | H16: MonthsInPeriodIn
C17: Periods In Year | D17: # | G17: 2 | H17: PeriodsInYearIn
C18: Month June | D18: # | G18: 6 | H18: MonthJunIn
C19: Month December | D19: # | G19: 12 | H19: MonthDecIn
C20: Day June | D20: # | G20: 30 | H20: DayJunIn
C21: Day December | D21: # | G21: 31 | H21: DayDecIn
B23: Dates
C24: Model Start Date | D24: date | G24: 2014-12-31 | H24: ModelStartDateIn
C25: Concession Start Date | D25: date | G25: 2009-01-30 | H25: ConcessionStartDateIn
C26: Concession End Date | D26: date | G26: 2032-12-31 | H26: ConcessionEndDateIn
C27: Concession Period | D27: months | G27: =+ConcessionPeriodMonths -> 287 | H27: ConcessionPeriodMonthsIn
C28: Operation Start Date | D28: date | G28: 2009-02-08 | H28: OperationStartDateIn
C29: Closing Date | D29: date | G29: 2014-12-31 | H29: ClosingDateIn
B30: Constants
C31: Tolerance | D31: # | G31: 1e-05 | H31: ToleranceIn
C32: Macro Maximum Iterations | D32: # | G32: 100 | H32: MacroMaxIterationsIn
C33: Macro Maximum Additional Iterations | D33: # | G33: 10 | H33: MacroMaxAdditionalIterationsIn
C37: Initial Balance Sheet and Budget BS Items
B40: Date
C41: Initial Balance Sheet Date | D41: date | G41: 2014-12-31 | H41: InitBSDateIn
C42: Update Balance Sheet Date | D42: date | G42: 2021-06-30 | H42: UpdateBSDateIn
B43: Assets
C44: Fixed Assets | D44: € | G44: 790665714 | H44: InitBSFixedAssetsIn
C45: … of which Intangible | D45: € | G45: 789805673 | H45: InitBSFixedAssetsIntangibleIn
C46: … of which Non Reversible | D46: € | G46: 7830 | H46: InitBSFixedAssetsIntangibleNonRevIn
C47: … of which Bond Capitalized Costs | D47: € | G47: 689989 | H47: InitBSFixedAssetsIntangibleBondCostsIn
C48: … of which Reversible | D48: € | G48: =+InitBSFixedAssetsIntangibleIn-InitBSFixedAssetsIntangibleNonRevIn-InitBSFixedAssetsIntangibleBondCostsIn -> 789107854 | H48: InitBSFixedAssetsIntangibleRevIn
C49: … of which Depreciation Constant | D49: € | G49: =28000+4504731+6336756+292998+774080+7831389 -> 19767954 | H49: InitBSFixedAssetsIntangibleRevDeprConstIn
C50: … of which Ongoing Service Area | G50: 28000 | H50: InitBSFixedAssetsIntangibleRevDeprConstOngoing1In
C51: … of which Depreciation Variable | D51: € | G51: =+InitBSFixedAssetsIntangibleRevIn-InitBSFixedAssetsIntangibleRevDeprConstIn -> 769339900 | H51: InitBSFixedAssetsIntangibleRevDeprVarIn
C52: … of which Not For X Calculation | G52: =+(279360000-198010315.7-SUM(Investment1AmountIn,Investment2AmountIn)) -> -128856599.3 | H52: InitBSFixedAssetsIntangibleRevDeprVarNotXIn
C53: … of which Tangible | D53: € | G53: 559216 | H53: InitBSFixedAssetsTangibleIn
C54: … of which Financial | D54: € | G54: 300825 | H54: InitBSFixedAssetsFinancialIn
C55: … of which SUS | D55: € | G55: 299767 | H55: InitBSFixedAssetsFinancialSUSIn
C56: Inventory | D56: € | G56: 1077125 | H56: InitBSInventoryIn
C57: Account Receivable | D57: € | G57: =5000883+834520 -> 5835403 | H57: InitBSAccReceivIn
C58: Tax Recoverable | D58: € | G58: 64643159 | H58: InitBSTaxReceivIn
C59: … of which IRES | D59: € | G59: 0 | H59: InitBSTaxReceivIRESIn
C60: … of which IRAP | D60: € | G60: 0 | H60: InitBSTaxReceivIRAPIn
C61: … of which IVA | D61: € | G61: 64321141 | H61: InitBSTaxReceivIVAIn
C62: … of which Other | D62: € | G62: =321219+799 -> 322018 | H62: InitBSTaxReceivOtherIn
C63: Tax Receivable | D63: € | G63: 1292565 | H63: InitBSAdvancedTaxIn
C64: Other Short Term Receivable | D64: € | G64: 177011475 | H64: InitBSOtherSTReceivIn
C65: … of which Grant Contribution | D65: € | G65: =100000000+42322500 -> 142322500 | H65: InitBSOtherSTReceivGrContrIn
C66: … of which Other ANAS | D66: € | G66: 5876723 | H66: InitBSOtherSTReceivOtherANASIn
C67: … of which Others | D67: € | G67: =+InitBSOtherSTReceivIn-InitBSOtherSTReceivGrContrIn-InitBSOtherSTReceivOtherANASIn -> 28812252 | H67: InitBSOtherSTReceivOthersIn
C68: Other Long Term Receivable | D68: € | G68: 28221885 | H68: InitBSOtherLTReceivIn
C69: … of which Grant Contribution | D69: € | G69: 28215000 | H69: InitBSOtherLTReceivGrContrIn
C70: … of which Others | D70: € | G70: =+InitBSOtherLTReceivIn-InitBSOtherLTReceivGrContrIn -> 6885 | H70: InitBSOtherLTReceivOthersIn
C71: Cash | D71: € | G71: 67093065 | H71: InitBSCashIn
C72: … of which DSRA | D72: € | G72: 0 | H72: InitBSCashDSRAIn
C73: … of which Other | D73: € | G73: =+InitBSCashIn-InitBSCashDSRAIn -> 67093065 | H73: InitBSCashOtherIn
C74: Accruals and Deferrals | D74: € | G74: 5258 | H74: InitBSAccrualDeferralAssetIn
C75: Total Assets | D75: € | G75: =+SUM(G44,G56:G58,G63:G64,G68,G71,G74) -> 1135845649 | H75: InitBSTotalAssetsIn
B77: Net Worth & Liabilities
C78: Share Capital | D78: € | G78: 2000000 | H78: InitBSShareCapitalIn
C79: Legal Reserve | D79: € | G79: 400000 | H79: InitBSLegalReserveIn
C80: Other Reserves | D80: € | G80: =74144682-InitBSShareCapitalIn-InitBSLegalReserveIn -> 71744682 | H80: InitBSOtherReserveIn
C81: Provisions | D81: € | G81: 16687288 | H81: InitBSProvisionIn
C82: … of which Renewals | D82: € | G82: 16537288 | H82: InitBSProvisionRenewalsIn
C83: … of which Others | D83: € | G83: =+InitBSProvisionIn-G82 -> 150000 | H83: InitBSProvisionOthersIn
C84: Severance Pay | D84: € | G84: 424090 | H84: InitBSSeverancePayIn
C85: Account Payable | D85: € | G85: 5474973 | H85: InitBSAccPayabIn
C86: Tax Payable | D86: € | G86: 2613669 | H86: InitBSTaxPayabIn
C87: … of which IRES | D87: € | G87: 1761926 | H87: InitBSTaxPayabIRESIn
C88: … of which IRAP | D88: € | G88: 363706 | H88: InitBSTaxPayabIRAPIn
C89: … of which Others | D89: € | G89: =+InitBSTaxPayabIn-InitBSTaxPayabIRESIn-InitBSTaxPayabIRAPIn -> 488037 | H89: InitBSTaxPayabOthersIn
C90: Bank Debt | D90: € | G90: 414663164 | H90: InitBSBankDebtIn
C91: … of which CDP Term Loan | D91: € | G91: 350000000 | H91: InitBSBankDebtCDPTLIn
C92: … of which CDP VAT Facility | D92: € | G92: 64663164 | H92: InitBSBankDebtCDPVATFacIn
C93: Other Debt 1 (INPS) | D93: € | G93: 1195196 | H93: InitBSOtherDebt1In
C94: Other Debt 2 (Incl. ANAS Debt) | D94: € | G94: 620227378 | H94: InitBSOtherDebt2In
C95: … of which Debt to ANAS | D95: € | G95: =498560056+20828985+83865388+5952676+46245 -> 609253350 | H95: InitBSOtherDebt2ANASIn
C96: … of which Others | D96: € | G96: =+InitBSOtherDebt2In-InitBSOtherDebt2ANASIn -> 10974028 | H96: InitBSOtherDebt2OtherIn
C97: Accruals and Deferrals | D97: € | G97: 415209 | H97: InitBSAccrualDeferralLiabIn
C98: Total Net Worth & Liabilities | D98: € | G98: =+SUM(G78:G81,G84:G86,InitBSBankDebtIn,G93:G94,G97) -> 1135845649 | H98: InitBSTotalNWLIn
B100: Tax Due
C101: IRES Payable (Initial Balance Sheet) | D101: € | G101: 4687503 | H101: InitBSIRESDueIn
C102: IRAP Payable (Initial Balance Sheet) | D102: € | G102: 2576754 | H102: InitBSIRAPDueIn
C104: IRES Payable (Previous Year Balance Sheet) | D104: € | G104: 2874445 | H104: InitBSIRESDuePrevYIn
C105: IRAP Payable (Previous Year Balance Sheet) | D105: € | G105: 2180343 | H105: InitBSIRAPDuePrevYIn
B107: Budget BS 2015
C108: Account Receivable | D108: € | G108: =1666206+750000 -> 2416206 | H108: BSBudget2015AccRecIn
C109: Tax Recoverable - Others | D109: € | G109: 321219 | H109: BSBudget2015TaxRecovOthersIn
C110: Short Term Receivable - Others | D110: € | G110: =26000000+560450+12000 -> 26572450 | H110: BSBudget2015ShortTermRecOthersIn
C111: Payable Others | D111: € | G111: =(5500000+1693291+1226176+30735+950000+291663)-5300000 -> 4391865 | H111: BSBudget2015PayabOthersIn
C115: Inflation
C117: Tariffa Flat 2022-2025 | D117: flag | E117: 1 | G117: =+((AND(G122>=$E$118,G122<=$E$119))*($E$117)) -> 0 | H117: =+((AND(H122>=$E$118,H122<=$E$119))*($E$117)) -> 0 | I117: 0 | J117: 0 | K117: 0 | L117: 0 | M117: 0 | N117: 1 | O117: 1 | P117: 1 | Q117: 1 | R117: 0 | S117: 0 | T117: 0 | U117: 0 | V117: 0 | W117: 0 | X117: 0 | Y117: 0 | Z117: 0 | AA117: 0 | AB117: 0 | AC117: 0 | AD117: 0 | AE117: 0 | AF117: 0 | AG117: 0 | AH117: 0 | AI117: 0 | AJ117: 0 | AK117: 0 | AL117: 0 | AM117: 0 | AN117: 0 | AO117: 0 | AP117: 0 | AQ117: 0 | AR117: 0 | AS117: 0 | AT117: 0
C118: Beginning Period_Flat Tariff | D118: year | E118: 2022
C119: End Period_Flat Tariff | D119: year | E119: 2025
B121: Inflation (Yearly Data)
D122: year | G122: =+YearForYearlyData -> 2015 | H122: 2016 | I122: 2017 | J122: 2018 | K122: 2019 | L122: 2020 | M122: 2021 | N122: 2022 | O122: 2023 | P122: 2024 | Q122: 2025 | R122: 2026 | S122: 2027 | T122: 2028 | U122: 2029 | V122: 2030 | W122: 2031 | X122: 2032 | Y122: 2033 | Z122: 2034 | AA122: 2035 | AB122: 2036 | AC122: 2037 | AD122: 2038 | AE122: 2039 | AF122: 2040 | AG122: 2041 | AH122: 2042 | AI122: 2043 | AJ122: 2044 | AK122: 2045 | AL122: 2046 | AM122: 2047 | AN122: 2048 | AO122: 2049 | AP122: 2050 | AQ122: 2051 | AR122: 2052 | AS122: 2053 | AT122: 2054
C123: Yearly Inflation Rate on Revenues | D123: % | E123: =+SUM(G123:AT123) -> 0.1174 | G123: =0%*(1-G117) -> 0 | H123: =0.82% -> 0.0082 | I123: 0.01 | J123: 0.0112 | K123: 0.012 | L123: 0.012 | M123: =0.8%*(1-M117) -> 0.008 | N123: =0.8%*(1-N117) -> 0 | O123: 0 | P123: 0 | Q123: 0 | R123: 0.008 | S123: 0.008 | T123: 0.008 | U123: 0.008 | V123: 0.008 | W123: 0.008 | X123: 0.008 | Y123: 0 | Z123: 0 | AA123: 0 | AB123: 0 | AC123: 0 | AD123: 0 | AE123: 0 | AF123: 0 | AG123: 0 | AH123: 0 | AI123: 0 | AJ123: 0 | AK123: 0 | AL123: 0 | AM123: 0 | AN123: 0 | AO123: 0 | AP123: 0 | AQ123: 0 | AR123: 0 | AS123: 0 | AT123: 0 | AU123: InflationRateRevenuesIn
C124: Yearly Inflation Rate on Revenues - Moody's | D124: % | E124: =+SUM(G124:AT124) -> 0.1599 | G124: 0 | H124: 0.0075 | I124: 0.0123 | J124: 0.0141 | K124: 0.015 | L124: 0.015 | M124: 0.008 | N124: 0.008 | O124: 0.008 | P124: 0.008 | Q124: 0.008 | R124: 0.008 | S124: 0.008 | T124: 0.008 | U124: 0.008 | V124: 0.008 | W124: 0.008 | X124: 0.008 | Y124: 0 | Z124: 0 | AA124: 0 | AB124: 0 | AC124: 0 | AD124: 0 | AE124: 0 | AF124: 0 | AG124: 0 | AH124: 0 | AI124: 0 | AJ124: 0 | AK124: 0 | AL124: 0 | AM124: 0 | AN124: 0 | AO124: 0 | AP124: 0 | AQ124: 0 | AR124: 0 | AS124: 0 | AT124: 0 | AU124: InflationRateRevenuesMoodysIn
C125: Yearly Inflation Rate on Opex (other than Personnel) | D125: % | E125: =+SUM(G125:AT125) -> 0.104 | G125: 0 | H125: 0 | I125: 0 | J125: 0 | K125: 0 | L125: 0.008 | M125: 0.008 | N125: 0.008 | O125: 0.008 | P125: 0.008 | Q125: 0.008 | R125: 0.008 | S125: 0.008 | T125: 0.008 | U125: 0.008 | V125: 0.008 | W125: 0.008 | X125: 0.008 | Y125: 0 | Z125: 0 | AA125: 0 | AB125: 0 | AC125: 0 | AD125: 0 | AE125: 0 | AF125: 0 | AG125: 0 | AH125: 0 | AI125: 0 | AJ125: 0 | AK125: 0 | AL125: 0 | AM125: 0 | AN125: 0 | AO125: 0 | AP125: 0 | AQ125: 0 | AR125: 0 | AS125: 0 | AT125: 0 | AU125: InflationRateOpexIn
C126: Yearly Inflation Rate on Personnel Opex | D126: % | E126: =+SUM(G126:AT126) -> 0.104 | G126: 0 | H126: 0 | I126: 0 | J126: 0 | K126: 0 | L126: 0.008 | M126: 0.008 | N126: 0.008 | O126: 0.008 | P126: 0.008 | Q126: 0.008 | R126: 0.008 | S126: 0.008 | T126: 0.008 | U126: 0.008 | V126: 0.008 | W126: 0.008 | X126: 0.008 | Y126: 0 | Z126: 0 | AA126: 0 | AB126: 0 | AC126: 0 | AD126: 0 | AE126: 0 | AF126: 0 | AG126: 0 | AH126: 0 | AI126: 0 | AJ126: 0 | AK126: 0 | AL126: 0 | AM126: 0 | AN126: 0 | AO126: 0 | AP126: 0 | AQ126: 0 | AR126: 0 | AS126: 0 | AT126: 0 | AU126: InflationRatePersonnelOpexIn
C127: Yearly Inflation Rate on Opex - Moody's | D127: % | E127: =+SUM(G127:AT127) -> 0.501 | G127: 0 | H127: 0.015 | I127: 0.015 | J127: 0.015 | K127: 0.015 | L127: 0.015 | M127: 0.008 | N127: 0.008 | O127: 0.008 | P127: 0.008 | Q127: 0.008 | R127: 0.008 | S127: 0.008 | T127: 0.008 | U127: 0.008 | V127: 0.008 | W127: 0.008 | X127: 0.008 | Y127: 0.015 | Z127: 0.015 | AA127: 0.015 | AB127: 0.015 | AC127: 0.015 | AD127: 0.015 | AE127: 0.015 | AF127: 0.015 | AG127: 0.015 | AH127: 0.015 | AI127: 0.015 | AJ127: 0.015 | AK127: 0.015 | AL127: 0.015 | AM127: 0.015 | AN127: 0.015 | AO127: 0.015 | AP127: 0.015 | AQ127: 0.015 | AR127: 0.015 | AS127: 0.015 | AT127: 0.015 | AU127: InflationRateOpexMoodysIn
C128: Sensitivity - Switch 0% Inflation | D128: switch | G128: =+SensSelectSwitch0InflationIn -> No | H128: Switch0InflationIn
C129: Sensitivity - Switch Moody's Inflation - Revenues | D129: switch | G129: =SensSelectSwitchMoodysRevInflationIn -> No | H129: SwitchMoodysRevInflationIn
C130: Sensitivity - Switch Moody's Inflation - Opex | D130: switch | G130: =SensSelectSwitchMoodysOpexInflationIn -> No | H130: SwitchMoodysOpexInflationIn
C131: Sensitivity - Inflation Flat Decrease | D131: % | G131: =+SensSelectRevInflFlatDecreaseIn -> 0 | H131: RevInflFlatDecreaseIn
C135: Capex
B138: Investment Amount
C139: Investment 1 - New Intangible Assets Reversible - Depr. Constant | D139: € | E139: =+SUM(G139:AT139) -> 11466566 | G139: 0 | H139: 0 | I139: 2816709 | J139: 2816709 | K139: 100000 | L139: 100000 | M139: 0 | N139: 0 | O139: 0 | P139: 5633148 | S139: 0 | T139: 0 | U139: 0 | V139: 0 | W139: 0 | X139: 0 | Y139: 0 | Z139: 0 | AA139: 0 | AB139: 0 | AC139: 0 | AD139: 0 | AE139: 0 | AF139: 0 | AG139: 0 | AH139: 0 | AI139: 0 | AJ139: 0 | AK139: 0 | AL139: 0 | AM139: 0 | AN139: 0 | AO139: 0 | AP139: 0 | AQ139: 0 | AR139: 0 | AS139: 0 | AT139: 0 | AU139: Investment1AmountIn
C140: Investment 2 - New Intangible Assets Reversible - Depr. Variable | D140: € | E140: =+SUM(G140:AT140) -> 198739717.6 | G140: =9430053.77/2 -> 4715026.885 | H140: =9430053.77/2 -> 4715026.885 | I140: =+(25771609.16-5633418)/2 -> 10069095.58 | J140: =+(25771609.16-5633418)/2 -> 10069095.58 | K140: 8698568.335 | L140: 8698568.335 | M140: 585000 | N140: 585000 | O140: 14144 | P140: 2819500 | Q140: 1843000 | R140: 1843000 | S140: =5442123.285+85271.6749999225 -> 5527394.96 | T140: 8484297 | U140: 6860000 | V140: 6860000 | W140: 4726500 | X140: 4726500 | Y140: 8593000 | Z140: 8593000 | AA140: 16790000 | AB140: 16790000 | AC140: 13525000 | AD140: 13525000 | AE140: 8000000 | AF140: 8000000 | AG140: 1150000 | AH140: 1150000 | AI140: 316500 | AJ140: 316500 | AK140: 2875000 | AL140: 2875000 | AM140: 1575500 | AN140: 1575500 | AO140: 625000 | AP140: 625000 | AU140: Investment2AmountIn
C141: Investment 3 - New Tangible Assets (Reversible) | D141: € | E141: =+SUM(G141:AT141) -> 1039531.679 | G141: =201762/2 -> 100881 | H141: =201762/2 -> 100881 | I141: =+G141*(1+1.5%) -> 102394.215 | J141: 102394.215 | K141: 103930.1282 | L141: 103930.1282 | M141: 105489.0801 | N141: 105489.0801 | O141: 107071.4164 | P141: 107071.4164 | AU141: Investment3AmountIn
C142: Investment 4 - New Intangibles Asset Non Reversible | D142: € | E142: =+SUM(G142:AT142) -> 10595692.96 | G142: =+(190000+90000)/2 -> 140000 | H142: =+(190000+90000)/2 -> 140000 | I142: =90000/2*(1+1.5%) -> 45675 | J142: =90000/2*(1+1.5%) -> 45675 | K142: =I142*(1+1.5%) -> 46360.125 | L142: =J142*(1+1.5%) -> 46360.125 | M142: 47055.52687 | N142: 47055.52687 | O142: 47761.35978 | P142: 47761.35978 | Q142: 912500 | R142: 912500 | S142: =478500-258226.635000001 -> 220273.365 | T142: 562773.57 | U142: 530500 | V142: 530500 | W142: 318500 | X142: 318500 | Y142: 318500 | Z142: 318500 | AA142: 312500 | AB142: 312500 | AC142: 312500 | AD142: 312500 | AE142: 312500 | AF142: 312500 | AG142: 312500 | AH142: 312500 | AI142: 312500 | AJ142: 312500 | AK142: 312500 | AL142: 312500 | AM142: 312500 | AN142: 312500 | AO142: 311971 | AP142: 311971 | AQ142: 0 | AR142: 0 | AS142: 0 | AT142: 0 | AU142: Investment4AmountIn
B144: Sensitivity | O144: =SUM(O139:AP140) -> 156237484
C145: Capex Flat Incease | D145: % | G145: =+SensSelectCapexFlatIncreaseIn -> 0 | H145: CapexFlatIncreaseIn | O145: =O144-36397640 -> 119839844
O146: =O145/2 -> 59919921.98
C149: Traffic and Other Revenues
C151: Goal Seek su poste figurative | E151: X
B153: Traffic - Central Scenario (Yearly Data - Forecast) | G153: <- Stime SDG Ottobre 2015
D154: year | G154: =+YearForYearlyData -> 2015 | H154: 2016 | I154: 2017 | J154: 2018 | K154: 2019 | L154: 2020 | M154: 2021 | N154: 2022 | O154: 2023 | P154: 2024 | Q154: 2025 | R154: 2026 | S154: 2027 | T154: 2028 | U154: 2029 | V154: 2030 | W154: 2031 | X154: 2032 | Y154: 2033 | Z154: 2034 | AA154: 2035 | AB154: 2036 | AC154: 2037 | AD154: 2038 | AE154: 2039 | AF154: 2040 | AG154: 2041 | AH154: 2042 | AI154: 2043 | AJ154: 2044 | AK154: 2045 | AL154: 2046 | AM154: =+YearForYearlyData -> 2047 | AN154: 2048 | AO154: 2049 | AP154: 2050 | AQ154: 2051 | AR154: 2052 | AS154: 2053 | AT154: 2054
C155: Passante Class A | D155: vkm / y | E155: =+SUM(G155:AT155) -> 7622587378 | G155: 398944264.4 | H155: 424429059.4 | I155: 440200519.4 | J155: 446477109.2 | K155: 446221332.5 | L155: 294217237.4 | M155: 387770252.9 | N155: 427266382.2 | O155: 429710193.2 | P155: 431486456.6 | Q155: 430895002.8 | R155: 429913280.2 | S155: 432340284.5 | T155: 435972170.8 | U155: 437235474.2 | V155: 439703814.7 | W155: 442809659.4 | X155: 446994884.2 | Y155: 0 | Z155: 0 | AA155: 0 | AB155: 0 | AC155: 0 | AD155: 0 | AE155: 0 | AF155: 0 | AG155: 0 | AH155: 0 | AI155: 0 | AJ155: 0 | AK155: 0 | AL155: 0 | AM155: 0 | AN155: 0 | AO155: 0 | AP155: 0 | AQ155: 0 | AR155: 0 | AS155: 0 | AT155: 0 | AU155: TrafficPassanteACentralYFcstIn
C156: Passante Class B | D156: vkm / y | E156: =+SUM(G156:AT156) -> 1229733338 | G156: 60257864.36 | H156: 64024907.89 | I156: 66370205.49 | J156: 68028986.71 | K156: 69413980.99 | L156: 53409645.75 | M156: 66007063.26 | N156: 68707827.05 | O156: 69109762.47 | P156: 69731383.8 | Q156: 69994515.48 | R156: 70054843.9 | S156: 70705857.43 | T156: 71558435.63 | U156: 72026090.15 | V156: 72695422.29 | W156: 73384531.64 | X156: 74252013.48 | Y156: 0 | Z156: 0 | AA156: 0 | AB156: 0 | AC156: 0 | AD156: 0 | AE156: 0 | AF156: 0 | AG156: 0 | AH156: 0 | AI156: 0 | AJ156: 0 | AK156: 0 | AL156: 0 | AM156: 0 | AN156: 0 | AO156: 0 | AP156: 0 | AQ156: 0 | AR156: 0 | AS156: 0 | AT156: 0 | AU156: TrafficPassanteBCentralYFcstIn
C157: Passante Class 3 | D157: vkm / y | E157: 234809750.7 | G157: 10669146.12 | H157: 11412944.19 | I157: 12169196.31 | J157: 12686630.91 | K157: 12954093.83 | L157: 10310925.37 | M157: 12963976.36 | N157: 13296965.83 | O157: 13362386.9 | P157: 13481743.96 | Q157: 13538288.57 | R157: 13538072.54 | S157: 13684283.72 | T157: 13869970.08 | U157: 13981460.38 | V157: 14132460.15 | W157: 14285090.72 | X157: 14472114.71 | Y157: 0 | Z157: 0 | AA157: 0 | AB157: 0 | AC157: 0 | AD157: 0 | AE157: 0 | AF157: 0 | AG157: 0 | AH157: 0 | AI157: 0 | AJ157: 0 | AK157: 0 | AL157: 0 | AM157: 0 | AN157: 0 | AO157: 0 | AP157: 0 | AQ157: 0 | AR157: 0 | AS157: 0 | AT157: 0 | AU157: TrafficPassante3CentralYFcstIn
C158: Passante Class 4 | D158: vkm / y | E158: 199922213.3 | G158: 9024685.419 | H158: 9564575.722 | I158: 10280535.37 | J158: 10717664.05 | K158: 10943616.69 | L158: 8689249.808 | M158: 11081290.52 | N158: 11365921.8 | O158: 11421842.13 | P158: 11523865.63 | Q158: 11572198.58 | R158: 11572013.92 | S158: 11696991.67 | T158: 11855711.83 | U158: 11951011.03 | V158: 12080081.95 | W158: 12210546.83 | X158: 12370410.37 | Y158: 0 | Z158: 0 | AA158: 0 | AB158: 0 | AC158: 0 | AD158: 0 | AE158: 0 | AF158: 0 | AG158: 0 | AH158: 0 | AI158: 0 | AJ158: 0 | AK158: 0 | AL158: 0 | AM158: 0 | AN158: 0 | AO158: 0 | AP158: 0 | AQ158: 0 | AR158: 0 | AS158: 0 | AT158: 0 | AU158: TrafficPassante4CentralYFcstIn
C159: Passante Class 5 | D159: vkm / y | E159: 2089986472 | G159: 89814683.34 | H159: 96520631.79 | I159: 105697750.9 | J159: 110192022.5 | K159: 112515120 | L159: 104913278.9 | M159: 115799350 | N159: 118773743.3 | O159: 119358110.1 | P159: 120424254.4 | Q159: 120929333.1 | R159: 120927403.4 | S159: 122233419.4 | T159: 123892043.2 | U159: 124887918.5 | V159: 126236708.1 | W159: 127600064.5 | X159: 129270636.6 | Y159: 0 | Z159: 0 | AA159: 0 | AB159: 0 | AC159: 0 | AD159: 0 | AE159: 0 | AF159: 0 | AG159: 0 | AH159: 0 | AI159: 0 | AJ159: 0 | AK159: 0 | AL159: 0 | AM159: 0 | AN159: 0 | AO159: 0 | AP159: 0 | AQ159: 0 | AR159: 0 | AS159: 0 | AT159: 0 | AU159: TrafficPassante5CentralYFcstIn
C160: Closed System Class A | D160: vkm / y | E160: 6378049640 | G160: 347493004 | H160: 360921766.5 | I160: 370007498.6 | J160: 369585362.5 | K160: 368297148.4 | L160: 243788401.6 | M160: 298924391.2 | N160: 352652324.6 | O160: 357710634.3 | P160: 361083403.9 | Q160: 361876292.8 | R160: 362689021.9 | S160: 364736522.7 | T160: 367800501.8 | U160: 368866266.2 | V160: 370948639.6 | W160: 373568832.7 | X160: 377099626.4 | Y160: 0 | Z160: 0 | AA160: 0 | AB160: 0 | AC160: 0 | AD160: 0 | AE160: 0 | AF160: 0 | AG160: 0 | AH160: 0 | AI160: 0 | AJ160: 0 | AK160: 0 | AL160: 0 | AM160: 0 | AN160: 0 | AO160: 0 | AP160: 0 | AQ160: 0 | AR160: 0 | AS160: 0 | AT160: 0 | AU160: TrafficClosedSystemACentralYFcstIn
C161: Closed System Class B | D161: vkm / y | E161: 858971597.8 | G161: 44069696.32 | H161: 45079718.99 | I161: 46800228.14 | J161: 47646089.74 | K161: 48091336.36 | L161: 36178206.51 | M161: 42653006.38 | N161: 47602099.38 | O161: 48155517.88 | P161: 48761993.76 | Q161: 49065014.5 | R161: 49259746.51 | S161: 49717513.02 | T161: 50317011.69 | U161: 50645847.52 | V161: 51116494.95 | W161: 51601048.9 | X161: 52211027.21 | Y161: 0 | Z161: 0 | AA161: 0 | AB161: 0 | AC161: 0 | AD161: 0 | AE161: 0 | AF161: 0 | AG161: 0 | AH161: 0 | AI161: 0 | AJ161: 0 | AK161: 0 | AL161: 0 | AM161: 0 | AN161: 0 | AO161: 0 | AP161: 0 | AQ161: 0 | AR161: 0 | AS161: 0 | AT161: 0 | AU161: TrafficClosedSystemBCentralYFcstIn
C162: Closed System Class 3 | D162: vkm / y | E162: 149171468.2 | G162: 7005789.834 | H162: 7402575.222 | I162: 7832604.049 | J162: 8159678.222 | K162: 8345986.878 | L162: 6107456.48 | M162: 7703625.435 | N162: 8362490.435 | O162: 8455615.128 | P162: 8564197.273 | Q162: 8622951.491 | R162: 8652189.818 | S162: 8745633.468 | T162: 8864305.724 | U162: 8935559.242 | V162: 9032063.281 | W162: 9129609.565 | X162: 9249136.703 | Y162: 0 | Z162: 0 | AA162: 0 | AB162: 0 | AC162: 0 | AD162: 0 | AE162: 0 | AF162: 0 | AG162: 0 | AH162: 0 | AI162: 0 | AJ162: 0 | AK162: 0 | AL162: 0 | AM162: 0 | AN162: 0 | AO162: 0 | AP162: 0 | AQ162: 0 | AR162: 0 | AS162: 0 | AT162: 0 | AU162: TrafficClosedSystem3CentralYFcstIn
C163: Closed System Class 4 | D163: vkm / y | E163: 109120642.4 | G163: 5268456.981 | H163: 5301304.308 | I163: 5604675.483 | J163: 5838715.732 | K163: 5972030.214 | L163: 4638890.379 | M163: 5649115.524 | N163: 6132265.247 | O163: 6200554.153 | P163: 6280178.102 | Q163: 6323262.929 | R163: 6344703.572 | S163: 6413226.371 | T163: 6500249.46 | U163: 6552500.099 | V163: 6623267.1 | W163: 6694798.385 | X163: 6782448.365 | Y163: 0 | Z163: 0 | AA163: 0 | AB163: 0 | AC163: 0 | AD163: 0 | AE163: 0 | AF163: 0 | AG163: 0 | AH163: 0 | AI163: 0 | AJ163: 0 | AK163: 0 | AL163: 0 | AM163: 0 | AN163: 0 | AO163: 0 | AP163: 0 | AQ163: 0 | AR163: 0 | AS163: 0 | AT163: 0 | AU163: TrafficClosedSystem4CentralYFcstIn
C164: Closed System Class 5 | D164: vkm / y | E164: 1190449661 | G164: 51896701.86 | H164: 55451906.29 | I164: 59638949.84 | J164: 62129355.35 | K164: 63547945.2 | L164: 57251232.99 | M164: 62071688.69 | N164: 67380470.05 | O164: 68130818.96 | P164: 69005715.74 | Q164: 69479125.77 | R164: 69714712.56 | S164: 70467631.45 | T164: 71423828.94 | U164: 71997951.63 | V164: 72775529.51 | W164: 73561505.23 | X164: 74524590.91 | Y164: 0 | Z164: 0 | AA164: 0 | AB164: 0 | AC164: 0 | AD164: 0 | AE164: 0 | AF164: 0 | AG164: 0 | AH164: 0 | AI164: 0 | AJ164: 0 | AK164: 0 | AL164: 0 | AM164: 0 | AN164: 0 | AO164: 0 | AP164: 0 | AQ164: 0 | AR164: 0 | AS164: 0 | AT164: 0 | AU164: TrafficClosedSystem5CentralYFcstIn
C165: Barriers Class A | D165: transits / y | E165: 428685510.3 | G165: 23309209.41 | H165: 23920486.62 | I165: 24254972.91 | J165: 24131018.93 | K165: 24183292.51 | L165: 16152037.54 | M165: 19015791.41 | N165: 23016307.64 | O165: 23822857.99 | P165: 24339436.76 | Q165: 24582533.28 | R165: 24870735.94 | S165: 25043687.14 | T165: 25286931.03 | U165: 25393206.03 | V165: 25569790.5 | W165: 25766637.81 | X165: 26026576.81 | Y165: 0 | Z165: 0 | AA165: 0 | AB165: 0 | AC165: 0 | AD165: 0 | AE165: 0 | AF165: 0 | AG165: 0 | AH165: 0 | AI165: 0 | AJ165: 0 | AK165: 0 | AL165: 0 | AM165: 0 | AN165: 0 | AO165: 0 | AP165: 0 | AQ165: 0 | AR165: 0 | AS165: 0 | AT165: 0 | AU165: TransitsBarriersACentralYFcstIn
C166: Barriers Class B | D166: transits / y | E166: 54083470.19 | G166: 2822845.93 | H166: 2830185.14 | I166: 2904809.28 | J166: 2930013.354 | K166: 2955765.67 | L166: 2218422.437 | M166: 2536231.836 | N166: 2921092.15 | O166: 3014638.426 | P166: 3086319.744 | Q166: 3125507.346 | R166: 3170010.058 | S166: 3194441.253 | T166: 3227880.084 | U166: 3243869.967 | V166: 3268870.399 | W166: 3297821.473 | X166: 3334745.639 | Y166: 0 | Z166: 0 | AA166: 0 | AB166: 0 | AC166: 0 | AD166: 0 | AE166: 0 | AF166: 0 | AG166: 0 | AH166: 0 | AI166: 0 | AJ166: 0 | AK166: 0 | AL166: 0 | AM166: 0 | AN166: 0 | AO166: 0 | AP166: 0 | AQ166: 0 | AR166: 0 | AS166: 0 | AT166: 0 | AU166: TransitsBarriersBCentralYFcstIn
C167: Barriers Class 3 | D167: transits / y | E167: 8544716.698 | G167: 419596.2624 | H167: 431963.9828 | I167: 442336.6816 | J167: 462512.2984 | K167: 471941.5665 | L167: 340856.8817 | M167: 441963.1539 | N167: 458033.972 | O167: 474687.6748 | P167: 487394.5225 | Q167: 494705.9088 | R167: 502717.897 | S167: 507187.6943 | T167: 513099.144 | U167: 516246.8687 | V167: 520836.9557 | W167: 526071.59 | X167: 532563.6424 | Y167: 0 | Z167: 0 | AA167: 0 | AB167: 0 | AC167: 0 | AD167: 0 | AE167: 0 | AF167: 0 | AG167: 0 | AH167: 0 | AI167: 0 | AJ167: 0 | AK167: 0 | AL167: 0 | AM167: 0 | AN167: 0 | AO167: 0 | AP167: 0 | AQ167: 0 | AR167: 0 | AS167: 0 | AT167: 0 | AU167: TransitsBarriers3CentralYFcstIn
C168: Barriers Class 4 | D168: transits / y | E168: 5349391.92 | G168: 270178.9076 | H168: 261868.3349 | I168: 264125.1507 | J168: 275794.647 | K168: 280767.2738 | L168: 247651.3307 | M168: 279903.6548 | N168: 287535.9845 | O168: 297794.3482 | P168: 305645.8279 | Q168: 310149.8227 | R168: 315070.3152 | S168: 317871.6884 | T168: 321576.5939 | U168: 323549.3795 | V168: 326426.1423 | W168: 329706.8648 | X168: 333775.6537 | Y168: 0 | Z168: 0 | AA168: 0 | AB168: 0 | AC168: 0 | AD168: 0 | AE168: 0 | AF168: 0 | AG168: 0 | AH168: 0 | AI168: 0 | AJ168: 0 | AK168: 0 | AL168: 0 | AM168: 0 | AN168: 0 | AO168: 0 | AP168: 0 | AQ168: 0 | AR168: 0 | AS168: 0 | AT168: 0 | AU168: TransitsBarriers4CentralYFcstIn
C169: Barriers Class 5 | D169: transits / y | E169: =+SUM(G169:AT169) -> 57895582.34 | G169: 2584019.017 | H169: 2697958.921 | I169: 2798437.65 | J169: 2923703.931 | K169: 2978963.756 | L169: 2933086.603 | M169: 3049773.46 | N169: 3143989.968 | O169: 3256056.404 | P169: 3341841.845 | Q169: 3391045.439 | R169: 3444791.115 | S169: 3475419.661 | T169: 3515926.89 | U169: 3537496.152 | V169: 3568948.963 | W169: 3604818.428 | X169: 3649304.142 | Y169: 0 | Z169: 0 | AA169: 0 | AB169: 0 | AC169: 0 | AD169: 0 | AE169: 0 | AF169: 0 | AG169: 0 | AH169: 0 | AI169: 0 | AJ169: 0 | AK169: 0 | AL169: 0 | AM169: 0 | AN169: 0 | AO169: 0 | AP169: 0 | AQ169: 0 | AR169: 0 | AS169: 0 | AT169: 0 | AU169: TransitsBarriers5CentralYFcstIn
B171: Traffic - Downside Scenario (Yearly Data - Forecast) | G171: <- Stime SDG Ottobre 2015
D172: year | G172: =+YearForYearlyData -> 2015 | H172: 2016 | I172: 2017 | J172: 2018 | K172: 2019 | L172: 2020 | M172: 2021 | N172: 2022 | O172: 2023 | P172: 2024 | Q172: 2025 | R172: 2026 | S172: 2027 | T172: 2028 | U172: 2029 | V172: 2030 | W172: 2031 | X172: 2032 | Y172: 2033 | Z172: 2034 | AA172: 2035 | AB172: 2036 | AC172: 2037 | AD172: 2038 | AE172: 2039 | AF172: 2040 | AG172: 2041 | AH172: 2042 | AI172: 2043 | AJ172: 2044 | AK172: 2045 | AL172: 2046 | AM172: 2047 | AN172: 2048 | AO172: 2049 | AP172: 2050 | AQ172: 2051 | AR172: 2052 | AS172: 2053 | AT172: 2054
C173: Passante Class A | D173: vkm / y | E173: =+SUM(G173:AT173) -> 7233269356 | G173: 397894218 | H173: 401286438 | I173: 405638435 | J173: 394192524 | K173: 377616909 | L173: 376981964 | M173: 382253053 | N173: 387552368 | O173: 392880031 | P173: 398236165 | Q173: 402327916 | R173: 405945975 | S173: 409481650 | T173: 413018913 | U173: 416578863 | V173: 420166939 | W173: 423784533 | X173: 427432462 | Y173: 0 | Z173: 0 | AA173: 0 | AB173: 0 | AC173: 0 | AD173: 0 | AE173: 0 | AF173: 0 | AG173: 0 | AH173: 0 | AI173: 0 | AJ173: 0 | AK173: 0 | AL173: 0 | AM173: 0 | AN173: 0 | AO173: 0 | AP173: 0 | AQ173: 0 | AR173: 0 | AS173: 0 | AT173: 0 | AU173: TrafficPassanteADownsideYFcstIn
C174: Passante Class B | D174: vkm / y | E174: 1054926879 | G174: 59688724 | H174: 60072832 | I174: 60596062 | J174: 58242490 | K174: 54896664 | L174: 54664637 | M174: 55446945 | N174: 56233110 | O174: 57023145 | P174: 57817066 | Q174: 58348086 | R174: 58822043 | S174: 59299367 | T174: 59780075 | U174: 60264183 | V174: 60751708 | W174: 61242667 | X174: 61737075 | Y174: 0 | Z174: 0 | AA174: 0 | AB174: 0 | AC174: 0 | AD174: 0 | AE174: 0 | AF174: 0 | AG174: 0 | AH174: 0 | AI174: 0 | AJ174: 0 | AK174: 0 | AL174: 0 | AM174: 0 | AN174: 0 | AO174: 0 | AP174: 0 | AQ174: 0 | AR174: 0 | AS174: 0 | AT174: 0 | AU174: TrafficPassanteBDownsideYFcstIn
C175: Passante Class 3 | D175: vkm / y | E175: 200403633 | G175: 10443612 | H175: 10571155 | I175: 10770499 | J175: 10467816 | K175: 9965523 | L175: 10007241 | M175: 10257048 | N175: 10506404 | O175: 10759439 | P175: 11004631 | Q175: 11199695 | R175: 11414076 | S175: 11632521 | T175: 11843497 | U175: 12058258 | V175: 12276873 | W175: 12499409 | X175: 12725936 | Y175: 0 | Z175: 0 | AA175: 0 | AB175: 0 | AC175: 0 | AD175: 0 | AE175: 0 | AF175: 0 | AG175: 0 | AH175: 0 | AI175: 0 | AJ175: 0 | AK175: 0 | AL175: 0 | AM175: 0 | AN175: 0 | AO175: 0 | AP175: 0 | AQ175: 0 | AR175: 0 | AS175: 0 | AT175: 0 | AU175: TrafficPassante3DownsideYFcstIn
C176: Passante Class 4 | D176: vkm / y | E176: 172134195 | G176: 8970410 | H176: 9079962 | I176: 9251185 | J176: 8991200 | K176: 8559761 | L176: 8595594 | M176: 8810163 | N176: 9024344 | O176: 9241686 | P176: 9452290 | Q176: 9619838 | R176: 9803978 | S176: 9991609 | T176: 10172824 | U176: 10357290 | V176: 10545067 | W176: 10736211 | X176: 10930783 | Y176: 0 | Z176: 0 | AA176: 0 | AB176: 0 | AC176: 0 | AD176: 0 | AE176: 0 | AF176: 0 | AG176: 0 | AH176: 0 | AI176: 0 | AJ176: 0 | AK176: 0 | AL176: 0 | AM176: 0 | AN176: 0 | AO176: 0 | AP176: 0 | AQ176: 0 | AR176: 0 | AS176: 0 | AT176: 0 | AU176: TrafficPassante4DownsideYFcstIn
C177: Passante Class 5 | D177: vkm / y | E177: 1702912794 | G177: 88743702 | H177: 89827492 | I177: 91521395 | J177: 88949375 | K177: 84681179 | L177: 85035676 | M177: 87158390 | N177: 89277272 | O177: 91427419 | P177: 93510913 | Q177: 95168454 | R177: 96990136 | S177: 98846360 | T177: 100639106 | U177: 102464024 | V177: 104321684 | W177: 106212663 | X177: 108137554 | Y177: 0 | Z177: 0 | AA177: 0 | AB177: 0 | AC177: 0 | AD177: 0 | AE177: 0 | AF177: 0 | AG177: 0 | AH177: 0 | AI177: 0 | AJ177: 0 | AK177: 0 | AL177: 0 | AM177: 0 | AN177: 0 | AO177: 0 | AP177: 0 | AQ177: 0 | AR177: 0 | AS177: 0 | AT177: 0 | AU177: TrafficPassante5DownsideYFcstIn
C178: Closed System Class A | D178: vkm / y | E178: 6411198308 | G178: 345683343 | H178: 348630443 | I178: 352411380 | J178: 345831773 | K178: 335536205 | L178: 335850639 | M178: 340546616 | N178: 345267739 | O178: 350014118 | P178: 354785860 | Q178: 358431173 | R178: 361654477 | S178: 364804386 | T178: 367955709 | U178: 371127244 | V178: 374323836 | W178: 377546726 | X178: 380796641 | Y178: 0 | Z178: 0 | AA178: 0 | AB178: 0 | AC178: 0 | AD178: 0 | AE178: 0 | AF178: 0 | AG178: 0 | AH178: 0 | AI178: 0 | AJ178: 0 | AK178: 0 | AL178: 0 | AM178: 0 | AN178: 0 | AO178: 0 | AP178: 0 | AQ178: 0 | AR178: 0 | AS178: 0 | AT178: 0 | AU178: TrafficClosedSystemADownsideYFcstIn
C179: Closed System Class B | D179: vkm / y | E179: 786523584 | G179: 43788268 | H179: 44070053 | I179: 44453900 | J179: 43065263 | K179: 41015871 | L179: 40930824 | M179: 41516588 | N179: 42105238 | O179: 42696786 | P179: 43291245 | Q179: 43688852 | R179: 44043734 | S179: 44401136 | T179: 44761072 | U179: 45123554 | V179: 45488594 | W179: 45856206 | X179: 46226400 | Y179: 0 | Z179: 0 | AA179: 0 | AB179: 0 | AC179: 0 | AD179: 0 | AE179: 0 | AF179: 0 | AG179: 0 | AH179: 0 | AI179: 0 | AJ179: 0 | AK179: 0 | AL179: 0 | AM179: 0 | AN179: 0 | AO179: 0 | AP179: 0 | AQ179: 0 | AR179: 0 | AS179: 0 | AT179: 0 | AU179: TrafficClosedSystemBDownsideYFcstIn
C180: Closed System Class 3 | D180: vkm / y | E180: 133555757 | G180: 6859188 | H180: 6942956 | I180: 7073882 | J180: 6923182 | K180: 6652061 | L180: 6692731 | M180: 6859799 | N180: 7026565 | O180: 7195793 | P180: 7359774 | Q180: 7490231 | R180: 7633606 | S180: 7779700 | T180: 7920798 | U180: 8064428 | V180: 8210635 | W180: 8359465 | X180: 8510963 | Y180: 0 | Z180: 0 | AA180: 0 | AB180: 0 | AC180: 0 | AD180: 0 | AE180: 0 | AF180: 0 | AG180: 0 | AH180: 0 | AI180: 0 | AJ180: 0 | AK180: 0 | AL180: 0 | AM180: 0 | AN180: 0 | AO180: 0 | AP180: 0 | AQ180: 0 | AR180: 0 | AS180: 0 | AT180: 0 | AU180: TrafficClosedSystem3DownsideYFcstIn
C181: Closed System Class 4 | D181: vkm / y | E181: 104450963 | G181: 5364417 | H181: 5429930 | I181: 5532324 | J181: 5414465 | K181: 5202428 | L181: 5234235 | M181: 5364895 | N181: 5495319 | O181: 5627668 | P181: 5755914 | Q181: 5857941 | R181: 5970072 | S181: 6084329 | T181: 6194679 | U181: 6307009 | V181: 6421354 | W181: 6537750 | X181: 6656234 | Y181: 0 | Z181: 0 | AA181: 0 | AB181: 0 | AC181: 0 | AD181: 0 | AE181: 0 | AF181: 0 | AG181: 0 | AH181: 0 | AI181: 0 | AJ181: 0 | AK181: 0 | AL181: 0 | AM181: 0 | AN181: 0 | AO181: 0 | AP181: 0 | AQ181: 0 | AR181: 0 | AS181: 0 | AT181: 0 | AU181: TrafficClosedSystem4DownsideYFcstIn
C182: Closed System Class 5 | D182: vkm / y | E182: 988911875 | G182: 50788767 | H182: 51409029 | I182: 52378464 | J182: 51262611 | K182: 49255101 | L182: 49556237 | M182: 50793292 | N182: 52028112 | O182: 53281153 | P182: 54495351 | Q182: 55461316 | R182: 56522938 | S182: 57604689 | T182: 58649448 | U182: 59712956 | V182: 60795543 | W182: 61897550 | X182: 63019318 | Y182: 0 | Z182: 0 | AA182: 0 | AB182: 0 | AC182: 0 | AD182: 0 | AE182: 0 | AF182: 0 | AG182: 0 | AH182: 0 | AI182: 0 | AJ182: 0 | AK182: 0 | AL182: 0 | AM182: 0 | AN182: 0 | AO182: 0 | AP182: 0 | AQ182: 0 | AR182: 0 | AS182: 0 | AT182: 0 | AU182: TrafficClosedSystem5DownsideYFcstIn
C183: Barriers Class A | D183: transits / y | E183: 453515337 | G183: 22974515 | H183: 23163265 | I183: 23418350 | J183: 23778486 | K183: 24160222 | L183: 24510673 | M183: 24755657 | N183: 25001889 | O183: 25249376 | P183: 25498122 | Q183: 25768160 | R183: 25946617 | S183: 26118723 | T183: 26289849 | U183: 26461333 | V183: 26633504 | W183: 26806435 | X183: 26980161 | Y183: 0 | Z183: 0 | AA183: 0 | AB183: 0 | AC183: 0 | AD183: 0 | AE183: 0 | AF183: 0 | AG183: 0 | AH183: 0 | AI183: 0 | AJ183: 0 | AK183: 0 | AL183: 0 | AM183: 0 | AN183: 0 | AO183: 0 | AP183: 0 | AQ183: 0 | AR183: 0 | AS183: 0 | AT183: 0 | AU183: TransitsBarriersADownsideYFcstIn
C184: Barriers Class B | D184: transits / y | E184: 54270580 | G184: 2790074 | H184: 2807701 | I184: 2832647 | J184: 2843620 | K184: 2840667 | L184: 2866897 | M184: 2909394 | N184: 2952100 | O184: 2995018 | P184: 3038147 | Q184: 3072414 | R184: 3101001 | S184: 3129846 | T184: 3158950 | U184: 3188315 | V184: 3217945 | W184: 3247840 | X184: 3278004 | Y184: 0 | Z184: 0 | AA184: 0 | AB184: 0 | AC184: 0 | AD184: 0 | AE184: 0 | AF184: 0 | AG184: 0 | AH184: 0 | AI184: 0 | AJ184: 0 | AK184: 0 | AL184: 0 | AM184: 0 | AN184: 0 | AO184: 0 | AP184: 0 | AQ184: 0 | AR184: 0 | AS184: 0 | AT184: 0 | AU184: TransitsBarriersBDownsideYFcstIn
C185: Barriers Class 3 | D185: transits / y | E185: 8770661 | G185: 409613 | H185: 414485 | I185: 422257 | J185: 433134 | K185: 444929 | L185: 454443 | M185: 464333 | N185: 474196 | O185: 484219 | P185: 493883 | Q185: 503006 | R185: 511951 | S185: 521051 | T185: 529788 | U185: 538666 | V185: 547687 | W185: 556853 | X185: 566167 | Y185: 0 | Z185: 0 | AA185: 0 | AB185: 0 | AC185: 0 | AD185: 0 | AE185: 0 | AF185: 0 | AG185: 0 | AH185: 0 | AI185: 0 | AJ185: 0 | AK185: 0 | AL185: 0 | AM185: 0 | AN185: 0 | AO185: 0 | AP185: 0 | AQ185: 0 | AR185: 0 | AS185: 0 | AT185: 0 | AU185: TransitsBarriers3DownsideYFcstIn
C186: Barriers Class 4 | D186: transits / y | E186: 6067034 | G186: 283347 | H186: 286716 | I186: 292093 | J186: 299617 | K186: 307776 | L186: 314357 | M186: 321198 | N186: 328021 | O186: 334954 | P186: 341640 | Q186: 347950 | R186: 354138 | S186: 360433 | T186: 366477 | U186: 372618 | V186: 378858 | W186: 385199 | X186: 391642 | Y186: 0 | Z186: 0 | AA186: 0 | AB186: 0 | AC186: 0 | AD186: 0 | AE186: 0 | AF186: 0 | AG186: 0 | AH186: 0 | AI186: 0 | AJ186: 0 | AK186: 0 | AL186: 0 | AM186: 0 | AN186: 0 | AO186: 0 | AP186: 0 | AQ186: 0 | AR186: 0 | AS186: 0 | AT186: 0 | AU186: TransitsBarriers4DownsideYFcstIn
C187: Barriers Class 5 | D187: transits / y | E187: 53350541 | G187: 2491611 | H187: 2521244 | I187: 2568524 | J187: 2634687 | K187: 2706432 | L187: 2764305 | M187: 2824462 | N187: 2884457 | O187: 2945425 | P187: 3004213 | Q187: 3059703 | R187: 3114119 | S187: 3169472 | T187: 3222617 | U187: 3276619 | V187: 3331493 | W187: 3387251 | X187: 3443907 | Y187: 0 | Z187: 0 | AA187: 0 | AB187: 0 | AC187: 0 | AD187: 0 | AE187: 0 | AF187: 0 | AG187: 0 | AH187: 0 | AI187: 0 | AJ187: 0 | AK187: 0 | AL187: 0 | AM187: 0 | AN187: 0 | AO187: 0 | AP187: 0 | AQ187: 0 | AR187: 0 | AS187: 0 | AT187: 0 | AU187: TransitsBarriers5DownsideYFcstIn
B189: Traffic - SDG-LF Scenario (Yearly Data - Forecast) | G189: <- Stime SDG Luglio 2014 (tenendo conto osservazioni LF)
D190: year | G190: =+YearForYearlyData -> 2015 | H190: 2016 | I190: 2017 | J190: 2018 | K190: 2019 | L190: 2020 | M190: 2021 | N190: 2022 | O190: 2023 | P190: 2024 | Q190: 2025 | R190: 2026 | S190: 2027 | T190: 2028 | U190: 2029 | V190: 2030 | W190: 2031 | X190: 2032 | Y190: 2033 | Z190: 2034 | AA190: 2035 | AB190: 2036 | AC190: 2037 | AD190: 2038 | AE190: 2039 | AF190: 2040 | AG190: 2041 | AH190: 2042 | AI190: 2043 | AJ190: 2044 | AK190: 2045 | AL190: 2046 | AM190: 2047 | AN190: 2048 | AO190: 2049 | AP190: 2050 | AQ190: 2051 | AR190: 2052 | AS190: 2053 | AT190: 2054
C191: Passante Class A | D191: vkm / y | E191: =+SUM(G191:AT191) -> 7113151341 | G191: 375230447 | H191: 379580536 | I191: 384725789 | J191: 380933099 | K191: 374692609 | L191: 376814296 | M191: 380805924 | N191: 384839837 | O191: 388916480 | P191: 393036309 | Q191: 397199778 | R191: 401257949 | S191: 405357476 | T191: 409498861 | U191: 413682551 | V191: 417908982 | W191: 422178593 | X191: 426491825 | Y191: 0 | Z191: 0 | AA191: 0 | AB191: 0 | AC191: 0 | AD191: 0 | AE191: 0 | AF191: 0 | AG191: 0 | AH191: 0 | AI191: 0 | AJ191: 0 | AK191: 0 | AL191: 0 | AM191: 0 | AN191: 0 | AO191: 0 | AP191: 0 | AQ191: 0 | AR191: 0 | AS191: 0 | AT191: 0 | AU191: TrafficPassanteASDGLFYFcstIn
C192: Passante Class B | D192: vkm / y | E192: 1091932209 | G192: 57385399 | H192: 58177477 | I192: 59088060 | J192: 58329890 | K192: 57024332 | L192: 57320953 | M192: 58046154 | N192: 58780531 | O192: 59524198 | P192: 60277274 | Q192: 61039877 | R192: 61726323 | S192: 62420489 | T192: 63122461 | U192: 63832328 | V192: 64550177 | W192: 65276100 | X192: 66010186 | Y192: 0 | Z192: 0 | AA192: 0 | AB192: 0 | AC192: 0 | AD192: 0 | AE192: 0 | AF192: 0 | AG192: 0 | AH192: 0 | AI192: 0 | AJ192: 0 | AK192: 0 | AL192: 0 | AM192: 0 | AN192: 0 | AO192: 0 | AP192: 0 | AQ192: 0 | AR192: 0 | AS192: 0 | AT192: 0 | AU192: TrafficPassanteBSDGLFYFcstIn
C193: Passante Class 3 | D193: vkm / y | E193: 201812091 | G193: 10613282 | H193: 10826373 | I193: 11016918 | J193: 10886918 | K193: 10632499 | L193: 10683222 | M193: 10806673 | N193: 10923144 | O193: 11032376 | P193: 11142700 | Q193: 11254127 | R193: 11366668 | S193: 11480335 | T193: 11595138 | U193: 11711089 | V193: 11828200 | W193: 11946482 | X193: 12065947 | Y193: 0 | Z193: 0 | AA193: 0 | AB193: 0 | AC193: 0 | AD193: 0 | AE193: 0 | AF193: 0 | AG193: 0 | AH193: 0 | AI193: 0 | AJ193: 0 | AK193: 0 | AL193: 0 | AM193: 0 | AN193: 0 | AO193: 0 | AP193: 0 | AQ193: 0 | AR193: 0 | AS193: 0 | AT193: 0 | AU193: TrafficPassante3SDGLFYFcstIn
C194: Passante Class 4 | D194: vkm / y | E194: 176333869 | G194: 9273385 | H194: 9459574 | I194: 9626062 | J194: 9512475 | K194: 9290175 | L194: 9334495 | M194: 9442360 | N194: 9544127 | O194: 9639569 | P194: 9735964 | Q194: 9833324 | R194: 9931657 | S194: 10030974 | T194: 10131284 | U194: 10232596 | V194: 10334922 | W194: 10438272 | X194: 10542654 | Y194: 0 | Z194: 0 | AA194: 0 | AB194: 0 | AC194: 0 | AD194: 0 | AE194: 0 | AF194: 0 | AG194: 0 | AH194: 0 | AI194: 0 | AJ194: 0 | AK194: 0 | AL194: 0 | AM194: 0 | AN194: 0 | AO194: 0 | AP194: 0 | AQ194: 0 | AR194: 0 | AS194: 0 | AT194: 0 | AU194: TrafficPassante4SDGLFYFcstIn
C195: Passante Class 5 | D195: vkm / y | E195: 1654158410 | G195: 86992064 | H195: 88738671 | I195: 90300471 | J195: 89234926 | K195: 87149575 | L195: 87565326 | M195: 88577192 | N195: 89531857 | O195: 90427175 | P195: 91331447 | Q195: 92244762 | R195: 93167209 | S195: 94098881 | T195: 95039870 | U195: 95990269 | V195: 96950172 | W195: 97919673 | X195: 98898870 | Y195: 0 | Z195: 0 | AA195: 0 | AB195: 0 | AC195: 0 | AD195: 0 | AE195: 0 | AF195: 0 | AG195: 0 | AH195: 0 | AI195: 0 | AJ195: 0 | AK195: 0 | AL195: 0 | AM195: 0 | AN195: 0 | AO195: 0 | AP195: 0 | AQ195: 0 | AR195: 0 | AS195: 0 | AT195: 0 | AU195: TrafficPassante5SDGLFYFcstIn
C196: Closed System Class A | D196: vkm / y | E196: 6443593086 | G196: 333116151 | H196: 336978003 | I196: 341545775 | J196: 341501024 | K196: 340212194 | L196: 343036056 | M196: 346669868 | N196: 350342174 | O196: 354053381 | P196: 357803901 | Q196: 361594151 | R196: 365288540 | S196: 369020580 | T196: 372790724 | U196: 376599381 | V196: 380446948 | W196: 384333824 | X196: 388260411 | Y196: 0 | Z196: 0 | AA196: 0 | AB196: 0 | AC196: 0 | AD196: 0 | AE196: 0 | AF196: 0 | AG196: 0 | AH196: 0 | AI196: 0 | AJ196: 0 | AK196: 0 | AL196: 0 | AM196: 0 | AN196: 0 | AO196: 0 | AP196: 0 | AQ196: 0 | AR196: 0 | AS196: 0 | AT196: 0 | AU196: TrafficClosedSystemASDGLFYFcstIn
C197: Closed System Class B | D197: vkm / y | E197: 845577227 | G197: 43714775 | H197: 44318161 | I197: 45011821 | J197: 44785734 | K197: 44241268 | L197: 44567554 | M197: 45131405 | N197: 45702389 | O197: 46280597 | P197: 46866121 | Q197: 47459052 | R197: 47992770 | S197: 48532490 | T197: 49078279 | U197: 49630207 | V197: 50188341 | W197: 50752752 | X197: 51323511 | Y197: 0 | Z197: 0 | AA197: 0 | AB197: 0 | AC197: 0 | AD197: 0 | AE197: 0 | AF197: 0 | AG197: 0 | AH197: 0 | AI197: 0 | AJ197: 0 | AK197: 0 | AL197: 0 | AM197: 0 | AN197: 0 | AO197: 0 | AP197: 0 | AQ197: 0 | AR197: 0 | AS197: 0 | AT197: 0 | AU197: TrafficClosedSystemBSDGLFYFcstIn
C198: Closed System Class 3 | D198: vkm / y | E198: 141047183 | G198: 7310718 | H198: 7457500 | I198: 7588753 | J198: 7551669 | K198: 7443545 | L198: 7493411 | M198: 7580002 | N198: 7661697 | O198: 7738314 | P198: 7815697 | Q198: 7893854 | R198: 7972793 | S198: 8052521 | T198: 8133046 | U198: 8214377 | V198: 8296520 | W198: 8379486 | X198: 8463280 | Y198: 0 | Z198: 0 | AA198: 0 | AB198: 0 | AC198: 0 | AD198: 0 | AE198: 0 | AF198: 0 | AG198: 0 | AH198: 0 | AI198: 0 | AJ198: 0 | AK198: 0 | AL198: 0 | AM198: 0 | AN198: 0 | AO198: 0 | AP198: 0 | AQ198: 0 | AR198: 0 | AS198: 0 | AT198: 0 | AU198: TrafficClosedSystem3SDGLFYFcstIn
C199: Closed System Class 4 | D199: vkm / y | E199: 106067839 | G199: 5497678 | H199: 5608059 | I199: 5706761 | J199: 5678874 | K199: 5597565 | L199: 5635064 | M199: 5700181 | N199: 5761616 | O199: 5819232 | P199: 5877424 | Q199: 5936199 | R199: 5995561 | S199: 6055516 | T199: 6116071 | U199: 6177232 | V199: 6239004 | W199: 6301394 | X199: 6364408 | Y199: 0 | Z199: 0 | AA199: 0 | AB199: 0 | AC199: 0 | AD199: 0 | AE199: 0 | AF199: 0 | AG199: 0 | AH199: 0 | AI199: 0 | AJ199: 0 | AK199: 0 | AL199: 0 | AM199: 0 | AN199: 0 | AO199: 0 | AP199: 0 | AQ199: 0 | AR199: 0 | AS199: 0 | AT199: 0 | AU199: TrafficClosedSystem4SDGLFYFcstIn
C200: Closed System Class 5 | D200: vkm / y | E200: 960579506 | G200: 49788484 | H200: 50788126 | I200: 51681997 | J200: 51429444 | K200: 50693086 | L200: 51032690 | M200: 51622401 | N200: 52178776 | O200: 52700564 | P200: 53227570 | Q200: 53759845 | R200: 54297444 | S200: 54840418 | T200: 55388822 | U200: 55942711 | V200: 56502138 | W200: 57067159 | X200: 57637831 | Y200: 0 | Z200: 0 | AA200: 0 | AB200: 0 | AC200: 0 | AD200: 0 | AE200: 0 | AF200: 0 | AG200: 0 | AH200: 0 | AI200: 0 | AJ200: 0 | AK200: 0 | AL200: 0 | AM200: 0 | AN200: 0 | AO200: 0 | AP200: 0 | AQ200: 0 | AR200: 0 | AS200: 0 | AT200: 0 | AU200: TrafficClosedSystem5SDGLFYFcstIn
C201: Barriers Class A | D201: transits / y | E201: 448996603 | G201: 22591028 | H201: 22852929 | I201: 23162702 | J201: 23469464 | K201: 23778484 | L201: 24057672 | M201: 24312518 | N201: 24570062 | O201: 24830335 | P201: 25093365 | Q201: 25359182 | R201: 25618275 | S201: 25880009 | T201: 26144415 | U201: 26411523 | V201: 26681359 | W201: 26953952 | X201: 27229329 | Y201: 0 | Z201: 0 | AA201: 0 | AB201: 0 | AC201: 0 | AD201: 0 | AE201: 0 | AF201: 0 | AG201: 0 | AH201: 0 | AI201: 0 | AJ201: 0 | AK201: 0 | AL201: 0 | AM201: 0 | AN201: 0 | AO201: 0 | AP201: 0 | AQ201: 0 | AR201: 0 | AS201: 0 | AT201: 0 | AU201: TransitsBarriersASDGLFYFcstIn
C202: Barriers Class B | D202: transits / y | E202: 57011536 | G202: 2828179 | H202: 2867215 | I202: 2912093 | J202: 2956321 | K202: 2996464 | L202: 3034374 | M202: 3072764 | N202: 3111639 | O202: 3151007 | P202: 3190872 | Q202: 3231241 | R202: 3267580 | S202: 3304326 | T202: 3341486 | U202: 3379064 | V202: 3417065 | W202: 3455493 | X202: 3494353 | Y202: 0 | Z202: 0 | AA202: 0 | AB202: 0 | AC202: 0 | AD202: 0 | AE202: 0 | AF202: 0 | AG202: 0 | AH202: 0 | AI202: 0 | AJ202: 0 | AK202: 0 | AL202: 0 | AM202: 0 | AN202: 0 | AO202: 0 | AP202: 0 | AQ202: 0 | AR202: 0 | AS202: 0 | AT202: 0 | AU202: TransitsBarriersBSDGLFYFcstIn
C203: Barriers Class 3 | D203: transits / y | E203: 8758281 | G203: 434430 | H203: 443152 | I203: 450952 | J203: 458467 | K203: 464479 | L203: 470207 | M203: 475641 | N203: 480767 | O203: 485575 | P203: 490430 | Q203: 495335 | R203: 500288 | S203: 505291 | T203: 510344 | U203: 515447 | V203: 520602 | W203: 525808 | X203: 531066 | Y203: 0 | Z203: 0 | AA203: 0 | AB203: 0 | AC203: 0 | AD203: 0 | AE203: 0 | AF203: 0 | AG203: 0 | AH203: 0 | AI203: 0 | AJ203: 0 | AK203: 0 | AL203: 0 | AM203: 0 | AN203: 0 | AO203: 0 | AP203: 0 | AQ203: 0 | AR203: 0 | AS203: 0 | AT203: 0 | AU203: TransitsBarriers3SDGLFYFcstIn
C204: Barriers Class 4 | D204: transits / y | E204: 5530103 | G204: 274305 | H204: 279813 | I204: 284737 | J204: 289483 | K204: 293278 | L204: 296896 | M204: 300326 | N204: 303563 | O204: 306599 | P204: 309665 | Q204: 312761 | R204: 315889 | S204: 319048 | T204: 322238 | U204: 325461 | V204: 328715 | W204: 332003 | X204: 335323 | Y204: 0 | Z204: 0 | AA204: 0 | AB204: 0 | AC204: 0 | AD204: 0 | AE204: 0 | AF204: 0 | AG204: 0 | AH204: 0 | AI204: 0 | AJ204: 0 | AK204: 0 | AL204: 0 | AM204: 0 | AN204: 0 | AO204: 0 | AP204: 0 | AQ204: 0 | AR204: 0 | AS204: 0 | AT204: 0 | AU204: TransitsBarriers4SDGLFYFcstIn
C205: Barriers Class 5 | D205: transits / y | E205: 50263957 | G205: 2493202 | H205: 2543260 | I205: 2588021 | J205: 2631155 | K205: 2665653 | L205: 2698529 | M205: 2729712 | N205: 2759132 | O205: 2786723 | P205: 2814591 | Q205: 2842737 | R205: 2871164 | S205: 2899876 | T205: 2928874 | U205: 2958163 | V205: 2987745 | W205: 3017622 | X205: 3047798 | Y205: 0 | Z205: 0 | AA205: 0 | AB205: 0 | AC205: 0 | AD205: 0 | AE205: 0 | AF205: 0 | AG205: 0 | AH205: 0 | AI205: 0 | AJ205: 0 | AK205: 0 | AL205: 0 | AM205: 0 | AN205: 0 | AO205: 0 | AP205: 0 | AQ205: 0 | AR205: 0 | AS205: 0 | AT205: 0 | AU205: TransitsBarriers5SDGLFYFcstIn
B207: Traffic - SDG-Moody's (Yearly Data - Forecast) | G207: <- Stime SDG Gennaio 2016 (tenendo conto richieste Moody's)
D208: year | G208: =+YearForYearlyData -> 2015 | H208: 2016 | I208: 2017 | J208: 2018 | K208: 2019 | L208: 2020 | M208: 2021 | N208: 2022 | O208: 2023 | P208: 2024 | Q208: 2025 | R208: 2026 | S208: 2027 | T208: 2028 | U208: 2029 | V208: 2030 | W208: 2031 | X208: 2032 | Y208: 2033 | Z208: 2034 | AA208: 2035 | AB208: 2036 | AC208: 2037 | AD208: 2038 | AE208: 2039 | AF208: 2040 | AG208: 2041 | AH208: 2042 | AI208: 2043 | AJ208: 2044 | AK208: 2045 | AL208: 2046 | AM208: 2047 | AN208: 2048 | AO208: 2049 | AP208: 2050 | AQ208: 2051 | AR208: 2052 | AS208: 2053 | AT208: 2054
C209: Passante Class A | D209: vkm / y | E209: =+SUM(G209:AT209) -> 7684858731 | G209: 398734640 | H209: 403902798 | I209: 409957612 | J209: 406674907 | K209: 400790835 | L209: 404413400 | M209: 409923105 | N209: 415507874 | O209: 421168730 | P209: 426906709 | Q209: 432722862 | R209: 437211897 | S209: 441624386 | T209: 446050703 | U209: 450513723 | V209: 455019488 | W209: 459569683 | X209: 464165379 | Y209: 0 | Z209: 0 | AA209: 0 | AB209: 0 | AC209: 0 | AD209: 0 | AE209: 0 | AF209: 0 | AG209: 0 | AH209: 0 | AI209: 0 | AJ209: 0 | AK209: 0 | AL209: 0 | AM209: 0 | AN209: 0 | AO209: 0 | AP209: 0 | AQ209: 0 | AR209: 0 | AS209: 0 | AT209: 0 | AU209: TrafficPassanteASDGMoodysYFcstIn
C210: Passante Class B | D210: vkm / y | E210: 1141138169 | G210: 59821014 | H210: 60596378 | I210: 61504764 | J210: 60712578 | K210: 59444985 | L210: 59900897 | M210: 60716984 | N210: 61544189 | O210: 62382663 | P210: 63232561 | Q210: 64094038 | R210: 64758945 | S210: 65412514 | T210: 66068131 | U210: 66729184 | V210: 67396569 | W210: 68070535 | X210: 68751240 | Y210: 0 | Z210: 0 | AA210: 0 | AB210: 0 | AC210: 0 | AD210: 0 | AE210: 0 | AF210: 0 | AG210: 0 | AH210: 0 | AI210: 0 | AJ210: 0 | AK210: 0 | AL210: 0 | AM210: 0 | AN210: 0 | AO210: 0 | AP210: 0 | AQ210: 0 | AR210: 0 | AS210: 0 | AT210: 0 | AU210: TrafficPassanteBSDGMoodysYFcstIn
C211: Passante Class 3 | D211: vkm / y | E211: 199718328 | G211: 10478710 | H211: 10614529 | I211: 10773649 | J211: 10630509 | K211: 10402850 | L211: 10481433 | M211: 10624231 | N211: 10768975 | O211: 10915691 | P211: 11064406 | Q211: 11215147 | R211: 11331492 | S211: 11445853 | T211: 11560573 | U211: 11676244 | V211: 11793022 | W211: 11910952 | X211: 12030062 | Y211: 0 | Z211: 0 | AA211: 0 | AB211: 0 | AC211: 0 | AD211: 0 | AE211: 0 | AF211: 0 | AG211: 0 | AH211: 0 | AI211: 0 | AJ211: 0 | AK211: 0 | AL211: 0 | AM211: 0 | AN211: 0 | AO211: 0 | AP211: 0 | AQ211: 0 | AR211: 0 | AS211: 0 | AT211: 0 | AU211: TrafficPassante3SDGMoodysYFcstIn
C212: Passante Class 4 | D212: vkm / y | E212: 171545559 | G212: 9000557 | H212: 9117217 | I212: 9253891 | J212: 9130942 | K212: 8935398 | L212: 9002896 | M212: 9125551 | N212: 9249877 | O212: 9375896 | P212: 9503633 | Q212: 9633110 | R212: 9733043 | S212: 9831272 | T212: 9929809 | U212: 10029163 | V212: 10129469 | W212: 10230764 | X212: 10333071 | Y212: 0 | Z212: 0 | AA212: 0 | AB212: 0 | AC212: 0 | AD212: 0 | AE212: 0 | AF212: 0 | AG212: 0 | AH212: 0 | AI212: 0 | AJ212: 0 | AK212: 0 | AL212: 0 | AM212: 0 | AN212: 0 | AO212: 0 | AP212: 0 | AQ212: 0 | AR212: 0 | AS212: 0 | AT212: 0 | AU212: TrafficPassante4SDGMoodysYFcstIn
C213: Passante Class 5 | D213: vkm / y | E213: 1697089482 | G213: 89041948 | H213: 90196056 | I213: 91548164 | J213: 90331842 | K213: 88397332 | L213: 89065083 | M213: 90278501 | N213: 91508450 | O213: 92755156 | P213: 94018847 | Q213: 95299754 | R213: 96288387 | S213: 97260162 | T213: 98234982 | U213: 99217885 | V213: 100210202 | W213: 101212304 | X213: 102224427 | Y213: 0 | Z213: 0 | AA213: 0 | AB213: 0 | AC213: 0 | AD213: 0 | AE213: 0 | AF213: 0 | AG213: 0 | AH213: 0 | AI213: 0 | AJ213: 0 | AK213: 0 | AL213: 0 | AM213: 0 | AN213: 0 | AO213: 0 | AP213: 0 | AQ213: 0 | AR213: 0 | AS213: 0 | AT213: 0 | AU213: TrafficPassante5SDGMoodysYFcstIn
C214: Closed System Class A | D214: vkm / y | E214: 6813120762 | G214: 346413486 | H214: 350903489 | I214: 356163802 | J214: 356782778 | K214: 356127685 | L214: 360289116 | M214: 365197675 | N214: 370173107 | O214: 375216325 | P214: 380328251 | Q214: 385509822 | R214: 389509072 | S214: 393440128 | T214: 397383503 | U214: 401359578 | V214: 405373732 | W214: 409427469 | X214: 413521744 | Y214: 0 | Z214: 0 | AA214: 0 | AB214: 0 | AC214: 0 | AD214: 0 | AE214: 0 | AF214: 0 | AG214: 0 | AH214: 0 | AI214: 0 | AJ214: 0 | AK214: 0 | AL214: 0 | AM214: 0 | AN214: 0 | AO214: 0 | AP214: 0 | AQ214: 0 | AR214: 0 | AS214: 0 | AT214: 0 | AU214: TrafficClosedSystemASDGMoodysYFcstIn
C215: Closed System Class B | D215: vkm / y | E215: 851021206 | G215: 43885317 | H215: 44454132 | I215: 45120533 | J215: 44891678 | K215: 44414134 | L215: 44851539 | M215: 45462594 | N215: 46081974 | O215: 46709792 | P215: 47346164 | Q215: 47991205 | R215: 48489062 | S215: 48978430 | T215: 49469332 | U215: 49964304 | V215: 50464016 | W215: 50968657 | X215: 51478343 | Y215: 0 | Z215: 0 | AA215: 0 | AB215: 0 | AC215: 0 | AD215: 0 | AE215: 0 | AF215: 0 | AG215: 0 | AH215: 0 | AI215: 0 | AJ215: 0 | AK215: 0 | AL215: 0 | AM215: 0 | AN215: 0 | AO215: 0 | AP215: 0 | AQ215: 0 | AR215: 0 | AS215: 0 | AT215: 0 | AU215: TrafficClosedSystemBSDGMoodysYFcstIn
C216: Closed System Class 3 | D216: vkm / y | E216: 133094689 | G216: 6882240 | H216: 6971443 | I216: 7075951 | J216: 7030783 | K216: 6943981 | L216: 7009865 | M216: 7105367 | N216: 7202170 | O216: 7300292 | P216: 7399751 | Q216: 7500565 | R216: 7578375 | S216: 7654859 | T216: 7731582 | U216: 7808941 | V216: 7887041 | W216: 7965912 | X216: 8045571 | Y216: 0 | Z216: 0 | AA216: 0 | AB216: 0 | AC216: 0 | AD216: 0 | AE216: 0 | AF216: 0 | AG216: 0 | AH216: 0 | AI216: 0 | AJ216: 0 | AK216: 0 | AL216: 0 | AM216: 0 | AN216: 0 | AO216: 0 | AP216: 0 | AQ216: 0 | AR216: 0 | AS216: 0 | AT216: 0 | AU216: TrafficClosedSystem3SDGMoodysYFcstIn
C217: Closed System Class 4 | D217: vkm / y | E217: 104090370 | G217: 5382445 | H217: 5452209 | I217: 5533942 | J217: 5498618 | K217: 5430732 | L217: 5482258 | M217: 5556948 | N217: 5632656 | O217: 5709395 | P217: 5787179 | Q217: 5866023 | R217: 5926877 | S217: 5986693 | T217: 6046697 | U217: 6107198 | V217: 6168278 | W217: 6229961 | X217: 6292261 | Y217: 0 | Z217: 0 | AA217: 0 | AB217: 0 | AC217: 0 | AD217: 0 | AE217: 0 | AF217: 0 | AG217: 0 | AH217: 0 | AI217: 0 | AJ217: 0 | AK217: 0 | AL217: 0 | AM217: 0 | AN217: 0 | AO217: 0 | AP217: 0 | AQ217: 0 | AR217: 0 | AS217: 0 | AT217: 0 | AU217: TrafficClosedSystem4SDGMoodysYFcstIn
C218: Closed System Class 5 | D218: vkm / y | E218: 985497895 | G218: 50959456 | H218: 51619961 | I218: 52393784 | J218: 52059344 | K218: 51416615 | L218: 51904455 | M218: 52611598 | N218: 53328376 | O218: 54054919 | P218: 54791360 | Q218: 55537834 | R218: 56113980 | S218: 56680301 | T218: 57248397 | U218: 57821203 | V218: 58399496 | W218: 58983491 | X218: 59573325 | Y218: 0 | Z218: 0 | AA218: 0 | AB218: 0 | AC218: 0 | AD218: 0 | AE218: 0 | AF218: 0 | AG218: 0 | AH218: 0 | AI218: 0 | AJ218: 0 | AK218: 0 | AL218: 0 | AM218: 0 | AN218: 0 | AO218: 0 | AP218: 0 | AQ218: 0 | AR218: 0 | AS218: 0 | AT218: 0 | AU218: TrafficClosedSystem5SDGMoodysYFcstIn
C219: Barriers Class A | D219: transits / y | E219: 469504638 | G219: 23024188 | H219: 23322613 | I219: 23672237 | J219: 24136893 | K219: 24637172 | L219: 25037512 | M219: 25378621 | N219: 25724378 | O219: 26074846 | P219: 26430088 | Q219: 26790170 | R219: 27068089 | S219: 27341269 | T219: 27615306 | U219: 27891614 | V219: 28170569 | W219: 28452275 | X219: 28736798 | Y219: 0 | Z219: 0 | AA219: 0 | AB219: 0 | AC219: 0 | AD219: 0 | AE219: 0 | AF219: 0 | AG219: 0 | AH219: 0 | AI219: 0 | AJ219: 0 | AK219: 0 | AL219: 0 | AM219: 0 | AN219: 0 | AO219: 0 | AP219: 0 | AQ219: 0 | AR219: 0 | AS219: 0 | AT219: 0 | AU219: TransitsBarriersASDGMoodysYFcstIn
C220: Barriers Class B | D220: transits / y | E220: 56960652 | G220: 2796316 | H220: 2832560 | I220: 2875022 | J220: 2929899 | K220: 2988661 | L220: 3036828 | M220: 3078201 | N220: 3120139 | O220: 3162647 | P220: 3205735 | Q220: 3249410 | R220: 3283119 | S220: 3316253 | T220: 3349491 | U220: 3383005 | V220: 3416840 | W220: 3451008 | X220: 3485518 | Y220: 0 | Z220: 0 | AA220: 0 | AB220: 0 | AC220: 0 | AD220: 0 | AE220: 0 | AF220: 0 | AG220: 0 | AH220: 0 | AI220: 0 | AJ220: 0 | AK220: 0 | AL220: 0 | AM220: 0 | AN220: 0 | AO220: 0 | AP220: 0 | AQ220: 0 | AR220: 0 | AS220: 0 | AT220: 0 | AU220: TransitsBarriersBSDGMoodysYFcstIn
C221: Barriers Class 3 | D221: transits / y | E221: 8363670 | G221: 410758 | H221: 416082 | I221: 422320 | J221: 430294 | K221: 438813 | L221: 445863 | M221: 451938 | N221: 458095 | O221: 464336 | P221: 470662 | Q221: 477074 | R221: 482023 | S221: 486888 | T221: 491768 | U221: 496688 | V221: 501656 | W221: 506673 | X221: 511739 | Y221: 0 | Z221: 0 | AA221: 0 | AB221: 0 | AC221: 0 | AD221: 0 | AE221: 0 | AF221: 0 | AG221: 0 | AH221: 0 | AI221: 0 | AJ221: 0 | AK221: 0 | AL221: 0 | AM221: 0 | AN221: 0 | AO221: 0 | AP221: 0 | AQ221: 0 | AR221: 0 | AS221: 0 | AT221: 0 | AU221: TransitsBarriers3SDGMoodysYFcstIn
C222: Barriers Class 4 | D222: transits / y | E222: 5790682 | G222: 284838 | H222: 288530 | I222: 292855 | J222: 298154 | K222: 303767 | L222: 308589 | M222: 312793 | N222: 317054 | O222: 321374 | P222: 325752 | Q222: 330190 | R222: 333616 | S222: 336982 | T222: 340360 | U222: 343766 | V222: 347204 | W222: 350676 | X222: 354182 | Y222: 0 | Z222: 0 | AA222: 0 | AB222: 0 | AC222: 0 | AD222: 0 | AE222: 0 | AF222: 0 | AG222: 0 | AH222: 0 | AI222: 0 | AJ222: 0 | AK222: 0 | AL222: 0 | AM222: 0 | AN222: 0 | AO222: 0 | AP222: 0 | AQ222: 0 | AR222: 0 | AS222: 0 | AT222: 0 | AU222: TransitsBarriers4SDGMoodysYFcstIn
C223: Barriers Class 5 | D223: transits / y | E223: 50896427 | G223: 2499944 | H223: 2532346 | I223: 2570308 | J223: 2618679 | K223: 2670327 | L223: 2713188 | M223: 2750152 | N223: 2787620 | O223: 2825598 | P223: 2864094 | Q223: 2903114 | R223: 2933231 | S223: 2962834 | T223: 2992530 | U223: 3022472 | V223: 3052701 | W223: 3083228 | X223: 3114061 | Y223: 0 | Z223: 0 | AA223: 0 | AB223: 0 | AC223: 0 | AD223: 0 | AE223: 0 | AF223: 0 | AG223: 0 | AH223: 0 | AI223: 0 | AJ223: 0 | AK223: 0 | AL223: 0 | AM223: 0 | AN223: 0 | AO223: 0 | AP223: 0 | AQ223: 0 | AR223: 0 | AS223: 0 | AT223: 0 | AU223: TransitsBarriers5SDGMoodysYFcstIn
B225: Traffic - Scenario Selection
C226: Traffic Forecast Selected Scenario | D226: switch | G226: =+SensSelectTrafficForecastIn -> SDGCentral | H226: TrafficForecastSelectedScenarioIn
B228: Traffic - Actual Data
C229: Traffic Total Actual 2013 | D229: vkm / y | G229: 1671711296 | H229: TrafficTotalActual2014In
D231: year | G231: =+PFRYears -> 2009 | H231: 2010 | I231: 2011 | J231: 2012 | K231: 2013 | L231: 2014 | M231: 2015 | N231: 2016 | O231: 2017 | P231: 2018 | Q231: 2019 | R231: 2020 | S231: 2021 | T231: 2022 | U231: 2023 | V231: 2024 | W231: 2025 | X231: 2026 | Y231: 2027 | Z231: 2028 | AA231: 2029 | AB231: 2030 | AC231: 2031 | AD231: 2032 | AE231: 2033 | AF231: 2034 | AG231: 2035 | AH231: 2036 | AI231: 2037 | AJ231: 2038 | AK231: 2039 | AL231: 2040 | AM231: 2041 | AN231: 2042 | AO231: 2043 | AP231: 2044 | AQ231: 2045 | AR231: 2046 | AS231: 2047 | AT231: 2048
C232: Traffic Class A Actual Data (Excl. 2009) | D232: vkm / y | E232: =+SUM(G232:AT232) -> 9408277095 | G232: 0 | H232: 1438334222 | I232: 1433126109 | J232: 1326424241 | K232: 1293575473 | L232: 1260962190 | M232: 1301196452 | N232: 1354658407 | O232: 0 | P232: 0 | Q232: 0 | R232: 0 | S232: 0 | T232: 0 | U232: 0 | V232: 0 | W232: 0 | X232: 0 | Y232: 0 | Z232: 0 | AA232: 0 | AB232: 0 | AC232: 0 | AD232: 0 | AE232: 0 | AF232: 0 | AG232: 0 | AH232: 0 | AI232: 0 | AJ232: 0 | AK232: 0 | AL232: 0 | AM232: 0 | AN232: 0 | AO232: 0 | AP232: 0 | AQ232: 0 | AR232: 0 | AS232: 0 | AT232: 0 | AU232: TrafficAActualYIn
C233: Traffic Class B Actual Data (Excl. 2009) | D233: vkm / y | E233: =+SUM(G233:AT233) -> 1273100048 | G233: 0 | H233: 197992779 | I233: 198462666 | J233: 182429006 | K233: 176600399.1 | L233: 169640870.8 | M233: 171511293.8 | N233: 176463033.2 | O233: 0 | P233: 0 | Q233: 0 | R233: 0 | S233: 0 | T233: 0 | U233: 0 | V233: 0 | W233: 0 | X233: 0 | Y233: 0 | Z233: 0 | AA233: 0 | AB233: 0 | AC233: 0 | AD233: 0 | AE233: 0 | AF233: 0 | AG233: 0 | AH233: 0 | AI233: 0 | AJ233: 0 | AK233: 0 | AL233: 0 | AM233: 0 | AN233: 0 | AO233: 0 | AP233: 0 | AQ233: 0 | AR233: 0 | AS233: 0 | AT233: 0 | AU233: TrafficBActualYIn
C234: Traffic Class 3 Actual Data (Excl. 2009) | D234: vkm / y | E234: =+SUM(G234:AT234) -> 205610615.1 | G234: 0 | H234: 33171033 | I234: 32161810 | J234: 29181231 | K234: 27830575.5 | L234: 26508376.45 | M234: 27661327 | N234: 29096262.2 | O234: 0 | P234: 0 | Q234: 0 | R234: 0 | S234: 0 | T234: 0 | U234: 0 | V234: 0 | W234: 0 | X234: 0 | Y234: 0 | Z234: 0 | AA234: 0 | AB234: 0 | AC234: 0 | AD234: 0 | AE234: 0 | AF234: 0 | AG234: 0 | AH234: 0 | AI234: 0 | AJ234: 0 | AK234: 0 | AL234: 0 | AM234: 0 | AN234: 0 | AO234: 0 | AP234: 0 | AQ234: 0 | AR234: 0 | AS234: 0 | AT234: 0 | AU234: Traffic3ActualYIn
C235: Traffic Class 4 Actual Data (Excl. 2009) | D235: vkm / y | E235: =+SUM(G235:AT235) -> 150105006.2 | G235: 0 | H235: 22542251 | I235: 22744551 | J235: 21309292 | K235: 21089835.4 | L235: 20597330.05 | M235: 20723400.4 | N235: 21098346.4 | O235: 0 | P235: 0 | Q235: 0 | R235: 0 | S235: 0 | T235: 0 | U235: 0 | V235: 0 | W235: 0 | X235: 0 | Y235: 0 | Z235: 0 | AA235: 0 | AB235: 0 | AC235: 0 | AD235: 0 | AE235: 0 | AF235: 0 | AG235: 0 | AH235: 0 | AI235: 0 | AJ235: 0 | AK235: 0 | AL235: 0 | AM235: 0 | AN235: 0 | AO235: 0 | AP235: 0 | AQ235: 0 | AR235: 0 | AS235: 0 | AT235: 0 | AU235: Traffic4ActualYIn
C236: Traffic Class 5 Actual Data (Excl. 2009) | D236: vkm / y | E236: =+SUM(G236:AT236) -> 1427618300 | G236: 0 | H236: 211851151 | I236: 213522562 | J236: 195041902 | K236: 193805158.7 | L236: 194002528.3 | M236: 203211037.8 | N236: 216183960.4 | O236: 0 | P236: 0 | Q236: 0 | R236: 0 | S236: 0 | T236: 0 | U236: 0 | V236: 0 | W236: 0 | X236: 0 | Y236: 0 | Z236: 0 | AA236: 0 | AB236: 0 | AC236: 0 | AD236: 0 | AE236: 0 | AF236: 0 | AG236: 0 | AH236: 0 | AI236: 0 | AJ236: 0 | AK236: 0 | AL236: 0 | AM236: 0 | AN236: 0 | AO236: 0 | AP236: 0 | AQ236: 0 | AR236: 0 | AS236: 0 | AT236: 0 | AU236: Traffic5ActualYIn
... 303 more rows

Sheet Tariffe PEF
B2: Years | F2: 2018 | G2: =+F2+1 -> 2019 | H2: 2020 | I2: =+H2+1 -> 2021 | J2: =+I2+1 -> 2022 | K2: 2023 | L2: 2024 | M2: 2025 | N2: 2026 | O2: 2027 | P2: 2028 | Q2: 2029 | R2: 2030 | S2: 2031 | T2: 2032 | U2: =+T2+1 -> 2033 | V2: =+U2+1 -> 2034
B4: Tariffa CIPE
B6: Traffico Passante A | C6: € / vkm | G6: 0.09703 | H6: 0.09819 | I6: 0.09819 | J6: 0.1013300986 | K6: 0.1045706171 | L6: 0.1079147667 | M6: 0.1071428598 | N6: 0.1063764744 | O6: 0.1056155708 | P6: 0.1048601099 | Q6: 0.1041100527 | R6: 0.1033653607 | S6: 0.1026259954 | T6: 0.1018919187 | U6: 0 | V6: 0
B7: Traffico Passante B | C7: € / vkm | G7: 0.09946 | H7: 0.10065 | I7: 0.10065 | J7: 0.103868769 | K7: 0.1071904737 | L7: 0.1106184059 | M7: 0.10982716 | N7: 0.1090415739 | O7: 0.1082616071 | P7: 0.1074872193 | Q7: 0.1067183706 | R7: 0.1059550214 | S7: 0.1051971325 | T7: 0.1044446646 | U7: 0 | V7: 0
B8: Traffico Passante 3 | C8: € / vkm | G8: 0.12131 | H8: 0.12277 | I8: 0.12277 | J8: 0.1266961627 | K8: 0.1307478833 | L8: 0.1349291772 | M8: 0.1339640381 | N8: 0.1330058026 | O8: 0.1320544213 | P8: 0.1311098451 | Q8: 0.1301720254 | R8: 0.1292409139 | S8: 0.1283164625 | T8: 0.1273986237 | U8: 0 | V8: 0
B9: Traffico Passante 4 | C9: € / vkm | G9: 0.19302 | H9: 0.19534 | I9: 0.19534 | J9: 0.2015869383 | K9: 0.2080336525 | L9: 0.2146865316 | M9: 0.2131508936 | N9: 0.2116262399 | O9: 0.210112492 | P9: 0.2086095719 | Q9: 0.207117402 | R9: 0.2056359055 | S9: 0.204165006 | T9: 0.2027046278 | U9: 0 | V9: 0
B10: Traffico Passante 5 | C10: € / vkm | G10: 0.23129 | H10: 0.23407 | I10: 0.23407 | J10: 0.2415555168 | K10: 0.249280419 | L10: 0.2572523622 | M10: 0.2554122538 | N10: 0.2535853076 | O10: 0.2517714294 | P10: 0.2499705257 | Q10: 0.2481825037 | R10: 0.2464072714 | S10: 0.2446447372 | T10: 0.2428948102 | U10: 0 | V10: 0
B11: Traffico Sistema Chiuso A | C11: € / vkm | G11: 0.04559 | H11: 0.04614 | I11: 0.04614 | J11: 0.04761554895 | K11: 0.0491382857 | L11: 0.05070971929 | M11: 0.05034699616 | N11: 0.04998686757 | O11: 0.04962931495 | P11: 0.04927431988 | Q11: 0.04892186407 | R11: 0.04857192935 | S11: 0.04822449769 | T11: 0.04787955118 | U11: 0 | V11: 0
B12: Traffico Sistema Chiuso B | C12: € / vkm | G12: 0.04673 | H12: 0.04729 | I12: 0.04729 | J12: 0.04880232575 | K12: 0.0503630154 | L12: 0.05197361563 | M12: 0.05160185194 | N12: 0.05123274745 | O12: 0.05086628314 | P12: 0.05050244012 | Q12: 0.05014119965 | R12: 0.04978254311 | S12: 0.04942645201 | T12: 0.049072908 | U12: 0 | V12: 0
B13: Traffico Sistema Chiuso 3 | C13: € / vkm | G13: 0.05377 | H13: 0.05442 | I13: 0.05442 | J13: 0.05616034187 | K13: 0.05795633957 | L13: 0.05980977295 | M13: 0.05938195776 | N13: 0.05895720271 | O13: 0.05853548591 | P13: 0.05811678561 | Q13: 0.05770108025 | R13: 0.0572883484 | S13: 0.05687856879 | T13: 0.05647172031 | U13: 0 | V13: 0
B14: Traffico Sistema Chiuso 4 | C14: € / vkm | G14: 0.08883 | H14: 0.0899 | I14: 0.0899 | J14: 0.09277498593 | K14: 0.0957419134 | L14: 0.09880372267 | M14: 0.09809698645 | N14: 0.09739530547 | O14: 0.09669864357 | P14: 0.09600696484 | Q14: 0.09532023363 | R14: 0.09463841457 | S14: 0.09396147252 | T14: 0.09328937258 | U14: 0 | V14: 0
B15: Traffico Sistema Chiuso 5 | C15: € / vkm | G15: 0.10754 | H15: 0.10883 | I15: 0.10883 | J15: 0.1123103639 | K15: 0.1159020293 | L15: 0.1196085555 | M15: 0.1187530037 | N15: 0.1179035717 | O15: 0.1170602156 | P15: 0.1162228919 | Q15: 0.1153915576 | R15: 0.1145661697 | S15: 0.1137466858 | T15: 0.1129330636 | U15: 0 | V15: 0
B16: Traffico Sistema Aperto A | C16: € / vkm | G16: 0.04729 | H16: 0.04786 | I16: 0.04786 | J16: 0.04939055424 | K16: 0.05097005534 | L16: 0.0526000686 | M16: 0.05222382393 | N16: 0.05185027052 | O16: 0.05147938911 | P16: 0.05111116059 | Q16: 0.05074556598 | R16: 0.05038258645 | S16: 0.05002220328 | T16: 0.04966439791 | U16: 0 | V16: 0
B17: Traffico Sistema Aperto B | C17: € / vkm | G17: 0.04852 | H17: 0.0491 | I17: 0.0491 | J17: 0.05067020922 | K17: 0.05229063346 | L17: 0.05396287857 | M17: 0.05357688582 | N17: 0.05319365405 | O17: 0.05281316351 | P17: 0.05243539459 | Q17: 0.05206032783 | R17: 0.05168794389 | S17: 0.05131822359 | T17: 0.05095114787 | U17: 0 | V17: 0
B18: Traffico Sistema Aperto 3 | C18: € / vkm | G18: 0.05579 | H18: 0.05646 | I18: 0.05646 | J18: 0.05826558071 | K18: 0.06012890356 | L18: 0.06205181515 | M18: 0.06160796279 | N18: 0.06116728528 | O18: 0.06072975991 | P18: 0.06029536412 | Q18: 0.05986407554 | R18: 0.05943587193 | S18: 0.05901073124 | T18: 0.05858863155 | U18: 0 | V18: 0
B19: Traffico Sistema Aperto 4 | C19: € / vkm | G19: 0.09215 | H19: 0.09326 | I19: 0.09326 | J19: 0.09624243813 | K19: 0.0993202541 | L19: 0.1024964981 | M19: 0.1017633477 | N19: 0.1010354415 | O19: 0.1003127419 | P19: 0.0995952118 | Q19: 0.09888281411 | R19: 0.09817551216 | S19: 0.09747326949 | T19: 0.09677604991 | U19: 0 | V19: 0
B20: Traffico Sistema Aperto 5 | C20: € / vkm | G20: 0.11155 | H20: 0.11289 | I20: 0.11289 | J20: 0.116500202 | K20: 0.1202258577 | L20: 0.1240706591 | M20: 0.1231831902 | N20: 0.1223020694 | O20: 0.1214272511 | P20: 0.1205586903 | Q20: 0.1196963423 | R20: 0.1188401626 | S20: 0.1179901071 | T20: 0.117146132 | U20: 0 | V20: 0
B23: Tariffa ART
B25: Traffico Passante A | C25: € / vkm | G25: 0.09703 | H25: 0.09819 | I25: 0.09819 | J25: 0.09823514185 | K25: 0.09828030445 | L25: 0.09832548781 | M25: 0.09837069194 | N25: 0.09841591686 | O25: 0.09846116257 | P25: 0.09850642908 | Q25: 0.0985517164 | R25: 0.09859702454 | S25: 0.09864235352 | T25: 0.09868770333 | U25: 0 | V25: 0
B26: Traffico Passante B | C26: € / vkm | G26: 0.09946 | H26: 0.10065 | I26: 0.10065 | J26: 0.1006962728 | K26: 0.1007425669 | L26: 0.1007888822 | M26: 0.1008352189 | N26: 0.1008815769 | O26: 0.1009279561 | P26: 0.1009743567 | Q26: 0.1010207787 | R26: 0.1010672219 | S26: 0.1011136865 | T26: 0.1011601725 | U26: 0 | V26: 0
B27: Traffico Passante 3 | C27: € / vkm | G27: 0.12131 | H27: 0.12277 | I27: 0.12277 | J27: 0.1228264422 | K27: 0.1228829104 | L27: 0.1229394046 | M27: 0.1229959247 | N27: 0.1230524709 | O27: 0.123109043 | P27: 0.1231656411 | Q27: 0.1232222652 | R27: 0.1232789154 | S27: 0.1233355916 | T27: 0.1233922939 | U27: 0 | V27: 0
B28: Traffico Passante 4 | C28: € / vkm | G28: 0.19302 | H28: 0.19534 | I28: 0.19534 | J28: 0.1954298056 | K28: 0.1955196524 | L28: 0.1956095406 | M28: 0.1956994701 | N28: 0.1957894409 | O28: 0.1958794531 | P28: 0.1959695066 | Q28: 0.1960596016 | R28: 0.196149738 | S28: 0.1962399158 | T28: 0.1963301351 | U28: 0 | V28: 0
B29: Traffico Passante 5 | C29: € / vkm | G29: 0.23129 | H29: 0.23407 | I29: 0.23407 | J29: 0.2341776113 | K29: 0.234285272 | L29: 0.2343929823 | M29: 0.2345007421 | N29: 0.2346085514 | O29: 0.2347164103 | P29: 0.2348243187 | Q29: 0.2349322768 | R29: 0.2350402845 | S29: 0.2351483419 | T29: 0.2352564489 | U29: 0 | V29: 0
B30: Traffico Sistema Chiuso A | C30: € / vkm | G30: 0.04559 | H30: 0.04614 | I30: 0.04614 | J30: 0.04616121239 | K30: 0.04618243454 | L30: 0.04620366644 | M30: 0.0462249081 | N30: 0.04624615953 | O30: 0.04626742073 | P30: 0.0462886917 | Q30: 0.04630997245 | R30: 0.04633126298 | S30: 0.04635256331 | T30: 0.04637387342 | U30: 0 | V30: 0
B31: Traffico Sistema Chiuso B | C31: € / vkm | G31: 0.04673 | H31: 0.04729 | I31: 0.04729 | J31: 0.04731174109 | K31: 0.04733349218 | L31: 0.04735525327 | M31: 0.04737702436 | N31: 0.04739880546 | O31: 0.04742059658 | P31: 0.04744239771 | Q31: 0.04746420887 | R31: 0.04748603005 | S31: 0.04750786127 | T31: 0.04752970252 | U31: 0 | V31: 0
B32: Traffico Sistema Chiuso 3 | C32: € / vkm | G32: 0.05377 | H32: 0.05442 | I32: 0.05442 | J32: 0.05444501904 | K32: 0.05447004958 | L32: 0.05449509162 | M32: 0.05452014518 | N32: 0.05454521026 | O32: 0.05457028686 | P32: 0.05459537499 | Q32: 0.05462047466 | R32: 0.05464558586 | S32: 0.05467070861 | T32: 0.05469584291 | U32: 0 | V32: 0
B33: Traffico Sistema Chiuso 4 | C33: € / vkm | G33: 0.08883 | H33: 0.0899 | I33: 0.0899 | J33: 0.0899413306 | K33: 0.08998268021 | L33: 0.09002404882 | M33: 0.09006543646 | N33: 0.09010684312 | O33: 0.09014826882 | P33: 0.09018971356 | Q33: 0.09023117736 | R33: 0.09027266021 | S33: 0.09031416215 | T33: 0.09035568316 | U33: 0 | V33: 0
B34: Traffico Sistema Chiuso 5 | C34: € / vkm | G34: 0.10754 | H34: 0.10883 | I34: 0.10883 | J34: 0.1088800335 | K34: 0.10893009 | L34: 0.1089801694 | M34: 0.109030272 | N34: 0.1090803975 | O34: 0.1091305461 | P34: 0.1091807178 | Q34: 0.1092309125 | R34: 0.1092811303 | S34: 0.1093313711 | T34: 0.1093816351 | U34: 0 | V34: 0
B35: Traffico Sistema Aperto A | C35: € / vkm | G35: 0.04729 | H35: 0.04786 | I35: 0.04786 | J35: 0.04788200314 | K35: 0.0479040164 | L35: 0.04792603979 | M35: 0.04794807329 | N35: 0.04797011693 | O35: 0.0479921707 | P35: 0.0480142346 | Q35: 0.04803630866 | R35: 0.04805839286 | S35: 0.04808048721 | T35: 0.04810259172 | U35: 0 | V35: 0
B36: Traffico Sistema Aperto B | C36: € / vkm | G36: 0.04852 | H36: 0.0491 | I36: 0.0491 | J36: 0.04912257322 | K36: 0.04914515682 | L36: 0.0491677508 | M36: 0.04919035517 | N36: 0.04921296993 | O36: 0.04923559509 | P36: 0.04925823065 | Q36: 0.04928087662 | R36: 0.049303533 | S36: 0.04932619979 | T36: 0.04934887701 | U36: 0 | V36: 0
B37: Traffico Sistema Aperto 3 | C37: € / vkm | G37: 0.05579 | H37: 0.05646 | I37: 0.05646 | J37: 0.05648595691 | K37: 0.05651192575 | L37: 0.05653790652 | M37: 0.05656389925 | N37: 0.05658990392 | O37: 0.05661592055 | P37: 0.05664194914 | Q37: 0.05666798969 | R37: 0.05669404222 | S37: 0.05672010673 | T37: 0.05674618321 | U37: 0 | V37: 0
B38: Traffico Sistema Aperto 4 | C38: € / vkm | G38: 0.09215 | H38: 0.09326 | I38: 0.09326 | J38: 0.09330287533 | K38: 0.09334577037 | L38: 0.09338868513 | M38: 0.09343161962 | N38: 0.09347457385 | O38: 0.09351754783 | P38: 0.09356054156 | Q38: 0.09360355506 | R38: 0.09364658834 | S38: 0.0936896414 | T38: 0.09373271425 | U38: 0 | V38: 0
B39: Traffico Sistema Aperto 5 | C39: € / vkm | G39: 0.11155 | H39: 0.11289 | I39: 0.11289 | J39: 0.1129419 | K39: 0.1129938239 | L39: 0.1130457717 | M39: 0.1130977433 | N39: 0.1131497388 | O39: 0.1132017583 | P39: 0.1132538016 | Q39: 0.1133058689 | R39: 0.1133579601 | S39: 0.1134100752 | T39: 0.1134622144 | U39: 0 | V39: 0
B42: CIPE - X and K Calc.
B44: Δ% | G44: 0 | H44: 0.0092 | I44: 0 | J44: 0.03197982124 | K44: 0.03197982124 | L44: 0.03197982124 | M44: -0.007152931061 | N44: -0.007152931061 | O44: -0.007152931061 | P44: -0.007152931061 | Q44: -0.007152931061 | R44: -0.007152931061 | S44: -0.007152931061 | T44: -0.007152931061
B45: Inflazione | G45: 0 | H45: 0.008 | I45: 0.008 | J45: 0.008 | K45: 0.008 | L45: 0.008 | M45: 0.008 | N45: 0.008 | O45: 0.008 | P45: 0.008 | Q45: 0.008 | R45: 0.008 | S45: 0.008 | T45: 0.008
B46: α | H46: 0.7 | I46: 0.7 | J46: 0.7 | K46: 0.7 | L46: 0.7 | M46: 0.7 | N46: 0.7 | O46: 0.7 | P46: 0.7 | Q46: 0.7 | R46: 0.7 | S46: 0.7 | T46: 0.7
B47: Fattore X | H47: -0.009107903446 | I47: 0 | J47: -0.01275293106 | K47: -0.01275293106 | L47: -0.01275293106 | M47: -0.01275293106 | N47: -0.01275293106 | O47: -0.01275293106 | P47: -0.01275293106 | Q47: -0.01275293106 | R47: -0.01275293106 | S47: -0.01275293106 | T47: -0.01275293106
B48: Fattore K | H48: 0.01270790345 | I48: 0 | J48: 0.0391327523 | K48: 0.0391327523 | L48: 0.0391327523 | M48: 0 | N48: 0 | O48: 0 | P48: 0 | Q48: 0 | R48: 0 | S48: 0 | T48: 0

Sheet X_K_Calc (hidden)
B2: Concessioni Autostradali Venete CAV S.p.A.
B3: Scenario: Final Pricing (05.04.16) | F3: =+PFR!L4 -> 2014 | G3: =+PFR!M4 -> 2015 | H3: =+PFR!N4 -> 2016 | I3: =+PFR!O4 -> 2017 | J3: =+PFR!P4 -> 2018 | K3: =+PFR!Q4 -> 2019 | L3: =+PFR!R4 -> 2020 | M3: =+PFR!S4 -> 2021 | N3: =+PFR!T4 -> 2022 | O3: =+PFR!U4 -> 2023 | P3: =+PFR!V4 -> 2024 | Q3: =+PFR!W4 -> 2025 | R3: =+PFR!X4 -> 2026 | S3: =+PFR!Y4 -> 2027 | T3: =+PFR!Z4 -> 2028 | U3: =+PFR!AA4 -> 2029 | V3: =+PFR!AB4 -> 2030 | W3: =+PFR!AC4 -> 2031 | X3: =+PFR!AD4 -> 2032
B4: Sheet: PFR | E4: Saldo delle poste figurative
B5: =+ErrorCounter -> Errors: 0 out of 43 | E5: =+X223 -> 138012950
C8: Tariffe | D8: flag | E8: =+Input!$E$10 -> 0 | G8: =+$E$8 -> 0 | H8: =+$E$8 -> 0 | I8: 0 | J8: 0 | K8: 0 | L8: 0 | M8: 0 | N8: 0 | O8: 0 | P8: 0 | Q8: 0 | R8: 0 | S8: 0 | T8: 0 | U8: 0 | V8: 0 | W8: 0 | X8: 0
C9: Tariffa Flat 2022-2025 | D9: flag | E9: =+Input!E117 -> 1 | G9: =+((AND(G3>=$E$10,G3<=$E$11))*($E$9)) -> 0 | H9: =+((AND(H3>=$E$10,H3<=$E$11))*($E$9)) -> 0 | I9: 0 | J9: 0 | K9: 0 | L9: 0 | M9: 0 | N9: 1 | O9: 1 | P9: 1 | Q9: 1 | R9: 0 | S9: 0 | T9: 0 | U9: 0 | V9: 0 | W9: 0 | X9: 0 | AA9: =+((AND(AA14>=$E$116,AA14<=$E$117))*($E$115)) -> 0 | AB9: 0 | AC9: 0 | AD9: 0 | AE9: 0 | AF9: 0 | AG9: 0 | AH9: 0 | AI9: 0 | AJ9: 0 | AK9: 0 | AL9: 0 | AM9: 0 | AN9: 0 | AO9: 0 | AP9: 0 | AQ9: 0 | AR9: 0 | AS9: 0 | AT9: 0
C10: Beginning Period_Flat Tariff | D10: year | E10: =+Input!E118 -> 2022
C11: End Period_Flat Tariff | D11: year | E11: =+Input!E119 -> 2025
C12: Flag Costi materie prime | D12: flag | E12: 1 | G12: =+$E$12 -> 1 | H12: =+$E$12 -> 1 | I12: 1 | J12: 1 | K12: 1 | L12: 1 | M12: 1 | N12: 1 | O12: 1 | P12: 1 | Q12: 1 | R12: 1 | S12: 1 | T12: 1 | U12: 1 | V12: 1 | W12: 1 | X12: 1
C14: Calcolo X
C16: Tariffa media ponderata
C17: Leggeri Classe A Passante | D17: € / vkm | K17: =Working!$O494 -> 0.09703 | L17: =Working!$Q494 -> 0.09819 | M17: =(L17*(1+M$33)*M$8)+('Tariffe PEF'!I6*(1-X_K_Calc!M$8)) -> 0.09819 | N17: =(M17*(1+N$33)*N$8)+('Tariffe PEF'!J6*(1-X_K_Calc!N$8)) -> 0.1013300986 | O17: =(N17*(1+O$33)*O$8)+('Tariffe PEF'!K6*(1-X_K_Calc!O$8)) -> 0.1045706171 | P17: =(O17*(1+P$33)*P$8)+('Tariffe PEF'!L6*(1-X_K_Calc!P$8)) -> 0.1079147667 | Q17: =(P17*(1+Q$33)*Q$8)+('Tariffe PEF'!M6*(1-X_K_Calc!Q$8)) -> 0.1071428598 | R17: =(Q17*(1+R$33)*R$8)+('Tariffe PEF'!N6*(1-X_K_Calc!R$8)) -> 0.1063764744 | S17: =(R17*(1+S$33)*S$8)+('Tariffe PEF'!O6*(1-X_K_Calc!S$8)) -> 0.1056155708 | T17: =(S17*(1+T$33)*T$8)+('Tariffe PEF'!P6*(1-X_K_Calc!T$8)) -> 0.1048601099 | U17: =(T17*(1+U$33)*U$8)+('Tariffe PEF'!Q6*(1-X_K_Calc!U$8)) -> 0.1041100527 | V17: =(U17*(1+V$33)*V$8)+('Tariffe PEF'!R6*(1-X_K_Calc!V$8)) -> 0.1033653607 | W17: =(V17*(1+W$33)*W$8)+('Tariffe PEF'!S6*(1-X_K_Calc!W$8)) -> 0.1026259954 | X17: =(W17*(1+X$33)*X$8)+('Tariffe PEF'!T6*(1-X_K_Calc!X$8)) -> 0.1018919187
C18: Pesanti Classe B Passante | D18: € / vkm | K18: =Working!$O495 -> 0.09946 | L18: =Working!$Q495 -> 0.10065 | M18: =(L18*(1+M$33)*M$8)+('Tariffe PEF'!I7*(1-X_K_Calc!M$8)) -> 0.10065 | N18: =(M18*(1+N$33)*N$8)+('Tariffe PEF'!J7*(1-X_K_Calc!N$8)) -> 0.103868769 | O18: =(N18*(1+O$33)*O$8)+('Tariffe PEF'!K7*(1-X_K_Calc!O$8)) -> 0.1071904737 | P18: =(O18*(1+P$33)*P$8)+('Tariffe PEF'!L7*(1-X_K_Calc!P$8)) -> 0.1106184059 | Q18: =(P18*(1+Q$33)*Q$8)+('Tariffe PEF'!M7*(1-X_K_Calc!Q$8)) -> 0.10982716 | R18: =(Q18*(1+R$33)*R$8)+('Tariffe PEF'!N7*(1-X_K_Calc!R$8)) -> 0.1090415739 | S18: =(R18*(1+S$33)*S$8)+('Tariffe PEF'!O7*(1-X_K_Calc!S$8)) -> 0.1082616071 | T18: =(S18*(1+T$33)*T$8)+('Tariffe PEF'!P7*(1-X_K_Calc!T$8)) -> 0.1074872193 | U18: =(T18*(1+U$33)*U$8)+('Tariffe PEF'!Q7*(1-X_K_Calc!U$8)) -> 0.1067183706 | V18: =(U18*(1+V$33)*V$8)+('Tariffe PEF'!R7*(1-X_K_Calc!V$8)) -> 0.1059550214 | W18: =(V18*(1+W$33)*W$8)+('Tariffe PEF'!S7*(1-X_K_Calc!W$8)) -> 0.1051971325 | X18: =(W18*(1+X$33)*X$8)+('Tariffe PEF'!T7*(1-X_K_Calc!X$8)) -> 0.1044446646
C19: Pesanti Classe 3 Passante | D19: € / vkm | K19: =Working!$O496 -> 0.12131 | L19: =Working!$Q496 -> 0.12277 | M19: =(L19*(1+M$33)*M$8)+('Tariffe PEF'!I8*(1-X_K_Calc!M$8)) -> 0.12277 | N19: =(M19*(1+N$33)*N$8)+('Tariffe PEF'!J8*(1-X_K_Calc!N$8)) -> 0.1266961627 | O19: =(N19*(1+O$33)*O$8)+('Tariffe PEF'!K8*(1-X_K_Calc!O$8)) -> 0.1307478833 | P19: =(O19*(1+P$33)*P$8)+('Tariffe PEF'!L8*(1-X_K_Calc!P$8)) -> 0.1349291772 | Q19: =(P19*(1+Q$33)*Q$8)+('Tariffe PEF'!M8*(1-X_K_Calc!Q$8)) -> 0.1339640381 | R19: =(Q19*(1+R$33)*R$8)+('Tariffe PEF'!N8*(1-X_K_Calc!R$8)) -> 0.1330058026 | S19: =(R19*(1+S$33)*S$8)+('Tariffe PEF'!O8*(1-X_K_Calc!S$8)) -> 0.1320544213 | T19: =(S19*(1+T$33)*T$8)+('Tariffe PEF'!P8*(1-X_K_Calc!T$8)) -> 0.1311098451 | U19: =(T19*(1+U$33)*U$8)+('Tariffe PEF'!Q8*(1-X_K_Calc!U$8)) -> 0.1301720254 | V19: =(U19*(1+V$33)*V$8)+('Tariffe PEF'!R8*(1-X_K_Calc!V$8)) -> 0.1292409139 | W19: =(V19*(1+W$33)*W$8)+('Tariffe PEF'!S8*(1-X_K_Calc!W$8)) -> 0.1283164625 | X19: =(W19*(1+X$33)*X$8)+('Tariffe PEF'!T8*(1-X_K_Calc!X$8)) -> 0.1273986237
C20: Pesanti Classe 4 Passante | D20: € / vkm | K20: =Working!$O497 -> 0.19302 | L20: =Working!$Q497 -> 0.19534 | M20: =(L20*(1+M$33)*M$8)+('Tariffe PEF'!I9*(1-X_K_Calc!M$8)) -> 0.19534 | N20: =(M20*(1+N$33)*N$8)+('Tariffe PEF'!J9*(1-X_K_Calc!N$8)) -> 0.2015869383 | O20: =(N20*(1+O$33)*O$8)+('Tariffe PEF'!K9*(1-X_K_Calc!O$8)) -> 0.2080336525 | P20: =(O20*(1+P$33)*P$8)+('Tariffe PEF'!L9*(1-X_K_Calc!P$8)) -> 0.2146865316 | Q20: =(P20*(1+Q$33)*Q$8)+('Tariffe PEF'!M9*(1-X_K_Calc!Q$8)) -> 0.2131508936 | R20: =(Q20*(1+R$33)*R$8)+('Tariffe PEF'!N9*(1-X_K_Calc!R$8)) -> 0.2116262399 | S20: =(R20*(1+S$33)*S$8)+('Tariffe PEF'!O9*(1-X_K_Calc!S$8)) -> 0.210112492 | T20: =(S20*(1+T$33)*T$8)+('Tariffe PEF'!P9*(1-X_K_Calc!T$8)) -> 0.2086095719 | U20: =(T20*(1+U$33)*U$8)+('Tariffe PEF'!Q9*(1-X_K_Calc!U$8)) -> 0.207117402 | V20: =(U20*(1+V$33)*V$8)+('Tariffe PEF'!R9*(1-X_K_Calc!V$8)) -> 0.2056359055 | W20: =(V20*(1+W$33)*W$8)+('Tariffe PEF'!S9*(1-X_K_Calc!W$8)) -> 0.204165006 | X20: =(W20*(1+X$33)*X$8)+('Tariffe PEF'!T9*(1-X_K_Calc!X$8)) -> 0.2027046278
C21: Pesanti Classe 5 Passante | D21: € / vkm | K21: =Working!$O498 -> 0.23129 | L21: =Working!$Q498 -> 0.23407 | M21: =(L21*(1+M$33)*M$8)+('Tariffe PEF'!I10*(1-X_K_Calc!M$8)) -> 0.23407 | N21: =(M21*(1+N$33)*N$8)+('Tariffe PEF'!J10*(1-X_K_Calc!N$8)) -> 0.2415555168 | O21: =(N21*(1+O$33)*O$8)+('Tariffe PEF'!K10*(1-X_K_Calc!O$8)) -> 0.249280419 | P21: =(O21*(1+P$33)*P$8)+('Tariffe PEF'!L10*(1-X_K_Calc!P$8)) -> 0.2572523622 | Q21: =(P21*(1+Q$33)*Q$8)+('Tariffe PEF'!M10*(1-X_K_Calc!Q$8)) -> 0.2554122538 | R21: =(Q21*(1+R$33)*R$8)+('Tariffe PEF'!N10*(1-X_K_Calc!R$8)) -> 0.2535853076 | S21: =(R21*(1+S$33)*S$8)+('Tariffe PEF'!O10*(1-X_K_Calc!S$8)) -> 0.2517714294 | T21: =(S21*(1+T$33)*T$8)+('Tariffe PEF'!P10*(1-X_K_Calc!T$8)) -> 0.2499705257 | U21: =(T21*(1+U$33)*U$8)+('Tariffe PEF'!Q10*(1-X_K_Calc!U$8)) -> 0.2481825037 | V21: =(U21*(1+V$33)*V$8)+('Tariffe PEF'!R10*(1-X_K_Calc!V$8)) -> 0.2464072714 | W21: =(V21*(1+W$33)*W$8)+('Tariffe PEF'!S10*(1-X_K_Calc!W$8)) -> 0.2446447372 | X21: =(W21*(1+X$33)*X$8)+('Tariffe PEF'!T10*(1-X_K_Calc!X$8)) -> 0.2428948102
C22: Leggeri Classe A Chiuso | D22: € / vkm | K22: =Working!$O499 -> 0.04559 | L22: =Working!$Q499 -> 0.04614 | M22: =(L22*(1+M$33)*M$8)+('Tariffe PEF'!I11*(1-X_K_Calc!M$8)) -> 0.04614 | N22: =(M22*(1+N$33)*N$8)+('Tariffe PEF'!J11*(1-X_K_Calc!N$8)) -> 0.04761554895 | O22: =(N22*(1+O$33)*O$8)+('Tariffe PEF'!K11*(1-X_K_Calc!O$8)) -> 0.0491382857 | P22: =(O22*(1+P$33)*P$8)+('Tariffe PEF'!L11*(1-X_K_Calc!P$8)) -> 0.05070971929 | Q22: =(P22*(1+Q$33)*Q$8)+('Tariffe PEF'!M11*(1-X_K_Calc!Q$8)) -> 0.05034699616 | R22: =(Q22*(1+R$33)*R$8)+('Tariffe PEF'!N11*(1-X_K_Calc!R$8)) -> 0.04998686757 | S22: =(R22*(1+S$33)*S$8)+('Tariffe PEF'!O11*(1-X_K_Calc!S$8)) -> 0.04962931495 | T22: =(S22*(1+T$33)*T$8)+('Tariffe PEF'!P11*(1-X_K_Calc!T$8)) -> 0.04927431988 | U22: =(T22*(1+U$33)*U$8)+('Tariffe PEF'!Q11*(1-X_K_Calc!U$8)) -> 0.04892186407 | V22: =(U22*(1+V$33)*V$8)+('Tariffe PEF'!R11*(1-X_K_Calc!V$8)) -> 0.04857192935 | W22: =(V22*(1+W$33)*W$8)+('Tariffe PEF'!S11*(1-X_K_Calc!W$8)) -> 0.04822449769 | X22: =(W22*(1+X$33)*X$8)+('Tariffe PEF'!T11*(1-X_K_Calc!X$8)) -> 0.04787955118
C23: Pesanti Classe B Chiuso | D23: € / vkm | K23: =Working!$O500 -> 0.04673 | L23: =Working!$Q500 -> 0.04729 | M23: =(L23*(1+M$33)*M$8)+('Tariffe PEF'!I12*(1-X_K_Calc!M$8)) -> 0.04729 | N23: =(M23*(1+N$33)*N$8)+('Tariffe PEF'!J12*(1-X_K_Calc!N$8)) -> 0.04880232575 | O23: =(N23*(1+O$33)*O$8)+('Tariffe PEF'!K12*(1-X_K_Calc!O$8)) -> 0.0503630154 | P23: =(O23*(1+P$33)*P$8)+('Tariffe PEF'!L12*(1-X_K_Calc!P$8)) -> 0.05197361563 | Q23: =(P23*(1+Q$33)*Q$8)+('Tariffe PEF'!M12*(1-X_K_Calc!Q$8)) -> 0.05160185194 | R23: =(Q23*(1+R$33)*R$8)+('Tariffe PEF'!N12*(1-X_K_Calc!R$8)) -> 0.05123274745 | S23: =(R23*(1+S$33)*S$8)+('Tariffe PEF'!O12*(1-X_K_Calc!S$8)) -> 0.05086628314 | T23: =(S23*(1+T$33)*T$8)+('Tariffe PEF'!P12*(1-X_K_Calc!T$8)) -> 0.05050244012 | U23: =(T23*(1+U$33)*U$8)+('Tariffe PEF'!Q12*(1-X_K_Calc!U$8)) -> 0.05014119965 | V23: =(U23*(1+V$33)*V$8)+('Tariffe PEF'!R12*(1-X_K_Calc!V$8)) -> 0.04978254311 | W23: =(V23*(1+W$33)*W$8)+('Tariffe PEF'!S12*(1-X_K_Calc!W$8)) -> 0.04942645201 | X23: =(W23*(1+X$33)*X$8)+('Tariffe PEF'!T12*(1-X_K_Calc!X$8)) -> 0.049072908
C24: Pesanti Classe 3 Chiuso | D24: € / vkm | K24: =Working!$O501 -> 0.05377 | L24: =Working!$Q501 -> 0.05442 | M24: =(L24*(1+M$33)*M$8)+('Tariffe PEF'!I13*(1-X_K_Calc!M$8)) -> 0.05442 | N24: =(M24*(1+N$33)*N$8)+('Tariffe PEF'!J13*(1-X_K_Calc!N$8)) -> 0.05616034187 | O24: =(N24*(1+O$33)*O$8)+('Tariffe PEF'!K13*(1-X_K_Calc!O$8)) -> 0.05795633957 | P24: =(O24*(1+P$33)*P$8)+('Tariffe PEF'!L13*(1-X_K_Calc!P$8)) -> 0.05980977295 | Q24: =(P24*(1+Q$33)*Q$8)+('Tariffe PEF'!M13*(1-X_K_Calc!Q$8)) -> 0.05938195776 | R24: =(Q24*(1+R$33)*R$8)+('Tariffe PEF'!N13*(1-X_K_Calc!R$8)) -> 0.05895720271 | S24: =(R24*(1+S$33)*S$8)+('Tariffe PEF'!O13*(1-X_K_Calc!S$8)) -> 0.05853548591 | T24: =(S24*(1+T$33)*T$8)+('Tariffe PEF'!P13*(1-X_K_Calc!T$8)) -> 0.05811678561 | U24: =(T24*(1+U$33)*U$8)+('Tariffe PEF'!Q13*(1-X_K_Calc!U$8)) -> 0.05770108025 | V24: =(U24*(1+V$33)*V$8)+('Tariffe PEF'!R13*(1-X_K_Calc!V$8)) -> 0.0572883484 | W24: =(V24*(1+W$33)*W$8)+('Tariffe PEF'!S13*(1-X_K_Calc!W$8)) -> 0.05687856879 | X24: =(W24*(1+X$33)*X$8)+('Tariffe PEF'!T13*(1-X_K_Calc!X$8)) -> 0.05647172031
C25: Pesanti Classe 4 Chiuso | D25: € / vkm | K25: =Working!$O502 -> 0.08883 | L25: =Working!$Q502 -> 0.0899 | M25: =(L25*(1+M$33)*M$8)+('Tariffe PEF'!I14*(1-X_K_Calc!M$8)) -> 0.0899 | N25: =(M25*(1+N$33)*N$8)+('Tariffe PEF'!J14*(1-X_K_Calc!N$8)) -> 0.09277498593 | O25: =(N25*(1+O$33)*O$8)+('Tariffe PEF'!K14*(1-X_K_Calc!O$8)) -> 0.0957419134 | P25: =(O25*(1+P$33)*P$8)+('Tariffe PEF'!L14*(1-X_K_Calc!P$8)) -> 0.09880372267 | Q25: =(P25*(1+Q$33)*Q$8)+('Tariffe PEF'!M14*(1-X_K_Calc!Q$8)) -> 0.09809698645 | R25: =(Q25*(1+R$33)*R$8)+('Tariffe PEF'!N14*(1-X_K_Calc!R$8)) -> 0.09739530547 | S25: =(R25*(1+S$33)*S$8)+('Tariffe PEF'!O14*(1-X_K_Calc!S$8)) -> 0.09669864357 | T25: =(S25*(1+T$33)*T$8)+('Tariffe PEF'!P14*(1-X_K_Calc!T$8)) -> 0.09600696484 | U25: =(T25*(1+U$33)*U$8)+('Tariffe PEF'!Q14*(1-X_K_Calc!U$8)) -> 0.09532023363 | V25: =(U25*(1+V$33)*V$8)+('Tariffe PEF'!R14*(1-X_K_Calc!V$8)) -> 0.09463841457 | W25: =(V25*(1+W$33)*W$8)+('Tariffe PEF'!S14*(1-X_K_Calc!W$8)) -> 0.09396147252 | X25: =(W25*(1+X$33)*X$8)+('Tariffe PEF'!T14*(1-X_K_Calc!X$8)) -> 0.09328937258
C26: Pesanti Classe 5 Chiuso | D26: € / vkm | K26: =Working!$O503 -> 0.10754 | L26: =Working!$Q503 -> 0.10883 | M26: =(L26*(1+M$33)*M$8)+('Tariffe PEF'!I15*(1-X_K_Calc!M$8)) -> 0.10883 | N26: =(M26*(1+N$33)*N$8)+('Tariffe PEF'!J15*(1-X_K_Calc!N$8)) -> 0.1123103639 | O26: =(N26*(1+O$33)*O$8)+('Tariffe PEF'!K15*(1-X_K_Calc!O$8)) -> 0.1159020293 | P26: =(O26*(1+P$33)*P$8)+('Tariffe PEF'!L15*(1-X_K_Calc!P$8)) -> 0.1196085555 | Q26: =(P26*(1+Q$33)*Q$8)+('Tariffe PEF'!M15*(1-X_K_Calc!Q$8)) -> 0.1187530037 | R26: =(Q26*(1+R$33)*R$8)+('Tariffe PEF'!N15*(1-X_K_Calc!R$8)) -> 0.1179035717 | S26: =(R26*(1+S$33)*S$8)+('Tariffe PEF'!O15*(1-X_K_Calc!S$8)) -> 0.1170602156 | T26: =(S26*(1+T$33)*T$8)+('Tariffe PEF'!P15*(1-X_K_Calc!T$8)) -> 0.1162228919 | U26: =(T26*(1+U$33)*U$8)+('Tariffe PEF'!Q15*(1-X_K_Calc!U$8)) -> 0.1153915576 | V26: =(U26*(1+V$33)*V$8)+('Tariffe PEF'!R15*(1-X_K_Calc!V$8)) -> 0.1145661697 | W26: =(V26*(1+W$33)*W$8)+('Tariffe PEF'!S15*(1-X_K_Calc!W$8)) -> 0.1137466858 | X26: =(W26*(1+X$33)*X$8)+('Tariffe PEF'!T15*(1-X_K_Calc!X$8)) -> 0.1129330636
C27: Leggeri Classe A Barriera | D27: € / vkm | K27: =Working!$O504 -> 0.04729 | L27: =Working!$Q504 -> 0.04786 | M27: =(L27*(1+M$33)*M$8)+('Tariffe PEF'!I16*(1-X_K_Calc!M$8)) -> 0.04786 | N27: =(M27*(1+N$33)*N$8)+('Tariffe PEF'!J16*(1-X_K_Calc!N$8)) -> 0.04939055424 | O27: =(N27*(1+O$33)*O$8)+('Tariffe PEF'!K16*(1-X_K_Calc!O$8)) -> 0.05097005534 | P27: =(O27*(1+P$33)*P$8)+('Tariffe PEF'!L16*(1-X_K_Calc!P$8)) -> 0.0526000686 | Q27: =(P27*(1+Q$33)*Q$8)+('Tariffe PEF'!M16*(1-X_K_Calc!Q$8)) -> 0.05222382393 | R27: =(Q27*(1+R$33)*R$8)+('Tariffe PEF'!N16*(1-X_K_Calc!R$8)) -> 0.05185027052 | S27: =(R27*(1+S$33)*S$8)+('Tariffe PEF'!O16*(1-X_K_Calc!S$8)) -> 0.05147938911 | T27: =(S27*(1+T$33)*T$8)+('Tariffe PEF'!P16*(1-X_K_Calc!T$8)) -> 0.05111116059 | U27: =(T27*(1+U$33)*U$8)+('Tariffe PEF'!Q16*(1-X_K_Calc!U$8)) -> 0.05074556598 | V27: =(U27*(1+V$33)*V$8)+('Tariffe PEF'!R16*(1-X_K_Calc!V$8)) -> 0.05038258645 | W27: =(V27*(1+W$33)*W$8)+('Tariffe PEF'!S16*(1-X_K_Calc!W$8)) -> 0.05002220328 | X27: =(W27*(1+X$33)*X$8)+('Tariffe PEF'!T16*(1-X_K_Calc!X$8)) -> 0.04966439791
C28: Pesanti Classe B Barriera | D28: € / vkm | K28: =Working!$O505 -> 0.04852 | L28: =Working!$Q505 -> 0.0491 | M28: =(L28*(1+M$33)*M$8)+('Tariffe PEF'!I17*(1-X_K_Calc!M$8)) -> 0.0491 | N28: =(M28*(1+N$33)*N$8)+('Tariffe PEF'!J17*(1-X_K_Calc!N$8)) -> 0.05067020922 | O28: =(N28*(1+O$33)*O$8)+('Tariffe PEF'!K17*(1-X_K_Calc!O$8)) -> 0.05229063346 | P28: =(O28*(1+P$33)*P$8)+('Tariffe PEF'!L17*(1-X_K_Calc!P$8)) -> 0.05396287857 | Q28: =(P28*(1+Q$33)*Q$8)+('Tariffe PEF'!M17*(1-X_K_Calc!Q$8)) -> 0.05357688582 | R28: =(Q28*(1+R$33)*R$8)+('Tariffe PEF'!N17*(1-X_K_Calc!R$8)) -> 0.05319365405 | S28: =(R28*(1+S$33)*S$8)+('Tariffe PEF'!O17*(1-X_K_Calc!S$8)) -> 0.05281316351 | T28: =(S28*(1+T$33)*T$8)+('Tariffe PEF'!P17*(1-X_K_Calc!T$8)) -> 0.05243539459 | U28: =(T28*(1+U$33)*U$8)+('Tariffe PEF'!Q17*(1-X_K_Calc!U$8)) -> 0.05206032783 | V28: =(U28*(1+V$33)*V$8)+('Tariffe PEF'!R17*(1-X_K_Calc!V$8)) -> 0.05168794389 | W28: =(V28*(1+W$33)*W$8)+('Tariffe PEF'!S17*(1-X_K_Calc!W$8)) -> 0.05131822359 | X28: =(W28*(1+X$33)*X$8)+('Tariffe PEF'!T17*(1-X_K_Calc!X$8)) -> 0.05095114787
C29: Pesanti Classe 3 Barriera | D29: € / vkm | K29: =Working!$O506 -> 0.05579 | L29: =Working!$Q506 -> 0.05646 | M29: =(L29*(1+M$33)*M$8)+('Tariffe PEF'!I18*(1-X_K_Calc!M$8)) -> 0.05646 | N29: =(M29*(1+N$33)*N$8)+('Tariffe PEF'!J18*(1-X_K_Calc!N$8)) -> 0.05826558071 | O29: =(N29*(1+O$33)*O$8)+('Tariffe PEF'!K18*(1-X_K_Calc!O$8)) -> 0.06012890356 | P29: =(O29*(1+P$33)*P$8)+('Tariffe PEF'!L18*(1-X_K_Calc!P$8)) -> 0.06205181515 | Q29: =(P29*(1+Q$33)*Q$8)+('Tariffe PEF'!M18*(1-X_K_Calc!Q$8)) -> 0.06160796279 | R29: =(Q29*(1+R$33)*R$8)+('Tariffe PEF'!N18*(1-X_K_Calc!R$8)) -> 0.06116728528 | S29: =(R29*(1+S$33)*S$8)+('Tariffe PEF'!O18*(1-X_K_Calc!S$8)) -> 0.06072975991 | T29: =(S29*(1+T$33)*T$8)+('Tariffe PEF'!P18*(1-X_K_Calc!T$8)) -> 0.06029536412 | U29: =(T29*(1+U$33)*U$8)+('Tariffe PEF'!Q18*(1-X_K_Calc!U$8)) -> 0.05986407554 | V29: =(U29*(1+V$33)*V$8)+('Tariffe PEF'!R18*(1-X_K_Calc!V$8)) -> 0.05943587193 | W29: =(V29*(1+W$33)*W$8)+('Tariffe PEF'!S18*(1-X_K_Calc!W$8)) -> 0.05901073124 | X29: =(W29*(1+X$33)*X$8)+('Tariffe PEF'!T18*(1-X_K_Calc!X$8)) -> 0.05858863155
C30: Pesanti Classe 4 Barriera | D30: € / vkm | K30: =Working!$O507 -> 0.09215 | L30: =Working!$Q507 -> 0.09326 | M30: =(L30*(1+M$33)*M$8)+('Tariffe PEF'!I19*(1-X_K_Calc!M$8)) -> 0.09326 | N30: =(M30*(1+N$33)*N$8)+('Tariffe PEF'!J19*(1-X_K_Calc!N$8)) -> 0.09624243813 | O30: =(N30*(1+O$33)*O$8)+('Tariffe PEF'!K19*(1-X_K_Calc!O$8)) -> 0.0993202541 | P30: =(O30*(1+P$33)*P$8)+('Tariffe PEF'!L19*(1-X_K_Calc!P$8)) -> 0.1024964981 | Q30: =(P30*(1+Q$33)*Q$8)+('Tariffe PEF'!M19*(1-X_K_Calc!Q$8)) -> 0.1017633477 | R30: =(Q30*(1+R$33)*R$8)+('Tariffe PEF'!N19*(1-X_K_Calc!R$8)) -> 0.1010354415 | S30: =(R30*(1+S$33)*S$8)+('Tariffe PEF'!O19*(1-X_K_Calc!S$8)) -> 0.1003127419 | T30: =(S30*(1+T$33)*T$8)+('Tariffe PEF'!P19*(1-X_K_Calc!T$8)) -> 0.0995952118 | U30: =(T30*(1+U$33)*U$8)+('Tariffe PEF'!Q19*(1-X_K_Calc!U$8)) -> 0.09888281411 | V30: =(U30*(1+V$33)*V$8)+('Tariffe PEF'!R19*(1-X_K_Calc!V$8)) -> 0.09817551216 | W30: =(V30*(1+W$33)*W$8)+('Tariffe PEF'!S19*(1-X_K_Calc!W$8)) -> 0.09747326949 | X30: =(W30*(1+X$33)*X$8)+('Tariffe PEF'!T19*(1-X_K_Calc!X$8)) -> 0.09677604991
C31: Pesanti Classe 5 Barriera | D31: € / vkm | K31: =Working!$O508 -> 0.11155 | L31: =Working!$Q508 -> 0.11289 | M31: =(L31*(1+M$33)*M$8)+('Tariffe PEF'!I20*(1-X_K_Calc!M$8)) -> 0.11289 | N31: =(M31*(1+N$33)*N$8)+('Tariffe PEF'!J20*(1-X_K_Calc!N$8)) -> 0.116500202 | O31: =(N31*(1+O$33)*O$8)+('Tariffe PEF'!K20*(1-X_K_Calc!O$8)) -> 0.1202258577 | P31: =(O31*(1+P$33)*P$8)+('Tariffe PEF'!L20*(1-X_K_Calc!P$8)) -> 0.1240706591 | Q31: =(P31*(1+Q$33)*Q$8)+('Tariffe PEF'!M20*(1-X_K_Calc!Q$8)) -> 0.1231831902 | R31: =(Q31*(1+R$33)*R$8)+('Tariffe PEF'!N20*(1-X_K_Calc!R$8)) -> 0.1223020694 | S31: =(R31*(1+S$33)*S$8)+('Tariffe PEF'!O20*(1-X_K_Calc!S$8)) -> 0.1214272511 | T31: =(S31*(1+T$33)*T$8)+('Tariffe PEF'!P20*(1-X_K_Calc!T$8)) -> 0.1205586903 | U31: =(T31*(1+U$33)*U$8)+('Tariffe PEF'!Q20*(1-X_K_Calc!U$8)) -> 0.1196963423 | V31: =(U31*(1+V$33)*V$8)+('Tariffe PEF'!R20*(1-X_K_Calc!V$8)) -> 0.1188401626 | W31: =(V31*(1+W$33)*W$8)+('Tariffe PEF'!S20*(1-X_K_Calc!W$8)) -> 0.1179901071 | X31: =(W31*(1+X$33)*X$8)+('Tariffe PEF'!T20*(1-X_K_Calc!X$8)) -> 0.117146132
C33: Δ% | D33: % | L33: 0 | M33: =((M34*M35+SUM(M36:M37))*M8)+('Dinamica Tariffaria'!H27*(1-X_K_Calc!M8)) -> 0 | N33: =((N34*N35+SUM(N36:N37))*N8)+('Dinamica Tariffaria'!I27*(1-X_K_Calc!N8)) -> 0.03197982124 | O33: =((O34*O35+SUM(O36:O37))*O8)+('Dinamica Tariffaria'!J27*(1-X_K_Calc!O8)) -> 0.03197982124 | P33: =((P34*P35+SUM(P36:P37))*P8)+('Dinamica Tariffaria'!K27*(1-X_K_Calc!P8)) -> 0.03197982124 | Q33: =((Q34*Q35+SUM(Q36:Q37))*Q8)+('Dinamica Tariffaria'!L27*(1-X_K_Calc!Q8)) -> -0.007152931061 | R33: =((R34*R35+SUM(R36:R37))*R8)+('Dinamica Tariffaria'!M27*(1-X_K_Calc!R8)) -> -0.007152931061 | S33: =((S34*S35+SUM(S36:S37))*S8)+('Dinamica Tariffaria'!N27*(1-X_K_Calc!S8)) -> -0.007152931061 | T33: =((T34*T35+SUM(T36:T37))*T8)+('Dinamica Tariffaria'!O27*(1-X_K_Calc!T8)) -> -0.007152931061 | U33: =((U34*U35+SUM(U36:U37))*U8)+('Dinamica Tariffaria'!P27*(1-X_K_Calc!U8)) -> -0.007152931061 | V33: =((V34*V35+SUM(V36:V37))*V8)+('Dinamica Tariffaria'!Q27*(1-X_K_Calc!V8)) -> -0.007152931061 | W33: =((W34*W35+SUM(W36:W37))*W8)+('Dinamica Tariffaria'!R27*(1-X_K_Calc!W8)) -> -0.007152931061 | X33: =((X34*X35+SUM(X36:X37))*X8)+('Dinamica Tariffaria'!S27*(1-X_K_Calc!X8)) -> -0.007152931061
C34: Inflazione | D34: % | N34: =+Input!N$123 -> 0 | O34: =+Input!O$123 -> 0 | P34: =+Input!P$123 -> 0 | Q34: =+Input!Q$123 -> 0 | R34: =+Input!R$123 -> 0.008 | S34: =+Input!S$123 -> 0.008 | T34: =+Input!T$123 -> 0.008 | U34: =+Input!U$123 -> 0.008 | V34: =+Input!V$123 -> 0.008 | W34: =+Input!W$123 -> 0.008 | X34: =+Input!X$123 -> 0.008
C35: α | D35: % | N35: 0.7 | O35: 0.7 | P35: 0.7 | Q35: 0.7 | R35: 0.7 | S35: 0.7 | T35: 0.7 | U35: 0.7 | V35: 0.7 | W35: 0.7 | X35: 0.7
C36: Fattore X | D36: % | E36: =$E$84 -> 0.01307268927 | N36: =+$E36*(1-N9) -> 0 | O36: =+$E36*(1-O9) -> 0 | P36: 0 | Q36: 0 | R36: 0.01307268927 | S36: 0.01307268927 | T36: 0.01307268927 | U36: 0.01307268927 | V36: 0.01307268927 | W36: 0.01307268927 | X36: 0.01307268927
C37: Fattore K | D37: % | M37: 0 | N37: 0 | O37: 0 | P37: 0 | Q37: 0 | R37: 0 | S37: 0 | T37: 0 | U37: 0 | V37: 0 | W37: 0 | X37: 0
L39: =+$E36*($E36<0.015-(L34*L35)-L111)+(0.015-(L34*L35)-L111)*($E36>0.015-(L34*L35)-L111) -> 0.01307268927
C40: Volumi di traffico
C41: Leggeri Classe A Passante | D41: vkm / y | L41: =+SUMIF(Working!$G$327:$AT$327,L$3,TrafficPassanteA) -> 294217237.4 | M41: =+SUMIF(Working!$G$327:$AT$327,M$3,TrafficPassanteA) -> 387770252.9 | N41: =+SUMIF(Working!$G$327:$AT$327,N$3,TrafficPassanteA) -> 427266382.2 | O41: =+SUMIF(Working!$G$327:$AT$327,O$3,TrafficPassanteA) -> 429710193.2 | P41: =+SUMIF(Working!$G$327:$AT$327,P$3,TrafficPassanteA) -> 431486456.6 | Q41: =+SUMIF(Working!$G$327:$AT$327,Q$3,TrafficPassanteA) -> 430895002.8 | R41: =+SUMIF(Working!$G$327:$AT$327,R$3,TrafficPassanteA) -> 429913280.2 | S41: =+SUMIF(Working!$G$327:$AT$327,S$3,TrafficPassanteA) -> 432340284.5 | T41: =+SUMIF(Working!$G$327:$AT$327,T$3,TrafficPassanteA) -> 435972170.8 | U41: =+SUMIF(Working!$G$327:$AT$327,U$3,TrafficPassanteA) -> 437235474.2 | V41: =+SUMIF(Working!$G$327:$AT$327,V$3,TrafficPassanteA) -> 439703814.7 | W41: =+SUMIF(Working!$G$327:$AT$327,W$3,TrafficPassanteA) -> 442809659.4 | X41: =+SUMIF(Working!$G$327:$AT$327,X$3,TrafficPassanteA) -> 446994884.2 | Z41: TrafficPassanteA
C42: Pesanti Classe B Passante | D42: vkm / y | L42: =+SUMIF(Working!$G$327:$AT$327,L$3,TrafficPassanteB) -> 53409645.75 | M42: =+SUMIF(Working!$G$327:$AT$327,M$3,TrafficPassanteB) -> 66007063.26 | N42: =+SUMIF(Working!$G$327:$AT$327,N$3,TrafficPassanteB) -> 68707827.05 | O42: =+SUMIF(Working!$G$327:$AT$327,O$3,TrafficPassanteB) -> 69109762.47 | P42: =+SUMIF(Working!$G$327:$AT$327,P$3,TrafficPassanteB) -> 69731383.8 | Q42: =+SUMIF(Working!$G$327:$AT$327,Q$3,TrafficPassanteB) -> 69994515.48 | R42: =+SUMIF(Working!$G$327:$AT$327,R$3,TrafficPassanteB) -> 70054843.9 | S42: =+SUMIF(Working!$G$327:$AT$327,S$3,TrafficPassanteB) -> 70705857.43 | T42: =+SUMIF(Working!$G$327:$AT$327,T$3,TrafficPassanteB) -> 71558435.63 | U42: =+SUMIF(Working!$G$327:$AT$327,U$3,TrafficPassanteB) -> 72026090.15 | V42: =+SUMIF(Working!$G$327:$AT$327,V$3,TrafficPassanteB) -> 72695422.29 | W42: =+SUMIF(Working!$G$327:$AT$327,W$3,TrafficPassanteB) -> 73384531.64 | X42: =+SUMIF(Working!$G$327:$AT$327,X$3,TrafficPassanteB) -> 74252013.48 | Z42: TrafficPassanteB
C43: Pesanti Classe 3 Passante | D43: vkm / y | L43: =+SUMIF(Working!$G$327:$AT$327,L$3,TrafficPassante3) -> 10310925.37 | M43: =+SUMIF(Working!$G$327:$AT$327,M$3,TrafficPassante3) -> 12963976.36 | N43: =+SUMIF(Working!$G$327:$AT$327,N$3,TrafficPassante3) -> 13296965.83 | O43: =+SUMIF(Working!$G$327:$AT$327,O$3,TrafficPassante3) -> 13362386.9 | P43: =+SUMIF(Working!$G$327:$AT$327,P$3,TrafficPassante3) -> 13481743.96 | Q43: =+SUMIF(Working!$G$327:$AT$327,Q$3,TrafficPassante3) -> 13538288.57 | R43: =+SUMIF(Working!$G$327:$AT$327,R$3,TrafficPassante3) -> 13538072.54 | S43: =+SUMIF(Working!$G$327:$AT$327,S$3,TrafficPassante3) -> 13684283.72 | T43: =+SUMIF(Working!$G$327:$AT$327,T$3,TrafficPassante3) -> 13869970.08 | U43: =+SUMIF(Working!$G$327:$AT$327,U$3,TrafficPassante3) -> 13981460.38 | V43: =+SUMIF(Working!$G$327:$AT$327,V$3,TrafficPassante3) -> 14132460.15 | W43: =+SUMIF(Working!$G$327:$AT$327,W$3,TrafficPassante3) -> 14285090.72 | X43: =+SUMIF(Working!$G$327:$AT$327,X$3,TrafficPassante3) -> 14472114.71 | Z43: TrafficPassante3
C44: Pesanti Classe 4 Passante | D44: vkm / y | L44: =+SUMIF(Working!$G$327:$AT$327,L$3,TrafficPassante4) -> 8689249.808 | M44: =+SUMIF(Working!$G$327:$AT$327,M$3,TrafficPassante4) -> 11081290.52 | N44: =+SUMIF(Working!$G$327:$AT$327,N$3,TrafficPassante4) -> 11365921.8 | O44: =+SUMIF(Working!$G$327:$AT$327,O$3,TrafficPassante4) -> 11421842.13 | P44: =+SUMIF(Working!$G$327:$AT$327,P$3,TrafficPassante4) -> 11523865.63 | Q44: =+SUMIF(Working!$G$327:$AT$327,Q$3,TrafficPassante4) -> 11572198.58 | R44: =+SUMIF(Working!$G$327:$AT$327,R$3,TrafficPassante4) -> 11572013.92 | S44: =+SUMIF(Working!$G$327:$AT$327,S$3,TrafficPassante4) -> 11696991.67 | T44: =+SUMIF(Working!$G$327:$AT$327,T$3,TrafficPassante4) -> 11855711.83 | U44: =+SUMIF(Working!$G$327:$AT$327,U$3,TrafficPassante4) -> 11951011.03 | V44: =+SUMIF(Working!$G$327:$AT$327,V$3,TrafficPassante4) -> 12080081.95 | W44: =+SUMIF(Working!$G$327:$AT$327,W$3,TrafficPassante4) -> 12210546.83 | X44: =+SUMIF(Working!$G$327:$AT$327,X$3,TrafficPassante4) -> 12370410.37 | Z44: TrafficPassante4
C45: Pesanti Classe 5 Passante | D45: vkm / y | L45: =+SUMIF(Working!$G$327:$AT$327,L$3,TrafficPassante5) -> 104913278.9 | M45: =+SUMIF(Working!$G$327:$AT$327,M$3,TrafficPassante5) -> 115799350 | N45: =+SUMIF(Working!$G$327:$AT$327,N$3,TrafficPassante5) -> 118773743.3 | O45: =+SUMIF(Working!$G$327:$AT$327,O$3,TrafficPassante5) -> 119358110.1 | P45: =+SUMIF(Working!$G$327:$AT$327,P$3,TrafficPassante5) -> 120424254.4 | Q45: =+SUMIF(Working!$G$327:$AT$327,Q$3,TrafficPassante5) -> 120929333.1 | R45: =+SUMIF(Working!$G$327:$AT$327,R$3,TrafficPassante5) -> 120927403.4 | S45: =+SUMIF(Working!$G$327:$AT$327,S$3,TrafficPassante5) -> 122233419.4 | T45: =+SUMIF(Working!$G$327:$AT$327,T$3,TrafficPassante5) -> 123892043.2 | U45: =+SUMIF(Working!$G$327:$AT$327,U$3,TrafficPassante5) -> 124887918.5 | V45: =+SUMIF(Working!$G$327:$AT$327,V$3,TrafficPassante5) -> 126236708.1 | W45: =+SUMIF(Working!$G$327:$AT$327,W$3,TrafficPassante5) -> 127600064.5 | X45: =+SUMIF(Working!$G$327:$AT$327,X$3,TrafficPassante5) -> 129270636.6 | Z45: TrafficPassante5
C46: Leggeri Classe A Chiuso | D46: vkm / y | L46: =+SUMIF(Working!$G$327:$AT$327,L$3,TrafficClosedSystemA) -> 243788401.6 | M46: =+SUMIF(Working!$G$327:$AT$327,M$3,TrafficClosedSystemA) -> 298924391.2 | N46: =+SUMIF(Working!$G$327:$AT$327,N$3,TrafficClosedSystemA) -> 352652324.6 | O46: =+SUMIF(Working!$G$327:$AT$327,O$3,TrafficClosedSystemA) -> 357710634.3 | P46: =+SUMIF(Working!$G$327:$AT$327,P$3,TrafficClosedSystemA) -> 361083403.9 | Q46: =+SUMIF(Working!$G$327:$AT$327,Q$3,TrafficClosedSystemA) -> 361876292.8 | R46: =+SUMIF(Working!$G$327:$AT$327,R$3,TrafficClosedSystemA) -> 362689021.9 | S46: =+SUMIF(Working!$G$327:$AT$327,S$3,TrafficClosedSystemA) -> 364736522.7 | T46: =+SUMIF(Working!$G$327:$AT$327,T$3,TrafficClosedSystemA) -> 367800501.8 | U46: =+SUMIF(Working!$G$327:$AT$327,U$3,TrafficClosedSystemA) -> 368866266.2 | V46: =+SUMIF(Working!$G$327:$AT$327,V$3,TrafficClosedSystemA) -> 370948639.6 | W46: =+SUMIF(Working!$G$327:$AT$327,W$3,TrafficClosedSystemA) -> 373568832.7 | X46: =+SUMIF(Working!$G$327:$AT$327,X$3,TrafficClosedSystemA) -> 377099626.4 | Z46: TrafficClosedSystemA
C47: Pesanti Classe B Chiuso | D47: vkm / y | L47: =+SUMIF(Working!$G$327:$AT$327,L$3,TrafficClosedSystemB) -> 36178206.51 | M47: =+SUMIF(Working!$G$327:$AT$327,M$3,TrafficClosedSystemB) -> 42653006.38 | N47: =+SUMIF(Working!$G$327:$AT$327,N$3,TrafficClosedSystemB) -> 47602099.38 | O47: =+SUMIF(Working!$G$327:$AT$327,O$3,TrafficClosedSystemB) -> 48155517.88 | P47: =+SUMIF(Working!$G$327:$AT$327,P$3,TrafficClosedSystemB) -> 48761993.76 | Q47: =+SUMIF(Working!$G$327:$AT$327,Q$3,TrafficClosedSystemB) -> 49065014.5 | R47: =+SUMIF(Working!$G$327:$AT$327,R$3,TrafficClosedSystemB) -> 49259746.51 | S47: =+SUMIF(Working!$G$327:$AT$327,S$3,TrafficClosedSystemB) -> 49717513.02 | T47: =+SUMIF(Working!$G$327:$AT$327,T$3,TrafficClosedSystemB) -> 50317011.69 | U47: =+SUMIF(Working!$G$327:$AT$327,U$3,TrafficClosedSystemB) -> 50645847.52 | V47: =+SUMIF(Working!$G$327:$AT$327,V$3,TrafficClosedSystemB) -> 51116494.95 | W47: =+SUMIF(Working!$G$327:$AT$327,W$3,TrafficClosedSystemB) -> 51601048.9 | X47: =+SUMIF(Working!$G$327:$AT$327,X$3,TrafficClosedSystemB) -> 52211027.21 | Z47: TrafficClosedSystemB
C48: Pesanti Classe 3 Chiuso | D48: vkm / y | L48: =+SUMIF(Working!$G$327:$AT$327,L$3,TrafficClosedSystem3) -> 6107456.48 | M48: =+SUMIF(Working!$G$327:$AT$327,M$3,TrafficClosedSystem3) -> 7703625.435 | N48: =+SUMIF(Working!$G$327:$AT$327,N$3,TrafficClosedSystem3) -> 8362490.435 | O48: =+SUMIF(Working!$G$327:$AT$327,O$3,TrafficClosedSystem3) -> 8455615.128 | P48: =+SUMIF(Working!$G$327:$AT$327,P$3,TrafficClosedSystem3) -> 8564197.273 | Q48: =+SUMIF(Working!$G$327:$AT$327,Q$3,TrafficClosedSystem3) -> 8622951.491 | R48: =+SUMIF(Working!$G$327:$AT$327,R$3,TrafficClosedSystem3) -> 8652189.818 | S48: =+SUMIF(Working!$G$327:$AT$327,S$3,TrafficClosedSystem3) -> 8745633.468 | T48: =+SUMIF(Working!$G$327:$AT$327,T$3,TrafficClosedSystem3) -> 8864305.724 | U48: =+SUMIF(Working!$G$327:$AT$327,U$3,TrafficClosedSystem3) -> 8935559.242 | V48: =+SUMIF(Working!$G$327:$AT$327,V$3,TrafficClosedSystem3) -> 9032063.281 | W48: =+SUMIF(Working!$G$327:$AT$327,W$3,TrafficClosedSystem3) -> 9129609.565 | X48: =+SUMIF(Working!$G$327:$AT$327,X$3,TrafficClosedSystem3) -> 9249136.703 | Z48: TrafficClosedSystem3
C49: Pesanti Classe 4 Chiuso | D49: vkm / y | L49: =+SUMIF(Working!$G$327:$AT$327,L$3,TrafficClosedSystem4) -> 4638890.379 | M49: =+SUMIF(Working!$G$327:$AT$327,M$3,TrafficClosedSystem4) -> 5649115.524 | N49: =+SUMIF(Working!$G$327:$AT$327,N$3,TrafficClosedSystem4) -> 6132265.247 | O49: =+SUMIF(Working!$G$327:$AT$327,O$3,TrafficClosedSystem4) -> 6200554.153 | P49: =+SUMIF(Working!$G$327:$AT$327,P$3,TrafficClosedSystem4) -> 6280178.102 | Q49: =+SUMIF(Working!$G$327:$AT$327,Q$3,TrafficClosedSystem4) -> 6323262.929 | R49: =+SUMIF(Working!$G$327:$AT$327,R$3,TrafficClosedSystem4) -> 6344703.572 | S49: =+SUMIF(Working!$G$327:$AT$327,S$3,TrafficClosedSystem4) -> 6413226.371 | T49: =+SUMIF(Working!$G$327:$AT$327,T$3,TrafficClosedSystem4) -> 6500249.46 | U49: =+SUMIF(Working!$G$327:$AT$327,U$3,TrafficClosedSystem4) -> 6552500.099 | V49: =+SUMIF(Working!$G$327:$AT$327,V$3,TrafficClosedSystem4) -> 6623267.1 | W49: =+SUMIF(Working!$G$327:$AT$327,W$3,TrafficClosedSystem4) -> 6694798.385 | X49: =+SUMIF(Working!$G$327:$AT$327,X$3,TrafficClosedSystem4) -> 6782448.365 | Z49: TrafficClosedSystem4
C50: Pesanti Classe 5 Chiuso | D50: vkm / y | L50: =+SUMIF(Working!$G$327:$AT$327,L$3,TrafficClosedSystem5) -> 57251232.99 | M50: =+SUMIF(Working!$G$327:$AT$327,M$3,TrafficClosedSystem5) -> 62071688.69 | N50: =+SUMIF(Working!$G$327:$AT$327,N$3,TrafficClosedSystem5) -> 67380470.05 | O50: =+SUMIF(Working!$G$327:$AT$327,O$3,TrafficClosedSystem5) -> 68130818.96 | P50: =+SUMIF(Working!$G$327:$AT$327,P$3,TrafficClosedSystem5) -> 69005715.74 | Q50: =+SUMIF(Working!$G$327:$AT$327,Q$3,TrafficClosedSystem5) -> 69479125.77 | R50: =+SUMIF(Working!$G$327:$AT$327,R$3,TrafficClosedSystem5) -> 69714712.56 | S50: =+SUMIF(Working!$G$327:$AT$327,S$3,TrafficClosedSystem5) -> 70467631.45 | T50: =+SUMIF(Working!$G$327:$AT$327,T$3,TrafficClosedSystem5) -> 71423828.94 | U50: =+SUMIF(Working!$G$327:$AT$327,U$3,TrafficClosedSystem5) -> 71997951.63 | V50: =+SUMIF(Working!$G$327:$AT$327,V$3,TrafficClosedSystem5) -> 72775529.51 | W50: =+SUMIF(Working!$G$327:$AT$327,W$3,TrafficClosedSystem5) -> 73561505.23 | X50: =+SUMIF(Working!$G$327:$AT$327,X$3,TrafficClosedSystem5) -> 74524590.91 | Z50: TrafficClosedSystem5
C51: Leggeri Classe A Barriera | D51: vkm / y | L51: =+SUMIF(Working!$G$327:$AT$327,L$3,TrafficBarriersA) -> 385888328.9 | M51: =+SUMIF(Working!$G$327:$AT$327,M$3,TrafficBarriersA) -> 453374498.9 | N51: =+SUMIF(Working!$G$327:$AT$327,N$3,TrafficBarriersA) -> 556254390.6 | O51: =+SUMIF(Working!$G$327:$AT$327,O$3,TrafficBarriersA) -> 581643887.2 | P51: =+SUMIF(Working!$G$327:$AT$327,P$3,TrafficBarriersA) -> 600179733.4 | Q51: =+SUMIF(Working!$G$327:$AT$327,Q$3,TrafficBarriersA) -> 604796410.8 | R51: =+SUMIF(Working!$G$327:$AT$327,R$3,TrafficBarriersA) -> 610515457.9 | S51: =+SUMIF(Working!$G$327:$AT$327,S$3,TrafficBarriersA) -> 613332913.4 | T51: =+SUMIF(Working!$G$327:$AT$327,T$3,TrafficBarriersA) -> 617871735.7 | U51: =+SUMIF(Working!$G$327:$AT$327,U$3,TrafficBarriersA) -> 618996414.9 | V51: =+SUMIF(Working!$G$327:$AT$327,V$3,TrafficBarriersA) -> 621843289.3 | W51: =+SUMIF(Working!$G$327:$AT$327,W$3,TrafficBarriersA) -> 625187454.2 | X51: =+SUMIF(Working!$G$327:$AT$327,X$3,TrafficBarriersA) -> 629988236.5 | Z51: TrafficBarriersA
C52: Pesanti Classe B Barriera | D52: vkm / y | L52: =+SUMIF(Working!$G$327:$AT$327,L$3,TrafficBarriersB) -> 53000330.45 | M52: =+SUMIF(Working!$G$327:$AT$327,M$3,TrafficBarriersB) -> 60468839.42 | N52: =+SUMIF(Working!$G$327:$AT$327,N$3,TrafficBarriersB) -> 70596481.39 | O52: =+SUMIF(Working!$G$327:$AT$327,O$3,TrafficBarriersB) -> 73603511.94 | P52: =+SUMIF(Working!$G$327:$AT$327,P$3,TrafficBarriersB) -> 76104742.25 | Q52: =+SUMIF(Working!$G$327:$AT$327,Q$3,TrafficBarriersB) -> 76895883.89 | R52: =+SUMIF(Working!$G$327:$AT$327,R$3,TrafficBarriersB) -> 77815957.96 | S52: =+SUMIF(Working!$G$327:$AT$327,S$3,TrafficBarriersB) -> 78233526.45 | T52: =+SUMIF(Working!$G$327:$AT$327,T$3,TrafficBarriersB) -> 78871408.62 | U52: =+SUMIF(Working!$G$327:$AT$327,U$3,TrafficBarriersB) -> 79074059.32 | V52: =+SUMIF(Working!$G$327:$AT$327,V$3,TrafficBarriersB) -> 79497136.34 | W52: =+SUMIF(Working!$G$327:$AT$327,W$3,TrafficBarriersB) -> 80016516.97 | X52: =+SUMIF(Working!$G$327:$AT$327,X$3,TrafficBarriersB) -> 80719433.03 | Z52: TrafficBarriersB
C53: Pesanti Classe 3 Barriera | D53: vkm / y | L53: =+SUMIF(Working!$G$327:$AT$327,L$3,TrafficBarriers3) -> 8143411.761 | M53: =+SUMIF(Working!$G$327:$AT$327,M$3,TrafficBarriers3) -> 10537285.51 | N53: =+SUMIF(Working!$G$327:$AT$327,N$3,TrafficBarriers3) -> 11069690.76 | O53: =+SUMIF(Working!$G$327:$AT$327,O$3,TrafficBarriers3) -> 11589675.11 | P53: =+SUMIF(Working!$G$327:$AT$327,P$3,TrafficBarriers3) -> 12018532.62 | Q53: =+SUMIF(Working!$G$327:$AT$327,Q$3,TrafficBarriers3) -> 12171095.41 | R53: =+SUMIF(Working!$G$327:$AT$327,R$3,TrafficBarriers3) -> 12340489.15 | S53: =+SUMIF(Working!$G$327:$AT$327,S$3,TrafficBarriers3) -> 12421290.22 | T53: =+SUMIF(Working!$G$327:$AT$327,T$3,TrafficBarriers3) -> 12537284.9 | U53: =+SUMIF(Working!$G$327:$AT$327,U$3,TrafficBarriers3) -> 12584270 | V53: =+SUMIF(Working!$G$327:$AT$327,V$3,TrafficBarriers3) -> 12666469.27 | W53: =+SUMIF(Working!$G$327:$AT$327,W$3,TrafficBarriers3) -> 12764310.21 | X53: =+SUMIF(Working!$G$327:$AT$327,X$3,TrafficBarriers3) -> 12891008.77 | Z53: TrafficBarriers3
C54: Pesanti Classe 4 Barriera | D54: vkm / y | L54: =+SUMIF(Working!$G$327:$AT$327,L$3,TrafficBarriers4) -> 5916637.941 | M54: =+SUMIF(Working!$G$327:$AT$327,M$3,TrafficBarriers4) -> 6673462.937 | N54: =+SUMIF(Working!$G$327:$AT$327,N$3,TrafficBarriers4) -> 6949123.045 | O54: =+SUMIF(Working!$G$327:$AT$327,O$3,TrafficBarriers4) -> 7270759.13 | P54: =+SUMIF(Working!$G$327:$AT$327,P$3,TrafficBarriers4) -> 7536839.629 | Q54: =+SUMIF(Working!$G$327:$AT$327,Q$3,TrafficBarriers4) -> 7630519.501 | R54: =+SUMIF(Working!$G$327:$AT$327,R$3,TrafficBarriers4) -> 7734202.086 | S54: =+SUMIF(Working!$G$327:$AT$327,S$3,TrafficBarriers4) -> 7784842.847 | T54: =+SUMIF(Working!$G$327:$AT$327,T$3,TrafficBarriers4) -> 7857540.64 | U54: =+SUMIF(Working!$G$327:$AT$327,U$3,TrafficBarriers4) -> 7886987.791 | V54: =+SUMIF(Working!$G$327:$AT$327,V$3,TrafficBarriers4) -> 7938504.857 | W54: =+SUMIF(Working!$G$327:$AT$327,W$3,TrafficBarriers4) -> 7999825.082 | X54: =+SUMIF(Working!$G$327:$AT$327,X$3,TrafficBarriers4) -> 8079231.354 | Z54: TrafficBarriers4
C55: Pesanti Classe 5 Barriera | D55: vkm / y | L55: =+SUMIF(Working!$G$327:$AT$327,L$3,TrafficBarriers5) -> 70074372.02 | M55: =+SUMIF(Working!$G$327:$AT$327,M$3,TrafficBarriers5) -> 72712698.83 | N55: =+SUMIF(Working!$G$327:$AT$327,N$3,TrafficBarriers5) -> 75983439.7 | O55: =+SUMIF(Working!$G$327:$AT$327,O$3,TrafficBarriers5) -> 79497821.15 | P55: =+SUMIF(Working!$G$327:$AT$327,P$3,TrafficBarriers5) -> 82405594.15 | Q55: =+SUMIF(Working!$G$327:$AT$327,Q$3,TrafficBarriers5) -> 83428834.92 | R55: =+SUMIF(Working!$G$327:$AT$327,R$3,TrafficBarriers5) -> 84561157.75 | S55: =+SUMIF(Working!$G$327:$AT$327,S$3,TrafficBarriers5) -> 85114833.66 | T55: =+SUMIF(Working!$G$327:$AT$327,T$3,TrafficBarriers5) -> 85909668.02 | U55: =+SUMIF(Working!$G$327:$AT$327,U$3,TrafficBarriers5) -> 86231625.63 | V55: =+SUMIF(Working!$G$327:$AT$327,V$3,TrafficBarriers5) -> 86794882.52 | W55: =+SUMIF(Working!$G$327:$AT$327,W$3,TrafficBarriers5) -> 87465321.34 | X55: =+SUMIF(Working!$G$327:$AT$327,X$3,TrafficBarriers5) -> 88333502.21 | Z55: TrafficBarriers5
C57: RICAVI NETTI DA PEDAGGIO | D57: € | L57: =+SUMPRODUCT(L17:L31,L41:L55) -> 111717663.1 | M57: =+SUMPRODUCT(M17:M31,M41:M55) -> 133165275.7 | N57: =+SUMPRODUCT(N17:N31,N41:N55) -> 152035524.1 | O57: 159674490.5 | P57: 167199748.8 | Q57: 166664146.1 | R57: 165960587.5 | S57: 165944122.7 | T57: 166384805.9 | U57: 165913359.1 | V57: 165899127.4 | W57: 166020225.5 | X57: 166525474.9
C59: Costi ammessi
C60: Investimenti Beni Reversibili (Cumulati) | D60: € | K60: =+Input!$L$259+SUM(Working!G1901:P1901) -> 1311966384 | L60: =+$K60 -> 1311966384 | M60: =+$K60 -> 1311966384 | N60: 1311966384 | O60: 1311966384 | P60: 1311966384 | Q60: 1311966384 | R60: 1311966384 | S60: 1311966384 | T60: 1311966384 | U60: 1311966384 | V60: 1311966384 | W60: 1311966384 | X60: 1311966384
C61: Fondo Ammortamento Beni Reversibili | D61: € | K61: =Working!$L$378+SUM(Working!G1902:P1902) -> 439765298 | L61: =K61+L67 -> 485038150.6 | M61: =L61+M67 -> 530311003.2 | N61: 575583855.8 | O61: 620856708.4 | P61: 666129561 | Q61: 711402413.6 | R61: 756675266.2 | S61: 801948118.7 | T61: 847220971.3 | U61: 892493823.9 | V61: 937766676.5 | W61: 983039529.1 | X61: 1028312382
C62: Contributi in conto capitale (cumulati) | D62: € | K62: =+Input!$L$262 -> 283654002 | L62: =+Input!$L$262 -> 283654002 | M62: =+Input!$L$262 -> 283654002 | N62: =+Input!$L$262 -> 283654002 | O62: =+Input!$L$262 -> 283654002 | P62: =+Input!$L$262 -> 283654002 | Q62: =+Input!$L$262 -> 283654002 | R62: =+Input!$L$262 -> 283654002 | S62: =+Input!$L$262 -> 283654002 | T62: =+Input!$L$262 -> 283654002 | U62: =+Input!$L$262 -> 283654002 | V62: =+Input!$L$262 -> 283654002 | W62: =+Input!$L$262 -> 283654002 | X62: =+Input!$L$262 -> 283654002
C63: Capitale Investito Netto Regolatorio (A) | D63: € | K63: =+K60-K61-K62 -> 588547083.6 | L63: =+L60-L61-L62 -> 543274231 | M63: =+M60-M61-M62 -> 498001378.5 | N63: 452728525.9 | O63: 407455673.3 | P63: 362182820.7 | Q63: 316909968.1 | R63: 271637115.5 | S63: 226364262.9 | T63: 181091410.3 | U63: 135818557.8 | V63: 90545705.17 | W63: 45272852.59 | X63: 0
C64: WACC Lordo | D64: % | L64: =Working!R$528 -> 0.0707830847 | M64: =Working!S$528 -> 0.0707830847 | N64: =Working!T$528 -> 0.0707830847 | O64: =Working!U$528 -> 0.0707830847 | P64: =Working!V$528 -> 0.0707830847 | Q64: =Working!W$528 -> 0.0707830847 | R64: =Working!X$528 -> 0.0707830847 | S64: =Working!Y$528 -> 0.0707830847 | T64: =Working!Z$528 -> 0.0707830847 | U64: =Working!AA$528 -> 0.0707830847 | V64: =Working!AB$528 -> 0.0707830847 | W64: =Working!AC$528 -> 0.0707830847 | X64: =Working!AD$528 -> 0.0707830847
C65: Costi di remunerazione del capitale investito | D65: € | L65: =K63*L64 -> 41659178.07 | M65: =L63*M64 -> 38454625.91 | N65: =M63*N64 -> 35250073.75 | O65: =N63*O64 -> 32045521.59 | P65: 28840969.43 | Q65: 25636417.27 | R65: 22431865.12 | S65: 19227312.96 | T65: 16022760.8 | U65: 12818208.64 | V65: 9613656.478 | W65: 6409104.319 | X65: 3204552.159
C67: Ammortamento Regolatorio dei Beni Reversibili | D67: € | L67: =K63/COUNT(L3:$X$3) -> 45272852.59 | M67: =L63/COUNT(M3:$X$3) -> 45272852.59 | N67: =M63/COUNT(N3:$X$3) -> 45272852.59 | O67: =N63/COUNT(O3:$X$3) -> 45272852.59 | P67: =O63/COUNT(P3:$X$3) -> 45272852.59 | Q67: =P63/COUNT(Q3:$X$3) -> 45272852.59 | R67: =Q63/COUNT(R3:$X$3) -> 45272852.59 | S67: =R63/COUNT(S3:$X$3) -> 45272852.59 | T67: =S63/COUNT(T3:$X$3) -> 45272852.59 | U67: =T63/COUNT(U3:$X$3) -> 45272852.59 | V67: =U63/COUNT(V3:$X$3) -> 45272852.59 | W67: =V63/COUNT(W3:$X$3) -> 45272852.59 | X67: =W63/COUNT(X3:$X$3) -> 45272852.59 | Z67: =SUMIF(Working!$G$327:$AT$327,X_K_Calc!Z$3,AssetValueExistingIntangRevDeprConstDecrease)+SUMIF(Working!$G$327:$AT$327,X_K_Calc!Z$3,Working!$G$1817:$AP$1817) -> 0
C68: Costi di rimborso del capitale investito (B) | D68: € | L68: =L67 -> 45272852.59 | M68: =M67 -> 45272852.59 | N68: 45272852.59 | O68: 45272852.59 | P68: 45272852.59 | Q68: 45272852.59 | R68: 45272852.59 | S68: 45272852.59 | T68: 45272852.59 | U68: 45272852.59 | V68: 45272852.59 | W68: 45272852.59 | X68: 45272852.59
C70: Manutenzione | D70: € | L70: =+SUMIF(Working!$O$680:$AP$680,L$3,Working!$O$686:$AP$686)+SUMIF(Working!$O$680:$AP$680,L$3,Working!$O$687:$AP$687) -> 17087171.54 | M70: =+SUMIF(Working!$O$680:$AP$680,M$3,Working!$O$686:$AP$686)+SUMIF(Working!$O$680:$AP$680,M$3,Working!$O$687:$AP$687)+SUMIF(Working!$S$1:$AT$1,X_K_Calc!M3,Working!$S$684:$AT$684) -> 21534548.85 | N70: =+SUMIF(Working!$O$680:$AP$680,N$3,Working!$O$686:$AP$686)+SUMIF(Working!$O$680:$AP$680,N$3,Working!$O$687:$AP$687)+SUMIF(Working!$S$1:$AT$1,X_K_Calc!N3,Working!$S$684:$AT$684) -> 16581467.97 | O70: =+SUMIF(Working!$O$680:$AP$680,O$3,Working!$O$686:$AP$686)+SUMIF(Working!$O$680:$AP$680,O$3,Working!$O$687:$AP$687)+SUMIF(Working!$S$1:$AT$1,X_K_Calc!O3,Working!$S$684:$AT$684) -> 16404403.9 | P70: =+SUMIF(Working!$O$680:$AP$680,P$3,Working!$O$686:$AP$686)+SUMIF(Working!$O$680:$AP$680,P$3,Working!$O$687:$AP$687)+SUMIF(Working!$S$1:$AT$1,X_K_Calc!P3,Working!$S$684:$AT$684) -> 16806206.86 | Q70: =+SUMIF(Working!$O$680:$AP$680,Q$3,Working!$O$686:$AP$686)+SUMIF(Working!$O$680:$AP$680,Q$3,Working!$O$687:$AP$687)+SUMIF(Working!$S$1:$AT$1,X_K_Calc!Q3,Working!$S$684:$AT$684) -> 16667924.24 | R70: =+SUMIF(Working!$O$680:$AP$680,R$3,Working!$O$686:$AP$686)+SUMIF(Working!$O$680:$AP$680,R$3,Working!$O$687:$AP$687)+SUMIF(Working!$S$1:$AT$1,X_K_Calc!R3,Working!$S$684:$AT$684) -> 16304307.46 | S70: =+SUMIF(Working!$O$680:$AP$680,S$3,Working!$O$686:$AP$686)+SUMIF(Working!$O$680:$AP$680,S$3,Working!$O$687:$AP$687)+SUMIF(Working!$S$1:$AT$1,X_K_Calc!S3,Working!$S$684:$AT$684) -> 16711855.37 | T70: =+SUMIF(Working!$O$680:$AP$680,T$3,Working!$O$686:$AP$686)+SUMIF(Working!$O$680:$AP$680,T$3,Working!$O$687:$AP$687)+SUMIF(Working!$S$1:$AT$1,X_K_Calc!T3,Working!$S$684:$AT$684) -> 16566219.86 | U70: =+SUMIF(Working!$O$680:$AP$680,U$3,Working!$O$686:$AP$686)+SUMIF(Working!$O$680:$AP$680,U$3,Working!$O$687:$AP$687)+SUMIF(Working!$S$1:$AT$1,X_K_Calc!U3,Working!$S$684:$AT$684) -> 16698749.62 | V70: =+SUMIF(Working!$O$680:$AP$680,V$3,Working!$O$686:$AP$686)+SUMIF(Working!$O$680:$AP$680,V$3,Working!$O$687:$AP$687)+SUMIF(Working!$S$1:$AT$1,X_K_Calc!V3,Working!$S$684:$AT$684) -> 17116157.13 | W70: =+SUMIF(Working!$O$680:$AP$680,W$3,Working!$O$686:$AP$686)+SUMIF(Working!$O$680:$AP$680,W$3,Working!$O$687:$AP$687)+SUMIF(Working!$S$1:$AT$1,X_K_Calc!W3,Working!$S$684:$AT$684) -> 16966998.33 | X70: =+SUMIF(Working!$O$680:$AP$680,X$3,Working!$O$686:$AP$686)+SUMIF(Working!$O$680:$AP$680,X$3,Working!$O$687:$AP$687)+SUMIF(Working!$S$1:$AT$1,X_K_Calc!X3,Working!$S$684:$AT$684) -> 17391111.08
C71: Personale | D71: € | L71: =+SUMIF(Working!$O$680:$AP$680,L$3,Working!$O$689:$AP$689)+SUMIF(Working!$O$680:$AP$680,L$3,Working!$O$690:$AP$690) -> 18461378.44 | M71: =+SUMIF(Working!$O$680:$AP$680,M$3,Working!$O$689:$AP$689)+SUMIF(Working!$O$680:$AP$680,M$3,Working!$O$690:$AP$690) -> 20580961.24 | N71: =+SUMIF(Working!$O$680:$AP$680,N$3,Working!$O$689:$AP$689)+SUMIF(Working!$O$680:$AP$680,N$3,Working!$O$690:$AP$690) -> 21264292.03 | O71: =+SUMIF(Working!$O$680:$AP$680,O$3,Working!$O$689:$AP$689)+SUMIF(Working!$O$680:$AP$680,O$3,Working!$O$690:$AP$690) -> 21434406.37 | P71: =+SUMIF(Working!$O$680:$AP$680,P$3,Working!$O$689:$AP$689)+SUMIF(Working!$O$680:$AP$680,P$3,Working!$O$690:$AP$690) -> 21605881.62 | Q71: =+SUMIF(Working!$O$680:$AP$680,Q$3,Working!$O$689:$AP$689)+SUMIF(Working!$O$680:$AP$680,Q$3,Working!$O$690:$AP$690) -> 21778728.67 | R71: =+SUMIF(Working!$O$680:$AP$680,R$3,Working!$O$689:$AP$689)+SUMIF(Working!$O$680:$AP$680,R$3,Working!$O$690:$AP$690) -> 21952958.5 | S71: =+SUMIF(Working!$O$680:$AP$680,S$3,Working!$O$689:$AP$689)+SUMIF(Working!$O$680:$AP$680,S$3,Working!$O$690:$AP$690) -> 22128582.17 | T71: =+SUMIF(Working!$O$680:$AP$680,T$3,Working!$O$689:$AP$689)+SUMIF(Working!$O$680:$AP$680,T$3,Working!$O$690:$AP$690) -> 22305610.83 | U71: =+SUMIF(Working!$O$680:$AP$680,U$3,Working!$O$689:$AP$689)+SUMIF(Working!$O$680:$AP$680,U$3,Working!$O$690:$AP$690) -> 22484055.72 | V71: =+SUMIF(Working!$O$680:$AP$680,V$3,Working!$O$689:$AP$689)+SUMIF(Working!$O$680:$AP$680,V$3,Working!$O$690:$AP$690) -> 22663928.16 | W71: =+SUMIF(Working!$O$680:$AP$680,W$3,Working!$O$689:$AP$689)+SUMIF(Working!$O$680:$AP$680,W$3,Working!$O$690:$AP$690) -> 22845239.59 | X71: =+SUMIF(Working!$O$680:$AP$680,X$3,Working!$O$689:$AP$689)+SUMIF(Working!$O$680:$AP$680,X$3,Working!$O$690:$AP$690) -> 23028001.5
C72: Canoni di Concessione | D72: € | L72: =+SUMIF(Working!$O$680:$AP$680,L$3,Working!$O$694:$AP$694)-L146 -> 2663060.78 | M72: =+SUMIF(Working!$O$680:$AP$680,M$3,Working!$O$694:$AP$694)-M146 -> 3195947.24 | N72: =+SUMIF(Working!$O$680:$AP$680,N$3,Working!$O$694:$AP$694)-N146 -> 3648852.578 | O72: =+SUMIF(Working!$O$680:$AP$680,O$3,Working!$O$694:$AP$694)-O146 -> 3832187.772 | P72: =+SUMIF(Working!$O$680:$AP$680,P$3,Working!$O$694:$AP$694)-P146 -> 4012793.972 | Q72: =+SUMIF(Working!$O$680:$AP$680,Q$3,Working!$O$694:$AP$694)-Q146 -> 3999939.505 | R72: =+SUMIF(Working!$O$680:$AP$680,R$3,Working!$O$694:$AP$694)-R146 -> 3983054.1 | S72: =+SUMIF(Working!$O$680:$AP$680,S$3,Working!$O$694:$AP$694)-S146 -> 3982658.945 | T72: =+SUMIF(Working!$O$680:$AP$680,T$3,Working!$O$694:$AP$694)-T146 -> 3993235.342 | U72: =+SUMIF(Working!$O$680:$AP$680,U$3,Working!$O$694:$AP$694)-U146 -> 3981920.62 | V72: =+SUMIF(Working!$O$680:$AP$680,V$3,Working!$O$694:$AP$694)-V146 -> 3981579.059 | W72: =+SUMIF(Working!$O$680:$AP$680,W$3,Working!$O$694:$AP$694)-W146 -> 3984485.412 | X72: =+SUMIF(Working!$O$680:$AP$680,X$3,Working!$O$694:$AP$694)-X146 -> 3996611.398
C73: Canoni da subconcessione | D73: € | L73: =+SUMIF(Working!$O$680:$AP$680,L$3,Working!$O$695:$AP$695) -> 48231.11 | M73: =+SUMIF(Working!$O$680:$AP$680,M$3,Working!$O$695:$AP$695) -> 57967.46733 | N73: =+SUMIF(Working!$O$680:$AP$680,N$3,Working!$O$695:$AP$695) -> 85921.71111 | O73: =+SUMIF(Working!$O$680:$AP$680,O$3,Working!$O$695:$AP$695) -> 85921.71111 | P73: =+SUMIF(Working!$O$680:$AP$680,P$3,Working!$O$695:$AP$695) -> 85921.71111 | Q73: =+SUMIF(Working!$O$680:$AP$680,Q$3,Working!$O$695:$AP$695) -> 85921.71111 | R73: =+SUMIF(Working!$O$680:$AP$680,R$3,Working!$O$695:$AP$695) -> 86609.0848 | S73: =+SUMIF(Working!$O$680:$AP$680,S$3,Working!$O$695:$AP$695) -> 87301.95748 | T73: =+SUMIF(Working!$O$680:$AP$680,T$3,Working!$O$695:$AP$695) -> 88000.37314 | U73: =+SUMIF(Working!$O$680:$AP$680,U$3,Working!$O$695:$AP$695) -> 88704.37612 | V73: =+SUMIF(Working!$O$680:$AP$680,V$3,Working!$O$695:$AP$695) -> 89414.01113 | W73: =+SUMIF(Working!$O$680:$AP$680,W$3,Working!$O$695:$AP$695) -> 90129.32322 | X73: =+SUMIF(Working!$O$680:$AP$680,X$3,Working!$O$695:$AP$695) -> 90850.35781
C74: Acquisto materie prime e di consumo | D74: € | L74: =+(SUMIF(Working!$O$680:$AP$680,L$3,Working!$O$683:$AP$683)+SUMIF(Working!$O$680:$AP$680,L$3,Working!$O$684:$AP$684))*L12 -> 467061.22 | M74: =+SUMIF(Working!$O$680:$AP$680,M$3,Working!$O$683:$AP$683)*M12 -> 472663.9806 | N74: =+SUMIF(Working!$O$680:$AP$680,N$3,Working!$O$683:$AP$683)*N12 -> 476445.2925 | O74: =+SUMIF(Working!$O$680:$AP$680,O$3,Working!$O$683:$AP$683)*O12 -> 480256.8548 | P74: =+SUMIF(Working!$O$680:$AP$680,P$3,Working!$O$683:$AP$683)*P12 -> 484098.9097 | Q74: =+SUMIF(Working!$O$680:$AP$680,Q$3,Working!$O$683:$AP$683)*Q12 -> 487971.7009 | R74: =+SUMIF(Working!$O$680:$AP$680,R$3,Working!$O$683:$AP$683)*R12 -> 491875.4745 | S74: =+SUMIF(Working!$O$680:$AP$680,S$3,Working!$O$683:$AP$683)*S12 -> 495810.4783 | T74: =+SUMIF(Working!$O$680:$AP$680,T$3,Working!$O$683:$AP$683)*T12 -> 499776.9622 | U74: =+SUMIF(Working!$O$680:$AP$680,U$3,Working!$O$683:$AP$683)*U12 -> 503775.1779 | V74: =+SUMIF(Working!$O$680:$AP$680,V$3,Working!$O$683:$AP$683)*V12 -> 507805.3793 | W74: =+SUMIF(Working!$O$680:$AP$680,W$3,Working!$O$683:$AP$683)*W12 -> 511867.8223 | X74: =+SUMIF(Working!$O$680:$AP$680,X$3,Working!$O$683:$AP$683)*X12 -> 515962.7649
C75: Altri costi operativi | D75: € | L75: =+SUMIF(Working!$O$680:$AP$680,L$3,Working!$O$691:$AP$691)+SUMIF(Working!$O$680:$AP$680,L$3,Working!$O$688:$AP$688)+SUMIF(Working!$O$680:$AP$680,L$3,Working!$O$685:$AP$685) -> 24452571.37 | M75: =+SUMIF(Working!$O$680:$AP$680,M$3,Working!$O$691:$AP$691)+SUMIF(Working!$O$680:$AP$680,M$3,Working!$O$688:$AP$688)+SUMIF(Working!$O$680:$AP$680,M$3,Working!$O$685:$AP$685) -> 20666388.65 | N75: =+SUMIF(Working!$O$680:$AP$680,N$3,Working!$O$691:$AP$691)+SUMIF(Working!$O$680:$AP$680,N$3,Working!$O$688:$AP$688)+SUMIF(Working!$O$680:$AP$680,N$3,Working!$O$685:$AP$685) -> 14183481.97 | O75: =+SUMIF(Working!$O$680:$AP$680,O$3,Working!$O$691:$AP$691)+SUMIF(Working!$O$680:$AP$680,O$3,Working!$O$688:$AP$688)+SUMIF(Working!$O$680:$AP$680,O$3,Working!$O$685:$AP$685) -> 14296949.82 | P75: =+SUMIF(Working!$O$680:$AP$680,P$3,Working!$O$691:$AP$691)+SUMIF(Working!$O$680:$AP$680,P$3,Working!$O$688:$AP$688)+SUMIF(Working!$O$680:$AP$680,P$3,Working!$O$685:$AP$685) -> 14411325.42 | Q75: =+SUMIF(Working!$O$680:$AP$680,Q$3,Working!$O$691:$AP$691)+SUMIF(Working!$O$680:$AP$680,Q$3,Working!$O$688:$AP$688)+SUMIF(Working!$O$680:$AP$680,Q$3,Working!$O$685:$AP$685) -> 14526616.03 | R75: =+SUMIF(Working!$O$680:$AP$680,R$3,Working!$O$691:$AP$691)+SUMIF(Working!$O$680:$AP$680,R$3,Working!$O$688:$AP$688)+SUMIF(Working!$O$680:$AP$680,R$3,Working!$O$685:$AP$685) -> 14642828.95 | S75: =+SUMIF(Working!$O$680:$AP$680,S$3,Working!$O$691:$AP$691)+SUMIF(Working!$O$680:$AP$680,S$3,Working!$O$688:$AP$688)+SUMIF(Working!$O$680:$AP$680,S$3,Working!$O$685:$AP$685) -> 14759971.59 | T75: =+SUMIF(Working!$O$680:$AP$680,T$3,Working!$O$691:$AP$691)+SUMIF(Working!$O$680:$AP$680,T$3,Working!$O$688:$AP$688)+SUMIF(Working!$O$680:$AP$680,T$3,Working!$O$685:$AP$685) -> 14878051.36 | U75: =+SUMIF(Working!$O$680:$AP$680,U$3,Working!$O$691:$AP$691)+SUMIF(Working!$O$680:$AP$680,U$3,Working!$O$688:$AP$688)+SUMIF(Working!$O$680:$AP$680,U$3,Working!$O$685:$AP$685) -> 14997075.77 | V75: =+SUMIF(Working!$O$680:$AP$680,V$3,Working!$O$691:$AP$691)+SUMIF(Working!$O$680:$AP$680,V$3,Working!$O$688:$AP$688)+SUMIF(Working!$O$680:$AP$680,V$3,Working!$O$685:$AP$685) -> 15117052.38 | W75: =+SUMIF(Working!$O$680:$AP$680,W$3,Working!$O$691:$AP$691)+SUMIF(Working!$O$680:$AP$680,W$3,Working!$O$688:$AP$688)+SUMIF(Working!$O$680:$AP$680,W$3,Working!$O$685:$AP$685) -> 15237988.79 | X75: =+SUMIF(Working!$O$680:$AP$680,X$3,Working!$O$691:$AP$691)+SUMIF(Working!$O$680:$AP$680,X$3,Working!$O$688:$AP$688)+SUMIF(Working!$O$680:$AP$680,X$3,Working!$O$685:$AP$685) -> 15359892.7
C76: Altri ricavi e proventi | D76: € | L76: =-SUMIF(Working!$O$625:$AP$625,L$3,Working!$O$635:$AP$635)+SUMIF(Working!$O$625:$AP$625,L$3,Working!$O$632:$AP$632)+SUMIF(Working!$O$625:$AP$625,L$3,Working!$O$633:$AP$633) -> -17933898.99 | M76: =-SUMIF(Working!$O$625:$AP$625,M$3,Working!$O$635:$AP$635)+SUMIF(Working!$O$625:$AP$625,M$3,Working!$O$632:$AP$632)+SUMIF(Working!$O$625:$AP$625,M$3,Working!$O$633:$AP$633) -> -12828427.64 | N76: =-SUMIF(Working!$O$625:$AP$625,N$3,Working!$O$635:$AP$635)+SUMIF(Working!$O$625:$AP$625,N$3,Working!$O$632:$AP$632)+SUMIF(Working!$O$625:$AP$625,N$3,Working!$O$633:$AP$633) -> -7591083.705 | O76: =-SUMIF(Working!$O$625:$AP$625,O$3,Working!$O$635:$AP$635)+SUMIF(Working!$O$625:$AP$625,O$3,Working!$O$632:$AP$632)+SUMIF(Working!$O$625:$AP$625,O$3,Working!$O$633:$AP$633) -> -7591083.705 | P76: =-SUMIF(Working!$O$625:$AP$625,P$3,Working!$O$635:$AP$635)+SUMIF(Working!$O$625:$AP$625,P$3,Working!$O$632:$AP$632)+SUMIF(Working!$O$625:$AP$625,P$3,Working!$O$633:$AP$633) -> -7591083.705 | Q76: =-SUMIF(Working!$O$625:$AP$625,Q$3,Working!$O$635:$AP$635)+SUMIF(Working!$O$625:$AP$625,Q$3,Working!$O$632:$AP$632)+SUMIF(Working!$O$625:$AP$625,Q$3,Working!$O$633:$AP$633) -> -7591083.705 | R76: =-SUMIF(Working!$O$625:$AP$625,R$3,Working!$O$635:$AP$635)+SUMIF(Working!$O$625:$AP$625,R$3,Working!$O$632:$AP$632)+SUMIF(Working!$O$625:$AP$625,R$3,Working!$O$633:$AP$633) -> -7651812.374 | S76: =-SUMIF(Working!$O$625:$AP$625,S$3,Working!$O$635:$AP$635)+SUMIF(Working!$O$625:$AP$625,S$3,Working!$O$632:$AP$632)+SUMIF(Working!$O$625:$AP$625,S$3,Working!$O$633:$AP$633) -> -7713026.873 | T76: =-SUMIF(Working!$O$625:$AP$625,T$3,Working!$O$635:$AP$635)+SUMIF(Working!$O$625:$AP$625,T$3,Working!$O$632:$AP$632)+SUMIF(Working!$O$625:$AP$625,T$3,Working!$O$633:$AP$633) -> -7774731.088 | U76: =-SUMIF(Working!$O$625:$AP$625,U$3,Working!$O$635:$AP$635)+SUMIF(Working!$O$625:$AP$625,U$3,Working!$O$632:$AP$632)+SUMIF(Working!$O$625:$AP$625,U$3,Working!$O$633:$AP$633) -> -7836928.937 | V76: =-SUMIF(Working!$O$625:$AP$625,V$3,Working!$O$635:$AP$635)+SUMIF(Working!$O$625:$AP$625,V$3,Working!$O$632:$AP$632)+SUMIF(Working!$O$625:$AP$625,V$3,Working!$O$633:$AP$633) -> -7899624.369 | W76: =-SUMIF(Working!$O$625:$AP$625,W$3,Working!$O$635:$AP$635)+SUMIF(Working!$O$625:$AP$625,W$3,Working!$O$632:$AP$632)+SUMIF(Working!$O$625:$AP$625,W$3,Working!$O$633:$AP$633) -> -7962821.364 | X76: =-SUMIF(Working!$O$625:$AP$625,X$3,Working!$O$635:$AP$635)+SUMIF(Working!$O$625:$AP$625,X$3,Working!$O$632:$AP$632)+SUMIF(Working!$O$625:$AP$625,X$3,Working!$O$633:$AP$633) -> -8026523.935
C77: Totale costi operativi al netto dei ricavi accessori ('C) | D77: € | L77: =(SUM(L70:L76)) -> 45245575.47 | M77: =(SUM(M70:M76)) -> 53680049.79 | N77: 48649377.84 | O77: 48943042.72 | P77: 49815144.79 | Q77: 49956018.15 | R77: 49809821.2 | S77: 50453153.64 | T77: 50556163.64 | U77: 50917352.34 | V77: 51576311.75 | W77: 51673887.91 | X77: 52355905.87
C78: COSTI AMMESSI A REMUNERAZIONE | D78: € | L78: =SUM(L65,L68,L77) -> 132177606.1 | M78: =SUM(M65,M68,M77) -> 137407528.3 | N78: =SUM(N65,N68,N77) -> 129172304.2 | O78: 126261416.9 | P78: 123928966.8 | Q78: 120865288 | R78: 117514538.9 | S78: 114953319.2 | T78: 111851777 | U78: 109008413.6 | V78: 106462820.8 | W78: 103355844.8 | X78: 100833310.6
C80: Poste figurative | D80: € | L80: =(L78-L57)-L83 -> -64816961.69 | M80: =(M78-M57)-M83 -> 4242252.587 | N80: =(N78-N57)-N83 -> -22863219.9 | O80: -33413073.62 | P80: -43270782.03 | Q80: -45798858.05 | R80: -48446048.59 | S80: -50990803.53 | T80: -54533028.89 | U80: -56904945.58 | V80: -59436306.63 | W80: -62664380.67 | X80: -65692164.28
C81: Saldo delle poste figurative | D81: € | K81: =317199.195878581*1000 -> 317199195.9 | L81: =K81*(1+L64)+L80 -> 274834571.7 | M81: =L81*(1+M64)+M80 -> 298530463.1 | N81: 296798150.3 | O81: 284393365.2 | P81: 261252822.9 | Q81: 233946245.5 | R81: 202059633.8 | S81: 165371234.5 | T81: 122543691.7 | U81: 74312766.61 | V81: 20136546.84 | W81: -41102506.93 | X81: =+ROUND(W81*(1+X64)+X80,-2) -> -109704000
C83: VA delle poste figurative | D83: € | E83: =ROUND(NPV(L64,L80:X80)+K81,-1) -> -45092370 | K83: 85276904.73 | L83: =+$K83*($K$84=1)*(L3=2020)+$K83/3*($K$84=2)*(OR(L3=2020,L3=2025,L3=2030))+$K83/13*($K$84=3) -> 85276904.73 | M83: =+$K83*($K$84=1)*(M3=2020)+$K83/3*($K$84=2)*(OR(M3=2020,M3=2025,M3=2030))+$K83/13*($K$84=3) -> 0 | N83: =+$K83*($K$84=1)*(N3=2020)+$K83/3*($K$84=2)*(OR(N3=2020,N3=2025,N3=2030))+$K83/13*($K$84=3) -> 0 | O83: 0 | P83: 0 | Q83: 0 | R83: 0 | S83: 0 | T83: 0 | U83: 0 | V83: 0 | W83: 0 | X83: 0
C84: Change X | D84: % | E84: 0.01307268927 | H84: Hp.1 | I84: Tutto al primo anno | K84: 1
C85: Saldo delle poste figurative a fine concessione | D85: € | E85: =+X81 -> -109704000 | H85: Hp.2 | I85: Ad inizio nuovo periodo regolatorio
D86: check | E86: =+IF(K84<>0,SUM(L83:X83)-K83,0) -> 0 | H86: Hp.3 | I86: In ogni anno fino a fine concesione | K86: 295961487.7 | L86: 74468291
K87: =PFR!$Q$71 -> 317199195.9 | L87: 87710747.75
C88: Calcolo K
C90: Tariffa media ponderata
C91: Leggeri Classe A Passante | D91: € / vkm | L91: =+L17 -> 0.09819 | M91: =(L91*(1+M$107)*M$8)+('Tariffe PEF'!I6*(1-X_K_Calc!M$8)) -> 0.09819 | N91: =(M91*(1+N$107)*N$8)+('Tariffe PEF'!J6*(1-X_K_Calc!N$8)) -> 0.1013300986 | O91: =(N91*(1+O$107)*O$8)+('Tariffe PEF'!K6*(1-X_K_Calc!O$8)) -> 0.1045706171 | P91: =(O91*(1+P$107)*P$8)+('Tariffe PEF'!L6*(1-X_K_Calc!P$8)) -> 0.1079147667 | Q91: =(P91*(1+Q$107)*Q$8)+('Tariffe PEF'!M6*(1-X_K_Calc!Q$8)) -> 0.1071428598 | R91: =(Q91*(1+R$107)*R$8)+('Tariffe PEF'!N6*(1-X_K_Calc!R$8)) -> 0.1063764744 | S91: =(R91*(1+S$107)*S$8)+('Tariffe PEF'!O6*(1-X_K_Calc!S$8)) -> 0.1056155708 | T91: =(S91*(1+T$107)*T$8)+('Tariffe PEF'!P6*(1-X_K_Calc!T$8)) -> 0.1048601099 | U91: =(T91*(1+U$107)*U$8)+('Tariffe PEF'!Q6*(1-X_K_Calc!U$8)) -> 0.1041100527 | V91: =(U91*(1+V$107)*V$8)+('Tariffe PEF'!R6*(1-X_K_Calc!V$8)) -> 0.1033653607 | W91: =(V91*(1+W$107)*W$8)+('Tariffe PEF'!S6*(1-X_K_Calc!W$8)) -> 0.1026259954 | X91: =(W91*(1+X$107)*X$8)+('Tariffe PEF'!T6*(1-X_K_Calc!X$8)) -> 0.1018919187
C92: Pesanti Classe B Passante | D92: € / vkm | L92: 0.10065 | M92: =(L92*(1+M$107)*M$8)+('Tariffe PEF'!I7*(1-X_K_Calc!M$8)) -> 0.10065 | N92: =(M92*(1+N$107)*N$8)+('Tariffe PEF'!J7*(1-X_K_Calc!N$8)) -> 0.103868769 | O92: =(N92*(1+O$107)*O$8)+('Tariffe PEF'!K7*(1-X_K_Calc!O$8)) -> 0.1071904737 | P92: =(O92*(1+P$107)*P$8)+('Tariffe PEF'!L7*(1-X_K_Calc!P$8)) -> 0.1106184059 | Q92: =(P92*(1+Q$107)*Q$8)+('Tariffe PEF'!M7*(1-X_K_Calc!Q$8)) -> 0.10982716 | R92: =(Q92*(1+R$107)*R$8)+('Tariffe PEF'!N7*(1-X_K_Calc!R$8)) -> 0.1090415739 | S92: =(R92*(1+S$107)*S$8)+('Tariffe PEF'!O7*(1-X_K_Calc!S$8)) -> 0.1082616071 | T92: =(S92*(1+T$107)*T$8)+('Tariffe PEF'!P7*(1-X_K_Calc!T$8)) -> 0.1074872193 | U92: =(T92*(1+U$107)*U$8)+('Tariffe PEF'!Q7*(1-X_K_Calc!U$8)) -> 0.1067183706 | V92: =(U92*(1+V$107)*V$8)+('Tariffe PEF'!R7*(1-X_K_Calc!V$8)) -> 0.1059550214 | W92: =(V92*(1+W$107)*W$8)+('Tariffe PEF'!S7*(1-X_K_Calc!W$8)) -> 0.1051971325 | X92: =(W92*(1+X$107)*X$8)+('Tariffe PEF'!T7*(1-X_K_Calc!X$8)) -> 0.1044446646
C93: Pesanti Classe 3 Passante | D93: € / vkm | L93: 0.12277 | M93: =(L93*(1+M$107)*M$8)+('Tariffe PEF'!I8*(1-X_K_Calc!M$8)) -> 0.12277 | N93: =(M93*(1+N$107)*N$8)+('Tariffe PEF'!J8*(1-X_K_Calc!N$8)) -> 0.1266961627 | O93: =(N93*(1+O$107)*O$8)+('Tariffe PEF'!K8*(1-X_K_Calc!O$8)) -> 0.1307478833 | P93: =(O93*(1+P$107)*P$8)+('Tariffe PEF'!L8*(1-X_K_Calc!P$8)) -> 0.1349291772 | Q93: =(P93*(1+Q$107)*Q$8)+('Tariffe PEF'!M8*(1-X_K_Calc!Q$8)) -> 0.1339640381 | R93: =(Q93*(1+R$107)*R$8)+('Tariffe PEF'!N8*(1-X_K_Calc!R$8)) -> 0.1330058026 | S93: =(R93*(1+S$107)*S$8)+('Tariffe PEF'!O8*(1-X_K_Calc!S$8)) -> 0.1320544213 | T93: =(S93*(1+T$107)*T$8)+('Tariffe PEF'!P8*(1-X_K_Calc!T$8)) -> 0.1311098451 | U93: =(T93*(1+U$107)*U$8)+('Tariffe PEF'!Q8*(1-X_K_Calc!U$8)) -> 0.1301720254 | V93: =(U93*(1+V$107)*V$8)+('Tariffe PEF'!R8*(1-X_K_Calc!V$8)) -> 0.1292409139 | W93: =(V93*(1+W$107)*W$8)+('Tariffe PEF'!S8*(1-X_K_Calc!W$8)) -> 0.1283164625 | X93: =(W93*(1+X$107)*X$8)+('Tariffe PEF'!T8*(1-X_K_Calc!X$8)) -> 0.1273986237
C94: Pesanti Classe 4 Passante | D94: € / vkm | L94: 0.19534 | M94: =(L94*(1+M$107)*M$8)+('Tariffe PEF'!I9*(1-X_K_Calc!M$8)) -> 0.19534 | N94: =(M94*(1+N$107)*N$8)+('Tariffe PEF'!J9*(1-X_K_Calc!N$8)) -> 0.2015869383 | O94: =(N94*(1+O$107)*O$8)+('Tariffe PEF'!K9*(1-X_K_Calc!O$8)) -> 0.2080336525 | P94: =(O94*(1+P$107)*P$8)+('Tariffe PEF'!L9*(1-X_K_Calc!P$8)) -> 0.2146865316 | Q94: =(P94*(1+Q$107)*Q$8)+('Tariffe PEF'!M9*(1-X_K_Calc!Q$8)) -> 0.2131508936 | R94: =(Q94*(1+R$107)*R$8)+('Tariffe PEF'!N9*(1-X_K_Calc!R$8)) -> 0.2116262399 | S94: =(R94*(1+S$107)*S$8)+('Tariffe PEF'!O9*(1-X_K_Calc!S$8)) -> 0.210112492 | T94: =(S94*(1+T$107)*T$8)+('Tariffe PEF'!P9*(1-X_K_Calc!T$8)) -> 0.2086095719 | U94: =(T94*(1+U$107)*U$8)+('Tariffe PEF'!Q9*(1-X_K_Calc!U$8)) -> 0.207117402 | V94: =(U94*(1+V$107)*V$8)+('Tariffe PEF'!R9*(1-X_K_Calc!V$8)) -> 0.2056359055 | W94: =(V94*(1+W$107)*W$8)+('Tariffe PEF'!S9*(1-X_K_Calc!W$8)) -> 0.204165006 | X94: =(W94*(1+X$107)*X$8)+('Tariffe PEF'!T9*(1-X_K_Calc!X$8)) -> 0.2027046278
C95: Pesanti Classe 5 Passante | D95: € / vkm | L95: 0.23407 | M95: =(L95*(1+M$107)*M$8)+('Tariffe PEF'!I10*(1-X_K_Calc!M$8)) -> 0.23407 | N95: =(M95*(1+N$107)*N$8)+('Tariffe PEF'!J10*(1-X_K_Calc!N$8)) -> 0.2415555168 | O95: =(N95*(1+O$107)*O$8)+('Tariffe PEF'!K10*(1-X_K_Calc!O$8)) -> 0.249280419 | P95: =(O95*(1+P$107)*P$8)+('Tariffe PEF'!L10*(1-X_K_Calc!P$8)) -> 0.2572523622 | Q95: =(P95*(1+Q$107)*Q$8)+('Tariffe PEF'!M10*(1-X_K_Calc!Q$8)) -> 0.2554122538 | R95: =(Q95*(1+R$107)*R$8)+('Tariffe PEF'!N10*(1-X_K_Calc!R$8)) -> 0.2535853076 | S95: =(R95*(1+S$107)*S$8)+('Tariffe PEF'!O10*(1-X_K_Calc!S$8)) -> 0.2517714294 | T95: =(S95*(1+T$107)*T$8)+('Tariffe PEF'!P10*(1-X_K_Calc!T$8)) -> 0.2499705257 | U95: =(T95*(1+U$107)*U$8)+('Tariffe PEF'!Q10*(1-X_K_Calc!U$8)) -> 0.2481825037 | V95: =(U95*(1+V$107)*V$8)+('Tariffe PEF'!R10*(1-X_K_Calc!V$8)) -> 0.2464072714 | W95: =(V95*(1+W$107)*W$8)+('Tariffe PEF'!S10*(1-X_K_Calc!W$8)) -> 0.2446447372 | X95: =(W95*(1+X$107)*X$8)+('Tariffe PEF'!T10*(1-X_K_Calc!X$8)) -> 0.2428948102
C96: Leggeri Classe A Chiuso | D96: € / vkm | L96: 0.04614 | M96: =(L96*(1+M$107)*M$8)+('Tariffe PEF'!I11*(1-X_K_Calc!M$8)) -> 0.04614 | N96: =(M96*(1+N$107)*N$8)+('Tariffe PEF'!J11*(1-X_K_Calc!N$8)) -> 0.04761554895 | O96: =(N96*(1+O$107)*O$8)+('Tariffe PEF'!K11*(1-X_K_Calc!O$8)) -> 0.0491382857 | P96: =(O96*(1+P$107)*P$8)+('Tariffe PEF'!L11*(1-X_K_Calc!P$8)) -> 0.05070971929 | Q96: =(P96*(1+Q$107)*Q$8)+('Tariffe PEF'!M11*(1-X_K_Calc!Q$8)) -> 0.05034699616 | R96: =(Q96*(1+R$107)*R$8)+('Tariffe PEF'!N11*(1-X_K_Calc!R$8)) -> 0.04998686757 | S96: =(R96*(1+S$107)*S$8)+('Tariffe PEF'!O11*(1-X_K_Calc!S$8)) -> 0.04962931495 | T96: =(S96*(1+T$107)*T$8)+('Tariffe PEF'!P11*(1-X_K_Calc!T$8)) -> 0.04927431988 | U96: =(T96*(1+U$107)*U$8)+('Tariffe PEF'!Q11*(1-X_K_Calc!U$8)) -> 0.04892186407 | V96: =(U96*(1+V$107)*V$8)+('Tariffe PEF'!R11*(1-X_K_Calc!V$8)) -> 0.04857192935 | W96: =(V96*(1+W$107)*W$8)+('Tariffe PEF'!S11*(1-X_K_Calc!W$8)) -> 0.04822449769 | X96: =(W96*(1+X$107)*X$8)+('Tariffe PEF'!T11*(1-X_K_Calc!X$8)) -> 0.04787955118
C97: Pesanti Classe B Chiuso | D97: € / vkm | L97: 0.04729 | M97: =(L97*(1+M$107)*M$8)+('Tariffe PEF'!I12*(1-X_K_Calc!M$8)) -> 0.04729 | N97: =(M97*(1+N$107)*N$8)+('Tariffe PEF'!J12*(1-X_K_Calc!N$8)) -> 0.04880232575 | O97: =(N97*(1+O$107)*O$8)+('Tariffe PEF'!K12*(1-X_K_Calc!O$8)) -> 0.0503630154 | P97: =(O97*(1+P$107)*P$8)+('Tariffe PEF'!L12*(1-X_K_Calc!P$8)) -> 0.05197361563 | Q97: =(P97*(1+Q$107)*Q$8)+('Tariffe PEF'!M12*(1-X_K_Calc!Q$8)) -> 0.05160185194 | R97: =(Q97*(1+R$107)*R$8)+('Tariffe PEF'!N12*(1-X_K_Calc!R$8)) -> 0.05123274745 | S97: =(R97*(1+S$107)*S$8)+('Tariffe PEF'!O12*(1-X_K_Calc!S$8)) -> 0.05086628314 | T97: =(S97*(1+T$107)*T$8)+('Tariffe PEF'!P12*(1-X_K_Calc!T$8)) -> 0.05050244012 | U97: =(T97*(1+U$107)*U$8)+('Tariffe PEF'!Q12*(1-X_K_Calc!U$8)) -> 0.05014119965 | V97: =(U97*(1+V$107)*V$8)+('Tariffe PEF'!R12*(1-X_K_Calc!V$8)) -> 0.04978254311 | W97: =(V97*(1+W$107)*W$8)+('Tariffe PEF'!S12*(1-X_K_Calc!W$8)) -> 0.04942645201 | X97: =(W97*(1+X$107)*X$8)+('Tariffe PEF'!T12*(1-X_K_Calc!X$8)) -> 0.049072908
C98: Pesanti Classe 3 Chiuso | D98: € / vkm | L98: 0.05442 | M98: =(L98*(1+M$107)*M$8)+('Tariffe PEF'!I13*(1-X_K_Calc!M$8)) -> 0.05442 | N98: =(M98*(1+N$107)*N$8)+('Tariffe PEF'!J13*(1-X_K_Calc!N$8)) -> 0.05616034187 | O98: =(N98*(1+O$107)*O$8)+('Tariffe PEF'!K13*(1-X_K_Calc!O$8)) -> 0.05795633957 | P98: =(O98*(1+P$107)*P$8)+('Tariffe PEF'!L13*(1-X_K_Calc!P$8)) -> 0.05980977295 | Q98: =(P98*(1+Q$107)*Q$8)+('Tariffe PEF'!M13*(1-X_K_Calc!Q$8)) -> 0.05938195776 | R98: =(Q98*(1+R$107)*R$8)+('Tariffe PEF'!N13*(1-X_K_Calc!R$8)) -> 0.05895720271 | S98: =(R98*(1+S$107)*S$8)+('Tariffe PEF'!O13*(1-X_K_Calc!S$8)) -> 0.05853548591 | T98: =(S98*(1+T$107)*T$8)+('Tariffe PEF'!P13*(1-X_K_Calc!T$8)) -> 0.05811678561 | U98: =(T98*(1+U$107)*U$8)+('Tariffe PEF'!Q13*(1-X_K_Calc!U$8)) -> 0.05770108025 | V98: =(U98*(1+V$107)*V$8)+('Tariffe PEF'!R13*(1-X_K_Calc!V$8)) -> 0.0572883484 | W98: =(V98*(1+W$107)*W$8)+('Tariffe PEF'!S13*(1-X_K_Calc!W$8)) -> 0.05687856879 | X98: =(W98*(1+X$107)*X$8)+('Tariffe PEF'!T13*(1-X_K_Calc!X$8)) -> 0.05647172031
C99: Pesanti Classe 4 Chiuso | D99: € / vkm | L99: 0.0899 | M99: =(L99*(1+M$107)*M$8)+('Tariffe PEF'!I14*(1-X_K_Calc!M$8)) -> 0.0899 | N99: =(M99*(1+N$107)*N$8)+('Tariffe PEF'!J14*(1-X_K_Calc!N$8)) -> 0.09277498593 | O99: =(N99*(1+O$107)*O$8)+('Tariffe PEF'!K14*(1-X_K_Calc!O$8)) -> 0.0957419134 | P99: =(O99*(1+P$107)*P$8)+('Tariffe PEF'!L14*(1-X_K_Calc!P$8)) -> 0.09880372267 | Q99: =(P99*(1+Q$107)*Q$8)+('Tariffe PEF'!M14*(1-X_K_Calc!Q$8)) -> 0.09809698645 | R99: =(Q99*(1+R$107)*R$8)+('Tariffe PEF'!N14*(1-X_K_Calc!R$8)) -> 0.09739530547 | S99: =(R99*(1+S$107)*S$8)+('Tariffe PEF'!O14*(1-X_K_Calc!S$8)) -> 0.09669864357 | T99: =(S99*(1+T$107)*T$8)+('Tariffe PEF'!P14*(1-X_K_Calc!T$8)) -> 0.09600696484 | U99: =(T99*(1+U$107)*U$8)+('Tariffe PEF'!Q14*(1-X_K_Calc!U$8)) -> 0.09532023363 | V99: =(U99*(1+V$107)*V$8)+('Tariffe PEF'!R14*(1-X_K_Calc!V$8)) -> 0.09463841457 | W99: =(V99*(1+W$107)*W$8)+('Tariffe PEF'!S14*(1-X_K_Calc!W$8)) -> 0.09396147252 | X99: =(W99*(1+X$107)*X$8)+('Tariffe PEF'!T14*(1-X_K_Calc!X$8)) -> 0.09328937258
C100: Pesanti Classe 5 Chiuso | D100: € / vkm | L100: 0.10883 | M100: =(L100*(1+M$107)*M$8)+('Tariffe PEF'!I15*(1-X_K_Calc!M$8)) -> 0.10883 | N100: =(M100*(1+N$107)*N$8)+('Tariffe PEF'!J15*(1-X_K_Calc!N$8)) -> 0.1123103639 | O100: =(N100*(1+O$107)*O$8)+('Tariffe PEF'!K15*(1-X_K_Calc!O$8)) -> 0.1159020293 | P100: =(O100*(1+P$107)*P$8)+('Tariffe PEF'!L15*(1-X_K_Calc!P$8)) -> 0.1196085555 | Q100: =(P100*(1+Q$107)*Q$8)+('Tariffe PEF'!M15*(1-X_K_Calc!Q$8)) -> 0.1187530037 | R100: =(Q100*(1+R$107)*R$8)+('Tariffe PEF'!N15*(1-X_K_Calc!R$8)) -> 0.1179035717 | S100: =(R100*(1+S$107)*S$8)+('Tariffe PEF'!O15*(1-X_K_Calc!S$8)) -> 0.1170602156 | T100: =(S100*(1+T$107)*T$8)+('Tariffe PEF'!P15*(1-X_K_Calc!T$8)) -> 0.1162228919 | U100: =(T100*(1+U$107)*U$8)+('Tariffe PEF'!Q15*(1-X_K_Calc!U$8)) -> 0.1153915576 | V100: =(U100*(1+V$107)*V$8)+('Tariffe PEF'!R15*(1-X_K_Calc!V$8)) -> 0.1145661697 | W100: =(V100*(1+W$107)*W$8)+('Tariffe PEF'!S15*(1-X_K_Calc!W$8)) -> 0.1137466858 | X100: =(W100*(1+X$107)*X$8)+('Tariffe PEF'!T15*(1-X_K_Calc!X$8)) -> 0.1129330636
C101: Leggeri Classe A Barriera | D101: € / vkm | L101: 0.04786 | M101: =(L101*(1+M$107)*M$8)+('Tariffe PEF'!I16*(1-X_K_Calc!M$8)) -> 0.04786 | N101: =(M101*(1+N$107)*N$8)+('Tariffe PEF'!J16*(1-X_K_Calc!N$8)) -> 0.04939055424 | O101: =(N101*(1+O$107)*O$8)+('Tariffe PEF'!K16*(1-X_K_Calc!O$8)) -> 0.05097005534 | P101: =(O101*(1+P$107)*P$8)+('Tariffe PEF'!L16*(1-X_K_Calc!P$8)) -> 0.0526000686 | Q101: =(P101*(1+Q$107)*Q$8)+('Tariffe PEF'!M16*(1-X_K_Calc!Q$8)) -> 0.05222382393 | R101: =(Q101*(1+R$107)*R$8)+('Tariffe PEF'!N16*(1-X_K_Calc!R$8)) -> 0.05185027052 | S101: =(R101*(1+S$107)*S$8)+('Tariffe PEF'!O16*(1-X_K_Calc!S$8)) -> 0.05147938911 | T101: =(S101*(1+T$107)*T$8)+('Tariffe PEF'!P16*(1-X_K_Calc!T$8)) -> 0.05111116059 | U101: =(T101*(1+U$107)*U$8)+('Tariffe PEF'!Q16*(1-X_K_Calc!U$8)) -> 0.05074556598 | V101: =(U101*(1+V$107)*V$8)+('Tariffe PEF'!R16*(1-X_K_Calc!V$8)) -> 0.05038258645 | W101: =(V101*(1+W$107)*W$8)+('Tariffe PEF'!S16*(1-X_K_Calc!W$8)) -> 0.05002220328 | X101: =(W101*(1+X$107)*X$8)+('Tariffe PEF'!T16*(1-X_K_Calc!X$8)) -> 0.04966439791
C102: Pesanti Classe B Barriera | D102: € / vkm | L102: 0.0491 | M102: =(L102*(1+M$107)*M$8)+('Tariffe PEF'!I17*(1-X_K_Calc!M$8)) -> 0.0491 | N102: =(M102*(1+N$107)*N$8)+('Tariffe PEF'!J17*(1-X_K_Calc!N$8)) -> 0.05067020922 | O102: =(N102*(1+O$107)*O$8)+('Tariffe PEF'!K17*(1-X_K_Calc!O$8)) -> 0.05229063346 | P102: =(O102*(1+P$107)*P$8)+('Tariffe PEF'!L17*(1-X_K_Calc!P$8)) -> 0.05396287857 | Q102: =(P102*(1+Q$107)*Q$8)+('Tariffe PEF'!M17*(1-X_K_Calc!Q$8)) -> 0.05357688582 | R102: =(Q102*(1+R$107)*R$8)+('Tariffe PEF'!N17*(1-X_K_Calc!R$8)) -> 0.05319365405 | S102: =(R102*(1+S$107)*S$8)+('Tariffe PEF'!O17*(1-X_K_Calc!S$8)) -> 0.05281316351 | T102: =(S102*(1+T$107)*T$8)+('Tariffe PEF'!P17*(1-X_K_Calc!T$8)) -> 0.05243539459 | U102: =(T102*(1+U$107)*U$8)+('Tariffe PEF'!Q17*(1-X_K_Calc!U$8)) -> 0.05206032783 | V102: =(U102*(1+V$107)*V$8)+('Tariffe PEF'!R17*(1-X_K_Calc!V$8)) -> 0.05168794389 | W102: =(V102*(1+W$107)*W$8)+('Tariffe PEF'!S17*(1-X_K_Calc!W$8)) -> 0.05131822359 | X102: =(W102*(1+X$107)*X$8)+('Tariffe PEF'!T17*(1-X_K_Calc!X$8)) -> 0.05095114787
C103: Pesanti Classe 3 Barriera | D103: € / vkm | L103: 0.05646 | M103: =(L103*(1+M$107)*M$8)+('Tariffe PEF'!I18*(1-X_K_Calc!M$8)) -> 0.05646 | N103: =(M103*(1+N$107)*N$8)+('Tariffe PEF'!J18*(1-X_K_Calc!N$8)) -> 0.05826558071 | O103: =(N103*(1+O$107)*O$8)+('Tariffe PEF'!K18*(1-X_K_Calc!O$8)) -> 0.06012890356 | P103: =(O103*(1+P$107)*P$8)+('Tariffe PEF'!L18*(1-X_K_Calc!P$8)) -> 0.06205181515 | Q103: =(P103*(1+Q$107)*Q$8)+('Tariffe PEF'!M18*(1-X_K_Calc!Q$8)) -> 0.06160796279 | R103: =(Q103*(1+R$107)*R$8)+('Tariffe PEF'!N18*(1-X_K_Calc!R$8)) -> 0.06116728528 | S103: =(R103*(1+S$107)*S$8)+('Tariffe PEF'!O18*(1-X_K_Calc!S$8)) -> 0.06072975991 | T103: =(S103*(1+T$107)*T$8)+('Tariffe PEF'!P18*(1-X_K_Calc!T$8)) -> 0.06029536412 | U103: =(T103*(1+U$107)*U$8)+('Tariffe PEF'!Q18*(1-X_K_Calc!U$8)) -> 0.05986407554 | V103: =(U103*(1+V$107)*V$8)+('Tariffe PEF'!R18*(1-X_K_Calc!V$8)) -> 0.05943587193 | W103: =(V103*(1+W$107)*W$8)+('Tariffe PEF'!S18*(1-X_K_Calc!W$8)) -> 0.05901073124 | X103: =(W103*(1+X$107)*X$8)+('Tariffe PEF'!T18*(1-X_K_Calc!X$8)) -> 0.05858863155
C104: Pesanti Classe 4 Barriera | D104: € / vkm | L104: 0.09326 | M104: =(L104*(1+M$107)*M$8)+('Tariffe PEF'!I19*(1-X_K_Calc!M$8)) -> 0.09326 | N104: =(M104*(1+N$107)*N$8)+('Tariffe PEF'!J19*(1-X_K_Calc!N$8)) -> 0.09624243813 | O104: =(N104*(1+O$107)*O$8)+('Tariffe PEF'!K19*(1-X_K_Calc!O$8)) -> 0.0993202541 | P104: =(O104*(1+P$107)*P$8)+('Tariffe PEF'!L19*(1-X_K_Calc!P$8)) -> 0.1024964981 | Q104: =(P104*(1+Q$107)*Q$8)+('Tariffe PEF'!M19*(1-X_K_Calc!Q$8)) -> 0.1017633477 | R104: =(Q104*(1+R$107)*R$8)+('Tariffe PEF'!N19*(1-X_K_Calc!R$8)) -> 0.1010354415 | S104: =(R104*(1+S$107)*S$8)+('Tariffe PEF'!O19*(1-X_K_Calc!S$8)) -> 0.1003127419 | T104: =(S104*(1+T$107)*T$8)+('Tariffe PEF'!P19*(1-X_K_Calc!T$8)) -> 0.0995952118 | U104: =(T104*(1+U$107)*U$8)+('Tariffe PEF'!Q19*(1-X_K_Calc!U$8)) -> 0.09888281411 | V104: =(U104*(1+V$107)*V$8)+('Tariffe PEF'!R19*(1-X_K_Calc!V$8)) -> 0.09817551216 | W104: =(V104*(1+W$107)*W$8)+('Tariffe PEF'!S19*(1-X_K_Calc!W$8)) -> 0.09747326949 | X104: =(W104*(1+X$107)*X$8)+('Tariffe PEF'!T19*(1-X_K_Calc!X$8)) -> 0.09677604991
C105: Pesanti Classe 5 Barriera | L105: =+L31 -> 0.11289 | M105: =(L105*(1+M$107)*M$8)+('Tariffe PEF'!I20*(1-X_K_Calc!M$8)) -> 0.11289 | N105: =(M105*(1+N$107)*N$8)+('Tariffe PEF'!J20*(1-X_K_Calc!N$8)) -> 0.116500202 | O105: =(N105*(1+O$107)*O$8)+('Tariffe PEF'!K20*(1-X_K_Calc!O$8)) -> 0.1202258577 | P105: =(O105*(1+P$107)*P$8)+('Tariffe PEF'!L20*(1-X_K_Calc!P$8)) -> 0.1240706591 | Q105: =(P105*(1+Q$107)*Q$8)+('Tariffe PEF'!M20*(1-X_K_Calc!Q$8)) -> 0.1231831902 | R105: =(Q105*(1+R$107)*R$8)+('Tariffe PEF'!N20*(1-X_K_Calc!R$8)) -> 0.1223020694 | S105: =(R105*(1+S$107)*S$8)+('Tariffe PEF'!O20*(1-X_K_Calc!S$8)) -> 0.1214272511 | T105: =(S105*(1+T$107)*T$8)+('Tariffe PEF'!P20*(1-X_K_Calc!T$8)) -> 0.1205586903 | U105: =(T105*(1+U$107)*U$8)+('Tariffe PEF'!Q20*(1-X_K_Calc!U$8)) -> 0.1196963423 | V105: =(U105*(1+V$107)*V$8)+('Tariffe PEF'!R20*(1-X_K_Calc!V$8)) -> 0.1188401626 | W105: =(V105*(1+W$107)*W$8)+('Tariffe PEF'!S20*(1-X_K_Calc!W$8)) -> 0.1179901071 | X105: =(W105*(1+X$107)*X$8)+('Tariffe PEF'!T20*(1-X_K_Calc!X$8)) -> 0.117146132
C107: Δ% | D107: % | L107: 0 | M107: =M108*M109+SUM(M110:M111) -> 0 | N107: =((N108*N109+SUM(N110:N111))*N8)+('Dinamica Tariffaria'!I27*(1-X_K_Calc!N8)) -> 0.03197982124 | O107: =((O108*O109+SUM(O110:O111))*O8)+('Dinamica Tariffaria'!J27*(1-X_K_Calc!O8)) -> 0.03197982124 | P107: =((P108*P109+SUM(P110:P111))*P8)+('Dinamica Tariffaria'!K27*(1-X_K_Calc!P8)) -> 0.03197982124 | Q107: =((Q108*Q109+SUM(Q110:Q111))*Q8)+('Dinamica Tariffaria'!L27*(1-X_K_Calc!Q8)) -> -0.007152931061 | R107: =((R108*R109+SUM(R110:R111))*R8)+('Dinamica Tariffaria'!M27*(1-X_K_Calc!R8)) -> -0.007152931061 | S107: =((S108*S109+SUM(S110:S111))*S8)+('Dinamica Tariffaria'!N27*(1-X_K_Calc!S8)) -> -0.007152931061 | T107: =((T108*T109+SUM(T110:T111))*T8)+('Dinamica Tariffaria'!O27*(1-X_K_Calc!T8)) -> -0.007152931061 | U107: =((U108*U109+SUM(U110:U111))*U8)+('Dinamica Tariffaria'!P27*(1-X_K_Calc!U8)) -> -0.007152931061 | V107: =((V108*V109+SUM(V110:V111))*V8)+('Dinamica Tariffaria'!Q27*(1-X_K_Calc!V8)) -> -0.007152931061 | W107: =((W108*W109+SUM(W110:W111))*W8)+('Dinamica Tariffaria'!R27*(1-X_K_Calc!W8)) -> -0.007152931061 | X107: =((X108*X109+SUM(X110:X111))*X8)+('Dinamica Tariffaria'!S27*(1-X_K_Calc!X8)) -> -0.007152931061
C108: Inflazione | D108: % | N108: =N34 -> 0 | O108: 0 | P108: 0 | Q108: 0 | R108: 0.008 | S108: 0.008 | T108: 0.008 | U108: 0.008 | V108: 0.008 | W108: 0.008 | X108: 0.008
C109: α | D109: % | N109: 0.7 | O109: 0.7 | P109: 0.7 | Q109: 0.7 | R109: 0.7 | S109: 0.7 | T109: 0.7 | U109: 0.7 | V109: 0.7 | W109: 0.7 | X109: 0.7
C110: Fattore X | D110: % | N110: =+N36 -> 0 | O110: 0 | P110: 0 | Q110: 0 | R110: 0.01307268927 | S110: 0.01307268927 | T110: 0.01307268927 | U110: 0.01307268927 | V110: 0.01307268927 | W110: 0.01307268927 | X110: 0.01307268927
C111: Fattore K | D111: % | E111: =$E$158 -> 0 | N111: =+$E$111 -> 0 | O111: =+$E$111 -> 0 | P111: 0 | Q111: 0 | R111: 0 | S111: 0 | T111: 0 | U111: 0 | V111: 0 | W111: 0 | X111: 0
C113: Volumi di traffico
C114: Leggeri Classe A Passante | D114: vkm / y | L114: =+SUMIF(Working!$G$327:$AT$327,L$3,TrafficPassanteA) -> 294217237.4 | M114: =+SUMIF(Working!$G$327:$AT$327,M$3,TrafficPassanteA) -> 387770252.9 | N114: =+SUMIF(Working!$G$327:$AT$327,N$3,TrafficPassanteA) -> 427266382.2 | O114: =+SUMIF(Working!$G$327:$AT$327,O$3,TrafficPassanteA) -> 429710193.2 | P114: =+SUMIF(Working!$G$327:$AT$327,P$3,TrafficPassanteA) -> 431486456.6 | Q114: =+SUMIF(Working!$G$327:$AT$327,Q$3,TrafficPassanteA) -> 430895002.8 | R114: =+SUMIF(Working!$G$327:$AT$327,R$3,TrafficPassanteA) -> 429913280.2 | S114: =+SUMIF(Working!$G$327:$AT$327,S$3,TrafficPassanteA) -> 432340284.5 | T114: =+SUMIF(Working!$G$327:$AT$327,T$3,TrafficPassanteA) -> 435972170.8 | U114: =+SUMIF(Working!$G$327:$AT$327,U$3,TrafficPassanteA) -> 437235474.2 | V114: =+SUMIF(Working!$G$327:$AT$327,V$3,TrafficPassanteA) -> 439703814.7 | W114: =+SUMIF(Working!$G$327:$AT$327,W$3,TrafficPassanteA) -> 442809659.4 | X114: =+SUMIF(Working!$G$327:$AT$327,X$3,TrafficPassanteA) -> 446994884.2 | Z114: TrafficPassanteA
C115: Pesanti Classe B Passante | D115: vkm / y | L115: =+SUMIF(Working!$G$327:$AT$327,L$3,TrafficPassanteB) -> 53409645.75 | M115: =+SUMIF(Working!$G$327:$AT$327,M$3,TrafficPassanteB) -> 66007063.26 | N115: =+SUMIF(Working!$G$327:$AT$327,N$3,TrafficPassanteB) -> 68707827.05 | O115: =+SUMIF(Working!$G$327:$AT$327,O$3,TrafficPassanteB) -> 69109762.47 | P115: =+SUMIF(Working!$G$327:$AT$327,P$3,TrafficPassanteB) -> 69731383.8 | Q115: =+SUMIF(Working!$G$327:$AT$327,Q$3,TrafficPassanteB) -> 69994515.48 | R115: =+SUMIF(Working!$G$327:$AT$327,R$3,TrafficPassanteB) -> 70054843.9 | S115: =+SUMIF(Working!$G$327:$AT$327,S$3,TrafficPassanteB) -> 70705857.43 | T115: =+SUMIF(Working!$G$327:$AT$327,T$3,TrafficPassanteB) -> 71558435.63 | U115: =+SUMIF(Working!$G$327:$AT$327,U$3,TrafficPassanteB) -> 72026090.15 | V115: =+SUMIF(Working!$G$327:$AT$327,V$3,TrafficPassanteB) -> 72695422.29 | W115: =+SUMIF(Working!$G$327:$AT$327,W$3,TrafficPassanteB) -> 73384531.64 | X115: =+SUMIF(Working!$G$327:$AT$327,X$3,TrafficPassanteB) -> 74252013.48 | Z115: TrafficPassanteB
C116: Pesanti Classe 3 Passante | D116: vkm / y | L116: =+SUMIF(Working!$G$327:$AT$327,L$3,TrafficPassante3) -> 10310925.37 | M116: =+SUMIF(Working!$G$327:$AT$327,M$3,TrafficPassante3) -> 12963976.36 | N116: =+SUMIF(Working!$G$327:$AT$327,N$3,TrafficPassante3) -> 13296965.83 | O116: =+SUMIF(Working!$G$327:$AT$327,O$3,TrafficPassante3) -> 13362386.9 | P116: =+SUMIF(Working!$G$327:$AT$327,P$3,TrafficPassante3) -> 13481743.96 | Q116: =+SUMIF(Working!$G$327:$AT$327,Q$3,TrafficPassante3) -> 13538288.57 | R116: =+SUMIF(Working!$G$327:$AT$327,R$3,TrafficPassante3) -> 13538072.54 | S116: =+SUMIF(Working!$G$327:$AT$327,S$3,TrafficPassante3) -> 13684283.72 | T116: =+SUMIF(Working!$G$327:$AT$327,T$3,TrafficPassante3) -> 13869970.08 | U116: =+SUMIF(Working!$G$327:$AT$327,U$3,TrafficPassante3) -> 13981460.38 | V116: =+SUMIF(Working!$G$327:$AT$327,V$3,TrafficPassante3) -> 14132460.15 | W116: =+SUMIF(Working!$G$327:$AT$327,W$3,TrafficPassante3) -> 14285090.72 | X116: =+SUMIF(Working!$G$327:$AT$327,X$3,TrafficPassante3) -> 14472114.71 | Z116: TrafficPassante3
C117: Pesanti Classe 4 Passante | D117: vkm / y | L117: =+SUMIF(Working!$G$327:$AT$327,L$3,TrafficPassante4) -> 8689249.808 | M117: =+SUMIF(Working!$G$327:$AT$327,M$3,TrafficPassante4) -> 11081290.52 | N117: =+SUMIF(Working!$G$327:$AT$327,N$3,TrafficPassante4) -> 11365921.8 | O117: =+SUMIF(Working!$G$327:$AT$327,O$3,TrafficPassante4) -> 11421842.13 | P117: =+SUMIF(Working!$G$327:$AT$327,P$3,TrafficPassante4) -> 11523865.63 | Q117: =+SUMIF(Working!$G$327:$AT$327,Q$3,TrafficPassante4) -> 11572198.58 | R117: =+SUMIF(Working!$G$327:$AT$327,R$3,TrafficPassante4) -> 11572013.92 | S117: =+SUMIF(Working!$G$327:$AT$327,S$3,TrafficPassante4) -> 11696991.67 | T117: =+SUMIF(Working!$G$327:$AT$327,T$3,TrafficPassante4) -> 11855711.83 | U117: =+SUMIF(Working!$G$327:$AT$327,U$3,TrafficPassante4) -> 11951011.03 | V117: =+SUMIF(Working!$G$327:$AT$327,V$3,TrafficPassante4) -> 12080081.95 | W117: =+SUMIF(Working!$G$327:$AT$327,W$3,TrafficPassante4) -> 12210546.83 | X117: =+SUMIF(Working!$G$327:$AT$327,X$3,TrafficPassante4) -> 12370410.37 | Z117: TrafficPassante4
C118: Pesanti Classe 5 Passante | D118: vkm / y | L118: =+SUMIF(Working!$G$327:$AT$327,L$3,TrafficPassante5) -> 104913278.9 | M118: =+SUMIF(Working!$G$327:$AT$327,M$3,TrafficPassante5) -> 115799350 | N118: =+SUMIF(Working!$G$327:$AT$327,N$3,TrafficPassante5) -> 118773743.3 | O118: =+SUMIF(Working!$G$327:$AT$327,O$3,TrafficPassante5) -> 119358110.1 | P118: =+SUMIF(Working!$G$327:$AT$327,P$3,TrafficPassante5) -> 120424254.4 | Q118: =+SUMIF(Working!$G$327:$AT$327,Q$3,TrafficPassante5) -> 120929333.1 | R118: =+SUMIF(Working!$G$327:$AT$327,R$3,TrafficPassante5) -> 120927403.4 | S118: =+SUMIF(Working!$G$327:$AT$327,S$3,TrafficPassante5) -> 122233419.4 | T118: =+SUMIF(Working!$G$327:$AT$327,T$3,TrafficPassante5) -> 123892043.2 | U118: =+SUMIF(Working!$G$327:$AT$327,U$3,TrafficPassante5) -> 124887918.5 | V118: =+SUMIF(Working!$G$327:$AT$327,V$3,TrafficPassante5) -> 126236708.1 | W118: =+SUMIF(Working!$G$327:$AT$327,W$3,TrafficPassante5) -> 127600064.5 | X118: =+SUMIF(Working!$G$327:$AT$327,X$3,TrafficPassante5) -> 129270636.6 | Z118: TrafficPassante5
C119: Leggeri Classe A Chiuso | D119: vkm / y | L119: =+SUMIF(Working!$G$327:$AT$327,L$3,TrafficClosedSystemA) -> 243788401.6 | M119: =+SUMIF(Working!$G$327:$AT$327,M$3,TrafficClosedSystemA) -> 298924391.2 | N119: =+SUMIF(Working!$G$327:$AT$327,N$3,TrafficClosedSystemA) -> 352652324.6 | O119: =+SUMIF(Working!$G$327:$AT$327,O$3,TrafficClosedSystemA) -> 357710634.3 | P119: =+SUMIF(Working!$G$327:$AT$327,P$3,TrafficClosedSystemA) -> 361083403.9 | Q119: =+SUMIF(Working!$G$327:$AT$327,Q$3,TrafficClosedSystemA) -> 361876292.8 | R119: =+SUMIF(Working!$G$327:$AT$327,R$3,TrafficClosedSystemA) -> 362689021.9 | S119: =+SUMIF(Working!$G$327:$AT$327,S$3,TrafficClosedSystemA) -> 364736522.7 | T119: =+SUMIF(Working!$G$327:$AT$327,T$3,TrafficClosedSystemA) -> 367800501.8 | U119: =+SUMIF(Working!$G$327:$AT$327,U$3,TrafficClosedSystemA) -> 368866266.2 | V119: =+SUMIF(Working!$G$327:$AT$327,V$3,TrafficClosedSystemA) -> 370948639.6 | W119: =+SUMIF(Working!$G$327:$AT$327,W$3,TrafficClosedSystemA) -> 373568832.7 | X119: =+SUMIF(Working!$G$327:$AT$327,X$3,TrafficClosedSystemA) -> 377099626.4 | Z119: TrafficClosedSystemA
C120: Pesanti Classe B Chiuso | D120: vkm / y | L120: =+SUMIF(Working!$G$327:$AT$327,L$3,TrafficClosedSystemB) -> 36178206.51 | M120: =+SUMIF(Working!$G$327:$AT$327,M$3,TrafficClosedSystemB) -> 42653006.38 | N120: =+SUMIF(Working!$G$327:$AT$327,N$3,TrafficClosedSystemB) -> 47602099.38 | O120: =+SUMIF(Working!$G$327:$AT$327,O$3,TrafficClosedSystemB) -> 48155517.88 | P120: =+SUMIF(Working!$G$327:$AT$327,P$3,TrafficClosedSystemB) -> 48761993.76 | Q120: =+SUMIF(Working!$G$327:$AT$327,Q$3,TrafficClosedSystemB) -> 49065014.5 | R120: =+SUMIF(Working!$G$327:$AT$327,R$3,TrafficClosedSystemB) -> 49259746.51 | S120: =+SUMIF(Working!$G$327:$AT$327,S$3,TrafficClosedSystemB) -> 49717513.02 | T120: =+SUMIF(Working!$G$327:$AT$327,T$3,TrafficClosedSystemB) -> 50317011.69 | U120: =+SUMIF(Working!$G$327:$AT$327,U$3,TrafficClosedSystemB) -> 50645847.52 | V120: =+SUMIF(Working!$G$327:$AT$327,V$3,TrafficClosedSystemB) -> 51116494.95 | W120: =+SUMIF(Working!$G$327:$AT$327,W$3,TrafficClosedSystemB) -> 51601048.9 | X120: =+SUMIF(Working!$G$327:$AT$327,X$3,TrafficClosedSystemB) -> 52211027.21 | Z120: TrafficClosedSystemB
C121: Pesanti Classe 3 Chiuso | D121: vkm / y | L121: =+SUMIF(Working!$G$327:$AT$327,L$3,TrafficClosedSystem3) -> 6107456.48 | M121: =+SUMIF(Working!$G$327:$AT$327,M$3,TrafficClosedSystem3) -> 7703625.435 | N121: =+SUMIF(Working!$G$327:$AT$327,N$3,TrafficClosedSystem3) -> 8362490.435 | O121: =+SUMIF(Working!$G$327:$AT$327,O$3,TrafficClosedSystem3) -> 8455615.128 | P121: =+SUMIF(Working!$G$327:$AT$327,P$3,TrafficClosedSystem3) -> 8564197.273 | Q121: =+SUMIF(Working!$G$327:$AT$327,Q$3,TrafficClosedSystem3) -> 8622951.491 | R121: =+SUMIF(Working!$G$327:$AT$327,R$3,TrafficClosedSystem3) -> 8652189.818 | S121: =+SUMIF(Working!$G$327:$AT$327,S$3,TrafficClosedSystem3) -> 8745633.468 | T121: =+SUMIF(Working!$G$327:$AT$327,T$3,TrafficClosedSystem3) -> 8864305.724 | U121: =+SUMIF(Working!$G$327:$AT$327,U$3,TrafficClosedSystem3) -> 8935559.242 | V121: =+SUMIF(Working!$G$327:$AT$327,V$3,TrafficClosedSystem3) -> 9032063.281 | W121: =+SUMIF(Working!$G$327:$AT$327,W$3,TrafficClosedSystem3) -> 9129609.565 | X121: =+SUMIF(Working!$G$327:$AT$327,X$3,TrafficClosedSystem3) -> 9249136.703 | Z121: TrafficClosedSystem3
C122: Pesanti Classe 4 Chiuso | D122: vkm / y | L122: =+SUMIF(Working!$G$327:$AT$327,L$3,TrafficClosedSystem4) -> 4638890.379 | M122: =+SUMIF(Working!$G$327:$AT$327,M$3,TrafficClosedSystem4) -> 5649115.524 | N122: =+SUMIF(Working!$G$327:$AT$327,N$3,TrafficClosedSystem4) -> 6132265.247 | O122: =+SUMIF(Working!$G$327:$AT$327,O$3,TrafficClosedSystem4) -> 6200554.153 | P122: =+SUMIF(Working!$G$327:$AT$327,P$3,TrafficClosedSystem4) -> 6280178.102 | Q122: =+SUMIF(Working!$G$327:$AT$327,Q$3,TrafficClosedSystem4) -> 6323262.929 | R122: =+SUMIF(Working!$G$327:$AT$327,R$3,TrafficClosedSystem4) -> 6344703.572 | S122: =+SUMIF(Working!$G$327:$AT$327,S$3,TrafficClosedSystem4) -> 6413226.371 | T122: =+SUMIF(Working!$G$327:$AT$327,T$3,TrafficClosedSystem4) -> 6500249.46 | U122: =+SUMIF(Working!$G$327:$AT$327,U$3,TrafficClosedSystem4) -> 6552500.099 | V122: =+SUMIF(Working!$G$327:$AT$327,V$3,TrafficClosedSystem4) -> 6623267.1 | W122: =+SUMIF(Working!$G$327:$AT$327,W$3,TrafficClosedSystem4) -> 6694798.385 | X122: =+SUMIF(Working!$G$327:$AT$327,X$3,TrafficClosedSystem4) -> 6782448.365 | Z122: TrafficClosedSystem4
C123: Pesanti Classe 5 Chiuso | D123: vkm / y | L123: =+SUMIF(Working!$G$327:$AT$327,L$3,TrafficClosedSystem5) -> 57251232.99 | M123: =+SUMIF(Working!$G$327:$AT$327,M$3,TrafficClosedSystem5) -> 62071688.69 | N123: =+SUMIF(Working!$G$327:$AT$327,N$3,TrafficClosedSystem5) -> 67380470.05 | O123: =+SUMIF(Working!$G$327:$AT$327,O$3,TrafficClosedSystem5) -> 68130818.96 | P123: =+SUMIF(Working!$G$327:$AT$327,P$3,TrafficClosedSystem5) -> 69005715.74 | Q123: =+SUMIF(Working!$G$327:$AT$327,Q$3,TrafficClosedSystem5) -> 69479125.77 | R123: =+SUMIF(Working!$G$327:$AT$327,R$3,TrafficClosedSystem5) -> 69714712.56 | S123: =+SUMIF(Working!$G$327:$AT$327,S$3,TrafficClosedSystem5) -> 70467631.45 | T123: =+SUMIF(Working!$G$327:$AT$327,T$3,TrafficClosedSystem5) -> 71423828.94 | U123: =+SUMIF(Working!$G$327:$AT$327,U$3,TrafficClosedSystem5) -> 71997951.63 | V123: =+SUMIF(Working!$G$327:$AT$327,V$3,TrafficClosedSystem5) -> 72775529.51 | W123: =+SUMIF(Working!$G$327:$AT$327,W$3,TrafficClosedSystem5) -> 73561505.23 | X123: =+SUMIF(Working!$G$327:$AT$327,X$3,TrafficClosedSystem5) -> 74524590.91 | Z123: TrafficClosedSystem5
C124: Leggeri Classe A Barriera | D124: vkm / y | L124: =+SUMIF(Working!$G$327:$AT$327,L$3,TrafficBarriersA) -> 385888328.9 | M124: =+SUMIF(Working!$G$327:$AT$327,M$3,TrafficBarriersA) -> 453374498.9 | N124: =+SUMIF(Working!$G$327:$AT$327,N$3,TrafficBarriersA) -> 556254390.6 | O124: =+SUMIF(Working!$G$327:$AT$327,O$3,TrafficBarriersA) -> 581643887.2 | P124: =+SUMIF(Working!$G$327:$AT$327,P$3,TrafficBarriersA) -> 600179733.4 | Q124: =+SUMIF(Working!$G$327:$AT$327,Q$3,TrafficBarriersA) -> 604796410.8 | R124: =+SUMIF(Working!$G$327:$AT$327,R$3,TrafficBarriersA) -> 610515457.9 | S124: =+SUMIF(Working!$G$327:$AT$327,S$3,TrafficBarriersA) -> 613332913.4 | T124: =+SUMIF(Working!$G$327:$AT$327,T$3,TrafficBarriersA) -> 617871735.7 | U124: =+SUMIF(Working!$G$327:$AT$327,U$3,TrafficBarriersA) -> 618996414.9 | V124: =+SUMIF(Working!$G$327:$AT$327,V$3,TrafficBarriersA) -> 621843289.3 | W124: =+SUMIF(Working!$G$327:$AT$327,W$3,TrafficBarriersA) -> 625187454.2 | X124: =+SUMIF(Working!$G$327:$AT$327,X$3,TrafficBarriersA) -> 629988236.5 | Z124: TrafficBarriersA
C125: Pesanti Classe B Barriera | D125: vkm / y | L125: =+SUMIF(Working!$G$327:$AT$327,L$3,TrafficBarriersB) -> 53000330.45 | M125: =+SUMIF(Working!$G$327:$AT$327,M$3,TrafficBarriersB) -> 60468839.42 | N125: =+SUMIF(Working!$G$327:$AT$327,N$3,TrafficBarriersB) -> 70596481.39 | O125: =+SUMIF(Working!$G$327:$AT$327,O$3,TrafficBarriersB) -> 73603511.94 | P125: =+SUMIF(Working!$G$327:$AT$327,P$3,TrafficBarriersB) -> 76104742.25 | Q125: =+SUMIF(Working!$G$327:$AT$327,Q$3,TrafficBarriersB) -> 76895883.89 | R125: =+SUMIF(Working!$G$327:$AT$327,R$3,TrafficBarriersB) -> 77815957.96 | S125: =+SUMIF(Working!$G$327:$AT$327,S$3,TrafficBarriersB) -> 78233526.45 | T125: =+SUMIF(Working!$G$327:$AT$327,T$3,TrafficBarriersB) -> 78871408.62 | U125: =+SUMIF(Working!$G$327:$AT$327,U$3,TrafficBarriersB) -> 79074059.32 | V125: =+SUMIF(Working!$G$327:$AT$327,V$3,TrafficBarriersB) -> 79497136.34 | W125: =+SUMIF(Working!$G$327:$AT$327,W$3,TrafficBarriersB) -> 80016516.97 | X125: =+SUMIF(Working!$G$327:$AT$327,X$3,TrafficBarriersB) -> 80719433.03 | Z125: TrafficBarriersB
C126: Pesanti Classe 3 Barriera | D126: vkm / y | L126: =+SUMIF(Working!$G$327:$AT$327,L$3,TrafficBarriers3) -> 8143411.761 | M126: =+SUMIF(Working!$G$327:$AT$327,M$3,TrafficBarriers3) -> 10537285.51 | N126: =+SUMIF(Working!$G$327:$AT$327,N$3,TrafficBarriers3) -> 11069690.76 | O126: =+SUMIF(Working!$G$327:$AT$327,O$3,TrafficBarriers3) -> 11589675.11 | P126: =+SUMIF(Working!$G$327:$AT$327,P$3,TrafficBarriers3) -> 12018532.62 | Q126: =+SUMIF(Working!$G$327:$AT$327,Q$3,TrafficBarriers3) -> 12171095.41 | R126: =+SUMIF(Working!$G$327:$AT$327,R$3,TrafficBarriers3) -> 12340489.15 | S126: =+SUMIF(Working!$G$327:$AT$327,S$3,TrafficBarriers3) -> 12421290.22 | T126: =+SUMIF(Working!$G$327:$AT$327,T$3,TrafficBarriers3) -> 12537284.9 | U126: =+SUMIF(Working!$G$327:$AT$327,U$3,TrafficBarriers3) -> 12584270 | V126: =+SUMIF(Working!$G$327:$AT$327,V$3,TrafficBarriers3) -> 12666469.27 | W126: =+SUMIF(Working!$G$327:$AT$327,W$3,TrafficBarriers3) -> 12764310.21 | X126: =+SUMIF(Working!$G$327:$AT$327,X$3,TrafficBarriers3) -> 12891008.77 | Z126: TrafficBarriers3
C127: Pesanti Classe 4 Barriera | D127: vkm / y | L127: =+SUMIF(Working!$G$327:$AT$327,L$3,TrafficBarriers4) -> 5916637.941 | M127: =+SUMIF(Working!$G$327:$AT$327,M$3,TrafficBarriers4) -> 6673462.937 | N127: =+SUMIF(Working!$G$327:$AT$327,N$3,TrafficBarriers4) -> 6949123.045 | O127: =+SUMIF(Working!$G$327:$AT$327,O$3,TrafficBarriers4) -> 7270759.13 | P127: =+SUMIF(Working!$G$327:$AT$327,P$3,TrafficBarriers4) -> 7536839.629 | Q127: =+SUMIF(Working!$G$327:$AT$327,Q$3,TrafficBarriers4) -> 7630519.501 | R127: =+SUMIF(Working!$G$327:$AT$327,R$3,TrafficBarriers4) -> 7734202.086 | S127: =+SUMIF(Working!$G$327:$AT$327,S$3,TrafficBarriers4) -> 7784842.847 | T127: =+SUMIF(Working!$G$327:$AT$327,T$3,TrafficBarriers4) -> 7857540.64 | U127: =+SUMIF(Working!$G$327:$AT$327,U$3,TrafficBarriers4) -> 7886987.791 | V127: =+SUMIF(Working!$G$327:$AT$327,V$3,TrafficBarriers4) -> 7938504.857 | W127: =+SUMIF(Working!$G$327:$AT$327,W$3,TrafficBarriers4) -> 7999825.082 | X127: =+SUMIF(Working!$G$327:$AT$327,X$3,TrafficBarriers4) -> 8079231.354 | Z127: TrafficBarriers4
C128: Pesanti Classe 5 Barriera | D128: vkm / y | L128: =+SUMIF(Working!$G$327:$AT$327,L$3,TrafficBarriers5) -> 70074372.02 | M128: =+SUMIF(Working!$G$327:$AT$327,M$3,TrafficBarriers5) -> 72712698.83 | N128: =+SUMIF(Working!$G$327:$AT$327,N$3,TrafficBarriers5) -> 75983439.7 | O128: =+SUMIF(Working!$G$327:$AT$327,O$3,TrafficBarriers5) -> 79497821.15 | P128: =+SUMIF(Working!$G$327:$AT$327,P$3,TrafficBarriers5) -> 82405594.15 | Q128: =+SUMIF(Working!$G$327:$AT$327,Q$3,TrafficBarriers5) -> 83428834.92 | R128: =+SUMIF(Working!$G$327:$AT$327,R$3,TrafficBarriers5) -> 84561157.75 | S128: =+SUMIF(Working!$G$327:$AT$327,S$3,TrafficBarriers5) -> 85114833.66 | T128: =+SUMIF(Working!$G$327:$AT$327,T$3,TrafficBarriers5) -> 85909668.02 | U128: =+SUMIF(Working!$G$327:$AT$327,U$3,TrafficBarriers5) -> 86231625.63 | V128: =+SUMIF(Working!$G$327:$AT$327,V$3,TrafficBarriers5) -> 86794882.52 | W128: =+SUMIF(Working!$G$327:$AT$327,W$3,TrafficBarriers5) -> 87465321.34 | X128: =+SUMIF(Working!$G$327:$AT$327,X$3,TrafficBarriers5) -> 88333502.21 | Z128: TrafficBarriers5
C130: RICAVI NETTI DA PEDAGGIO BASE | D130: € | L130: =+L57 -> 111717663.1 | M130: =+M57 -> 133165275.7 | N130: =+N57 -> 152035524.1 | O130: 159674490.5 | P130: 167199748.8 | Q130: 166664146.1 | R130: 165960587.5 | S130: 165944122.7 | T130: 166384805.9 | U130: 165913359.1 | V130: 165899127.4 | W130: 166020225.5 | X130: 166525474.9
C131: RICAVI NETTI DA PEDAGGIO INCREMENTATI | D131: € | L131: =+SUMPRODUCT(L91:L105,L114:L128) -> 111717663.1 | M131: =+SUMPRODUCT(M91:M105,M114:M128) -> 133165275.7 | N131: =+SUMPRODUCT(N91:N105,N114:N128) -> 152035524.1 | O131: 159674490.5 | P131: 167199748.8 | Q131: 166664146.1 | R131: 165960587.5 | S131: 165944122.7 | T131: 166384805.9 | U131: 165913359.1 | V131: 165899127.4 | W131: 166020225.5 | X131: 166525474.9
C132: RICAVI NETTI DA PEDAGGIO INCREMENTALI | D132: € | L132: =+L131-L130 -> 0 | M132: =+M131-M130 -> 0 | N132: =+N131-N130 -> 0 | O132: 0 | P132: 0 | Q132: 0 | R132: 0 | S132: 0 | T132: 0 | U132: 0 | V132: 0 | W132: 0 | X132: 0
C134: Costi ammessi
C135: Investimenti Beni Reversibili (Cumulati) | D135: € | L135: =SUM(Working!Q1813:$R$1813) -> 5815351 | M135: =SUM(Working!$Q1813:T$1813) -> 18826478 | N135: =SUM(Working!$Q1813:V$1813) -> 32546478 | O135: =SUM(Working!$Q1813:X$1813) -> 41999478 | P135: =SUM(Working!$Q1813:Z$1813) -> 59185478 | Q135: =SUM(Working!$Q1813:AB$1813) -> 92765478 | R135: =SUM(Working!$Q1813:AD$1813) -> 119815478 | S135: =SUM(Working!$Q1813:AF$1813) -> 135815478 | T135: =SUM(Working!$Q1813:AH$1813) -> 138115478 | U135: =SUM(Working!$Q1813:AJ$1813) -> 138748478 | V135: =SUM(Working!$Q1813:AL$1813) -> 144498478 | W135: =SUM(Working!$Q1813:AN$1813) -> 147649478 | X135: =SUM(Working!$Q1813:AP$1813) -> 148899478
C136: Fondo Ammortamento Beni Reversibili | D136: € | L136: =K136+L141 -> 447334.6923 | M136: =L136+M141 -> 1978929.968 | N136: 4757797.971 | O136: 8481965.974 | P136: 14115689.53 | Q136: 23946913.09 | R136: 37642422.36 | S136: 54004598.3 | T136: 70826774.24 | U136: 87807200.18 | V136: =U136+V141 -> 106704292.8 | W136: =V136+W141 -> 127176885.4 | X136: =W136+X141 -> 148899478 | Z136: =X135-X136 -> 0
C137: Capitale Investito Netto Regolatorio | D137: € | L137: =+L135-L136 -> 5368016.308 | M137: =+M135-M136 -> 16847548.03 | N137: 27788680.03 | O137: 33517512.03 | P137: 45069788.47 | Q137: 68818564.91 | R137: 82173055.64 | S137: 81810879.7 | T137: 67288703.76 | U137: 50941277.82 | V137: 37794185.21 | W137: 20472592.61 | X137: 0
C138: WACC Lordo | D138: % | M138: =Working!S$528 -> 0.0707830847 | N138: =Working!T$528 -> 0.0707830847 | O138: =Working!U$528 -> 0.0707830847 | P138: =Working!V$528 -> 0.0707830847 | Q138: =Working!W$528 -> 0.0707830847 | R138: =Working!X$528 -> 0.0707830847 | S138: =Working!Y$528 -> 0.0707830847 | T138: =Working!Z$528 -> 0.0707830847 | U138: =Working!AA$528 -> 0.0707830847 | V138: =Working!AB$528 -> 0.0707830847 | W138: =Working!AC$528 -> 0.0707830847 | X138: =Working!AD$528 -> 0.0707830847
C139: Costi di remunerazione del capitale investito | M139: =L137*M138 -> 379964.753 | N139: =M137*N138 -> 1192521.419 | O139: =N137*O138 -> 1966968.492 | P139: =O137*P138 -> 2372472.893 | Q139: =P137*Q138 -> 3190178.655 | R139: =Q137*R138 -> 4871190.309 | S139: =R137*S138 -> 5816462.357 | T139: =S137*T138 -> 5790826.427 | U139: =T137*U138 -> 4762902.018 | V139: =U137*V138 -> 3605780.783 | W139: =V137*W138 -> 2675189.013 | X139: =W137*X138 -> 1449113.256
C141: Ammortamento Regolatorio dei Beni Reversibili | D141: € | L141: =SUMIF(Working!$G$1:$AT$1,X_K_Calc!L$3,AssetValueTotalIntangRevDeprVarIncrease)/COUNT(L$3:$X$3)+K141 -> 447334.6923 | M141: =SUMIF(Working!$G$1:$AT$1,X_K_Calc!M$3,AssetValueTotalIntangRevDeprVarIncrease)/COUNT(M$3:$X$3)+L141 -> 1531595.276 | N141: =SUMIF(Working!$G$1:$AT$1,X_K_Calc!N$3,AssetValueTotalIntangRevDeprVarIncrease)/COUNT(N$3:$X$3)+M141 -> 2778868.003 | O141: =SUMIF(Working!$G$1:$AT$1,X_K_Calc!O$3,AssetValueTotalIntangRevDeprVarIncrease)/COUNT(O$3:$X$3)+N141 -> 3724168.003 | P141: =SUMIF(Working!$G$1:$AT$1,X_K_Calc!P$3,AssetValueTotalIntangRevDeprVarIncrease)/COUNT(P$3:$X$3)+O141 -> 5633723.558 | Q141: =SUMIF(Working!$G$1:$AT$1,X_K_Calc!Q$3,AssetValueTotalIntangRevDeprVarIncrease)/COUNT(Q$3:$X$3)+P141 -> 9831223.558 | R141: =SUMIF(Working!$G$1:$AT$1,X_K_Calc!R$3,AssetValueTotalIntangRevDeprVarIncrease)/COUNT(R$3:$X$3)+Q141 -> 13695509.27 | S141: =SUMIF(Working!$G$1:$AT$1,X_K_Calc!S$3,AssetValueTotalIntangRevDeprVarIncrease)/COUNT(S$3:$X$3)+R141 -> 16362175.94 | T141: =SUMIF(Working!$G$1:$AT$1,X_K_Calc!T$3,AssetValueTotalIntangRevDeprVarIncrease)/COUNT(T$3:$X$3)+S141 -> 16822175.94 | U141: =SUMIF(Working!$G$1:$AT$1,X_K_Calc!U$3,AssetValueTotalIntangRevDeprVarIncrease)/COUNT(U$3:$X$3)+T141 -> 16980425.94 | V141: =SUMIF(Working!$G$1:$AT$1,X_K_Calc!V$3,AssetValueTotalIntangRevDeprVarIncrease)/COUNT(V$3:$X$3)+U141 -> 18897092.61 | W141: =SUMIF(Working!$G$1:$AT$1,X_K_Calc!W$3,AssetValueTotalIntangRevDeprVarIncrease)/COUNT(W$3:$X$3)+V141 -> 20472592.61 | X141: =SUMIF(Working!$G$1:$AT$1,X_K_Calc!X$3,AssetValueTotalIntangRevDeprVarIncrease)/COUNT(X$3:$X$3)+W141 -> 21722592.61
C142: Costi di rimborso del capitale investito | D142: € | L142: =L141 -> 447334.6923 | M142: =M141 -> 1531595.276 | N142: =N141 -> 2778868.003 | O142: 3724168.003 | P142: 5633723.558 | Q142: 9831223.558 | R142: 13695509.27 | S142: 16362175.94 | T142: 16822175.94 | U142: 16980425.94 | V142: 18897092.61 | W142: 20472592.61 | X142: 21722592.61
C144: Manutenzione | D144: € | L144: 0 | M144: 0 | N144: 0 | O144: 0 | P144: 0 | Q144: 0 | R144: 0 | S144: 0 | T144: 0 | U144: 0 | V144: 0 | W144: 0 | X144: 0
C145: Personale | D145: € | L145: 0 | M145: 0 | N145: 0 | O145: 0 | P145: 0 | Q145: 0 | R145: 0 | S145: 0 | T145: 0 | U145: 0 | V145: 0 | W145: 0 | X145: 0
C146: Canoni di Concessione | D146: € | L146: =0.024*L132 -> 0 | M146: =0.024*M132 -> 0 | N146: =0.024*N132 -> 0 | O146: 0 | P146: 0 | Q146: 0 | R146: 0 | S146: 0 | T146: 0 | U146: 0 | V146: 0 | W146: 0 | X146: 0
C147: Canoni da subconcessione | D147: € | L147: 0 | M147: 0 | N147: 0 | O147: 0 | P147: 0 | Q147: 0 | R147: 0 | S147: 0 | T147: 0 | U147: 0 | V147: 0 | W147: 0 | X147: 0
C148: Acquisto materie prime e di consumo | D148: € | L148: 0 | M148: 0 | N148: 0 | O148: 0 | P148: 0 | Q148: 0 | R148: 0 | S148: 0 | T148: 0 | U148: 0 | V148: 0 | W148: 0 | X148: 0
C149: Altri costi operativi | D149: € | L149: 0 | M149: 0 | N149: 0 | O149: 0 | P149: 0 | Q149: 0 | R149: 0 | S149: 0 | T149: 0 | U149: 0 | V149: 0 | W149: 0 | X149: 0
C150: Altri ricavi e proventi | D150: € | L150: 0 | M150: 0 | N150: 0 | O150: 0 | P150: 0 | Q150: 0 | R150: 0 | S150: 0 | T150: 0 | U150: 0 | V150: 0 | W150: 0 | X150: 0
C151: Totale costi operativi al netto dei ricavi accessori ('C) | D151: € | L151: =SUM(L145:L150) -> 0 | M151: =SUM(M145:M150) -> 0 | N151: =SUM(N145:N150) -> 0 | O151: =SUM(O145:O150) -> 0 | P151: =SUM(P145:P150) -> 0 | Q151: 0 | R151: 0 | S151: 0 | T151: 0 | U151: 0 | V151: 0 | W151: 0 | X151: 0
C152: COSTI AMMESSI A REMUNERAZIONE | D152: € | L152: =SUM(L139,L142,L151) -> 447334.6923 | M152: =SUM(M139,M142,M151) -> 1911560.029 | N152: =SUM(N139,N142,N151) -> 3971389.422 | O152: =SUM(O139,O142,O151) -> 5691136.495 | P152: =SUM(P139,P142,P151) -> 8006196.451 | Q152: 13021402.21 | R152: 18566699.58 | S152: 22178638.3 | T152: 22613002.37 | U152: 21743327.96 | V152: 22502873.39 | W152: 23147781.62 | X152: 23171705.86
C154: Poste figurative | D154: € | L154: =L152-L132 -> 447334.6923 | M154: =M152-M132 -> 1911560.029 | N154: =N152-N132 -> 3971389.422 | O154: =O152-O132 -> 5691136.495 | P154: =P152-P132 -> 8006196.451 | Q154: 13021402.21 | R154: 18566699.58 | S154: 22178638.3 | T154: 22613002.37 | U154: 21743327.96 | V154: 22502873.39 | W154: 23147781.62 | X154: 23171705.86
C155: Saldo delle poste figurative | D155: € | L155: =K155*(1+L138)+L154 -> 447334.6923 | M155: =L155*(1+M138)+M154 -> 2390558.45 | N155: =M155*(1+N138)+N154 -> 6531158.974 | O155: =N155*(1+O138)+O154 -> 12684591.05 | P155: 21588641.98 | Q155: 36138154.87 | R155: 57262824.53 | S155: 83494702.18 | T155: 112017717.1 | U155: 141690004.6 | V155: 174222133.6 | W155: 209701895.3 | X155: =ROUND(W155*(1+X138)+X154,-1) -> 247716950
C157: VA delle poste figurative | D157: € | E157: =ROUND(NPV(M138,L154:X154)+K155,1) -> 101820727.4
C158: Change K | D158: % | E158: 0
C159: Saldo delle poste figurative a fine concessione | D159: € | E159: =+X155 -> 247716950
C162: Sintesi PFR
C163: Tariffa media ponderata
C164: Leggeri Classe A Passante | K164: =K17 -> 0.09703 | L164: 0.09819 | M164: =(L164*(1+M$180)*M$8)+('Tariffe PEF'!I6*(1-X_K_Calc!M$8)) -> 0.09819 | N164: =(M164*(1+N$180)*N$8)+('Tariffe PEF'!J6*(1-X_K_Calc!N$8)) -> 0.1013300986 | O164: =(N164*(1+O$180)*O$8)+('Tariffe PEF'!K6*(1-X_K_Calc!O$8)) -> 0.1045706171 | P164: =(O164*(1+P$180)*P$8)+('Tariffe PEF'!L6*(1-X_K_Calc!P$8)) -> 0.1079147667 | Q164: =(P164*(1+Q$180)*Q$8)+('Tariffe PEF'!M6*(1-X_K_Calc!Q$8)) -> 0.1071428598 | R164: =(Q164*(1+R$180)*R$8)+('Tariffe PEF'!N6*(1-X_K_Calc!R$8)) -> 0.1063764744 | S164: =(R164*(1+S$180)*S$8)+('Tariffe PEF'!O6*(1-X_K_Calc!S$8)) -> 0.1056155708 | T164: =(S164*(1+T$180)*T$8)+('Tariffe PEF'!P6*(1-X_K_Calc!T$8)) -> 0.1048601099 | U164: =(T164*(1+U$180)*U$8)+('Tariffe PEF'!Q6*(1-X_K_Calc!U$8)) -> 0.1041100527 | V164: =(U164*(1+V$180)*V$8)+('Tariffe PEF'!R6*(1-X_K_Calc!V$8)) -> 0.1033653607 | W164: =(V164*(1+W$180)*W$8)+('Tariffe PEF'!S6*(1-X_K_Calc!W$8)) -> 0.1026259954 | X164: =(W164*(1+X$180)*X$8)+('Tariffe PEF'!T6*(1-X_K_Calc!X$8)) -> 0.1018919187
C165: Pesanti Classe B Passante | K165: 0.09946 | L165: 0.10065 | M165: =(L165*(1+M$180)*M$8)+('Tariffe PEF'!I7*(1-X_K_Calc!M$8)) -> 0.10065 | N165: =(M165*(1+N$180)*N$8)+('Tariffe PEF'!J7*(1-X_K_Calc!N$8)) -> 0.103868769 | O165: =(N165*(1+O$180)*O$8)+('Tariffe PEF'!K7*(1-X_K_Calc!O$8)) -> 0.1071904737 | P165: =(O165*(1+P$180)*P$8)+('Tariffe PEF'!L7*(1-X_K_Calc!P$8)) -> 0.1106184059 | Q165: =(P165*(1+Q$180)*Q$8)+('Tariffe PEF'!M7*(1-X_K_Calc!Q$8)) -> 0.10982716 | R165: =(Q165*(1+R$180)*R$8)+('Tariffe PEF'!N7*(1-X_K_Calc!R$8)) -> 0.1090415739 | S165: =(R165*(1+S$180)*S$8)+('Tariffe PEF'!O7*(1-X_K_Calc!S$8)) -> 0.1082616071 | T165: =(S165*(1+T$180)*T$8)+('Tariffe PEF'!P7*(1-X_K_Calc!T$8)) -> 0.1074872193 | U165: =(T165*(1+U$180)*U$8)+('Tariffe PEF'!Q7*(1-X_K_Calc!U$8)) -> 0.1067183706 | V165: =(U165*(1+V$180)*V$8)+('Tariffe PEF'!R7*(1-X_K_Calc!V$8)) -> 0.1059550214 | W165: =(V165*(1+W$180)*W$8)+('Tariffe PEF'!S7*(1-X_K_Calc!W$8)) -> 0.1051971325 | X165: =(W165*(1+X$180)*X$8)+('Tariffe PEF'!T7*(1-X_K_Calc!X$8)) -> 0.1044446646
C166: Pesanti Classe 3 Passante | K166: 0.12131 | L166: 0.12277 | M166: =(L166*(1+M$180)*M$8)+('Tariffe PEF'!I8*(1-X_K_Calc!M$8)) -> 0.12277 | N166: =(M166*(1+N$180)*N$8)+('Tariffe PEF'!J8*(1-X_K_Calc!N$8)) -> 0.1266961627 | O166: =(N166*(1+O$180)*O$8)+('Tariffe PEF'!K8*(1-X_K_Calc!O$8)) -> 0.1307478833 | P166: =(O166*(1+P$180)*P$8)+('Tariffe PEF'!L8*(1-X_K_Calc!P$8)) -> 0.1349291772 | Q166: =(P166*(1+Q$180)*Q$8)+('Tariffe PEF'!M8*(1-X_K_Calc!Q$8)) -> 0.1339640381 | R166: =(Q166*(1+R$180)*R$8)+('Tariffe PEF'!N8*(1-X_K_Calc!R$8)) -> 0.1330058026 | S166: =(R166*(1+S$180)*S$8)+('Tariffe PEF'!O8*(1-X_K_Calc!S$8)) -> 0.1320544213 | T166: =(S166*(1+T$180)*T$8)+('Tariffe PEF'!P8*(1-X_K_Calc!T$8)) -> 0.1311098451 | U166: =(T166*(1+U$180)*U$8)+('Tariffe PEF'!Q8*(1-X_K_Calc!U$8)) -> 0.1301720254 | V166: =(U166*(1+V$180)*V$8)+('Tariffe PEF'!R8*(1-X_K_Calc!V$8)) -> 0.1292409139 | W166: =(V166*(1+W$180)*W$8)+('Tariffe PEF'!S8*(1-X_K_Calc!W$8)) -> 0.1283164625 | X166: =(W166*(1+X$180)*X$8)+('Tariffe PEF'!T8*(1-X_K_Calc!X$8)) -> 0.1273986237
C167: Pesanti Classe 4 Passante | K167: 0.19302 | L167: 0.19534 | M167: =(L167*(1+M$180)*M$8)+('Tariffe PEF'!I9*(1-X_K_Calc!M$8)) -> 0.19534 | N167: =(M167*(1+N$180)*N$8)+('Tariffe PEF'!J9*(1-X_K_Calc!N$8)) -> 0.2015869383 | O167: =(N167*(1+O$180)*O$8)+('Tariffe PEF'!K9*(1-X_K_Calc!O$8)) -> 0.2080336525 | P167: =(O167*(1+P$180)*P$8)+('Tariffe PEF'!L9*(1-X_K_Calc!P$8)) -> 0.2146865316 | Q167: =(P167*(1+Q$180)*Q$8)+('Tariffe PEF'!M9*(1-X_K_Calc!Q$8)) -> 0.2131508936 | R167: =(Q167*(1+R$180)*R$8)+('Tariffe PEF'!N9*(1-X_K_Calc!R$8)) -> 0.2116262399 | S167: =(R167*(1+S$180)*S$8)+('Tariffe PEF'!O9*(1-X_K_Calc!S$8)) -> 0.210112492 | T167: =(S167*(1+T$180)*T$8)+('Tariffe PEF'!P9*(1-X_K_Calc!T$8)) -> 0.2086095719 | U167: =(T167*(1+U$180)*U$8)+('Tariffe PEF'!Q9*(1-X_K_Calc!U$8)) -> 0.207117402 | V167: =(U167*(1+V$180)*V$8)+('Tariffe PEF'!R9*(1-X_K_Calc!V$8)) -> 0.2056359055 | W167: =(V167*(1+W$180)*W$8)+('Tariffe PEF'!S9*(1-X_K_Calc!W$8)) -> 0.204165006 | X167: =(W167*(1+X$180)*X$8)+('Tariffe PEF'!T9*(1-X_K_Calc!X$8)) -> 0.2027046278
C168: Pesanti Classe 5 Passante | K168: 0.23129 | L168: 0.23407 | M168: =(L168*(1+M$180)*M$8)+('Tariffe PEF'!I10*(1-X_K_Calc!M$8)) -> 0.23407 | N168: =(M168*(1+N$180)*N$8)+('Tariffe PEF'!J10*(1-X_K_Calc!N$8)) -> 0.2415555168 | O168: =(N168*(1+O$180)*O$8)+('Tariffe PEF'!K10*(1-X_K_Calc!O$8)) -> 0.249280419 | P168: =(O168*(1+P$180)*P$8)+('Tariffe PEF'!L10*(1-X_K_Calc!P$8)) -> 0.2572523622 | Q168: =(P168*(1+Q$180)*Q$8)+('Tariffe PEF'!M10*(1-X_K_Calc!Q$8)) -> 0.2554122538 | R168: =(Q168*(1+R$180)*R$8)+('Tariffe PEF'!N10*(1-X_K_Calc!R$8)) -> 0.2535853076 | S168: =(R168*(1+S$180)*S$8)+('Tariffe PEF'!O10*(1-X_K_Calc!S$8)) -> 0.2517714294 | T168: =(S168*(1+T$180)*T$8)+('Tariffe PEF'!P10*(1-X_K_Calc!T$8)) -> 0.2499705257 | U168: =(T168*(1+U$180)*U$8)+('Tariffe PEF'!Q10*(1-X_K_Calc!U$8)) -> 0.2481825037 | V168: =(U168*(1+V$180)*V$8)+('Tariffe PEF'!R10*(1-X_K_Calc!V$8)) -> 0.2464072714 | W168: =(V168*(1+W$180)*W$8)+('Tariffe PEF'!S10*(1-X_K_Calc!W$8)) -> 0.2446447372 | X168: =(W168*(1+X$180)*X$8)+('Tariffe PEF'!T10*(1-X_K_Calc!X$8)) -> 0.2428948102
C169: Leggeri Classe A Chiuso | K169: 0.04559 | L169: 0.04614 | M169: =(L169*(1+M$180)*M$8)+('Tariffe PEF'!I11*(1-X_K_Calc!M$8)) -> 0.04614 | N169: =(M169*(1+N$180)*N$8)+('Tariffe PEF'!J11*(1-X_K_Calc!N$8)) -> 0.04761554895 | O169: =(N169*(1+O$180)*O$8)+('Tariffe PEF'!K11*(1-X_K_Calc!O$8)) -> 0.0491382857 | P169: =(O169*(1+P$180)*P$8)+('Tariffe PEF'!L11*(1-X_K_Calc!P$8)) -> 0.05070971929 | Q169: =(P169*(1+Q$180)*Q$8)+('Tariffe PEF'!M11*(1-X_K_Calc!Q$8)) -> 0.05034699616 | R169: =(Q169*(1+R$180)*R$8)+('Tariffe PEF'!N11*(1-X_K_Calc!R$8)) -> 0.04998686757 | S169: =(R169*(1+S$180)*S$8)+('Tariffe PEF'!O11*(1-X_K_Calc!S$8)) -> 0.04962931495 | T169: =(S169*(1+T$180)*T$8)+('Tariffe PEF'!P11*(1-X_K_Calc!T$8)) -> 0.04927431988 | U169: =(T169*(1+U$180)*U$8)+('Tariffe PEF'!Q11*(1-X_K_Calc!U$8)) -> 0.04892186407 | V169: =(U169*(1+V$180)*V$8)+('Tariffe PEF'!R11*(1-X_K_Calc!V$8)) -> 0.04857192935 | W169: =(V169*(1+W$180)*W$8)+('Tariffe PEF'!S11*(1-X_K_Calc!W$8)) -> 0.04822449769 | X169: =(W169*(1+X$180)*X$8)+('Tariffe PEF'!T11*(1-X_K_Calc!X$8)) -> 0.04787955118
